Workbook

Sheet Výstup
B2: Jméno a příjmení
B3: Spisová značka
B5: Údaje pro určení výše hrubých příjmů na základě statistických dat za rok 2024
B6: =TabPohlaví[[#Headers],[Pohlaví]] -> Pohlaví | C6: Žena
B7: =TabVěk[[#Headers],[Věk]] -> Věk | C7: do 34 let
B8: =TabVzdělání[[#Headers],[Vzdělání]] -> Vzdělání | C8: Střední s maturitou a vyšší odborné
B9: =TabObor[[#Headers],[Obor činnosti dle CZ-NACE]] -> Obor činnosti dle CZ-NACE | C9: 1. Souhrnná data bez rozlišení oborů
B10: =TabRegion[[#Headers],[Region]] -> Region | C10: 1. Hlavní město Praha
B11: Úvazek | C11: 1
B12: Počet osob s podobnými charakteristikami | C12: =IFERROR(IF(VLOOKUP(1,StatData[],13,0)<>"*",VLOOKUP(1,StatData[],13,0),Chyba),Chyba) -> 33309.48438
B14: Vyhodnocení příjmového potenciálu dlužníka
B15: Aktuální hrubé příjmy dlužníka | C15: 39685
B16: Nejvyšší minulé hrubé příjmy dlužníka | C16: 43341
B17: Požadovaný percentil příjmů | C17: 30
B18: Požadovaná výše hrubých příjmů | C18: =VLOOKUP(C17,B31:C58,2,0) -> 34628
B19: Porovnání s dlužníky v oddlužení v roce 2023 | C19: ="Požadovaná výše hrubých příjmů je vyšší než u "& FIXED(VLOOKUP($C$17,E110:M137,9,0)*100,1)& " % průměrných dlužníků v oddlužení." -> Požadovaná výše hrubých příjmů je vyšší než u 83,1 % průměrných dlužníků v oddlužení.
B21: Údaje pro výpočet výše čistých příjmů (pro více informací vizte list Výpočet čistého příjmu)
B22: Sleva na poplatníka | C22: Ano
B23: Počet dětí, na které je uplatňován daňový bonus | C23: 1
B24: Z toho počet dětí s průkazem ZTP/P | C24: 0
B25: Postižení | C25: Ne
B26: Sleva na manžela / manželku | C26: Ne
B27: Sleva na pojistném pro pracující důchodce | C27: Ne
B29: Tab. 1: Distribuce příjmů osob s vybranými charakteristikami
B30: =TabPercentil[[#All],[Percentil]] -> Percentil | C30: Hrubé příjmy osob s podobnými charakteristikami | D30: Čisté příjmy osob s podobnými charakteristikami
B31: 5 | C31: =IFERROR(ROUND(VLOOKUP(1,StatData[],VLOOKUP(B31,TabPercentil[],2,0),0),0)*Úvazek, NA()) -> 22433 | D31: ='Výpočet čistého příjmu'!J7 -> 20292
B32: 7.5 | C32: =IFERROR(ROUND(VLOOKUP(1,StatData[],VLOOKUP(B32,TabPercentil[],2,0),0),0)*Úvazek, NA()) -> 24779 | D32: ='Výpočet čistého příjmu'!J8 -> 22020
B33: 10 | C33: =IFERROR(ROUND(VLOOKUP(1,StatData[],VLOOKUP(B33,TabPercentil[],2,0),0),0)*Úvazek, NA()) -> 26553 | D33: ='Výpočet čistého příjmu'!J9 -> 23319
B34: 12.5 | C34: =IFERROR(ROUND(VLOOKUP(1,StatData[],VLOOKUP(B34,TabPercentil[],2,0),0),0)*Úvazek, NA()) -> 28272 | D34: ='Výpočet čistého příjmu'!J10 -> 24583
B35: 15 | C35: =IFERROR(ROUND(VLOOKUP(1,StatData[],VLOOKUP(B35,TabPercentil[],2,0),0),0)*Úvazek, NA()) -> 29600 | D35: ='Výpočet čistého příjmu'!J11 -> 25563
B36: 17.5 | C36: =IFERROR(ROUND(VLOOKUP(1,StatData[],VLOOKUP(B36,TabPercentil[],2,0),0),0)*Úvazek, NA()) -> 30541 | D36: ='Výpočet čistého příjmu'!J12 -> 26244
B37: 20 | C37: =IFERROR(ROUND(VLOOKUP(1,StatData[],VLOOKUP(B37,TabPercentil[],2,0),0),0)*Úvazek, NA()) -> 31452 | D37: ='Výpočet čistého příjmu'!J13 -> 26914
B38: 22.5 | C38: =IFERROR(ROUND(VLOOKUP(1,StatData[],VLOOKUP(B38,TabPercentil[],2,0),0),0)*Úvazek, NA()) -> 32404 | D38: ='Výpočet čistého příjmu'!J14 -> 27606
B39: 25 | C39: =IFERROR(ROUND(VLOOKUP(1,StatData[],VLOOKUP(B39,TabPercentil[],2,0),0),0)*Úvazek, NA()) -> 33056 | D39: ='Výpočet čistého příjmu'!J15 -> 28093
B40: 27.5 | C40: =IFERROR(ROUND(VLOOKUP(1,StatData[],VLOOKUP(B40,TabPercentil[],2,0),0),0)*Úvazek, NA()) -> 33873 | D40: ='Výpočet čistého příjmu'!J16 -> 28695
B41: 30 | C41: =IFERROR(ROUND(VLOOKUP(1,StatData[],VLOOKUP(B41,TabPercentil[],2,0),0),0)*Úvazek, NA()) -> 34628 | D41: ='Výpočet čistého příjmu'!J17 -> 29242
B42: 32.5 | C42: =IFERROR(ROUND(VLOOKUP(1,StatData[],VLOOKUP(B42,TabPercentil[],2,0),0),0)*Úvazek, NA()) -> 35389 | D42: ='Výpočet čistého příjmu'!J18 -> 29810
B43: 35 | C43: =IFERROR(ROUND(VLOOKUP(1,StatData[],VLOOKUP(B43,TabPercentil[],2,0),0),0)*Úvazek, NA()) -> 36058 | D43: ='Výpočet čistého příjmu'!J19 -> 30296
B44: 37.5 | C44: =IFERROR(ROUND(VLOOKUP(1,StatData[],VLOOKUP(B44,TabPercentil[],2,0),0),0)*Úvazek, NA()) -> 36655 | D44: ='Výpočet čistého příjmu'!J20 -> 30734
B45: 40 | C45: =IFERROR(ROUND(VLOOKUP(1,StatData[],VLOOKUP(B45,TabPercentil[],2,0),0),0)*Úvazek, NA()) -> 37477 | D45: ='Výpočet čistého příjmu'!J21 -> 31341
B46: 42.5 | C46: =IFERROR(ROUND(VLOOKUP(1,StatData[],VLOOKUP(B46,TabPercentil[],2,0),0),0)*Úvazek, NA()) -> 38116 | D46: ='Výpočet čistého příjmu'!J22 -> 31800
B47: 45 | C47: =IFERROR(ROUND(VLOOKUP(1,StatData[],VLOOKUP(B47,TabPercentil[],2,0),0),0)*Úvazek, NA()) -> 38868 | D47: ='Výpočet čistého příjmu'!J23 -> 32360
B48: 47.5 | C48: =IFERROR(ROUND(VLOOKUP(1,StatData[],VLOOKUP(B48,TabPercentil[],2,0),0),0)*Úvazek, NA()) -> 39664 | D48: ='Výpočet čistého příjmu'!J24 -> 32944
B49: 50 | C49: =IFERROR(ROUND(VLOOKUP(1,StatData[],VLOOKUP(B49,TabPercentil[],2,0),0),0)*Úvazek, NA()) -> 40562 | D49: ='Výpočet čistého příjmu'!J25 -> 33603
B50: 55 | C50: =IFERROR(ROUND(VLOOKUP(1,StatData[],VLOOKUP(B50,TabPercentil[],2,0),0),0)*Úvazek, NA()) -> 42075 | D50: ='Výpočet čistého příjmu'!J26 -> 34715
B51: 60 | C51: =IFERROR(ROUND(VLOOKUP(1,StatData[],VLOOKUP(B51,TabPercentil[],2,0),0),0)*Úvazek, NA()) -> 43744 | D51: ='Výpočet čistého příjmu'!J27 -> 35936
B52: 65 | C52: =IFERROR(ROUND(VLOOKUP(1,StatData[],VLOOKUP(B52,TabPercentil[],2,0),0),0)*Úvazek, NA()) -> 45576 | D52: ='Výpočet čistého příjmu'!J28 -> 37286
B53: 70 | C53: =IFERROR(ROUND(VLOOKUP(1,StatData[],VLOOKUP(B53,TabPercentil[],2,0),0),0)*Úvazek, NA()) -> 47473 | D53: ='Výpočet čistého příjmu'!J29 -> 38677
B54: 75 | C54: =IFERROR(ROUND(VLOOKUP(1,StatData[],VLOOKUP(B54,TabPercentil[],2,0),0),0)*Úvazek, NA()) -> 50047 | D54: ='Výpočet čistého příjmu'!J30 -> 40562
B55: 80 | C55: =IFERROR(ROUND(VLOOKUP(1,StatData[],VLOOKUP(B55,TabPercentil[],2,0),0),0)*Úvazek, NA()) -> 53217 | D55: ='Výpočet čistého příjmu'!J31 -> 42885
B56: 85 | C56: =IFERROR(ROUND(VLOOKUP(1,StatData[],VLOOKUP(B56,TabPercentil[],2,0),0),0)*Úvazek, NA()) -> 57094 | D56: ='Výpočet čistého příjmu'!J32 -> 45742
B57: 90 | C57: =IFERROR(ROUND(VLOOKUP(1,StatData[],VLOOKUP(B57,TabPercentil[],2,0),0),0)*Úvazek, NA()) -> 62401 | D57: ='Výpočet čistého příjmu'!J33 -> 49623
B58: 95 | C58: =IFERROR(ROUND(VLOOKUP(1,StatData[],VLOOKUP(B58,TabPercentil[],2,0),0),0)*Úvazek, NA()) -> 73220 | D58: ='Výpočet čistého příjmu'!J34 -> 57568
B108: Údaje pro výpočet výše čisté mzdy: | E108: Tab. 1: Distribuce příjmů | O108: Tab. 2: Skutečná výše splátek dlužníků v oddlužení
B109: Počet dětí, na které je uplatňována daňová sleva | C109: 1 | E109: =TabPercentil[[#All],[Percentil]] -> Percentil | F109: Hrubá mzda | G109: Čistá mzda | H109: Výše srážky | I109: Závazný příslib | J109: Splátka do SK celkem | K109: ="Celkem za "& Doba&" měsíců" -> Celkem za 36 měsíců | L109: Míra uspok. ze SK | M109: Percentil skutečných splátek | O109: Percentil | P109: Skutečné splátky
E110: 5 | F110: =IFERROR(ROUND(VLOOKUP(1,StatData[],VLOOKUP(E110,TabPercentil[],2,0),0),0)*Úvazek, NA()) -> 22433 | G110: ='Výpočet čistého příjmu'!J7 -> 20292 | H110: ='Výpočet srážek'!B41 -> 2940 | I110: =IF(Příslib-H110>0,Příslib-H110,0) -> 0 | J110: =H110+I110+TřetíOsoba -> 2940 | K110: =((H110+I110+TřetíOsoba)*Doba)+MimořádnáSplátka -> 105840 | L110: =(K110-Přednostní)/Nepřednostní -> 0.133272 | M110: =IF(ISNUMBER(((INDEX($O$110:$O$210,MATCH(H110,$P$110:$P$210,1)+1)-INDEX($O$110:$O$210,MATCH(H110,$P$110:$P$210,1)))/(INDEX($P$110:$P$210,MATCH(H110,$P$110:$P$210,1)+1)-INDEX($P$110:$P$210,MATCH(H110,$P$110:$P$210,1)))*H110+(INDEX($O$110:$O$210,MATCH(H110,$P$110:$P$210,1))-(INDEX($O$110:$O$210,MATCH(H110,$P$110:$P$210,1)+1)-INDEX($O$110:$O$210,MATCH(H110,$P$110:$P$210,1)))/(INDEX($P$110:$P$210,MATCH(H110,$P$110:$P$210,1)+1)-INDEX($P$110:$P$210,MATCH(H110,$P$110:$P$210,1)))*INDEX($P$110:$P$210,MATCH(H110,$P$110:$P$210,1))))/100),(((INDEX($O$110:$O$210,MATCH(H110,$P$110:$P$210,1)+1)-INDEX($O$110:$O$210,MATCH(H110,$P$110:$P$210,1)))/(INDEX($P$110:$P$210,MATCH(H110,$P$110:$P$210,1)+1)-INDEX($P$110:$P$210,MATCH(H110,$P$110:$P$210,1)))*H110+(INDEX($O$110:$O$210,MATCH(H110,$P$110:$P$210,1))-(INDEX($O$110:$O$210,MATCH(H110,$P$110:$P$210,1)+1)-INDEX($O$110:$O$210,MATCH(H110,$P$110:$P$210,1)))/(INDEX($P$110:$P$210,MATCH(H110,$P$110:$P$210,1)+1)-INDEX($P$110:$P$210,MATCH(H110,$P$110:$P$210,1)))*INDEX($P$110:$P$210,MATCH(H110,$P$110:$P$210,1))))/100),0.95) -> 0.4078947368 | O110: 0 | P110: 0
B111: Údaje pro výpočet výše insolvenční srážky ze mzdy: | E111: 7.5 | F111: =IFERROR(ROUND(VLOOKUP(1,StatData[],VLOOKUP(E111,TabPercentil[],2,0),0),0)*Úvazek, NA()) -> 24779 | G111: ='Výpočet čistého příjmu'!J8 -> 22020 | H111: ='Výpočet srážek'!B42 -> 4092 | I111: 0 | J111: 4092 | K111: 147312 | L111: 0.216216 | M111: =IF(ISNUMBER(((INDEX($O$110:$O$210,MATCH(H111,$P$110:$P$210,1)+1)-INDEX($O$110:$O$210,MATCH(H111,$P$110:$P$210,1)))/(INDEX($P$110:$P$210,MATCH(H111,$P$110:$P$210,1)+1)-INDEX($P$110:$P$210,MATCH(H111,$P$110:$P$210,1)))*H111+(INDEX($O$110:$O$210,MATCH(H111,$P$110:$P$210,1))-(INDEX($O$110:$O$210,MATCH(H111,$P$110:$P$210,1)+1)-INDEX($O$110:$O$210,MATCH(H111,$P$110:$P$210,1)))/(INDEX($P$110:$P$210,MATCH(H111,$P$110:$P$210,1)+1)-INDEX($P$110:$P$210,MATCH(H111,$P$110:$P$210,1)))*INDEX($P$110:$P$210,MATCH(H111,$P$110:$P$210,1))))/100),(((INDEX($O$110:$O$210,MATCH(H111,$P$110:$P$210,1)+1)-INDEX($O$110:$O$210,MATCH(H111,$P$110:$P$210,1)))/(INDEX($P$110:$P$210,MATCH(H111,$P$110:$P$210,1)+1)-INDEX($P$110:$P$210,MATCH(H111,$P$110:$P$210,1)))*H111+(INDEX($O$110:$O$210,MATCH(H111,$P$110:$P$210,1))-(INDEX($O$110:$O$210,MATCH(H111,$P$110:$P$210,1)+1)-INDEX($O$110:$O$210,MATCH(H111,$P$110:$P$210,1)))/(INDEX($P$110:$P$210,MATCH(H111,$P$110:$P$210,1)+1)-INDEX($P$110:$P$210,MATCH(H111,$P$110:$P$210,1)))*INDEX($P$110:$P$210,MATCH(H111,$P$110:$P$210,1))))/100),0.95) -> 0.5392 | O111: 1 | P111: 0
B112: Počet zohledňovaných osob, kterým je dlužník povinen poskytovat výživné | C112: 1 | E112: 10 | F112: =IFERROR(ROUND(VLOOKUP(1,StatData[],VLOOKUP(E112,TabPercentil[],2,0),0),0)*Úvazek, NA()) -> 26553 | G112: ='Výpočet čistého příjmu'!J9 -> 23319 | H112: ='Výpočet srážek'!B43 -> 4958 | I112: 0 | J112: 4958 | K112: 178488 | L112: 0.278568 | M112: 0.6072 | O112: 2 | P112: 0
E113: 12.5 | F113: =IFERROR(ROUND(VLOOKUP(1,StatData[],VLOOKUP(E113,TabPercentil[],2,0),0),0)*Úvazek, NA()) -> 28272 | G113: ='Výpočet čistého příjmu'!J10 -> 24583 | H113: ='Výpočet srážek'!B44 -> 5800 | I113: 0 | J113: 5800 | K113: 208800 | L113: 0.339192 | M113: 0.67335 | O113: 3 | P113: 0
B114: Údaje pro výpočet předpokládané míry uspokojení a průměrné výše splátky: | E114: 15 | F114: =IFERROR(ROUND(VLOOKUP(1,StatData[],VLOOKUP(E114,TabPercentil[],2,0),0),0)*Úvazek, NA()) -> 29600 | G114: ='Výpočet čistého příjmu'!J11 -> 25563 | H114: ='Výpočet srážek'!B45 -> 6454 | I114: 0 | J114: 6454 | K114: 232344 | L114: 0.38628 | M114: 0.7168493151 | O114: 4 | P114: 0
B115: Doba plnění splátkového kalendáře v měsících | C115: 36 | E115: 17.5 | F115: =IFERROR(ROUND(VLOOKUP(1,StatData[],VLOOKUP(E115,TabPercentil[],2,0),0),0)*Úvazek, NA()) -> 30541 | G115: ='Výpočet čistého příjmu'!J12 -> 26244 | H115: ='Výpočet srážek'!B46 -> 6908 | I115: 0 | J115: 6908 | K115: 248688 | L115: 0.418968 | M115: 0.7407017544 | O115: 5 | P115: 0
B116: Celková výše přednostních pohledávek | C116: =36*1089 -> 39204 | E116: 20 | F116: =IFERROR(ROUND(VLOOKUP(1,StatData[],VLOOKUP(E116,TabPercentil[],2,0),0),0)*Úvazek, NA()) -> 31452 | G116: ='Výpočet čistého příjmu'!J13 -> 26914 | H116: ='Výpočet srážek'!B47 -> 7354 | I116: 0 | J116: 7354 | K116: 264744 | L116: 0.45108 | M116: 0.7660084034 | O116: 6 | P116: 0
B117: Celková výše pohledávek nezajištěných věřitelů | C117: 500000 | E117: 22.5 | F117: =IFERROR(ROUND(VLOOKUP(1,StatData[],VLOOKUP(E117,TabPercentil[],2,0),0),0)*Úvazek, NA()) -> 32404 | G117: ='Výpočet čistého příjmu'!J14 -> 27606 | H117: ='Výpočet srážek'!B48 -> 7816 | I117: 0 | J117: 7816 | K117: 281376 | L117: 0.484344 | M117: 0.7894495413 | O117: 7 | P117: 0
B118: Závazný příslib dlužníka do částky | C118: 0 | E118: 25 | F118: =IFERROR(ROUND(VLOOKUP(1,StatData[],VLOOKUP(E118,TabPercentil[],2,0),0),0)*Úvazek, NA()) -> 33056 | G118: ='Výpočet čistého příjmu'!J15 -> 28093 | H118: ='Výpočet srážek'!B49 -> 8140 | I118: 0 | J118: 8140 | K118: 293040 | L118: 0.507672 | M118: 0.8053639847 | O118: 8 | P118: 0
B119: Pravidelné plnění třetí osoby | C119: 0 | E119: 27.5 | F119: =IFERROR(ROUND(VLOOKUP(1,StatData[],VLOOKUP(E119,TabPercentil[],2,0),0),0)*Úvazek, NA()) -> 33873 | G119: ='Výpočet čistého příjmu'!J16 -> 28695 | H119: ='Výpočet srážek'!B50 -> 8542 | I119: 0 | J119: 8542 | K119: 307512 | L119: 0.536616 | M119: 0.8194612795 | O119: 9 | P119: 0
B120: Mimořádná splátka | C120: 0 | E120: 30 | F120: =IFERROR(ROUND(VLOOKUP(1,StatData[],VLOOKUP(E120,TabPercentil[],2,0),0),0)*Úvazek, NA()) -> 34628 | G120: ='Výpočet čistého příjmu'!J17 -> 29242 | H120: ='Výpočet srážek'!B51 -> 8906 | I120: 0 | J120: 8906 | K120: 320616 | L120: 0.562824 | M120: 0.830990099 | O120: 10 | P120: 0
E121: 32.5 | F121: =IFERROR(ROUND(VLOOKUP(1,StatData[],VLOOKUP(E121,TabPercentil[],2,0),0),0)*Úvazek, NA()) -> 35389 | G121: ='Výpočet čistého příjmu'!J18 -> 29810 | H121: ='Výpočet srážek'!B52 -> 9286 | I121: 0 | J121: 9286 | K121: 334296 | L121: 0.590184 | M121: 0.8463461538 | O121: 11 | P121: 0
E122: 35 | F122: =IFERROR(ROUND(VLOOKUP(1,StatData[],VLOOKUP(E122,TabPercentil[],2,0),0),0)*Úvazek, NA()) -> 36058 | G122: ='Výpočet čistého příjmu'!J19 -> 30296 | H122: ='Výpočet srážek'!B53 -> 9610 | I122: 0 | J122: 9610 | K122: 345960 | L122: 0.613512 | M122: 0.8564814815 | O122: 12 | P122: 0
E123: 37.5 | F123: =IFERROR(ROUND(VLOOKUP(1,StatData[],VLOOKUP(E123,TabPercentil[],2,0),0),0)*Úvazek, NA()) -> 36655 | G123: ='Výpočet čistého příjmu'!J20 -> 30734 | H123: ='Výpočet srážek'!B54 -> 9902 | I123: 0 | J123: 9902 | K123: 356472 | L123: 0.634536 | M123: 0.8664492754 | O123: 13 | P123: 0
B124: Požadovaná výše splátky | C124: =VLOOKUP($C$17,E110:L137,4,0) -> 8906 | E124: 40 | F124: =IFERROR(ROUND(VLOOKUP(1,StatData[],VLOOKUP(E124,TabPercentil[],2,0),0),0)*Úvazek, NA()) -> 37477 | G124: ='Výpočet čistého příjmu'!J21 -> 31341 | H124: ='Výpočet srážek'!B55 -> 10306 | I124: 0 | J124: 10306 | K124: 371016 | L124: 0.663624 | M124: 0.8812559242 | O124: 14 | P124: 300
B125: Míra uspokojení ze SK | C125: =VLOOKUP($C$17,E110:L137,8,0) -> 0.562824 | E125: 42.5 | F125: =IFERROR(ROUND(VLOOKUP(1,StatData[],VLOOKUP(E125,TabPercentil[],2,0),0),0)*Úvazek, NA()) -> 38116 | G125: ='Výpočet čistého příjmu'!J22 -> 31800 | H125: ='Výpočet srážek'!B56 -> 10612 | I125: 0 | J125: 10612 | K125: 382032 | L125: 0.685656 | M125: 0.888507109 | O125: 15 | P125: 623
E126: 45 | F126: =IFERROR(ROUND(VLOOKUP(1,StatData[],VLOOKUP(E126,TabPercentil[],2,0),0),0)*Úvazek, NA()) -> 38868 | G126: ='Výpočet čistého příjmu'!J23 -> 32360 | H126: ='Výpočet srážek'!B57 -> 10986 | I126: 0 | J126: 10986 | K126: 395496 | L126: 0.712584 | M126: 0.8974939759 | O126: 16 | P126: 1000
B127: Vyhodnocení majetkových poměrů dlužníka | E127: 47.5 | F127: =IFERROR(ROUND(VLOOKUP(1,StatData[],VLOOKUP(E127,TabPercentil[],2,0),0),0)*Úvazek, NA()) -> 39664 | G127: ='Výpočet čistého příjmu'!J24 -> 32944 | H127: ='Výpočet srážek'!B58 -> 11374 | I127: 0 | J127: 11374 | K127: 409464 | L127: 0.74052 | M127: 0.9064545455 | O127: 17 | P127: 1183
B128: Výtěžek zpeněžení | C128: 50000 | E128: 50 | F128: =IFERROR(ROUND(VLOOKUP(1,StatData[],VLOOKUP(E128,TabPercentil[],2,0),0),0)*Úvazek, NA()) -> 40562 | G128: ='Výpočet čistého příjmu'!J25 -> 33603 | H128: ='Výpočet srážek'!B59 -> 11814 | I128: 0 | J128: 11814 | K128: 425304 | L128: 0.7722 | M128: 0.9160425532 | O128: 18 | P128: 1392
B129: Míra uspokojení z výtěžku | C129: =C128/Nepřednostní -> 0.1 | E129: 55 | F129: =IFERROR(ROUND(VLOOKUP(1,StatData[],VLOOKUP(E129,TabPercentil[],2,0),0),0)*Úvazek, NA()) -> 42075 | G129: ='Výpočet čistého příjmu'!J26 -> 34715 | H129: ='Výpočet srážek'!B60 -> 12556 | I129: 0 | J129: 12556 | K129: 452016 | L129: 0.825624 | M129: 0.929737303 | O129: 19 | P129: 1541
E130: 60 | F130: =IFERROR(ROUND(VLOOKUP(1,StatData[],VLOOKUP(E130,TabPercentil[],2,0),0),0)*Úvazek, NA()) -> 43744 | G130: ='Výpočet čistého příjmu'!J27 -> 35936 | H130: ='Výpočet srážek'!B61 -> 13370 | I130: 0 | J130: 13370 | K130: 481320 | L130: 0.884232 | M130: 0.9414888628 | O130: 20 | P130: 1668
B131: Výsledek | E131: 65 | F131: =IFERROR(ROUND(VLOOKUP(1,StatData[],VLOOKUP(E131,TabPercentil[],2,0),0),0)*Úvazek, NA()) -> 45576 | G131: ='Výpočet čistého příjmu'!J28 -> 37286 | H131: ='Výpočet srážek'!B62 -> 14270 | I131: 0 | J131: 14270 | K131: 513720 | L131: 0.949032 | M131: 0.951692607 | O131: 21 | P131: 1800
B132: Celková míra uspokojení | C132: =C129+C125 -> 0.662824 | E132: 70 | F132: =IFERROR(ROUND(VLOOKUP(1,StatData[],VLOOKUP(E132,TabPercentil[],2,0),0),0)*Úvazek, NA()) -> 47473 | G132: ='Výpočet čistého příjmu'!J29 -> 38677 | H132: ='Výpočet srážek'!B63 -> 15196 | I132: 0 | J132: 15196 | K132: 547056 | L132: 1.015704 | M132: 0.9605251641 | O132: 22 | P132: 1957
E133: 75 | F133: =IFERROR(ROUND(VLOOKUP(1,StatData[],VLOOKUP(E133,TabPercentil[],2,0),0),0)*Úvazek, NA()) -> 50047 | G133: ='Výpočet čistého příjmu'!J30 -> 40562 | H133: ='Výpočet srážek'!B64 -> 16454 | I133: 0 | J133: 16454 | K133: 592344 | L133: 1.10628 | M133: 0.9697009482 | O133: 23 | P133: 2050
B134: Percentil skutečných splátek dlužníků v oddlužení | C134: =VLOOKUP($C$17,E110:L137,9,0) ->  | E134: 80 | F134: =IFERROR(ROUND(VLOOKUP(1,StatData[],VLOOKUP(E134,TabPercentil[],2,0),0),0)*Úvazek, NA()) -> 53217 | G134: ='Výpočet čistého příjmu'!J31 -> 42885 | H134: ='Výpočet srážek'!B65 -> 18002 | I134: 0 | J134: 18002 | K134: 648072 | L134: 1.217736 | M134: 0.9768970252 | O134: 24 | P134: 2180
E135: 85 | F135: =IFERROR(ROUND(VLOOKUP(1,StatData[],VLOOKUP(E135,TabPercentil[],2,0),0),0)*Úvazek, NA()) -> 57094 | G135: ='Výpočet čistého příjmu'!J32 -> 45742 | H135: ='Výpočet srážek'!B66 -> 20331.5 | I135: 0 | J135: 20331.5 | K135: 731934 | L135: 1.38546 | M135: 0.9846665725 | O135: 25 | P135: 2200
E136: 90 | F136: =IFERROR(ROUND(VLOOKUP(1,StatData[],VLOOKUP(E136,TabPercentil[],2,0),0),0)*Úvazek, NA()) -> 62401 | G136: ='Výpočet čistého příjmu'!J33 -> 49623 | H136: ='Výpočet srážek'!B67 -> 24212.5 | I136: 0 | J136: 24212.5 | K136: 871650 | L136: 1.664892 | M136: 0.9909096509 | O136: 26 | P136: 2202
E137: 95 | F137: =IFERROR(ROUND(VLOOKUP(1,StatData[],VLOOKUP(E137,TabPercentil[],2,0),0),0)*Úvazek, NA()) -> 73220 | G137: ='Výpočet čistého příjmu'!J34 -> 57568 | H137: ='Výpočet srážek'!B68 -> 32157.5 | I137: 0 | J137: 32157.5 | K137: 1157670 | L137: 2.236932 | M137: 0.9945350217 | O137: 27 | P137: 2292
O138: 28 | P138: 2300
O139: 29 | P139: 2310
O140: 30 | P140: 2376
O141: 31 | P141: 2400
O142: 32 | P142: 2474
O143: 33 | P143: 2500
O144: 34 | P144: 2500
O145: 35 | P145: 2500
O146: 36 | P146: 2527
O147: 37 | P147: 2600
O148: 38 | P148: 2688
O149: 39 | P149: 2754
O150: 40 | P150: 2850
O151: 41 | P151: 2964
O152: 42 | P152: 3000
O153: 43 | P153: 3000
O154: 44 | P154: 3097
O155: 45 | P155: 3200
O156: 46 | P156: 3326
O157: 47 | P157: 3458
O158: 48 | P158: 3500
O159: 49 | P159: 3600
O160: 50 | P160: 3718
O161: 51 | P161: 3858
O162: 52 | P162: 3970
O163: 53 | P163: 4000
O164: 54 | P164: 4100
O165: 55 | P165: 4210
O166: 56 | P166: 4338
O167: 57 | P167: 4462
O168: 58 | P168: 4578
O169: 59 | P169: 4700
O170: 60 | P170: 4850
O171: 61 | P171: 5000
O172: 62 | P172: 5000
O173: 63 | P173: 5114
O174: 64 | P174: 5267
O175: 65 | P175: 5424
O176: 66 | P176: 5558
O177: 67 | P177: 5733
O178: 68 | P178: 5933
O179: 69 | P179: 6002
O180: 70 | P180: 6166
O181: 71 | P181: 6354
O182: 72 | P182: 6500
O183: 73 | P183: 6699
O184: 74 | P184: 6900
O185: 75 | P185: 7014
O186: 76 | P186: 7211
O187: 77 | P187: 7449
O188: 78 | P188: 7610
O189: 79 | P189: 7828
O190: 80 | P190: 8000
O191: 81 | P191: 8261
O192: 82 | P192: 8558
O193: 83 | P193: 8886
O194: 84 | P194: 9088
O195: 85 | P195: 9400
O196: 86 | P196: 9724
O197: 87 | P197: 10000
O198: 88 | P198: 10253
O199: 89 | P199: 10675
O200: 90 | P200: 11090
O201: 91 | P201: 11530
O202: 92 | P202: 12000
O203: 93 | P203: 12571
O204: 94 | P204: 13243
O205: 95 | P205: 14096
O206: 96 | P206: 15124
O207: 97 | P207: 16495
O208: 98 | P208: 18680
O209: 99 | P209: 22219
O210: 100 | P210: 44134

Sheet Výpočet srážek (hidden)
A1: Od 1. 1. 2024 do 31. 12. 2024 | B1: =TRANSPOSE(OblČistáMzda) -> 20292 | C1: 22020 | D1: 23319 | E1: 24583 | F1: 25563 | G1: 26244 | H1: 26914 | I1: 27606 | J1: 28093 | K1: 28695 | L1: 29242 | M1: 29810 | N1: 30296 | O1: 30734 | P1: 31341 | Q1: 31800 | R1: 32360 | S1: 32944 | T1: 33603 | U1: 34715 | V1: 35936 | W1: 37286 | X1: 38677 | Y1: 40562 | Z1: 42885 | AA1: 45742 | AB1: 49623 | AC1: 57568
A2: Nastavení (koeficienty dlužník, vyživovaná osoba, srážka bez omezení nad, paušální náhrada pro Zle, minimální mzda) | B2: =2/3 -> 0.6666666667 | C2: =1/4 -> 0.25 | D2: 1.5 | E2: 50 | F2: 18900
A3: Minimální srážka | B3: 0 | C3: 0 | D3: 0 | E3: 0 | F3: 0 | G3: 0 | H3: 0 | I3: 0 | J3: 0 | K3: 0 | L3: 0 | M3: 0 | N3: 0 | O3: 0 | P3: 0 | Q3: 0 | R3: 0 | S3: 0 | T3: 0 | U3: 0 | V3: 0 | W3: 0 | X3: 0 | Y3: 0 | Z3: 0 | AA3: 0 | AB3: 0 | AC3: 0
A4: Životní minimum jednotlivce | B4: 4860 | C4: =B4 -> 4860 | D4: =C4 -> 4860 | E4: 4860 | F4: 4860 | G4: 4860 | H4: 4860 | I4: 4860 | J4: 4860 | K4: 4860 | L4: 4860 | M4: 4860 | N4: 4860 | O4: 4860 | P4: 4860 | Q4: 4860 | R4: 4860 | S4: 4860 | T4: 4860 | U4: 4860 | V4: 4860 | W4: 4860 | X4: 4860 | Y4: 4860 | Z4: 4860 | AA4: 4860 | AB4: 4860 | AC4: 4860
A5: NNB (bydlení v bytech užívaných na základě nájemní smlouvy, jedna osoba, 50 000+ obyvatel obce) | B5: 14197 | C5: 14197 | D5: 14197 | E5: 14197 | F5: 14197 | G5: 14197 | H5: 14197 | I5: 14197 | J5: 14197 | K5: 14197 | L5: 14197 | M5: 14197 | N5: 14197 | O5: 14197 | P5: 14197 | Q5: 14197 | R5: 14197 | S5: 14197 | T5: 14197 | U5: 14197 | V5: 14197 | W5: 14197 | X5: 14197 | Y5: 14197 | Z5: 14197 | AA5: 14197 | AB5: 14197 | AC5: 14197
A6: Zvýšení NNB | B6: 0 | C6: 0 | D6: 0 | E6: 0 | F6: 0 | G6: 0 | H6: 0 | I6: 0 | J6: 0 | K6: 0 | L6: 0 | M6: 0 | N6: 0 | O6: 0 | P6: 0 | Q6: 0 | R6: 0 | S6: 0 | T6: 0 | U6: 0 | V6: 0 | W6: 0 | X6: 0 | Y6: 0 | Z6: 0 | AA6: 0 | AB6: 0 | AC6: 0
A7: Navýšení NNB | B7: 0 | C7: 0 | D7: 0 | E7: 0 | F7: 0 | G7: 0 | H7: 0 | I7: 0 | J7: 0 | K7: 0 | L7: 0 | M7: 0 | N7: 0 | O7: 0 | P7: 0 | Q7: 0 | R7: 0 | S7: 0 | T7: 0 | U7: 0 | V7: 0 | W7: 0 | X7: 0 | Y7: 0 | Z7: 0 | AA7: 0 | AB7: 0 | AC7: 0
A8: Celkem: Normativní náklady na bydlení | B8: =B5+B6+B7 -> 14197 | C8: 14197 | D8: =C8 -> 14197 | E8: 14197 | F8: 14197 | G8: 14197 | H8: 14197 | I8: 14197 | J8: 14197 | K8: 14197 | L8: 14197 | M8: 14197 | N8: 14197 | O8: 14197 | P8: 14197 | Q8: 14197 | R8: 14197 | S8: =R8 -> 14197 | T8: 14197 | U8: 14197 | V8: 14197 | W8: 14197 | X8: 14197 | Y8: 14197 | Z8: 14197 | AA8: 14197 | AB8: 14197 | AC8: 14197
A9: Součet ŽM A NNB | B9: =B4+B8 -> 19057 | C9: 19057 | D9: =C9 -> 19057 | E9: 19057 | F9: 19057 | G9: 19057 | H9: 19057 | I9: 19057 | J9: 19057 | K9: 19057 | L9: 19057 | M9: 19057 | N9: 19057 | O9: 19057 | P9: 19057 | Q9: 19057 | R9: 19057 | S9: 19057 | T9: 19057 | U9: 19057 | V9: 19057 | W9: 19057 | X9: 19057 | Y9: 19057 | Z9: 19057 | AA9: 19057 | AB9: 19057 | AC9: 19057
A10: Výše čisté mzdy | B10: =B1 -> 20292 | C10: =C1 -> 22020 | D10: 23319 | E10: 24583 | F10: 25563 | G10: 26244 | H10: 26914 | I10: 27606 | J10: 28093 | K10: 28695 | L10: 29242 | M10: 29810 | N10: 30296 | O10: 30734 | P10: 31341 | Q10: 31800 | R10: 32360 | S10: 32944 | T10: 33603 | U10: 34715 | V10: 35936 | W10: 37286 | X10: 38677 | Y10: 40562 | Z10: 42885 | AA10: 45742 | AB10: 49623 | AC10: 57568
A11: Počet dětí | B11: =Vyživovaní -> 1 | C11: =B11 -> 1 | D11: 1 | E11: 1 | F11: 1 | G11: 1 | H11: 1 | I11: 1 | J11: 1 | K11: 1 | L11: 1 | M11: 1 | N11: 1 | O11: 1 | P11: 1 | Q11: 1 | R11: 1 | S11: =R11 -> 1 | T11: 1 | U11: 1 | V11: 1 | W11: 1 | X11: 1 | Y11: 1 | Z11: 1 | AA11: 1 | AB11: 1 | AC11: 1
A12: Manželka | B12: 0 | C12: 0 | D12: 0 | E12: 0 | F12: 0 | G12: 0 | H12: 0 | I12: 0 | J12: 0 | K12: 0 | L12: 0 | M12: 0 | N12: 0 | O12: 0 | P12: 0 | Q12: 0 | R12: 0 | S12: 0 | T12: 0 | U12: 0 | V12: 0 | W12: 0 | X12: 0 | Y12: 0 | Z12: 0 | AA12: 0 | AB12: 0 | AC12: 0
A13: Sraženo minimální srážkou | B13: =B10-B14 -> 0 | C13: =C10-C14 -> 0 | D13: =D10-D14 -> 0 | E13: 0 | F13: 0 | G13: 0 | H13: 0 | I13: 0 | J13: 0 | K13: 0 | L13: 0 | M13: 0 | N13: 0 | O13: 0 | P13: 0 | Q13: 0 | R13: 0 | S13: 0 | T13: 0 | U13: 0 | V13: 0 | W13: 0 | X13: 0 | Y13: 0 | Z13: 0 | AA13: 0 | AB13: 0 | AC13: 0
A14: Zbytek po minimální srážce | B14: =IF(B10-B3>0,B10-B3,0) -> 20292 | C14: =IF(C10-C3>0,C10-C3,0) -> 22020 | D14: =IF(D10-D3>0,D10-D3,0) -> 23319 | E14: 24583 | F14: 25563 | G14: 26244 | H14: 26914 | I14: 27606 | J14: 28093 | K14: 28695 | L14: 29242 | M14: 29810 | N14: 30296 | O14: 30734 | P14: 31341 | Q14: 31800 | R14: 32360 | S14: 32944 | T14: 33603 | U14: 34715 | V14: 35936 | W14: 37286 | X14: 38677 | Y14: 40562 | Z14: 42885 | AA14: 45742 | AB14: 49623 | AC14: 57568
A15: Nezabavitelná částka | B15: =$B$2*(B4+B8)+(B11+B12)*$C$2*$B$2*(B4+B8) -> 15880.83333 | C15: =$B$2*(C4+C8)+(C11+C12)*$C$2*$B$2*(C4+C8) -> 15880.83333 | D15: =$B$2*(D4+D8)+(D11+D12)*$C$2*$B$2*(D4+D8) -> 15880.83333 | E15: 15880.83333 | F15: 15880.83333 | G15: 15880.83333 | H15: 15880.83333 | I15: 15880.83333 | J15: 15880.83333 | K15: 15880.83333 | L15: 15880.83333 | M15: 15880.83333 | N15: 15880.83333 | O15: 15880.83333 | P15: 15880.83333 | Q15: 15880.83333 | R15: 15880.83333 | S15: 15880.83333 | T15: 15880.83333 | U15: 15880.83333 | V15: 15880.83333 | W15: 15880.83333 | X15: 15880.83333 | Y15: 15880.83333 | Z15: 15880.83333 | AA15: 15880.83333 | AB15: 15880.83333 | AC15: 15880.83333
A16: - na dlužníka | B16: =$B$2*(B4+B8) -> 12704.66667 | C16: =$B$2*(C4+C8) -> 12704.66667 | D16: =$B$2*(D4+D8) -> 12704.66667 | E16: 12704.66667 | F16: 12704.66667 | G16: 12704.66667 | H16: 12704.66667 | I16: 12704.66667 | J16: 12704.66667 | K16: 12704.66667 | L16: 12704.66667 | M16: 12704.66667 | N16: 12704.66667 | O16: 12704.66667 | P16: 12704.66667 | Q16: 12704.66667 | R16: 12704.66667 | S16: 12704.66667 | T16: 12704.66667 | U16: 12704.66667 | V16: 12704.66667 | W16: 12704.66667 | X16: 12704.66667 | Y16: 12704.66667 | Z16: 12704.66667 | AA16: 12704.66667 | AB16: 12704.66667 | AC16: 12704.66667
A17: - na vyživované osoby | B17: =(B11+B12)*$C$2*$B$2*(B4+B8) -> 3176.166667 | C17: =(C11+C12)*$C$2*$B$2*(C4+C8) -> 3176.166667 | D17: =(D11+D12)*$C$2*$B$2*(D4+D8) -> 3176.166667 | E17: 3176.166667 | F17: 3176.166667 | G17: 3176.166667 | H17: 3176.166667 | I17: 3176.166667 | J17: 3176.166667 | K17: 3176.166667 | L17: 3176.166667 | M17: 3176.166667 | N17: 3176.166667 | O17: 3176.166667 | P17: 3176.166667 | Q17: 3176.166667 | R17: 3176.166667 | S17: 3176.166667 | T17: 3176.166667 | U17: 3176.166667 | V17: 3176.166667 | W17: 3176.166667 | X17: 3176.166667 | Y17: 3176.166667 | Z17: 3176.166667 | AA17: 3176.166667 | AB17: 3176.166667 | AC17: 3176.166667
A18: Nezabavitelná částka se zaokrouhlením nahoru | B18: =CEILING(B15,1) -> 15881 | C18: =CEILING(C15,1) -> 15881 | D18: =CEILING(D15,1) -> 15881 | E18: 15881 | F18: 15881 | G18: 15881 | H18: 15881 | I18: 15881 | J18: 15881 | K18: 15881 | L18: 15881 | M18: 15881 | N18: 15881 | O18: 15881 | P18: 15881 | Q18: 15881 | R18: 15881 | S18: 15881 | T18: 15881 | U18: 15881 | V18: 15881 | W18: 15881 | X18: 15881 | Y18: 15881 | Z18: 15881 | AA18: 15881 | AB18: 15881 | AC18: 15881
A19: Zbytek čisté mzdy | B19: =IF(B14-B18<0,0,B14-B18) -> 4411 | C19: =IF(C14-C18<0,0,C14-C18) -> 6139 | D19: =IF(D14-D18<0,0,D14-D18) -> 7438 | E19: 8702 | F19: 9682 | G19: 10363 | H19: 11033 | I19: 11725 | J19: 12212 | K19: 12814 | L19: 13361 | M19: 13929 | N19: 14415 | O19: 14853 | P19: 15460 | Q19: 15919 | R19: 16479 | S19: 17063 | T19: 17722 | U19: 18834 | V19: 20055 | W19: 21405 | X19: 22796 | Y19: 24681 | Z19: 27004 | AA19: 29861 | AB19: 33742 | AC19: 41687
A20: Srážka bez omezení nad zbytek čisté mzdy (1,5x(ŽM+NNB)) | B20: =$D$2*(B4+B8) -> 28585.5 | C20: =$D$2*(C4+C8) -> 28585.5 | D20: =$D$2*(D4+D8) -> 28585.5 | E20: 28585.5 | F20: 28585.5 | G20: 28585.5 | H20: 28585.5 | I20: 28585.5 | J20: 28585.5 | K20: 28585.5 | L20: 28585.5 | M20: 28585.5 | N20: 28585.5 | O20: 28585.5 | P20: 28585.5 | Q20: 28585.5 | R20: 28585.5 | S20: 28585.5 | T20: 28585.5 | U20: 28585.5 | V20: 28585.5 | W20: 28585.5 | X20: 28585.5 | Y20: 28585.5 | Z20: 28585.5 | AA20: 28585.5 | AB20: 28585.5 | AC20: 28585.5
A21: Srážka bez omezení nad čistou mzdu (NČ + 1,5x(ŽM+NNB)) | B21: =B18+B20 -> 44466.5 | C21: =C18+C20 -> 44466.5 | D21: =D18+D20 -> 44466.5 | E21: 44466.5 | F21: 44466.5 | G21: 44466.5 | H21: 44466.5 | I21: 44466.5 | J21: 44466.5 | K21: 44466.5 | L21: 44466.5 | M21: 44466.5 | N21: 44466.5 | O21: 44466.5 | P21: 44466.5 | Q21: 44466.5 | R21: 44466.5 | S21: 44466.5 | T21: 44466.5 | U21: 44466.5 | V21: 44466.5 | W21: 44466.5 | X21: 44466.5 | Y21: 44466.5 | Z21: 44466.5 | AA21: 44466.5 | AB21: 44466.5 | AC21: 44466.5
A22: Výše srážky bez omezení pro věřitele | B22: =IF(B19-B20>0,B19-B20,0) -> 0 | C22: =IF(C19-C20>0,C19-C20,0) -> 0 | D22: =IF(D19-D20>0,D19-D20,0) -> 0 | E22: 0 | F22: 0 | G22: 0 | H22: 0 | I22: 0 | J22: 0 | K22: 0 | L22: 0 | M22: 0 | N22: 0 | O22: 0 | P22: 0 | Q22: 0 | R22: 0 | S22: 0 | T22: 0 | U22: 0 | V22: 0 | W22: 0 | X22: 0 | Y22: 0 | Z22: 0 | AA22: 1275.5 | AB22: 5156.5 | AC22: 13101.5
A23: Srážka s omezením z částky | B23: =B19-B22 -> 4411 | C23: =C19-C22 -> 6139 | D23: =D19-D22 -> 7438 | E23: 8702 | F23: 9682 | G23: 10363 | H23: 11033 | I23: 11725 | J23: 12212 | K23: 12814 | L23: 13361 | M23: 13929 | N23: 14415 | O23: 14853 | P23: 15460 | Q23: 15919 | R23: 16479 | S23: 17063 | T23: 17722 | U23: 18834 | V23: 20055 | W23: 21405 | X23: 22796 | Y23: 24681 | Z23: 27004 | AA23: 28585.5 | AB23: 28585.5 | AC23: 28585.5
A24: - zaokrouhlené dolů na číslo dělitelné třemi | B24: =FLOOR(B23/3,1)*3 -> 4410 | C24: =FLOOR(C23/3,1)*3 -> 6138 | D24: =FLOOR(D23/3,1)*3 -> 7437 | E24: 8700 | F24: 9681 | G24: 10362 | H24: 11031 | I24: 11724 | J24: 12210 | K24: 12813 | L24: 13359 | M24: 13929 | N24: 14415 | O24: 14853 | P24: 15459 | Q24: 15918 | R24: 16479 | S24: 17061 | T24: 17721 | U24: 18834 | V24: 20055 | W24: 21405 | X24: 22794 | Y24: 24681 | Z24: 27003 | AA24: 28584 | AB24: 28584 | AC24: 28584
A25: - zbytek po zaokrouhlení dolů pro dlužníka | B25: =B23-B24 -> 1 | C25: =C23-C24 -> 1 | D25: =D23-D24 -> 1 | E25: 2 | F25: 1 | G25: 1 | H25: 2 | I25: 1 | J25: 2 | K25: 1 | L25: 2 | M25: 0 | N25: 0 | O25: 0 | P25: 1 | Q25: 1 | R25: 0 | S25: 2 | T25: 1 | U25: 0 | V25: 0 | W25: 0 | X25: 2 | Y25: 0 | Z25: 1 | AA25: 1.5 | AB25: 1.5 | AC25: 1.5
A26: Insolvence, přednostní pohledávky
A27: - jedna třetina dlužníkovi | B27: =B24/3 -> 1470 | C27: =C24/3 -> 2046 | D27: =D24/3 -> 2479 | E27: 2900 | F27: 3227 | G27: 3454 | H27: 3677 | I27: 3908 | J27: 4070 | K27: 4271 | L27: 4453 | M27: 4643 | N27: 4805 | O27: 4951 | P27: 5153 | Q27: 5306 | R27: 5493 | S27: 5687 | T27: 5907 | U27: 6278 | V27: 6685 | W27: 7135 | X27: 7598 | Y27: 8227 | Z27: 9001 | AA27: 9528 | AB27: 9528 | AC27: 9528
A28: - dvě třetiny věřitelům | B28: =B24/3*2 -> 2940 | C28: =C24/3*2 -> 4092 | D28: =D24/3*2 -> 4958 | E28: 5800 | F28: 6454 | G28: 6908 | H28: 7354 | I28: 7816 | J28: 8140 | K28: 8542 | L28: 8906 | M28: 9286 | N28: 9610 | O28: 9902 | P28: 10306 | Q28: 10612 | R28: 10986 | S28: 11374 | T28: 11814 | U28: 12556 | V28: 13370 | W28: 14270 | X28: 15196 | Y28: 16454 | Z28: 18002 | AA28: 19056 | AB28: 19056 | AC28: 19056
A29: Dlužníku připadne celkem | B29: =IF(B14<(B18+B25+B27),B14,B18+B25+B27) -> 17352 | C29: =IF(C14<(C18+C25+C27),C14,C18+C25+C27) -> 17928 | D29: =IF(D14<(D18+D25+D27),D14,D18+D25+D27) -> 18361 | E29: 18783 | F29: 19109 | G29: 19336 | H29: 19560 | I29: 19790 | J29: 19953 | K29: 20153 | L29: 20336 | M29: 20524 | N29: 20686 | O29: 20832 | P29: 21035 | Q29: 21188 | R29: 21374 | S29: 21570 | T29: 21789 | U29: 22159 | V29: 22566 | W29: 23016 | X29: 23481 | Y29: 24108 | Z29: 24883 | AA29: 25410.5 | AB29: 25410.5 | AC29: 25410.5
A30: Věřitelům připadne celkem | B30: =B13+B22+B28 -> 2940 | C30: =C13+C22+C28 -> 4092 | D30: =D13+D22+D28 -> 4958 | E30: 5800 | F30: 6454 | G30: 6908 | H30: 7354 | I30: 7816 | J30: 8140 | K30: 8542 | L30: 8906 | M30: 9286 | N30: 9610 | O30: 9902 | P30: 10306 | Q30: 10612 | R30: 10986 | S30: 11374 | T30: 11814 | U30: 12556 | V30: 13370 | W30: 14270 | X30: 15196 | Y30: 16454 | Z30: 18002 | AA30: 20331.5 | AB30: 24212.5 | AC30: 32157.5
A31: Exekuce, nepřednostní pohledávky
A32: - dvě třetiny dlužníku | B32: =B24/3*2 -> 2940 | C32: =C24/3*2 -> 4092 | D32: =D24/3*2 -> 4958 | E32: 5800 | F32: 6454 | G32: 6908 | H32: 7354 | I32: 7816 | J32: 8140 | K32: 8542 | L32: 8906 | M32: 9286 | N32: 9610 | O32: 9902 | P32: 10306 | Q32: 10612 | R32: 10986 | S32: 11374 | T32: 11814 | U32: 12556 | V32: 13370 | W32: 14270 | X32: 15196 | Y32: 16454 | Z32: 18002 | AA32: 19056 | AB32: 19056 | AC32: 19056
A33: - jedna třetina věřitelům | B33: =B24/3*1 -> 1470 | C33: =C24/3*1 -> 2046 | D33: =D24/3*1 -> 2479 | E33: 2900 | F33: 3227 | G33: 3454 | H33: 3677 | I33: 3908 | J33: 4070 | K33: 4271 | L33: 4453 | M33: 4643 | N33: 4805 | O33: 4951 | P33: 5153 | Q33: 5306 | R33: 5493 | S33: 5687 | T33: 5907 | U33: 6278 | V33: 6685 | W33: 7135 | X33: 7598 | Y33: 8227 | Z33: 9001 | AA33: 9528 | AB33: 9528 | AC33: 9528
A34: Dlužníku připadne celkem | B34: =IF(B14<(B18+B25+B32),B14,B18+B25+B32) -> 18822 | C34: =IF(C14<(C18+C25+C32),C14,C18+C25+C32) -> 19974 | D34: =IF(D14<(D18+D25+D32),D14,D18+D25+D32) -> 20840 | E34: 21683 | F34: 22336 | G34: 22790 | H34: 23237 | I34: 23698 | J34: 24023 | K34: 24424 | L34: 24789 | M34: 25167 | N34: 25491 | O34: 25783 | P34: 26188 | Q34: 26494 | R34: 26867 | S34: 27257 | T34: 27696 | U34: 28437 | V34: 29251 | W34: 30151 | X34: 31079 | Y34: 32335 | Z34: 33884 | AA34: 34938.5 | AB34: 34938.5 | AC34: 34938.5
A35: Věřitelům připadne celkem | B35: =B13+B22+B33 -> 1470 | C35: =C13+C22+C33 -> 2046 | D35: =D13+D22+D33 -> 2479 | E35: 2900 | F35: 3227 | G35: 3454 | H35: 3677 | I35: 3908 | J35: 4070 | K35: 4271 | L35: 4453 | M35: 4643 | N35: 4805 | O35: 4951 | P35: 5153 | Q35: 5306 | R35: 5493 | S35: 5687 | T35: 5907 | U35: 6278 | V35: 6685 | W35: 7135 | X35: 7598 | Y35: 8227 | Z35: 9001 | AA35: 10803.5 | AB35: 14684.5 | AC35: 22629.5
A36: Pokud plátce mzdy uplatňuje paušální náhradu
A37: - Věřitelům připadne celkem | B37: =B35-B38 -> 1420 | C37: =C35-C38 -> 1996 | D37: =D35-D38 -> 2429 | E37: 2850 | F37: 3177 | G37: 3404 | H37: 3627 | I37: 3858 | J37: 4020 | K37: 4221 | L37: 4403 | M37: 4593 | N37: 4755 | O37: 4901 | P37: 5103 | Q37: 5256 | R37: 5443 | S37: 5637 | T37: 5857 | U37: 6228 | V37: 6635 | W37: 7085 | X37: 7548 | Y37: 8177 | Z37: 8951 | AA37: 10753.5 | AB37: 14634.5 | AC37: 22579.5
A38: - Plátci mzdy připadne celkem | B38: =IF(CEILING(B35/3,1)<$E$2,CEILING(B35/3,1), $E$2) -> 50 | C38: =IF(CEILING(C35/3,1)<$E$2,CEILING(C35/3,1), $E$2) -> 50 | D38: =IF(CEILING(D35/3,1)<$E$2,CEILING(D35/3,1), $E$2) -> 50 | E38: 50 | F38: 50 | G38: 50 | H38: 50 | I38: 50 | J38: 50 | K38: 50 | L38: 50 | M38: 50 | N38: 50 | O38: 50 | P38: 50 | Q38: 50 | R38: 50 | S38: 50 | T38: 50 | U38: 50 | V38: 50 | W38: 50 | X38: 50 | Y38: 50 | Z38: 50 | AA38: 50 | AB38: 50 | AC38: 50
B40: Výše srážky
B41: =TRANSPOSE(B30:AC30) -> 2940
B42: 4092
B43: 4958
B44: 5800
B45: 6454
B46: 6908
B47: 7354
B48: 7816
B49: 8140
B50: 8542
B51: 8906
B52: 9286
B53: 9610
B54: 9902
B55: 10306
B56: 10612
B57: 10986
B58: 11374
B59: 11814
B60: 12556
B61: 13370
B62: 14270
B63: 15196
B64: 16454
B65: 18002
B66: 20331.5
B67: 24212.5
B68: 32157.5

Sheet Výpočet čistého příjmu
B2: Údaje pro určení výše čistých příjmů na základě nastavení účinného v roce 2024 a 2025:
B5: Kontrolní výpočet (výsledek se zobrazuje jen níže jako Čistý příjem) | E5: Daně | H5: Automatický přepočet
B6: Hrubý příjem | C6: 33333 | E6: Daň ze mzdy | F6: 0.15 | H6: =TabPercentil[[#All],[Percentil]] -> Percentil | I6: Hrubý příjem | J6: Čistý příjem
E7: Sleva na poplatníka | F7: 2570 | H7: 5 | I7: =Výstup!C31 -> 22433 | J7: =MIN((I7-ROUNDUP((IF(I7>100,ROUNDUP(I7,-2), ROUNDUP(I7,0)))*$F$6,0)-ROUNDUP(IF(Výstup!$C$27="Ne", I7*$F$10, 0)+I7*$F$11,0)-ROUNDUP(I7*$F$14,0)+IF(Výstup!$C$22="Ano",$F$7,0)+IF(Výstup!$C$23>=1, $F$17, 0) + IF(Výstup!$C$23>=2, $F$18, 0) + IF(Výstup!$C$23>=3, (Výstup!$C$23-2)*$F$19, 0) + IF(AND(Výstup!$C$23=1, Výstup!$C$24=1),$F$17,0) + IF(AND(Výstup!$C$23=2, Výstup!$C$24=2), $F$17+$F$18) + IF(AND(Výstup!$C$23=2, Výstup!$C$24=1), $F$18) + IF(Výstup!$C$23>2, IF(Výstup!$C$23-Výstup!$C$24 > 1, Výstup!$C$24*$F$19)) + IF(Výstup!$C$23>2, IF(Výstup!$C$23-Výstup!$C$24 = 1, (Výstup!$C$24-1)*$F$19+$F$18)) + IF(Výstup!$C$23>2, IF(Výstup!$C$23-Výstup!$C$24 = 0, (Výstup!$C$24-2)*$F$19+$F$18+$F$17))+VLOOKUP(Výstup!$C$25,$E$22:$F$25,2,FALSE)+VLOOKUP(Výstup!$C$26,$E$28:$F$30,2,FALSE)),I7) -> 20292
B8: Daně / odvody | H8: 7.5 | I8: =Výstup!C32 -> 24779 | J8: =MIN((I8-ROUNDUP((IF(I8>100,ROUNDUP(I8,-2), ROUNDUP(I8,0)))*$F$6,0)-ROUNDUP(IF(Výstup!$C$27="Ne", I8*$F$10, 0)+I8*$F$11,0)-ROUNDUP(I8*$F$14,0)+IF(Výstup!$C$22="Ano",$F$7,0)+IF(Výstup!$C$23>=1, $F$17, 0) + IF(Výstup!$C$23>=2, $F$18, 0) + IF(Výstup!$C$23>=3, (Výstup!$C$23-2)*$F$19, 0) + IF(AND(Výstup!$C$23=1, Výstup!$C$24=1),$F$17,0) + IF(AND(Výstup!$C$23=2, Výstup!$C$24=2), $F$17+$F$18) + IF(AND(Výstup!$C$23=2, Výstup!$C$24=1), $F$18) + IF(Výstup!$C$23>2, IF(Výstup!$C$23-Výstup!$C$24 > 1, Výstup!$C$24*$F$19)) + IF(Výstup!$C$23>2, IF(Výstup!$C$23-Výstup!$C$24 = 1, (Výstup!$C$24-1)*$F$19+$F$18)) + IF(Výstup!$C$23>2, IF(Výstup!$C$23-Výstup!$C$24 = 0, (Výstup!$C$24-2)*$F$19+$F$18+$F$17))+VLOOKUP(Výstup!$C$25,$E$22:$F$25,2,FALSE)+VLOOKUP(Výstup!$C$26,$E$28:$F$30,2,FALSE)),I8) -> 22020
B9: Základ daně | C9: =IF(C6>100,ROUNDUP(C6,-2), ROUNDUP(C6,0)) -> 33400 | E9: Sociální pojištění | H9: 10 | I9: =Výstup!C33 -> 26553 | J9: =MIN((I9-ROUNDUP((IF(I9>100,ROUNDUP(I9,-2), ROUNDUP(I9,0)))*$F$6,0)-ROUNDUP(IF(Výstup!$C$27="Ne", I9*$F$10, 0)+I9*$F$11,0)-ROUNDUP(I9*$F$14,0)+IF(Výstup!$C$22="Ano",$F$7,0)+IF(Výstup!$C$23>=1, $F$17, 0) + IF(Výstup!$C$23>=2, $F$18, 0) + IF(Výstup!$C$23>=3, (Výstup!$C$23-2)*$F$19, 0) + IF(AND(Výstup!$C$23=1, Výstup!$C$24=1),$F$17,0) + IF(AND(Výstup!$C$23=2, Výstup!$C$24=2), $F$17+$F$18) + IF(AND(Výstup!$C$23=2, Výstup!$C$24=1), $F$18) + IF(Výstup!$C$23>2, IF(Výstup!$C$23-Výstup!$C$24 > 1, Výstup!$C$24*$F$19)) + IF(Výstup!$C$23>2, IF(Výstup!$C$23-Výstup!$C$24 = 1, (Výstup!$C$24-1)*$F$19+$F$18)) + IF(Výstup!$C$23>2, IF(Výstup!$C$23-Výstup!$C$24 = 0, (Výstup!$C$24-2)*$F$19+$F$18+$F$17))+VLOOKUP(Výstup!$C$25,$E$22:$F$25,2,FALSE)+VLOOKUP(Výstup!$C$26,$E$28:$F$30,2,FALSE)),I9) -> 23319
B10: Daň FO | C10: =ROUNDUP(C9*F6,0) -> 5010 | E10: Důchodové poj. | F10: 0.065 | H10: 12.5 | I10: =Výstup!C34 -> 28272 | J10: =MIN((I10-ROUNDUP((IF(I10>100,ROUNDUP(I10,-2), ROUNDUP(I10,0)))*$F$6,0)-ROUNDUP(IF(Výstup!$C$27="Ne", I10*$F$10, 0)+I10*$F$11,0)-ROUNDUP(I10*$F$14,0)+IF(Výstup!$C$22="Ano",$F$7,0)+IF(Výstup!$C$23>=1, $F$17, 0) + IF(Výstup!$C$23>=2, $F$18, 0) + IF(Výstup!$C$23>=3, (Výstup!$C$23-2)*$F$19, 0) + IF(AND(Výstup!$C$23=1, Výstup!$C$24=1),$F$17,0) + IF(AND(Výstup!$C$23=2, Výstup!$C$24=2), $F$17+$F$18) + IF(AND(Výstup!$C$23=2, Výstup!$C$24=1), $F$18) + IF(Výstup!$C$23>2, IF(Výstup!$C$23-Výstup!$C$24 > 1, Výstup!$C$24*$F$19)) + IF(Výstup!$C$23>2, IF(Výstup!$C$23-Výstup!$C$24 = 1, (Výstup!$C$24-1)*$F$19+$F$18)) + IF(Výstup!$C$23>2, IF(Výstup!$C$23-Výstup!$C$24 = 0, (Výstup!$C$24-2)*$F$19+$F$18+$F$17))+VLOOKUP(Výstup!$C$25,$E$22:$F$25,2,FALSE)+VLOOKUP(Výstup!$C$26,$E$28:$F$30,2,FALSE)),I10) -> 24583
B11: Sociální pojištění | C11: =ROUNDUP(C6*(F10+F11),0) -> 2367 | E11: Nemocenské poj. | F11: 0.006 | H11: 15 | I11: =Výstup!C35 -> 29600 | J11: =MIN((I11-ROUNDUP((IF(I11>100,ROUNDUP(I11,-2), ROUNDUP(I11,0)))*$F$6,0)-ROUNDUP(IF(Výstup!$C$27="Ne", I11*$F$10, 0)+I11*$F$11,0)-ROUNDUP(I11*$F$14,0)+IF(Výstup!$C$22="Ano",$F$7,0)+IF(Výstup!$C$23>=1, $F$17, 0) + IF(Výstup!$C$23>=2, $F$18, 0) + IF(Výstup!$C$23>=3, (Výstup!$C$23-2)*$F$19, 0) + IF(AND(Výstup!$C$23=1, Výstup!$C$24=1),$F$17,0) + IF(AND(Výstup!$C$23=2, Výstup!$C$24=2), $F$17+$F$18) + IF(AND(Výstup!$C$23=2, Výstup!$C$24=1), $F$18) + IF(Výstup!$C$23>2, IF(Výstup!$C$23-Výstup!$C$24 > 1, Výstup!$C$24*$F$19)) + IF(Výstup!$C$23>2, IF(Výstup!$C$23-Výstup!$C$24 = 1, (Výstup!$C$24-1)*$F$19+$F$18)) + IF(Výstup!$C$23>2, IF(Výstup!$C$23-Výstup!$C$24 = 0, (Výstup!$C$24-2)*$F$19+$F$18+$F$17))+VLOOKUP(Výstup!$C$25,$E$22:$F$25,2,FALSE)+VLOOKUP(Výstup!$C$26,$E$28:$F$30,2,FALSE)),I11) -> 25563
B12: Zdravotní pojištění | C12: =ROUNDUP(C6*F14,0) -> 1500 | H12: 17.5 | I12: =Výstup!C36 -> 30541 | J12: =MIN((I12-ROUNDUP((IF(I12>100,ROUNDUP(I12,-2), ROUNDUP(I12,0)))*$F$6,0)-ROUNDUP(IF(Výstup!$C$27="Ne", I12*$F$10, 0)+I12*$F$11,0)-ROUNDUP(I12*$F$14,0)+IF(Výstup!$C$22="Ano",$F$7,0)+IF(Výstup!$C$23>=1, $F$17, 0) + IF(Výstup!$C$23>=2, $F$18, 0) + IF(Výstup!$C$23>=3, (Výstup!$C$23-2)*$F$19, 0) + IF(AND(Výstup!$C$23=1, Výstup!$C$24=1),$F$17,0) + IF(AND(Výstup!$C$23=2, Výstup!$C$24=2), $F$17+$F$18) + IF(AND(Výstup!$C$23=2, Výstup!$C$24=1), $F$18) + IF(Výstup!$C$23>2, IF(Výstup!$C$23-Výstup!$C$24 > 1, Výstup!$C$24*$F$19)) + IF(Výstup!$C$23>2, IF(Výstup!$C$23-Výstup!$C$24 = 1, (Výstup!$C$24-1)*$F$19+$F$18)) + IF(Výstup!$C$23>2, IF(Výstup!$C$23-Výstup!$C$24 = 0, (Výstup!$C$24-2)*$F$19+$F$18+$F$17))+VLOOKUP(Výstup!$C$25,$E$22:$F$25,2,FALSE)+VLOOKUP(Výstup!$C$26,$E$28:$F$30,2,FALSE)),I12) -> 26244
E13: Zdravotní pojištění | H13: 20 | I13: =Výstup!C37 -> 31452 | J13: =MIN((I13-ROUNDUP((IF(I13>100,ROUNDUP(I13,-2), ROUNDUP(I13,0)))*$F$6,0)-ROUNDUP(IF(Výstup!$C$27="Ne", I13*$F$10, 0)+I13*$F$11,0)-ROUNDUP(I13*$F$14,0)+IF(Výstup!$C$22="Ano",$F$7,0)+IF(Výstup!$C$23>=1, $F$17, 0) + IF(Výstup!$C$23>=2, $F$18, 0) + IF(Výstup!$C$23>=3, (Výstup!$C$23-2)*$F$19, 0) + IF(AND(Výstup!$C$23=1, Výstup!$C$24=1),$F$17,0) + IF(AND(Výstup!$C$23=2, Výstup!$C$24=2), $F$17+$F$18) + IF(AND(Výstup!$C$23=2, Výstup!$C$24=1), $F$18) + IF(Výstup!$C$23>2, IF(Výstup!$C$23-Výstup!$C$24 > 1, Výstup!$C$24*$F$19)) + IF(Výstup!$C$23>2, IF(Výstup!$C$23-Výstup!$C$24 = 1, (Výstup!$C$24-1)*$F$19+$F$18)) + IF(Výstup!$C$23>2, IF(Výstup!$C$23-Výstup!$C$24 = 0, (Výstup!$C$24-2)*$F$19+$F$18+$F$17))+VLOOKUP(Výstup!$C$25,$E$22:$F$25,2,FALSE)+VLOOKUP(Výstup!$C$26,$E$28:$F$30,2,FALSE)),I13) -> 26914
B14: Slevy / bonusy | E14: Zdravotní pojištění | F14: 0.045 | H14: 22.5 | I14: =Výstup!C38 -> 32404 | J14: =MIN((I14-ROUNDUP((IF(I14>100,ROUNDUP(I14,-2), ROUNDUP(I14,0)))*$F$6,0)-ROUNDUP(IF(Výstup!$C$27="Ne", I14*$F$10, 0)+I14*$F$11,0)-ROUNDUP(I14*$F$14,0)+IF(Výstup!$C$22="Ano",$F$7,0)+IF(Výstup!$C$23>=1, $F$17, 0) + IF(Výstup!$C$23>=2, $F$18, 0) + IF(Výstup!$C$23>=3, (Výstup!$C$23-2)*$F$19, 0) + IF(AND(Výstup!$C$23=1, Výstup!$C$24=1),$F$17,0) + IF(AND(Výstup!$C$23=2, Výstup!$C$24=2), $F$17+$F$18) + IF(AND(Výstup!$C$23=2, Výstup!$C$24=1), $F$18) + IF(Výstup!$C$23>2, IF(Výstup!$C$23-Výstup!$C$24 > 1, Výstup!$C$24*$F$19)) + IF(Výstup!$C$23>2, IF(Výstup!$C$23-Výstup!$C$24 = 1, (Výstup!$C$24-1)*$F$19+$F$18)) + IF(Výstup!$C$23>2, IF(Výstup!$C$23-Výstup!$C$24 = 0, (Výstup!$C$24-2)*$F$19+$F$18+$F$17))+VLOOKUP(Výstup!$C$25,$E$22:$F$25,2,FALSE)+VLOOKUP(Výstup!$C$26,$E$28:$F$30,2,FALSE)),I14) -> 27606
B15: Sleva na poplatníka | C15: =IF(Výstup!C22="Ano", F7, 0) -> 2570 | H15: 25 | I15: =Výstup!C39 -> 33056 | J15: =MIN((I15-ROUNDUP((IF(I15>100,ROUNDUP(I15,-2), ROUNDUP(I15,0)))*$F$6,0)-ROUNDUP(IF(Výstup!$C$27="Ne", I15*$F$10, 0)+I15*$F$11,0)-ROUNDUP(I15*$F$14,0)+IF(Výstup!$C$22="Ano",$F$7,0)+IF(Výstup!$C$23>=1, $F$17, 0) + IF(Výstup!$C$23>=2, $F$18, 0) + IF(Výstup!$C$23>=3, (Výstup!$C$23-2)*$F$19, 0) + IF(AND(Výstup!$C$23=1, Výstup!$C$24=1),$F$17,0) + IF(AND(Výstup!$C$23=2, Výstup!$C$24=2), $F$17+$F$18) + IF(AND(Výstup!$C$23=2, Výstup!$C$24=1), $F$18) + IF(Výstup!$C$23>2, IF(Výstup!$C$23-Výstup!$C$24 > 1, Výstup!$C$24*$F$19)) + IF(Výstup!$C$23>2, IF(Výstup!$C$23-Výstup!$C$24 = 1, (Výstup!$C$24-1)*$F$19+$F$18)) + IF(Výstup!$C$23>2, IF(Výstup!$C$23-Výstup!$C$24 = 0, (Výstup!$C$24-2)*$F$19+$F$18+$F$17))+VLOOKUP(Výstup!$C$25,$E$22:$F$25,2,FALSE)+VLOOKUP(Výstup!$C$26,$E$28:$F$30,2,FALSE)),I15) -> 28093
B16: Daňový bonus na děti | C16: =IF(Výstup!$C$23>=1, $F$17, 0) + IF(Výstup!$C$23>=2, $F$18, 0) + IF(Výstup!$C$23>=3, (Výstup!$C$23-2)*$F$19, 0) + IF(AND(Výstup!$C$23=1, Výstup!$C$24=1),$F$17,0) + IF(AND(Výstup!$C$23=2, Výstup!$C$24=2), $F$17+$F$18) + IF(AND(Výstup!$C$23=2, Výstup!$C$24=1), $F$18) + IF(Výstup!$C$23>2, IF(Výstup!$C$23-Výstup!$C$24 > 1, Výstup!$C$24*$F$19)) + IF(Výstup!$C$23>2, IF(Výstup!$C$23-Výstup!$C$24 = 1, (Výstup!$C$24-1)*$F$19+$F$18)) + IF(Výstup!$C$23>2, IF(Výstup!$C$23-Výstup!$C$24 = 0, (Výstup!$C$24-2)*$F$19+$F$18+$F$17)) -> 1267 | E16: Počet dětí (daňový bonus) | H16: 27.5 | I16: =Výstup!C40 -> 33873 | J16: =MIN((I16-ROUNDUP((IF(I16>100,ROUNDUP(I16,-2), ROUNDUP(I16,0)))*$F$6,0)-ROUNDUP(IF(Výstup!$C$27="Ne", I16*$F$10, 0)+I16*$F$11,0)-ROUNDUP(I16*$F$14,0)+IF(Výstup!$C$22="Ano",$F$7,0)+IF(Výstup!$C$23>=1, $F$17, 0) + IF(Výstup!$C$23>=2, $F$18, 0) + IF(Výstup!$C$23>=3, (Výstup!$C$23-2)*$F$19, 0) + IF(AND(Výstup!$C$23=1, Výstup!$C$24=1),$F$17,0) + IF(AND(Výstup!$C$23=2, Výstup!$C$24=2), $F$17+$F$18) + IF(AND(Výstup!$C$23=2, Výstup!$C$24=1), $F$18) + IF(Výstup!$C$23>2, IF(Výstup!$C$23-Výstup!$C$24 > 1, Výstup!$C$24*$F$19)) + IF(Výstup!$C$23>2, IF(Výstup!$C$23-Výstup!$C$24 = 1, (Výstup!$C$24-1)*$F$19+$F$18)) + IF(Výstup!$C$23>2, IF(Výstup!$C$23-Výstup!$C$24 = 0, (Výstup!$C$24-2)*$F$19+$F$18+$F$17))+VLOOKUP(Výstup!$C$25,$E$22:$F$25,2,FALSE)+VLOOKUP(Výstup!$C$26,$E$28:$F$30,2,FALSE)),I16) -> 28695
B17: Postižení | C17: =VLOOKUP(Výstup!C25,E22:F25,2,FALSE) -> 0 | E17: 1 | F17: 1267 | H17: 30 | I17: =Výstup!C41 -> 34628 | J17: =MIN((I17-ROUNDUP((IF(I17>100,ROUNDUP(I17,-2), ROUNDUP(I17,0)))*$F$6,0)-ROUNDUP(IF(Výstup!$C$27="Ne", I17*$F$10, 0)+I17*$F$11,0)-ROUNDUP(I17*$F$14,0)+IF(Výstup!$C$22="Ano",$F$7,0)+IF(Výstup!$C$23>=1, $F$17, 0) + IF(Výstup!$C$23>=2, $F$18, 0) + IF(Výstup!$C$23>=3, (Výstup!$C$23-2)*$F$19, 0) + IF(AND(Výstup!$C$23=1, Výstup!$C$24=1),$F$17,0) + IF(AND(Výstup!$C$23=2, Výstup!$C$24=2), $F$17+$F$18) + IF(AND(Výstup!$C$23=2, Výstup!$C$24=1), $F$18) + IF(Výstup!$C$23>2, IF(Výstup!$C$23-Výstup!$C$24 > 1, Výstup!$C$24*$F$19)) + IF(Výstup!$C$23>2, IF(Výstup!$C$23-Výstup!$C$24 = 1, (Výstup!$C$24-1)*$F$19+$F$18)) + IF(Výstup!$C$23>2, IF(Výstup!$C$23-Výstup!$C$24 = 0, (Výstup!$C$24-2)*$F$19+$F$18+$F$17))+VLOOKUP(Výstup!$C$25,$E$22:$F$25,2,FALSE)+VLOOKUP(Výstup!$C$26,$E$28:$F$30,2,FALSE)),I17) -> 29242
B18: Sleva na manžela / manželku | C18: =VLOOKUP(Výstup!C26,E28:F30,2,FALSE) -> 0 | E18: 2 | F18: 1860 | H18: 32.5 | I18: =Výstup!C42 -> 35389 | J18: =MIN((I18-ROUNDUP((IF(I18>100,ROUNDUP(I18,-2), ROUNDUP(I18,0)))*$F$6,0)-ROUNDUP(IF(Výstup!$C$27="Ne", I18*$F$10, 0)+I18*$F$11,0)-ROUNDUP(I18*$F$14,0)+IF(Výstup!$C$22="Ano",$F$7,0)+IF(Výstup!$C$23>=1, $F$17, 0) + IF(Výstup!$C$23>=2, $F$18, 0) + IF(Výstup!$C$23>=3, (Výstup!$C$23-2)*$F$19, 0) + IF(AND(Výstup!$C$23=1, Výstup!$C$24=1),$F$17,0) + IF(AND(Výstup!$C$23=2, Výstup!$C$24=2), $F$17+$F$18) + IF(AND(Výstup!$C$23=2, Výstup!$C$24=1), $F$18) + IF(Výstup!$C$23>2, IF(Výstup!$C$23-Výstup!$C$24 > 1, Výstup!$C$24*$F$19)) + IF(Výstup!$C$23>2, IF(Výstup!$C$23-Výstup!$C$24 = 1, (Výstup!$C$24-1)*$F$19+$F$18)) + IF(Výstup!$C$23>2, IF(Výstup!$C$23-Výstup!$C$24 = 0, (Výstup!$C$24-2)*$F$19+$F$18+$F$17))+VLOOKUP(Výstup!$C$25,$E$22:$F$25,2,FALSE)+VLOOKUP(Výstup!$C$26,$E$28:$F$30,2,FALSE)),I18) -> 29810
B19: Sleva na pojistném pro pracující důchodce | C19: =IF(Výstup!C27="Ano", C6*F10, 0) -> 0 | E19: 3 | F19: 2320 | H19: 35 | I19: =Výstup!C43 -> 36058 | J19: =MIN((I19-ROUNDUP((IF(I19>100,ROUNDUP(I19,-2), ROUNDUP(I19,0)))*$F$6,0)-ROUNDUP(IF(Výstup!$C$27="Ne", I19*$F$10, 0)+I19*$F$11,0)-ROUNDUP(I19*$F$14,0)+IF(Výstup!$C$22="Ano",$F$7,0)+IF(Výstup!$C$23>=1, $F$17, 0) + IF(Výstup!$C$23>=2, $F$18, 0) + IF(Výstup!$C$23>=3, (Výstup!$C$23-2)*$F$19, 0) + IF(AND(Výstup!$C$23=1, Výstup!$C$24=1),$F$17,0) + IF(AND(Výstup!$C$23=2, Výstup!$C$24=2), $F$17+$F$18) + IF(AND(Výstup!$C$23=2, Výstup!$C$24=1), $F$18) + IF(Výstup!$C$23>2, IF(Výstup!$C$23-Výstup!$C$24 > 1, Výstup!$C$24*$F$19)) + IF(Výstup!$C$23>2, IF(Výstup!$C$23-Výstup!$C$24 = 1, (Výstup!$C$24-1)*$F$19+$F$18)) + IF(Výstup!$C$23>2, IF(Výstup!$C$23-Výstup!$C$24 = 0, (Výstup!$C$24-2)*$F$19+$F$18+$F$17))+VLOOKUP(Výstup!$C$25,$E$22:$F$25,2,FALSE)+VLOOKUP(Výstup!$C$26,$E$28:$F$30,2,FALSE)),I19) -> 30296
H20: 37.5 | I20: =Výstup!C44 -> 36655 | J20: =MIN((I20-ROUNDUP((IF(I20>100,ROUNDUP(I20,-2), ROUNDUP(I20,0)))*$F$6,0)-ROUNDUP(IF(Výstup!$C$27="Ne", I20*$F$10, 0)+I20*$F$11,0)-ROUNDUP(I20*$F$14,0)+IF(Výstup!$C$22="Ano",$F$7,0)+IF(Výstup!$C$23>=1, $F$17, 0) + IF(Výstup!$C$23>=2, $F$18, 0) + IF(Výstup!$C$23>=3, (Výstup!$C$23-2)*$F$19, 0) + IF(AND(Výstup!$C$23=1, Výstup!$C$24=1),$F$17,0) + IF(AND(Výstup!$C$23=2, Výstup!$C$24=2), $F$17+$F$18) + IF(AND(Výstup!$C$23=2, Výstup!$C$24=1), $F$18) + IF(Výstup!$C$23>2, IF(Výstup!$C$23-Výstup!$C$24 > 1, Výstup!$C$24*$F$19)) + IF(Výstup!$C$23>2, IF(Výstup!$C$23-Výstup!$C$24 = 1, (Výstup!$C$24-1)*$F$19+$F$18)) + IF(Výstup!$C$23>2, IF(Výstup!$C$23-Výstup!$C$24 = 0, (Výstup!$C$24-2)*$F$19+$F$18+$F$17))+VLOOKUP(Výstup!$C$25,$E$22:$F$25,2,FALSE)+VLOOKUP(Výstup!$C$26,$E$28:$F$30,2,FALSE)),I20) -> 30734
B21: Čistý příjem | C21: =ROUNDUP(MIN((C6-SUM(C10:C12)+SUM(C15:C19)),C6),0) -> 28293 | E21: Postižení | H21: 40 | I21: =Výstup!C45 -> 37477 | J21: =MIN((I21-ROUNDUP((IF(I21>100,ROUNDUP(I21,-2), ROUNDUP(I21,0)))*$F$6,0)-ROUNDUP(IF(Výstup!$C$27="Ne", I21*$F$10, 0)+I21*$F$11,0)-ROUNDUP(I21*$F$14,0)+IF(Výstup!$C$22="Ano",$F$7,0)+IF(Výstup!$C$23>=1, $F$17, 0) + IF(Výstup!$C$23>=2, $F$18, 0) + IF(Výstup!$C$23>=3, (Výstup!$C$23-2)*$F$19, 0) + IF(AND(Výstup!$C$23=1, Výstup!$C$24=1),$F$17,0) + IF(AND(Výstup!$C$23=2, Výstup!$C$24=2), $F$17+$F$18) + IF(AND(Výstup!$C$23=2, Výstup!$C$24=1), $F$18) + IF(Výstup!$C$23>2, IF(Výstup!$C$23-Výstup!$C$24 > 1, Výstup!$C$24*$F$19)) + IF(Výstup!$C$23>2, IF(Výstup!$C$23-Výstup!$C$24 = 1, (Výstup!$C$24-1)*$F$19+$F$18)) + IF(Výstup!$C$23>2, IF(Výstup!$C$23-Výstup!$C$24 = 0, (Výstup!$C$24-2)*$F$19+$F$18+$F$17))+VLOOKUP(Výstup!$C$25,$E$22:$F$25,2,FALSE)+VLOOKUP(Výstup!$C$26,$E$28:$F$30,2,FALSE)),I21) -> 31341
E22: Ne | F22: 0 | H22: 42.5 | I22: =Výstup!C46 -> 38116 | J22: =MIN((I22-ROUNDUP((IF(I22>100,ROUNDUP(I22,-2), ROUNDUP(I22,0)))*$F$6,0)-ROUNDUP(IF(Výstup!$C$27="Ne", I22*$F$10, 0)+I22*$F$11,0)-ROUNDUP(I22*$F$14,0)+IF(Výstup!$C$22="Ano",$F$7,0)+IF(Výstup!$C$23>=1, $F$17, 0) + IF(Výstup!$C$23>=2, $F$18, 0) + IF(Výstup!$C$23>=3, (Výstup!$C$23-2)*$F$19, 0) + IF(AND(Výstup!$C$23=1, Výstup!$C$24=1),$F$17,0) + IF(AND(Výstup!$C$23=2, Výstup!$C$24=2), $F$17+$F$18) + IF(AND(Výstup!$C$23=2, Výstup!$C$24=1), $F$18) + IF(Výstup!$C$23>2, IF(Výstup!$C$23-Výstup!$C$24 > 1, Výstup!$C$24*$F$19)) + IF(Výstup!$C$23>2, IF(Výstup!$C$23-Výstup!$C$24 = 1, (Výstup!$C$24-1)*$F$19+$F$18)) + IF(Výstup!$C$23>2, IF(Výstup!$C$23-Výstup!$C$24 = 0, (Výstup!$C$24-2)*$F$19+$F$18+$F$17))+VLOOKUP(Výstup!$C$25,$E$22:$F$25,2,FALSE)+VLOOKUP(Výstup!$C$26,$E$28:$F$30,2,FALSE)),I22) -> 31800
B23: Výpočet zohledňuje, že daňový bonus není postižitelný srážkami ze mzdy nebo jiných příjmů, a proto čistý příjem nemůže být vyšší než hrubý příjem. V tomto ohledu se nástroj odchyluje od běžného výpočtu čisté mzdy. | E23: 1. / 2. stupeň | F23: 210 | H23: 45 | I23: =Výstup!C47 -> 38868 | J23: =MIN((I23-ROUNDUP((IF(I23>100,ROUNDUP(I23,-2), ROUNDUP(I23,0)))*$F$6,0)-ROUNDUP(IF(Výstup!$C$27="Ne", I23*$F$10, 0)+I23*$F$11,0)-ROUNDUP(I23*$F$14,0)+IF(Výstup!$C$22="Ano",$F$7,0)+IF(Výstup!$C$23>=1, $F$17, 0) + IF(Výstup!$C$23>=2, $F$18, 0) + IF(Výstup!$C$23>=3, (Výstup!$C$23-2)*$F$19, 0) + IF(AND(Výstup!$C$23=1, Výstup!$C$24=1),$F$17,0) + IF(AND(Výstup!$C$23=2, Výstup!$C$24=2), $F$17+$F$18) + IF(AND(Výstup!$C$23=2, Výstup!$C$24=1), $F$18) + IF(Výstup!$C$23>2, IF(Výstup!$C$23-Výstup!$C$24 > 1, Výstup!$C$24*$F$19)) + IF(Výstup!$C$23>2, IF(Výstup!$C$23-Výstup!$C$24 = 1, (Výstup!$C$24-1)*$F$19+$F$18)) + IF(Výstup!$C$23>2, IF(Výstup!$C$23-Výstup!$C$24 = 0, (Výstup!$C$24-2)*$F$19+$F$18+$F$17))+VLOOKUP(Výstup!$C$25,$E$22:$F$25,2,FALSE)+VLOOKUP(Výstup!$C$26,$E$28:$F$30,2,FALSE)),I23) -> 32360
E24: 3. stupeň | F24: 420 | H24: 47.5 | I24: =Výstup!C48 -> 39664 | J24: =MIN((I24-ROUNDUP((IF(I24>100,ROUNDUP(I24,-2), ROUNDUP(I24,0)))*$F$6,0)-ROUNDUP(IF(Výstup!$C$27="Ne", I24*$F$10, 0)+I24*$F$11,0)-ROUNDUP(I24*$F$14,0)+IF(Výstup!$C$22="Ano",$F$7,0)+IF(Výstup!$C$23>=1, $F$17, 0) + IF(Výstup!$C$23>=2, $F$18, 0) + IF(Výstup!$C$23>=3, (Výstup!$C$23-2)*$F$19, 0) + IF(AND(Výstup!$C$23=1, Výstup!$C$24=1),$F$17,0) + IF(AND(Výstup!$C$23=2, Výstup!$C$24=2), $F$17+$F$18) + IF(AND(Výstup!$C$23=2, Výstup!$C$24=1), $F$18) + IF(Výstup!$C$23>2, IF(Výstup!$C$23-Výstup!$C$24 > 1, Výstup!$C$24*$F$19)) + IF(Výstup!$C$23>2, IF(Výstup!$C$23-Výstup!$C$24 = 1, (Výstup!$C$24-1)*$F$19+$F$18)) + IF(Výstup!$C$23>2, IF(Výstup!$C$23-Výstup!$C$24 = 0, (Výstup!$C$24-2)*$F$19+$F$18+$F$17))+VLOOKUP(Výstup!$C$25,$E$22:$F$25,2,FALSE)+VLOOKUP(Výstup!$C$26,$E$28:$F$30,2,FALSE)),I24) -> 32944
E25: ZTP/P | F25: 1345 | H25: 50 | I25: =Výstup!C49 -> 40562 | J25: =MIN((I25-ROUNDUP((IF(I25>100,ROUNDUP(I25,-2), ROUNDUP(I25,0)))*$F$6,0)-ROUNDUP(IF(Výstup!$C$27="Ne", I25*$F$10, 0)+I25*$F$11,0)-ROUNDUP(I25*$F$14,0)+IF(Výstup!$C$22="Ano",$F$7,0)+IF(Výstup!$C$23>=1, $F$17, 0) + IF(Výstup!$C$23>=2, $F$18, 0) + IF(Výstup!$C$23>=3, (Výstup!$C$23-2)*$F$19, 0) + IF(AND(Výstup!$C$23=1, Výstup!$C$24=1),$F$17,0) + IF(AND(Výstup!$C$23=2, Výstup!$C$24=2), $F$17+$F$18) + IF(AND(Výstup!$C$23=2, Výstup!$C$24=1), $F$18) + IF(Výstup!$C$23>2, IF(Výstup!$C$23-Výstup!$C$24 > 1, Výstup!$C$24*$F$19)) + IF(Výstup!$C$23>2, IF(Výstup!$C$23-Výstup!$C$24 = 1, (Výstup!$C$24-1)*$F$19+$F$18)) + IF(Výstup!$C$23>2, IF(Výstup!$C$23-Výstup!$C$24 = 0, (Výstup!$C$24-2)*$F$19+$F$18+$F$17))+VLOOKUP(Výstup!$C$25,$E$22:$F$25,2,FALSE)+VLOOKUP(Výstup!$C$26,$E$28:$F$30,2,FALSE)),I25) -> 33603
H26: 55 | I26: =Výstup!C50 -> 42075 | J26: =MIN((I26-ROUNDUP((IF(I26>100,ROUNDUP(I26,-2), ROUNDUP(I26,0)))*$F$6,0)-ROUNDUP(IF(Výstup!$C$27="Ne", I26*$F$10, 0)+I26*$F$11,0)-ROUNDUP(I26*$F$14,0)+IF(Výstup!$C$22="Ano",$F$7,0)+IF(Výstup!$C$23>=1, $F$17, 0) + IF(Výstup!$C$23>=2, $F$18, 0) + IF(Výstup!$C$23>=3, (Výstup!$C$23-2)*$F$19, 0) + IF(AND(Výstup!$C$23=1, Výstup!$C$24=1),$F$17,0) + IF(AND(Výstup!$C$23=2, Výstup!$C$24=2), $F$17+$F$18) + IF(AND(Výstup!$C$23=2, Výstup!$C$24=1), $F$18) + IF(Výstup!$C$23>2, IF(Výstup!$C$23-Výstup!$C$24 > 1, Výstup!$C$24*$F$19)) + IF(Výstup!$C$23>2, IF(Výstup!$C$23-Výstup!$C$24 = 1, (Výstup!$C$24-1)*$F$19+$F$18)) + IF(Výstup!$C$23>2, IF(Výstup!$C$23-Výstup!$C$24 = 0, (Výstup!$C$24-2)*$F$19+$F$18+$F$17))+VLOOKUP(Výstup!$C$25,$E$22:$F$25,2,FALSE)+VLOOKUP(Výstup!$C$26,$E$28:$F$30,2,FALSE)),I26) -> 34715
E27: Sleva na manžela / manželku | H27: 60 | I27: =Výstup!C51 -> 43744 | J27: =MIN((I27-ROUNDUP((IF(I27>100,ROUNDUP(I27,-2), ROUNDUP(I27,0)))*$F$6,0)-ROUNDUP(IF(Výstup!$C$27="Ne", I27*$F$10, 0)+I27*$F$11,0)-ROUNDUP(I27*$F$14,0)+IF(Výstup!$C$22="Ano",$F$7,0)+IF(Výstup!$C$23>=1, $F$17, 0) + IF(Výstup!$C$23>=2, $F$18, 0) + IF(Výstup!$C$23>=3, (Výstup!$C$23-2)*$F$19, 0) + IF(AND(Výstup!$C$23=1, Výstup!$C$24=1),$F$17,0) + IF(AND(Výstup!$C$23=2, Výstup!$C$24=2), $F$17+$F$18) + IF(AND(Výstup!$C$23=2, Výstup!$C$24=1), $F$18) + IF(Výstup!$C$23>2, IF(Výstup!$C$23-Výstup!$C$24 > 1, Výstup!$C$24*$F$19)) + IF(Výstup!$C$23>2, IF(Výstup!$C$23-Výstup!$C$24 = 1, (Výstup!$C$24-1)*$F$19+$F$18)) + IF(Výstup!$C$23>2, IF(Výstup!$C$23-Výstup!$C$24 = 0, (Výstup!$C$24-2)*$F$19+$F$18+$F$17))+VLOOKUP(Výstup!$C$25,$E$22:$F$25,2,FALSE)+VLOOKUP(Výstup!$C$26,$E$28:$F$30,2,FALSE)),I27) -> 35936
E28: Ne | F28: 0 | H28: 65 | I28: =Výstup!C52 -> 45576 | J28: =MIN((I28-ROUNDUP((IF(I28>100,ROUNDUP(I28,-2), ROUNDUP(I28,0)))*$F$6,0)-ROUNDUP(IF(Výstup!$C$27="Ne", I28*$F$10, 0)+I28*$F$11,0)-ROUNDUP(I28*$F$14,0)+IF(Výstup!$C$22="Ano",$F$7,0)+IF(Výstup!$C$23>=1, $F$17, 0) + IF(Výstup!$C$23>=2, $F$18, 0) + IF(Výstup!$C$23>=3, (Výstup!$C$23-2)*$F$19, 0) + IF(AND(Výstup!$C$23=1, Výstup!$C$24=1),$F$17,0) + IF(AND(Výstup!$C$23=2, Výstup!$C$24=2), $F$17+$F$18) + IF(AND(Výstup!$C$23=2, Výstup!$C$24=1), $F$18) + IF(Výstup!$C$23>2, IF(Výstup!$C$23-Výstup!$C$24 > 1, Výstup!$C$24*$F$19)) + IF(Výstup!$C$23>2, IF(Výstup!$C$23-Výstup!$C$24 = 1, (Výstup!$C$24-1)*$F$19+$F$18)) + IF(Výstup!$C$23>2, IF(Výstup!$C$23-Výstup!$C$24 = 0, (Výstup!$C$24-2)*$F$19+$F$18+$F$17))+VLOOKUP(Výstup!$C$25,$E$22:$F$25,2,FALSE)+VLOOKUP(Výstup!$C$26,$E$28:$F$30,2,FALSE)),I28) -> 37286
E29: Ano | F29: 2070 | H29: 70 | I29: =Výstup!C53 -> 47473 | J29: =MIN((I29-ROUNDUP((IF(I29>100,ROUNDUP(I29,-2), ROUNDUP(I29,0)))*$F$6,0)-ROUNDUP(IF(Výstup!$C$27="Ne", I29*$F$10, 0)+I29*$F$11,0)-ROUNDUP(I29*$F$14,0)+IF(Výstup!$C$22="Ano",$F$7,0)+IF(Výstup!$C$23>=1, $F$17, 0) + IF(Výstup!$C$23>=2, $F$18, 0) + IF(Výstup!$C$23>=3, (Výstup!$C$23-2)*$F$19, 0) + IF(AND(Výstup!$C$23=1, Výstup!$C$24=1),$F$17,0) + IF(AND(Výstup!$C$23=2, Výstup!$C$24=2), $F$17+$F$18) + IF(AND(Výstup!$C$23=2, Výstup!$C$24=1), $F$18) + IF(Výstup!$C$23>2, IF(Výstup!$C$23-Výstup!$C$24 > 1, Výstup!$C$24*$F$19)) + IF(Výstup!$C$23>2, IF(Výstup!$C$23-Výstup!$C$24 = 1, (Výstup!$C$24-1)*$F$19+$F$18)) + IF(Výstup!$C$23>2, IF(Výstup!$C$23-Výstup!$C$24 = 0, (Výstup!$C$24-2)*$F$19+$F$18+$F$17))+VLOOKUP(Výstup!$C$25,$E$22:$F$25,2,FALSE)+VLOOKUP(Výstup!$C$26,$E$28:$F$30,2,FALSE)),I29) -> 38677
E30: Ano (ZTP) | F30: 4140 | H30: 75 | I30: =Výstup!C54 -> 50047 | J30: =MIN((I30-ROUNDUP((IF(I30>100,ROUNDUP(I30,-2), ROUNDUP(I30,0)))*$F$6,0)-ROUNDUP(IF(Výstup!$C$27="Ne", I30*$F$10, 0)+I30*$F$11,0)-ROUNDUP(I30*$F$14,0)+IF(Výstup!$C$22="Ano",$F$7,0)+IF(Výstup!$C$23>=1, $F$17, 0) + IF(Výstup!$C$23>=2, $F$18, 0) + IF(Výstup!$C$23>=3, (Výstup!$C$23-2)*$F$19, 0) + IF(AND(Výstup!$C$23=1, Výstup!$C$24=1),$F$17,0) + IF(AND(Výstup!$C$23=2, Výstup!$C$24=2), $F$17+$F$18) + IF(AND(Výstup!$C$23=2, Výstup!$C$24=1), $F$18) + IF(Výstup!$C$23>2, IF(Výstup!$C$23-Výstup!$C$24 > 1, Výstup!$C$24*$F$19)) + IF(Výstup!$C$23>2, IF(Výstup!$C$23-Výstup!$C$24 = 1, (Výstup!$C$24-1)*$F$19+$F$18)) + IF(Výstup!$C$23>2, IF(Výstup!$C$23-Výstup!$C$24 = 0, (Výstup!$C$24-2)*$F$19+$F$18+$F$17))+VLOOKUP(Výstup!$C$25,$E$22:$F$25,2,FALSE)+VLOOKUP(Výstup!$C$26,$E$28:$F$30,2,FALSE)),I30) -> 40562
H31: 80 | I31: =Výstup!C55 -> 53217 | J31: =MIN((I31-ROUNDUP((IF(I31>100,ROUNDUP(I31,-2), ROUNDUP(I31,0)))*$F$6,0)-ROUNDUP(IF(Výstup!$C$27="Ne", I31*$F$10, 0)+I31*$F$11,0)-ROUNDUP(I31*$F$14,0)+IF(Výstup!$C$22="Ano",$F$7,0)+IF(Výstup!$C$23>=1, $F$17, 0) + IF(Výstup!$C$23>=2, $F$18, 0) + IF(Výstup!$C$23>=3, (Výstup!$C$23-2)*$F$19, 0) + IF(AND(Výstup!$C$23=1, Výstup!$C$24=1),$F$17,0) + IF(AND(Výstup!$C$23=2, Výstup!$C$24=2), $F$17+$F$18) + IF(AND(Výstup!$C$23=2, Výstup!$C$24=1), $F$18) + IF(Výstup!$C$23>2, IF(Výstup!$C$23-Výstup!$C$24 > 1, Výstup!$C$24*$F$19)) + IF(Výstup!$C$23>2, IF(Výstup!$C$23-Výstup!$C$24 = 1, (Výstup!$C$24-1)*$F$19+$F$18)) + IF(Výstup!$C$23>2, IF(Výstup!$C$23-Výstup!$C$24 = 0, (Výstup!$C$24-2)*$F$19+$F$18+$F$17))+VLOOKUP(Výstup!$C$25,$E$22:$F$25,2,FALSE)+VLOOKUP(Výstup!$C$26,$E$28:$F$30,2,FALSE)),I31) -> 42885
H32: 85 | I32: =Výstup!C56 -> 57094 | J32: =MIN((I32-ROUNDUP((IF(I32>100,ROUNDUP(I32,-2), ROUNDUP(I32,0)))*$F$6,0)-ROUNDUP(IF(Výstup!$C$27="Ne", I32*$F$10, 0)+I32*$F$11,0)-ROUNDUP(I32*$F$14,0)+IF(Výstup!$C$22="Ano",$F$7,0)+IF(Výstup!$C$23>=1, $F$17, 0) + IF(Výstup!$C$23>=2, $F$18, 0) + IF(Výstup!$C$23>=3, (Výstup!$C$23-2)*$F$19, 0) + IF(AND(Výstup!$C$23=1, Výstup!$C$24=1),$F$17,0) + IF(AND(Výstup!$C$23=2, Výstup!$C$24=2), $F$17+$F$18) + IF(AND(Výstup!$C$23=2, Výstup!$C$24=1), $F$18) + IF(Výstup!$C$23>2, IF(Výstup!$C$23-Výstup!$C$24 > 1, Výstup!$C$24*$F$19)) + IF(Výstup!$C$23>2, IF(Výstup!$C$23-Výstup!$C$24 = 1, (Výstup!$C$24-1)*$F$19+$F$18)) + IF(Výstup!$C$23>2, IF(Výstup!$C$23-Výstup!$C$24 = 0, (Výstup!$C$24-2)*$F$19+$F$18+$F$17))+VLOOKUP(Výstup!$C$25,$E$22:$F$25,2,FALSE)+VLOOKUP(Výstup!$C$26,$E$28:$F$30,2,FALSE)),I32) -> 45742
H33: 90 | I33: =Výstup!C57 -> 62401 | J33: =MIN((I33-ROUNDUP((IF(I33>100,ROUNDUP(I33,-2), ROUNDUP(I33,0)))*$F$6,0)-ROUNDUP(IF(Výstup!$C$27="Ne", I33*$F$10, 0)+I33*$F$11,0)-ROUNDUP(I33*$F$14,0)+IF(Výstup!$C$22="Ano",$F$7,0)+IF(Výstup!$C$23>=1, $F$17, 0) + IF(Výstup!$C$23>=2, $F$18, 0) + IF(Výstup!$C$23>=3, (Výstup!$C$23-2)*$F$19, 0) + IF(AND(Výstup!$C$23=1, Výstup!$C$24=1),$F$17,0) + IF(AND(Výstup!$C$23=2, Výstup!$C$24=2), $F$17+$F$18) + IF(AND(Výstup!$C$23=2, Výstup!$C$24=1), $F$18) + IF(Výstup!$C$23>2, IF(Výstup!$C$23-Výstup!$C$24 > 1, Výstup!$C$24*$F$19)) + IF(Výstup!$C$23>2, IF(Výstup!$C$23-Výstup!$C$24 = 1, (Výstup!$C$24-1)*$F$19+$F$18)) + IF(Výstup!$C$23>2, IF(Výstup!$C$23-Výstup!$C$24 = 0, (Výstup!$C$24-2)*$F$19+$F$18+$F$17))+VLOOKUP(Výstup!$C$25,$E$22:$F$25,2,FALSE)+VLOOKUP(Výstup!$C$26,$E$28:$F$30,2,FALSE)),I33) -> 49623
H34: 95 | I34: =Výstup!C58 -> 73220 | J34: =MIN((I34-ROUNDUP((IF(I34>100,ROUNDUP(I34,-2), ROUNDUP(I34,0)))*$F$6,0)-ROUNDUP(IF(Výstup!$C$27="Ne", I34*$F$10, 0)+I34*$F$11,0)-ROUNDUP(I34*$F$14,0)+IF(Výstup!$C$22="Ano",$F$7,0)+IF(Výstup!$C$23>=1, $F$17, 0) + IF(Výstup!$C$23>=2, $F$18, 0) + IF(Výstup!$C$23>=3, (Výstup!$C$23-2)*$F$19, 0) + IF(AND(Výstup!$C$23=1, Výstup!$C$24=1),$F$17,0) + IF(AND(Výstup!$C$23=2, Výstup!$C$24=2), $F$17+$F$18) + IF(AND(Výstup!$C$23=2, Výstup!$C$24=1), $F$18) + IF(Výstup!$C$23>2, IF(Výstup!$C$23-Výstup!$C$24 > 1, Výstup!$C$24*$F$19)) + IF(Výstup!$C$23>2, IF(Výstup!$C$23-Výstup!$C$24 = 1, (Výstup!$C$24-1)*$F$19+$F$18)) + IF(Výstup!$C$23>2, IF(Výstup!$C$23-Výstup!$C$24 = 0, (Výstup!$C$24-2)*$F$19+$F$18+$F$17))+VLOOKUP(Výstup!$C$25,$E$22:$F$25,2,FALSE)+VLOOKUP(Výstup!$C$26,$E$28:$F$30,2,FALSE)),I34) -> 57568

Sheet Statistická data 2024
A1: Shoda | B1: Shoda: Seskupený CZ-NACE | C1: Shoda: Region | D1: Shoda: Vzdělání | E1: Shoda: Pohlaví | F1: Shoda: Věk | G1: Řádek číslo | H1: Seskupený CZ-NACE | I1: Region | J1: Vzdělání | K1: Pohlaví | L1: Věk | M1: Počet zaměstnanců | N1: Průměr | O1: p5 | P1: p7.5 | Q1: p10 | R1: p12.5 | S1: p15 | T1: p17.5 | U1: p20 | V1: p22.5 | W1: p25 | X1: p27.5 | Y1: p30 | Z1: p32.5 | AA1: p35 | AB1: p37.5 | AC1: p40 | AD1: p42.5 | AE1: p45 | AF1: p47.5 | AG1: p50 | AH1: p55 | AI1: p60 | AJ1: p65 | AK1: p70 | AL1: p75 | AM1: p80 | AN1: p85 | AO1: p90 | AP1: p95
A2: =IF(AND(StatData[[#This Row],[Shoda: Seskupený CZ-NACE]],StatData[[#This Row],[Shoda: Region]],StatData[[#This Row],[Shoda: Vzdělání]],StatData[[#This Row],[Shoda: Pohlaví]],StatData[[#This Row],[Shoda: Věk]]),1,0) -> 0 | B2: =IF(StatData[[#This Row],[Seskupený CZ-NACE]]=VLOOKUP(Obor,TabObor[],2,0),1,0) -> 1 | C2: =IF(StatData[[#This Row],[Region]]=VLOOKUP(Region,TabRegion[],2,0),1,0) -> 1 | D2: =IF(StatData[[#This Row],[Vzdělání]]=Vzdělání,1,0) -> 0 | E2: =IF(StatData[[#This Row],[Pohlaví]]=Pohlaví,1,0) -> 0 | F2: =IF(StatData[[#This Row],[Věk]]=Věk,1,0) -> 1 | G2: 1 | H2: Celkem | I2: 1 | J2: Základní a nedokončené | K2: Muž | L2: do 34 let | M2: 7325.33252 | N2: 35599.33235 | O2: 19245.58332 | P2: 19315.06077 | Q2: 19523.0833 | R2: 19638.52363 | S2: 20259.1225 | T2: 21277.23229 | U2: 21867.53552 | V2: 22821.4537 | W2: 23613.8884 | X2: 24366.03555 | Y2: 24992.1714 | Z2: 26077.75403 | AA2: 26867.92349 | AB2: 27930.22752 | AC2: 29324.35884 | AD2: 30503.12987 | AE2: 31669.87756 | AF2: 32751.85847 | AG2: 33575.45064 | AH2: 35117.70092 | AI2: 36894.78047 | AJ2: 38914.84269 | AK2: 40965.98272 | AL2: 42899.25767 | AM2: 46081.08663 | AN2: 49410.39936 | AO2: 53650.6104 | AP2: 61642.15606
A3: =IF(AND(StatData[[#This Row],[Shoda: Seskupený CZ-NACE]],StatData[[#This Row],[Shoda: Region]],StatData[[#This Row],[Shoda: Vzdělání]],StatData[[#This Row],[Shoda: Pohlaví]],StatData[[#This Row],[Shoda: Věk]]),1,0) -> 0 | B3: =IF(StatData[[#This Row],[Seskupený CZ-NACE]]=VLOOKUP(Obor,TabObor[],2,0),1,0) -> 1 | C3: =IF(StatData[[#This Row],[Region]]=VLOOKUP(Region,TabRegion[],2,0),1,0) -> 1 | D3: =IF(StatData[[#This Row],[Vzdělání]]=Vzdělání,1,0) -> 0 | E3: =IF(StatData[[#This Row],[Pohlaví]]=Pohlaví,1,0) -> 0 | F3: =IF(StatData[[#This Row],[Věk]]=Věk,1,0) -> 0 | G3: 2 | H3: Celkem | I3: 1 | J3: Základní a nedokončené | K3: Muž | L3: 35 až 54 let | M3: 9568.154297 | N3: 39940.77721 | O3: 19011.3067 | P3: 19171.85957 | Q3: 19549.5833 | R3: 19773.22199 | S3: 19971.5806 | T3: 20298.68166 | U3: 20431.9768 | V3: 20988.25 | W3: 22076.41136 | X3: 22573.43339 | Y3: 23936.5833 | Z3: 24807.4166 | AA3: 25942.95231 | AB3: 27580.34659 | AC3: 28728.98816 | AD3: 30159.9979 | AE3: 32419.89652 | AF3: 33912.20551 | AG3: 35528.24875 | AH3: 37612.79051 | AI3: 39779.34705 | AJ3: 42077.6787 | AK3: 44325.90983 | AL3: 47900.28188 | AM3: 50984.33477 | AN3: 55885.89885 | AO3: 63126.84011 | AP3: 73524.10349
A4: =IF(AND(StatData[[#This Row],[Shoda: Seskupený CZ-NACE]],StatData[[#This Row],[Shoda: Region]],StatData[[#This Row],[Shoda: Vzdělání]],StatData[[#This Row],[Shoda: Pohlaví]],StatData[[#This Row],[Shoda: Věk]]),1,0) -> 0 | B4: =IF(StatData[[#This Row],[Seskupený CZ-NACE]]=VLOOKUP(Obor,TabObor[],2,0),1,0) -> 1 | C4: =IF(StatData[[#This Row],[Region]]=VLOOKUP(Region,TabRegion[],2,0),1,0) -> 1 | D4: =IF(StatData[[#This Row],[Vzdělání]]=Vzdělání,1,0) -> 0 | E4: =IF(StatData[[#This Row],[Pohlaví]]=Pohlaví,1,0) -> 0 | F4: =IF(StatData[[#This Row],[Věk]]=Věk,1,0) -> 0 | G4: 3 | H4: Celkem | I4: 1 | J4: Základní a nedokončené | K4: Muž | L4: 55 a více let | M4: 3224.317627 | N4: 38227.23056 | O4: 19155.49638 | P4: 19317.31423 | Q4: 19800.01263 | R4: 19984.18539 | S4: 20038.6484 | T4: 21118.65953 | U4: 21809.70685 | V4: 22605.1666 | W4: 23421.3538 | X4: 24063.09835 | Y4: 24971.1114 | Z4: 25709.26738 | AA4: 27048.7201 | AB4: 27966.84494 | AC4: 28517.56173 | AD4: 29969.76932 | AE4: 31572.21741 | AF4: 33066.00978 | AG4: 33889.5907 | AH4: 35803.51924 | AI4: 38072.35951 | AJ4: 40619.47013 | AK4: 43162.0693 | AL4: 46303.19839 | AM4: 49873.95268 | AN4: 55147.92057 | AO4: 61097.07044 | AP4: 67813.68143
A5: =IF(AND(StatData[[#This Row],[Shoda: Seskupený CZ-NACE]],StatData[[#This Row],[Shoda: Region]],StatData[[#This Row],[Shoda: Vzdělání]],StatData[[#This Row],[Shoda: Pohlaví]],StatData[[#This Row],[Shoda: Věk]]),1,0) -> 0 | B5: =IF(StatData[[#This Row],[Seskupený CZ-NACE]]=VLOOKUP(Obor,TabObor[],2,0),1,0) -> 1 | C5: =IF(StatData[[#This Row],[Region]]=VLOOKUP(Region,TabRegion[],2,0),1,0) -> 1 | D5: =IF(StatData[[#This Row],[Vzdělání]]=Vzdělání,1,0) -> 0 | E5: =IF(StatData[[#This Row],[Pohlaví]]=Pohlaví,1,0) -> 1 | F5: =IF(StatData[[#This Row],[Věk]]=Věk,1,0) -> 1 | G5: 4 | H5: Celkem | I5: 1 | J5: Základní a nedokončené | K5: Žena | L5: do 34 let | M5: 5287.87793 | N5: 35381.5947 | O5: 21360.55572 | P5: 21735.4767 | Q5: 22734.06216 | R5: 23042.5041 | S5: 24694.3231 | T5: 25474.90373 | U5: 26305.1139 | V5: 27016.40833 | W5: 27983.80022 | X5: 28674.39274 | Y5: 29576.64712 | Z5: 30133.96959 | AA5: 30884.15805 | AB5: 31597.92085 | AC5: 32193.10823 | AD5: 32702.91967 | AE5: 33345.47972 | AF5: 33945.33678 | AG5: 34447.44437 | AH5: 35769.7328 | AI5: 36714.75183 | AJ5: 37485.9308 | AK5: 38915.87731 | AL5: 41003.82456 | AM5: 41895.62564 | AN5: 44685.8167 | AO5: 48442.3872 | AP5: 54107.30288
A6: =IF(AND(StatData[[#This Row],[Shoda: Seskupený CZ-NACE]],StatData[[#This Row],[Shoda: Region]],StatData[[#This Row],[Shoda: Vzdělání]],StatData[[#This Row],[Shoda: Pohlaví]],StatData[[#This Row],[Shoda: Věk]]),1,0) -> 0 | B6: =IF(StatData[[#This Row],[Seskupený CZ-NACE]]=VLOOKUP(Obor,TabObor[],2,0),1,0) -> 1 | C6: =IF(StatData[[#This Row],[Region]]=VLOOKUP(Region,TabRegion[],2,0),1,0) -> 1 | D6: =IF(StatData[[#This Row],[Vzdělání]]=Vzdělání,1,0) -> 0 | E6: =IF(StatData[[#This Row],[Pohlaví]]=Pohlaví,1,0) -> 1 | F6: =IF(StatData[[#This Row],[Věk]]=Věk,1,0) -> 0 | G6: 5 | H6: Celkem | I6: 1 | J6: Základní a nedokončené | K6: Žena | L6: 35 až 54 let | M6: 8434.966797 | N6: 33585.56106 | O6: 18926.0445 | P6: 19022.00018 | Q6: 19649.9898 | R6: 20232.6666 | S6: 21365.4024 | T6: 21793.43677 | U6: 22168.0833 | V6: 22789.203 | W6: 23528.7593 | X6: 24462.1443 | Y6: 25333.66997 | Z6: 26073.9166 | AA6: 27054.53577 | AB6: 27707.96576 | AC6: 28655.07126 | AD6: 29669.1849 | AE6: 30551.64692 | AF6: 31506.9666 | AG6: 32336.61234 | AH6: 33508.71434 | AI6: 34665.73511 | AJ6: 35958.0268 | AK6: 37404.37603 | AL6: 39241.33509 | AM6: 40806.75254 | AN6: 43678.92612 | AO6: 48330.35827 | AP6: 55642.16307
A7: =IF(AND(StatData[[#This Row],[Shoda: Seskupený CZ-NACE]],StatData[[#This Row],[Shoda: Region]],StatData[[#This Row],[Shoda: Vzdělání]],StatData[[#This Row],[Shoda: Pohlaví]],StatData[[#This Row],[Shoda: Věk]]),1,0) -> 0 | B7: =IF(StatData[[#This Row],[Seskupený CZ-NACE]]=VLOOKUP(Obor,TabObor[],2,0),1,0) -> 1 | C7: =IF(StatData[[#This Row],[Region]]=VLOOKUP(Region,TabRegion[],2,0),1,0) -> 1 | D7: =IF(StatData[[#This Row],[Vzdělání]]=Vzdělání,1,0) -> 0 | E7: =IF(StatData[[#This Row],[Pohlaví]]=Pohlaví,1,0) -> 1 | F7: =IF(StatData[[#This Row],[Věk]]=Věk,1,0) -> 0 | G7: 6 | H7: Celkem | I7: 1 | J7: Základní a nedokončené | K7: Žena | L7: 55 a více let | M7: 3722.917969 | N7: 31977.74074 | O7: 18931.10516 | P7: 19566.3708 | Q7: 19920.942 | R7: 20660.1619 | S7: 21487.0496 | T7: 22004.29752 | U7: 22567.7779 | V7: 23331.5 | W7: 23782.33451 | X7: 24557.7113 | Y7: 25258.75 | Z7: 25736.5733 | AA7: 26452.9387 | AB7: 27210.84849 | AC7: 27966.0833 | AD7: 28644.13313 | AE7: 29357.08562 | AF7: 30068.49289 | AG7: 30881.9313 | AH7: 32231.75 | AI7: 33358.20285 | AJ7: 34430.346 | AK7: 35452.83769 | AL7: 36661.05484 | AM7: 38318.20692 | AN7: 40645.00505 | AO7: 44533.01631 | AP7: 50468.3815
A8: =IF(AND(StatData[[#This Row],[Shoda: Seskupený CZ-NACE]],StatData[[#This Row],[Shoda: Region]],StatData[[#This Row],[Shoda: Vzdělání]],StatData[[#This Row],[Shoda: Pohlaví]],StatData[[#This Row],[Shoda: Věk]]),1,0) -> 0 | B8: =IF(StatData[[#This Row],[Seskupený CZ-NACE]]=VLOOKUP(Obor,TabObor[],2,0),1,0) -> 1 | C8: =IF(StatData[[#This Row],[Region]]=VLOOKUP(Region,TabRegion[],2,0),1,0) -> 1 | D8: =IF(StatData[[#This Row],[Vzdělání]]=Vzdělání,1,0) -> 0 | E8: =IF(StatData[[#This Row],[Pohlaví]]=Pohlaví,1,0) -> 0 | F8: =IF(StatData[[#This Row],[Věk]]=Věk,1,0) -> 1 | G8: 7 | H8: Celkem | I8: 1 | J8: Střední bez maturity | K8: Muž | L8: do 34 let | M8: 13203.47168 | N8: 38470.49463 | O8: 19314.98641 | P8: 19893.25 | Q8: 20208.93761 | R8: 21234.62242 | S8: 21740.1666 | T8: 22578.23061 | U8: 22873.7289 | V8: 23329.82927 | W8: 24030.84143 | X8: 25758.1233 | Y8: 27762.30923 | Z8: 29034.0633 | AA8: 30439.32152 | AB8: 31608.56434 | AC8: 33172.49943 | AD8: 34456.85413 | AE8: 35184.9355 | AF8: 36136.1988 | AG8: 36774.71815 | AH8: 38723.76087 | AI8: 40522.87943 | AJ8: 42705.81228 | AK8: 45191.42519 | AL8: 47737.62253 | AM8: 50915.19992 | AN8: 54432.75029 | AO8: 58660.50619 | AP8: 64529.25472
A9: =IF(AND(StatData[[#This Row],[Shoda: Seskupený CZ-NACE]],StatData[[#This Row],[Shoda: Region]],StatData[[#This Row],[Shoda: Vzdělání]],StatData[[#This Row],[Shoda: Pohlaví]],StatData[[#This Row],[Shoda: Věk]]),1,0) -> 0 | B9: =IF(StatData[[#This Row],[Seskupený CZ-NACE]]=VLOOKUP(Obor,TabObor[],2,0),1,0) -> 1 | C9: =IF(StatData[[#This Row],[Region]]=VLOOKUP(Region,TabRegion[],2,0),1,0) -> 1 | D9: =IF(StatData[[#This Row],[Vzdělání]]=Vzdělání,1,0) -> 0 | E9: =IF(StatData[[#This Row],[Pohlaví]]=Pohlaví,1,0) -> 0 | F9: =IF(StatData[[#This Row],[Věk]]=Věk,1,0) -> 0 | G9: 8 | H9: Celkem | I9: 1 | J9: Střední bez maturity | K9: Muž | L9: 35 až 54 let | M9: 38530.85547 | N9: 41593.9995 | O9: 19741.28156 | P9: 20209.00553 | Q9: 20876.47494 | R9: 21682.6666 | S9: 21823.72269 | T9: 22502.3632 | U9: 23079.35362 | V9: 23891.0229 | W9: 24299.92628 | X9: 25997.20089 | Y9: 27148.71973 | Z9: 29196.07934 | AA9: 30575.99778 | AB9: 32297.22267 | AC9: 33980.56345 | AD9: 35408.02728 | AE9: 36593.13692 | AF9: 37921.12505 | AG9: 39124.98115 | AH9: 41415.40153 | AI9: 44287.14496 | AJ9: 46877.60127 | AK9: 49540.50528 | AL9: 52515.10674 | AM9: 55729.04646 | AN9: 59806.5803 | AO9: 64816.51101 | AP9: 73687.04782
A10: =IF(AND(StatData[[#This Row],[Shoda: Seskupený CZ-NACE]],StatData[[#This Row],[Shoda: Region]],StatData[[#This Row],[Shoda: Vzdělání]],StatData[[#This Row],[Shoda: Pohlaví]],StatData[[#This Row],[Shoda: Věk]]),1,0) -> 0 | B10: =IF(StatData[[#This Row],[Seskupený CZ-NACE]]=VLOOKUP(Obor,TabObor[],2,0),1,0) -> 1 | C10: =IF(StatData[[#This Row],[Region]]=VLOOKUP(Region,TabRegion[],2,0),1,0) -> 1 | D10: =IF(StatData[[#This Row],[Vzdělání]]=Vzdělání,1,0) -> 0 | E10: =IF(StatData[[#This Row],[Pohlaví]]=Pohlaví,1,0) -> 0 | F10: =IF(StatData[[#This Row],[Věk]]=Věk,1,0) -> 0 | G10: 9 | H10: Celkem | I10: 1 | J10: Střední bez maturity | K10: Muž | L10: 55 a více let | M10: 18476.07812 | N10: 41812.10127 | O10: 20200.78451 | P10: 21152.11887 | Q10: 22568.25 | R10: 23408.75 | S10: 24490 | T10: 25835.3333 | U10: 27303.51029 | V10: 28436.97035 | W10: 29704.8053 | X10: 30818.61494 | Y10: 31529.75637 | Z10: 32738.70108 | AA10: 33734.66273 | AB10: 34680.4661 | AC10: 35809.77879 | AD10: 36645.74086 | AE10: 37707.97353 | AF10: 38839.85749 | AG10: 39812.55397 | AH10: 41641.28516 | AI10: 43977.9542 | AJ10: 46321.62832 | AK10: 48597.01432 | AL10: 51428.94366 | AM10: 54416.97958 | AN10: 58091.53466 | AO10: 62716.98778 | AP10: 69246.37303
A11: =IF(AND(StatData[[#This Row],[Shoda: Seskupený CZ-NACE]],StatData[[#This Row],[Shoda: Region]],StatData[[#This Row],[Shoda: Vzdělání]],StatData[[#This Row],[Shoda: Pohlaví]],StatData[[#This Row],[Shoda: Věk]]),1,0) -> 0 | B11: =IF(StatData[[#This Row],[Seskupený CZ-NACE]]=VLOOKUP(Obor,TabObor[],2,0),1,0) -> 1 | C11: =IF(StatData[[#This Row],[Region]]=VLOOKUP(Region,TabRegion[],2,0),1,0) -> 1 | D11: =IF(StatData[[#This Row],[Vzdělání]]=Vzdělání,1,0) -> 0 | E11: =IF(StatData[[#This Row],[Pohlaví]]=Pohlaví,1,0) -> 1 | F11: =IF(StatData[[#This Row],[Věk]]=Věk,1,0) -> 1 | G11: 10 | H11: Celkem | I11: 1 | J11: Střední bez maturity | K11: Žena | L11: do 34 let | M11: 6767.028809 | N11: 32866.98436 | O11: 19975.0472 | P11: 20014.81848 | Q11: 21305.1945 | R11: 21755.02256 | S11: 21853.7407 | T11: 22077.0582 | U11: 22466.1252 | V11: 22779.04547 | W11: 24813.4763 | X11: 25906.33125 | Y11: 26945.85889 | Z11: 27400.81723 | AA11: 28157.15214 | AB11: 28874.1666 | AC11: 29680.9322 | AD11: 30452.3732 | AE11: 31301.33735 | AF11: 31775.10583 | AG11: 32164.97516 | AH11: 33499.32166 | AI11: 34710.74749 | AJ11: 35834.6037 | AK11: 37179.20531 | AL11: 38698.05722 | AM11: 40206.27042 | AN11: 42686.06951 | AO11: 45548.14493 | AP11: 50131.23056
A12: =IF(AND(StatData[[#This Row],[Shoda: Seskupený CZ-NACE]],StatData[[#This Row],[Shoda: Region]],StatData[[#This Row],[Shoda: Vzdělání]],StatData[[#This Row],[Shoda: Pohlaví]],StatData[[#This Row],[Shoda: Věk]]),1,0) -> 0 | B12: =IF(StatData[[#This Row],[Seskupený CZ-NACE]]=VLOOKUP(Obor,TabObor[],2,0),1,0) -> 1 | C12: =IF(StatData[[#This Row],[Region]]=VLOOKUP(Region,TabRegion[],2,0),1,0) -> 1 | D12: =IF(StatData[[#This Row],[Vzdělání]]=Vzdělání,1,0) -> 0 | E12: =IF(StatData[[#This Row],[Pohlaví]]=Pohlaví,1,0) -> 1 | F12: =IF(StatData[[#This Row],[Věk]]=Věk,1,0) -> 0 | G12: 11 | H12: Celkem | I12: 1 | J12: Střední bez maturity | K12: Žena | L12: 35 až 54 let | M12: 23475.05469 | N12: 35500.82516 | O12: 20038.6484 | P12: 21319.9166 | Q12: 21859.42569 | R12: 22272.56208 | S12: 23335.7734 | T12: 24130.5254 | U12: 25060.94803 | V12: 26081.92762 | W12: 27099.68856 | X12: 27992.5519 | Y12: 28660.8333 | Z12: 29490.70516 | AA12: 30003.20965 | AB12: 30724.23935 | AC12: 31456.65951 | AD12: 32123.64203 | AE12: 32741.49494 | AF12: 33312.82812 | AG12: 34016.8333 | AH12: 35308.0573 | AI12: 36459.91957 | AJ12: 37837.33883 | AK12: 39208.46449 | AL12: 40856.03606 | AM12: 43222.94592 | AN12: 45785.06083 | AO12: 49333.44838 | AP12: 56685.34825
A13: =IF(AND(StatData[[#This Row],[Shoda: Seskupený CZ-NACE]],StatData[[#This Row],[Shoda: Region]],StatData[[#This Row],[Shoda: Vzdělání]],StatData[[#This Row],[Shoda: Pohlaví]],StatData[[#This Row],[Shoda: Věk]]),1,0) -> 0 | B13: =IF(StatData[[#This Row],[Seskupený CZ-NACE]]=VLOOKUP(Obor,TabObor[],2,0),1,0) -> 1 | C13: =IF(StatData[[#This Row],[Region]]=VLOOKUP(Region,TabRegion[],2,0),1,0) -> 1 | D13: =IF(StatData[[#This Row],[Vzdělání]]=Vzdělání,1,0) -> 0 | E13: =IF(StatData[[#This Row],[Pohlaví]]=Pohlaví,1,0) -> 1 | F13: =IF(StatData[[#This Row],[Věk]]=Věk,1,0) -> 0 | G13: 12 | H13: Celkem | I13: 1 | J13: Střední bez maturity | K13: Žena | L13: 55 a více let | M13: 11709.23828 | N13: 33366.91679 | O13: 19021.67142 | P13: 20235.28013 | Q13: 20886.28113 | R13: 21586.6666 | S13: 22604.9747 | T13: 23376 | U13: 24044 | V13: 24330.98415 | W13: 25350.82451 | X13: 26217.7519 | Y13: 26761.84571 | Z13: 27245.8333 | AA13: 27805.36699 | AB13: 28496.85138 | AC13: 29290.5 | AD13: 29982.1395 | AE13: 30757.85389 | AF13: 31391.84355 | AG13: 32040.54205 | AH13: 33348.67607 | AI13: 34639.12255 | AJ13: 36027.64754 | AK13: 37158.22125 | AL13: 38946.19796 | AM13: 41111.1594 | AN13: 43648.43671 | AO13: 47279.94941 | AP13: 52197.79529
A14: =IF(AND(StatData[[#This Row],[Shoda: Seskupený CZ-NACE]],StatData[[#This Row],[Shoda: Region]],StatData[[#This Row],[Shoda: Vzdělání]],StatData[[#This Row],[Shoda: Pohlaví]],StatData[[#This Row],[Shoda: Věk]]),1,0) -> 0 | B14: =IF(StatData[[#This Row],[Seskupený CZ-NACE]]=VLOOKUP(Obor,TabObor[],2,0),1,0) -> 1 | C14: =IF(StatData[[#This Row],[Region]]=VLOOKUP(Region,TabRegion[],2,0),1,0) -> 1 | D14: =IF(StatData[[#This Row],[Vzdělání]]=Vzdělání,1,0) -> 1 | E14: =IF(StatData[[#This Row],[Pohlaví]]=Pohlaví,1,0) -> 0 | F14: =IF(StatData[[#This Row],[Věk]]=Věk,1,0) -> 1 | G14: 13 | H14: Celkem | I14: 1 | J14: Střední s maturitou a vyšší odborné | K14: Muž | L14: do 34 let | M14: 39915.39844 | N14: 53659.84159 | O14: 22040.81351 | P14: 23426.15329 | Q14: 25955.8082 | R14: 29622.89533 | S14: 31455.79945 | T14: 33045.988 | U14: 34716.55289 | V14: 36029.39212 | W14: 37372.37339 | X14: 38471.35215 | Y14: 39574.56063 | Z14: 40631.91472 | AA14: 41729.12379 | AB14: 42826.14315 | AC14: 43955.14839 | AD14: 44915.22851 | AE14: 45841.72572 | AF14: 46921.87802 | AG14: 48040.56712 | AH14: 50169.55474 | AI14: 52789.62543 | AJ14: 55638.50098 | AK14: 59026.88121 | AL14: 62639.20178 | AM14: 67086.17458 | AN14: 73452.18754 | AO14: 83866.59861 | AP14: 102032.5515
A15: =IF(AND(StatData[[#This Row],[Shoda: Seskupený CZ-NACE]],StatData[[#This Row],[Shoda: Region]],StatData[[#This Row],[Shoda: Vzdělání]],StatData[[#This Row],[Shoda: Pohlaví]],StatData[[#This Row],[Shoda: Věk]]),1,0) -> 0 | B15: =IF(StatData[[#This Row],[Seskupený CZ-NACE]]=VLOOKUP(Obor,TabObor[],2,0),1,0) -> 1 | C15: =IF(StatData[[#This Row],[Region]]=VLOOKUP(Region,TabRegion[],2,0),1,0) -> 1 | D15: =IF(StatData[[#This Row],[Vzdělání]]=Vzdělání,1,0) -> 1 | E15: =IF(StatData[[#This Row],[Pohlaví]]=Pohlaví,1,0) -> 0 | F15: =IF(StatData[[#This Row],[Věk]]=Věk,1,0) -> 0 | G15: 14 | H15: Celkem | I15: 1 | J15: Střední s maturitou a vyšší odborné | K15: Muž | L15: 35 až 54 let | M15: 73248.69531 | N15: 67039.65282 | O15: 21374.4498 | P15: 22440.59803 | Q15: 24584.30887 | R15: 27572.87747 | S15: 30805.17838 | T15: 33811.75503 | U15: 36412.13029 | V15: 38348.92667 | W15: 40077.98291 | X15: 42002.26848 | Y15: 43886.03846 | Z15: 45454.1032 | AA15: 47319.55259 | AB15: 48974.71765 | AC15: 50694.93028 | AD15: 52459.36856 | AE15: 54071.9614 | AF15: 55500.07125 | AG15: 57264.27062 | AH15: 60539.52614 | AI15: 64247.98321 | AJ15: 68253.98796 | AK15: 73448.35122 | AL15: 79862.82068 | AM15: 87843.8338 | AN15: 99210.01014 | AO15: 114966.1955 | AP15: 146938.2672
A16: =IF(AND(StatData[[#This Row],[Shoda: Seskupený CZ-NACE]],StatData[[#This Row],[Shoda: Region]],StatData[[#This Row],[Shoda: Vzdělání]],StatData[[#This Row],[Shoda: Pohlaví]],StatData[[#This Row],[Shoda: Věk]]),1,0) -> 0 | B16: =IF(StatData[[#This Row],[Seskupený CZ-NACE]]=VLOOKUP(Obor,TabObor[],2,0),1,0) -> 1 | C16: =IF(StatData[[#This Row],[Region]]=VLOOKUP(Region,TabRegion[],2,0),1,0) -> 1 | D16: =IF(StatData[[#This Row],[Vzdělání]]=Vzdělání,1,0) -> 1 | E16: =IF(StatData[[#This Row],[Pohlaví]]=Pohlaví,1,0) -> 0 | F16: =IF(StatData[[#This Row],[Věk]]=Věk,1,0) -> 0 | G16: 15 | H16: Celkem | I16: 1 | J16: Střední s maturitou a vyšší odborné | K16: Muž | L16: 55 a více let | M16: 20642.33008 | N16: 55599.98441 | O16: 21595.5 | P16: 23434 | Q16: 24999.79182 | R16: 27356.73532 | S16: 29748.22638 | T16: 31218.07116 | U16: 32725.13583 | V16: 34447.00692 | W16: 36108.55369 | X16: 37738.06663 | Y16: 38932.45594 | Z16: 40318.52583 | AA16: 41728.41256 | AB16: 42971.21397 | AC16: 44044.44264 | AD16: 45489.72241 | AE16: 46599.68505 | AF16: 47783.18177 | AG16: 49062.09394 | AH16: 51901.82993 | AI16: 55053.3837 | AJ16: 58046.68152 | AK16: 61891.39631 | AL16: 64931.67838 | AM16: 70234.61611 | AN16: 76787.807 | AO16: 86736.30133 | AP16: 108269.5323
A17: =IF(AND(StatData[[#This Row],[Shoda: Seskupený CZ-NACE]],StatData[[#This Row],[Shoda: Region]],StatData[[#This Row],[Shoda: Vzdělání]],StatData[[#This Row],[Shoda: Pohlaví]],StatData[[#This Row],[Shoda: Věk]]),1,0) -> 1 | B17: =IF(StatData[[#This Row],[Seskupený CZ-NACE]]=VLOOKUP(Obor,TabObor[],2,0),1,0) -> 1 | C17: =IF(StatData[[#This Row],[Region]]=VLOOKUP(Region,TabRegion[],2,0),1,0) -> 1 | D17: =IF(StatData[[#This Row],[Vzdělání]]=Vzdělání,1,0) -> 1 | E17: =IF(StatData[[#This Row],[Pohlaví]]=Pohlaví,1,0) -> 1 | F17: =IF(StatData[[#This Row],[Věk]]=Věk,1,0) -> 1 | G17: 16 | H17: Celkem | I17: 1 | J17: Střední s maturitou a vyšší odborné | K17: Žena | L17: do 34 let | M17: 33309.48438 | N17: 43743.39961 | O17: 22432.5851 | P17: 24779.22829 | Q17: 26552.77927 | R17: 28271.58677 | S17: 29599.61654 | T17: 30541.44521 | U17: 31452.08898 | V17: 32404.27868 | W17: 33055.67222 | X17: 33873.33586 | Y17: 34627.70769 | Z17: 35389.29619 | AA17: 36057.89209 | AB17: 36654.5266 | AC17: 37477.4756 | AD17: 38116.26009 | AE17: 38868.33562 | AF17: 39664.23581 | AG17: 40562.13709 | AH17: 42074.55605 | AI17: 43744.41157 | AJ17: 45576.05604 | AK17: 47473.30484 | AL17: 50047.00826 | AM17: 53217.41415 | AN17: 57094.09165 | AO17: 62400.99899 | AP17: 73220.44781
A18: =IF(AND(StatData[[#This Row],[Shoda: Seskupený CZ-NACE]],StatData[[#This Row],[Shoda: Region]],StatData[[#This Row],[Shoda: Vzdělání]],StatData[[#This Row],[Shoda: Pohlaví]],StatData[[#This Row],[Shoda: Věk]]),1,0) -> 0 | B18: =IF(StatData[[#This Row],[Seskupený CZ-NACE]]=VLOOKUP(Obor,TabObor[],2,0),1,0) -> 1 | C18: =IF(StatData[[#This Row],[Region]]=VLOOKUP(Region,TabRegion[],2,0),1,0) -> 1 | D18: =IF(StatData[[#This Row],[Vzdělání]]=Vzdělání,1,0) -> 1 | E18: =IF(StatData[[#This Row],[Pohlaví]]=Pohlaví,1,0) -> 1 | F18: =IF(StatData[[#This Row],[Věk]]=Věk,1,0) -> 0 | G18: 17 | H18: Celkem | I18: 1 | J18: Střední s maturitou a vyšší odborné | K18: Žena | L18: 35 až 54 let | M18: 77905.19531 | N18: 50235.75362 | O18: 21945.71018 | P18: 23796.6666 | Q18: 26406.5285 | R18: 28339.9951 | S18: 30313.63445 | T18: 31742.69919 | U18: 32905.89559 | V18: 34174.22901 | W18: 35365.55461 | X18: 36311.27164 | Y18: 37133.06361 | Z18: 38120.74245 | AA18: 39009.78096 | AB18: 40101.97236 | AC18: 41070.38719 | AD18: 42029.48276 | AE18: 43040.90256 | AF18: 44118.5728 | AG18: 45081.77005 | AH18: 47216.95649 | AI18: 49627.56357 | AJ18: 52063.28199 | AK18: 55014.24297 | AL18: 58316.5755 | AM18: 62767.06459 | AN18: 68346.62972 | AO18: 76183.61739 | AP18: 91902.43024
A19: =IF(AND(StatData[[#This Row],[Shoda: Seskupený CZ-NACE]],StatData[[#This Row],[Shoda: Region]],StatData[[#This Row],[Shoda: Vzdělání]],StatData[[#This Row],[Shoda: Pohlaví]],StatData[[#This Row],[Shoda: Věk]]),1,0) -> 0 | B19: =IF(StatData[[#This Row],[Seskupený CZ-NACE]]=VLOOKUP(Obor,TabObor[],2,0),1,0) -> 1 | C19: =IF(StatData[[#This Row],[Region]]=VLOOKUP(Region,TabRegion[],2,0),1,0) -> 1 | D19: =IF(StatData[[#This Row],[Vzdělání]]=Vzdělání,1,0) -> 1 | E19: =IF(StatData[[#This Row],[Pohlaví]]=Pohlaví,1,0) -> 1 | F19: =IF(StatData[[#This Row],[Věk]]=Věk,1,0) -> 0 | G19: 18 | H19: Celkem | I19: 1 | J19: Střední s maturitou a vyšší odborné | K19: Žena | L19: 55 a více let | M19: 30517.4707 | N19: 48529.54905 | O19: 23751.2131 | P19: 25710.63595 | Q19: 28347.47232 | R19: 30055.05942 | S19: 31756.957 | T19: 33493.4166 | U19: 34503.69064 | V19: 35648.6442 | W19: 36478.91047 | X19: 37510.49547 | Y19: 38452.19554 | Z19: 39044.95262 | AA19: 39950.10127 | AB19: 40768.48929 | AC19: 41618.66897 | AD19: 42518.96097 | AE19: 43490.97555 | AF19: 44159.41342 | AG19: 45048.52756 | AH19: 46734.55111 | AI19: 48750.22835 | AJ19: 50746.9206 | AK19: 53145.69395 | AL19: 56216.53317 | AM19: 59617.62204 | AN19: 64806.44054 | AO19: 71927.03293 | AP19: 83314.79884
A20: =IF(AND(StatData[[#This Row],[Shoda: Seskupený CZ-NACE]],StatData[[#This Row],[Shoda: Region]],StatData[[#This Row],[Shoda: Vzdělání]],StatData[[#This Row],[Shoda: Pohlaví]],StatData[[#This Row],[Shoda: Věk]]),1,0) -> 0 | B20: =IF(StatData[[#This Row],[Seskupený CZ-NACE]]=VLOOKUP(Obor,TabObor[],2,0),1,0) -> 1 | C20: =IF(StatData[[#This Row],[Region]]=VLOOKUP(Region,TabRegion[],2,0),1,0) -> 1 | D20: =IF(StatData[[#This Row],[Vzdělání]]=Vzdělání,1,0) -> 0 | E20: =IF(StatData[[#This Row],[Pohlaví]]=Pohlaví,1,0) -> 0 | F20: =IF(StatData[[#This Row],[Věk]]=Věk,1,0) -> 1 | G20: 19 | H20: Celkem | I20: 1 | J20: Vysokoškolské | K20: Muž | L20: do 34 let | M20: 38140.67188 | N20: 75121.8045 | O20: 30891.9157 | P20: 35167.23703 | Q20: 38878.21918 | R20: 40589.94317 | S20: 42748.15311 | T20: 44471.02968 | U20: 45948.85155 | V20: 47537.82291 | W20: 48940.64965 | X20: 50264.66884 | Y20: 51721.45713 | Z20: 53068.86664 | AA20: 54701.42997 | AB20: 56088.97765 | AC20: 57505.55075 | AD20: 59128.42715 | AE20: 60743.56162 | AF20: 62502.84929 | AG20: 64385.25808 | AH20: 68574.26736 | AI20: 73162.73345 | AJ20: 78309.61737 | AK20: 83850.33298 | AL20: 90584.97629 | AM20: 99069.47688 | AN20: 110393.5917 | AO20: 124443.6259 | AP20: 149174.5392
A21: =IF(AND(StatData[[#This Row],[Shoda: Seskupený CZ-NACE]],StatData[[#This Row],[Shoda: Region]],StatData[[#This Row],[Shoda: Vzdělání]],StatData[[#This Row],[Shoda: Pohlaví]],StatData[[#This Row],[Shoda: Věk]]),1,0) -> 0 | B21: =IF(StatData[[#This Row],[Seskupený CZ-NACE]]=VLOOKUP(Obor,TabObor[],2,0),1,0) -> 1 | C21: =IF(StatData[[#This Row],[Region]]=VLOOKUP(Region,TabRegion[],2,0),1,0) -> 1 | D21: =IF(StatData[[#This Row],[Vzdělání]]=Vzdělání,1,0) -> 0 | E21: =IF(StatData[[#This Row],[Pohlaví]]=Pohlaví,1,0) -> 0 | F21: =IF(StatData[[#This Row],[Věk]]=Věk,1,0) -> 0 | G21: 20 | H21: Celkem | I21: 1 | J21: Vysokoškolské | K21: Muž | L21: 35 až 54 let | M21: 82866.3125 | N21: 108501.2941 | O21: 32500.11294 | P21: 38716.68 | Q21: 43389.3083 | R21: 46781.7978 | S21: 50050.36173 | T21: 52871.77847 | U21: 55564.42184 | V21: 57940.14747 | W21: 60431.71153 | X21: 63058.09076 | Y21: 65654.74515 | Z21: 68378.9637 | AA21: 70954.18422 | AB21: 73433.05478 | AC21: 76221.87068 | AD21: 79007.40449 | AE21: 81665.09133 | AF21: 84701.30641 | AG21: 87468.05223 | AH21: 94164.21716 | AI21: 101973.0046 | AJ21: 109888.4282 | AK21: 119782.521 | AL21: 131518.3262 | AM21: 145538.1898 | AN21: 163859.8763 | AO21: 193344.8276 | AP21: 246698.4659
A22: =IF(AND(StatData[[#This Row],[Shoda: Seskupený CZ-NACE]],StatData[[#This Row],[Shoda: Region]],StatData[[#This Row],[Shoda: Vzdělání]],StatData[[#This Row],[Shoda: Pohlaví]],StatData[[#This Row],[Shoda: Věk]]),1,0) -> 0 | B22: =IF(StatData[[#This Row],[Seskupený CZ-NACE]]=VLOOKUP(Obor,TabObor[],2,0),1,0) -> 1 | C22: =IF(StatData[[#This Row],[Region]]=VLOOKUP(Region,TabRegion[],2,0),1,0) -> 1 | D22: =IF(StatData[[#This Row],[Vzdělání]]=Vzdělání,1,0) -> 0 | E22: =IF(StatData[[#This Row],[Pohlaví]]=Pohlaví,1,0) -> 0 | F22: =IF(StatData[[#This Row],[Věk]]=Věk,1,0) -> 0 | G22: 21 | H22: Celkem | I22: 1 | J22: Vysokoškolské | K22: Muž | L22: 55 a více let | M22: 25680.95703 | N22: 87949.25271 | O22: 24978.20346 | P22: 28526.98453 | Q22: 33331.0833 | R22: 37091.41807 | S22: 40027.10757 | T22: 42468.08671 | U22: 45139.45667 | V22: 46487.15238 | W22: 48586.76744 | X22: 50540.76457 | Y22: 51969.52568 | Z22: 53540.7522 | AA22: 55418.04238 | AB22: 57263.45276 | AC22: 59072.55615 | AD22: 60873.53742 | AE22: 62589.54109 | AF22: 65159.43919 | AG22: 67287.28748 | AH22: 72874.79279 | AI22: 78380.72714 | AJ22: 84938.26255 | AK22: 92933.64343 | AL22: 100719.1644 | AM22: 111508.4869 | AN22: 128790.303 | AO22: 155514.8343 | AP22: 209177.9174
A23: =IF(AND(StatData[[#This Row],[Shoda: Seskupený CZ-NACE]],StatData[[#This Row],[Shoda: Region]],StatData[[#This Row],[Shoda: Vzdělání]],StatData[[#This Row],[Shoda: Pohlaví]],StatData[[#This Row],[Shoda: Věk]]),1,0) -> 0 | B23: =IF(StatData[[#This Row],[Seskupený CZ-NACE]]=VLOOKUP(Obor,TabObor[],2,0),1,0) -> 1 | C23: =IF(StatData[[#This Row],[Region]]=VLOOKUP(Region,TabRegion[],2,0),1,0) -> 1 | D23: =IF(StatData[[#This Row],[Vzdělání]]=Vzdělání,1,0) -> 0 | E23: =IF(StatData[[#This Row],[Pohlaví]]=Pohlaví,1,0) -> 1 | F23: =IF(StatData[[#This Row],[Věk]]=Věk,1,0) -> 1 | G23: 22 | H23: Celkem | I23: 1 | J23: Vysokoškolské | K23: Žena | L23: do 34 let | M23: 41636.44141 | N23: 58914.01625 | O23: 30396.40773 | P23: 32655.31912 | Q23: 35117.81636 | R23: 36723.32183 | S23: 38093.22307 | T23: 39411.62219 | U23: 40539.27524 | V23: 41606.29336 | W23: 42682.30502 | X23: 43717.06004 | Y23: 44650.16586 | Z23: 45569.56393 | AA23: 46448.54471 | AB23: 47404.854 | AC23: 48327.55854 | AD23: 49259.77379 | AE23: 50199.5979 | AF23: 51183.98518 | AG23: 52275.61445 | AH23: 54468.59142 | AI23: 57180.91568 | AJ23: 60374.22518 | AK23: 64314.81779 | AL23: 68332.24333 | AM23: 73373.76748 | AN23: 79841.22771 | AO23: 90037.70597 | AP23: 109003.9079
A24: =IF(AND(StatData[[#This Row],[Shoda: Seskupený CZ-NACE]],StatData[[#This Row],[Shoda: Region]],StatData[[#This Row],[Shoda: Vzdělání]],StatData[[#This Row],[Shoda: Pohlaví]],StatData[[#This Row],[Shoda: Věk]]),1,0) -> 0 | B24: =IF(StatData[[#This Row],[Seskupený CZ-NACE]]=VLOOKUP(Obor,TabObor[],2,0),1,0) -> 1 | C24: =IF(StatData[[#This Row],[Region]]=VLOOKUP(Region,TabRegion[],2,0),1,0) -> 1 | D24: =IF(StatData[[#This Row],[Vzdělání]]=Vzdělání,1,0) -> 0 | E24: =IF(StatData[[#This Row],[Pohlaví]]=Pohlaví,1,0) -> 1 | F24: =IF(StatData[[#This Row],[Věk]]=Věk,1,0) -> 0 | G24: 23 | H24: Celkem | I24: 1 | J24: Vysokoškolské | K24: Žena | L24: 35 až 54 let | M24: 77106.02344 | N24: 74211.85086 | O24: 30390.70849 | P24: 34565.1974 | Q24: 37281.15219 | R24: 39622.71021 | S24: 41106.26254 | T24: 43073.36389 | U24: 44566.46518 | V24: 46093.67467 | W24: 47548.53826 | X24: 48945.5805 | Y24: 50250.1863 | Z24: 51537.85316 | AA24: 52787.87694 | AB24: 54122.21478 | AC24: 55571.85872 | AD24: 56935.43939 | AE24: 58411.8082 | AF24: 59845.49069 | AG24: 61552.04864 | AH24: 64859.05144 | AI24: 68828.6106 | AJ24: 73226.9013 | AK24: 79058.84844 | AL24: 85932.13242 | AM24: 93620.01737 | AN24: 104231.2203 | AO24: 123205.1425 | AP24: 156872.1221
A25: =IF(AND(StatData[[#This Row],[Shoda: Seskupený CZ-NACE]],StatData[[#This Row],[Shoda: Region]],StatData[[#This Row],[Shoda: Vzdělání]],StatData[[#This Row],[Shoda: Pohlaví]],StatData[[#This Row],[Shoda: Věk]]),1,0) -> 0 | B25: =IF(StatData[[#This Row],[Seskupený CZ-NACE]]=VLOOKUP(Obor,TabObor[],2,0),1,0) -> 1 | C25: =IF(StatData[[#This Row],[Region]]=VLOOKUP(Region,TabRegion[],2,0),1,0) -> 1 | D25: =IF(StatData[[#This Row],[Vzdělání]]=Vzdělání,1,0) -> 0 | E25: =IF(StatData[[#This Row],[Pohlaví]]=Pohlaví,1,0) -> 1 | F25: =IF(StatData[[#This Row],[Věk]]=Věk,1,0) -> 0 | G25: 24 | H25: Celkem | I25: 1 | J25: Vysokoškolské | K25: Žena | L25: 55 a více let | M25: 19849.00195 | N25: 71442.23483 | O25: 28809.45946 | P25: 33526.8888 | Q25: 36997.36125 | R25: 39806.55411 | S25: 42005.1544 | T25: 43831.99958 | U25: 45467.99684 | V25: 47258.74784 | W25: 48932.32173 | X25: 50313.19154 | Y25: 51683.09619 | Z25: 53038.43027 | AA25: 54065.99147 | AB25: 55070.60711 | AC25: 56084.53662 | AD25: 57022.46476 | AE25: 57975.09602 | AF25: 59064.70499 | AG25: 60231.96958 | AH25: 62468.36043 | AI25: 65485.89189 | AJ25: 69445.02077 | AK25: 74392.71523 | AL25: 80293.12068 | AM25: 88286.14562 | AN25: 98203.69186 | AO25: 114447.8797 | AP25: 145866.4038
A26: =IF(AND(StatData[[#This Row],[Shoda: Seskupený CZ-NACE]],StatData[[#This Row],[Shoda: Region]],StatData[[#This Row],[Shoda: Vzdělání]],StatData[[#This Row],[Shoda: Pohlaví]],StatData[[#This Row],[Shoda: Věk]]),1,0) -> 0 | B26: =IF(StatData[[#This Row],[Seskupený CZ-NACE]]=VLOOKUP(Obor,TabObor[],2,0),1,0) -> 1 | C26: =IF(StatData[[#This Row],[Region]]=VLOOKUP(Region,TabRegion[],2,0),1,0) -> 0 | D26: =IF(StatData[[#This Row],[Vzdělání]]=Vzdělání,1,0) -> 0 | E26: =IF(StatData[[#This Row],[Pohlaví]]=Pohlaví,1,0) -> 0 | F26: =IF(StatData[[#This Row],[Věk]]=Věk,1,0) -> 1 | G26: 25 | H26: Celkem | I26: 2 | J26: Základní a nedokončené | K26: Muž | L26: do 34 let | M26: 15102.41602 | N26: 40731.31481 | O26: 20289.52904 | P26: 21310.5549 | Q26: 22231.3333 | R26: 23306.00606 | S26: 24767.0611 | T26: 26260.0527 | U26: 27730.41884 | V26: 29067.91779 | W26: 30279.28552 | X26: 31535.36987 | Y26: 32562.26321 | Z26: 33393.30232 | AA26: 34251.44783 | AB26: 34996.08969 | AC26: 35871.37622 | AD26: 36647.16567 | AE26: 37482.23823 | AF26: 38421.10465 | AG26: 39178.0947 | AH26: 40866.47454 | AI26: 42490.25486 | AJ26: 44389.00078 | AK26: 46493.3729 | AL26: 49011.31102 | AM26: 51905.21062 | AN26: 55476.48099 | AO26: 60267.72869 | AP26: 69042.68473
A27: =IF(AND(StatData[[#This Row],[Shoda: Seskupený CZ-NACE]],StatData[[#This Row],[Shoda: Region]],StatData[[#This Row],[Shoda: Vzdělání]],StatData[[#This Row],[Shoda: Pohlaví]],StatData[[#This Row],[Shoda: Věk]]),1,0) -> 0 | B27: =IF(StatData[[#This Row],[Seskupený CZ-NACE]]=VLOOKUP(Obor,TabObor[],2,0),1,0) -> 1 | C27: =IF(StatData[[#This Row],[Region]]=VLOOKUP(Region,TabRegion[],2,0),1,0) -> 0 | D27: =IF(StatData[[#This Row],[Vzdělání]]=Vzdělání,1,0) -> 0 | E27: =IF(StatData[[#This Row],[Pohlaví]]=Pohlaví,1,0) -> 0 | F27: =IF(StatData[[#This Row],[Věk]]=Věk,1,0) -> 0 | G27: 26 | H27: Celkem | I27: 2 | J27: Základní a nedokončené | K27: Muž | L27: 35 až 54 let | M27: 21016.41992 | N27: 41837.93171 | O27: 19320.2358 | P27: 19704.1287 | Q27: 21141.85196 | R27: 21783.8333 | S27: 22657.15014 | T27: 23622.98839 | U27: 25365.09882 | V27: 26576.0717 | W27: 28102.75 | X27: 29834.97667 | Y27: 31067.11241 | Z27: 32443.30892 | AA27: 33731.07536 | AB27: 34993.24394 | AC27: 35930.66923 | AD27: 37028.18408 | AE27: 37999.34214 | AF27: 38754.80015 | AG27: 39740.95838 | AH27: 41699.99102 | AI27: 43664.80651 | AJ27: 45440.90621 | AK27: 47770.34257 | AL27: 50355.01295 | AM27: 53601.78624 | AN27: 57530.6796 | AO27: 64267.5819 | AP27: 72486.9888
A28: =IF(AND(StatData[[#This Row],[Shoda: Seskupený CZ-NACE]],StatData[[#This Row],[Shoda: Region]],StatData[[#This Row],[Shoda: Vzdělání]],StatData[[#This Row],[Shoda: Pohlaví]],StatData[[#This Row],[Shoda: Věk]]),1,0) -> 0 | B28: =IF(StatData[[#This Row],[Seskupený CZ-NACE]]=VLOOKUP(Obor,TabObor[],2,0),1,0) -> 1 | C28: =IF(StatData[[#This Row],[Region]]=VLOOKUP(Region,TabRegion[],2,0),1,0) -> 0 | D28: =IF(StatData[[#This Row],[Vzdělání]]=Vzdělání,1,0) -> 0 | E28: =IF(StatData[[#This Row],[Pohlaví]]=Pohlaví,1,0) -> 0 | F28: =IF(StatData[[#This Row],[Věk]]=Věk,1,0) -> 0 | G28: 27 | H28: Celkem | I28: 2 | J28: Základní a nedokončené | K28: Muž | L28: 55 a více let | M28: 5924.657715 | N28: 37913.01547 | O28: 19838.26216 | P28: 20345.34502 | Q28: 20758.96 | R28: 21428.5335 | S28: 22440.207 | T28: 22932.82546 | U28: 23572.80264 | V28: 24036.5304 | W28: 24409.1666 | X28: 26089.4844 | Y28: 27498.29547 | Z28: 28625.96198 | AA28: 29743.85448 | AB28: 30729.5085 | AC28: 31012.75 | AD28: 31807.44655 | AE28: 32693.07701 | AF28: 33527.96108 | AG28: 34248.67717 | AH28: 36212.84559 | AI28: 38124.41998 | AJ28: 40046.78529 | AK28: 42424.43704 | AL28: 44754.59564 | AM28: 47313.53346 | AN28: 50530.27692 | AO28: 56470.79898 | AP28: 68171.63812
A29: =IF(AND(StatData[[#This Row],[Shoda: Seskupený CZ-NACE]],StatData[[#This Row],[Shoda: Region]],StatData[[#This Row],[Shoda: Vzdělání]],StatData[[#This Row],[Shoda: Pohlaví]],StatData[[#This Row],[Shoda: Věk]]),1,0) -> 0 | B29: =IF(StatData[[#This Row],[Seskupený CZ-NACE]]=VLOOKUP(Obor,TabObor[],2,0),1,0) -> 1 | C29: =IF(StatData[[#This Row],[Region]]=VLOOKUP(Region,TabRegion[],2,0),1,0) -> 0 | D29: =IF(StatData[[#This Row],[Vzdělání]]=Vzdělání,1,0) -> 0 | E29: =IF(StatData[[#This Row],[Pohlaví]]=Pohlaví,1,0) -> 1 | F29: =IF(StatData[[#This Row],[Věk]]=Věk,1,0) -> 1 | G29: 28 | H29: Celkem | I29: 2 | J29: Základní a nedokončené | K29: Žena | L29: do 34 let | M29: 8131.298828 | N29: 35071.88277 | O29: 19653.3035 | P29: 21134.84238 | Q29: 22276.6555 | R29: 23352.2773 | S29: 24574.9596 | T29: 25616.8888 | U29: 26484.3748 | V29: 27225.88596 | W29: 28128.72805 | X29: 28622.70373 | Y29: 29213.31775 | Z29: 29876.7741 | AA29: 30419.36626 | AB29: 31061.65709 | AC29: 31790.52871 | AD29: 32370.27005 | AE29: 32877.22587 | AF29: 33442.26689 | AG29: 33919.89549 | AH29: 34893.78168 | AI29: 36133.44853 | AJ29: 37446.35672 | AK29: 38930.97368 | AL29: 40563.27944 | AM29: 42256.50053 | AN29: 44561.08742 | AO29: 47823.77518 | AP29: 54218.90815
A30: =IF(AND(StatData[[#This Row],[Shoda: Seskupený CZ-NACE]],StatData[[#This Row],[Shoda: Region]],StatData[[#This Row],[Shoda: Vzdělání]],StatData[[#This Row],[Shoda: Pohlaví]],StatData[[#This Row],[Shoda: Věk]]),1,0) -> 0 | B30: =IF(StatData[[#This Row],[Seskupený CZ-NACE]]=VLOOKUP(Obor,TabObor[],2,0),1,0) -> 1 | C30: =IF(StatData[[#This Row],[Region]]=VLOOKUP(Region,TabRegion[],2,0),1,0) -> 0 | D30: =IF(StatData[[#This Row],[Vzdělání]]=Vzdělání,1,0) -> 0 | E30: =IF(StatData[[#This Row],[Pohlaví]]=Pohlaví,1,0) -> 1 | F30: =IF(StatData[[#This Row],[Věk]]=Věk,1,0) -> 0 | G30: 29 | H30: Celkem | I30: 2 | J30: Základní a nedokončené | K30: Žena | L30: 35 až 54 let | M30: 16951.53516 | N30: 34432.45303 | O30: 19646.75297 | P30: 20533.2058 | Q30: 21495.8019 | R30: 22376.68652 | S30: 23080.4277 | T30: 23868.1675 | U30: 24676.3072 | V30: 25166.2361 | W30: 25969.1018 | X30: 26716.66227 | Y30: 27432.49523 | Z30: 28095.47126 | AA30: 28770.33801 | AB30: 29417.64053 | AC30: 30272.0962 | AD30: 30957.92208 | AE30: 31662.2508 | AF30: 32395.73878 | AG30: 33001.91355 | AH30: 34424.18982 | AI30: 35700.80182 | AJ30: 37101.92933 | AK30: 38633.54237 | AL30: 40376.05734 | AM30: 42281.43408 | AN30: 44545.08152 | AO30: 48067.80065 | AP30: 54483.36573
A31: =IF(AND(StatData[[#This Row],[Shoda: Seskupený CZ-NACE]],StatData[[#This Row],[Shoda: Region]],StatData[[#This Row],[Shoda: Vzdělání]],StatData[[#This Row],[Shoda: Pohlaví]],StatData[[#This Row],[Shoda: Věk]]),1,0) -> 0 | B31: =IF(StatData[[#This Row],[Seskupený CZ-NACE]]=VLOOKUP(Obor,TabObor[],2,0),1,0) -> 1 | C31: =IF(StatData[[#This Row],[Region]]=VLOOKUP(Region,TabRegion[],2,0),1,0) -> 0 | D31: =IF(StatData[[#This Row],[Vzdělání]]=Vzdělání,1,0) -> 0 | E31: =IF(StatData[[#This Row],[Pohlaví]]=Pohlaví,1,0) -> 1 | F31: =IF(StatData[[#This Row],[Věk]]=Věk,1,0) -> 0 | G31: 30 | H31: Celkem | I31: 2 | J31: Základní a nedokončené | K31: Žena | L31: 55 a více let | M31: 6627.652832 | N31: 31463.69084 | O31: 19655.6666 | P31: 19896.05861 | Q31: 20005.3333 | R31: 20604.4842 | S31: 21172.2987 | T31: 22041.0615 | U31: 22651.895 | V31: 23112.7325 | W31: 23771.0317 | X31: 24358.25 | Y31: 24850.3333 | Z31: 25452.7951 | AA31: 25879 | AB31: 26515.33088 | AC31: 27273.6666 | AD31: 27652.52928 | AE31: 28398.68669 | AF31: 29064.81452 | AG31: 29725.10377 | AH31: 31060.47375 | AI31: 32398.32393 | AJ31: 33872.28382 | AK31: 35452.91868 | AL31: 36824.536 | AM31: 38584.77089 | AN31: 40611.16917 | AO31: 43385.08764 | AP31: 49180.86393
A32: =IF(AND(StatData[[#This Row],[Shoda: Seskupený CZ-NACE]],StatData[[#This Row],[Shoda: Region]],StatData[[#This Row],[Shoda: Vzdělání]],StatData[[#This Row],[Shoda: Pohlaví]],StatData[[#This Row],[Shoda: Věk]]),1,0) -> 0 | B32: =IF(StatData[[#This Row],[Seskupený CZ-NACE]]=VLOOKUP(Obor,TabObor[],2,0),1,0) -> 1 | C32: =IF(StatData[[#This Row],[Region]]=VLOOKUP(Region,TabRegion[],2,0),1,0) -> 0 | D32: =IF(StatData[[#This Row],[Vzdělání]]=Vzdělání,1,0) -> 0 | E32: =IF(StatData[[#This Row],[Pohlaví]]=Pohlaví,1,0) -> 0 | F32: =IF(StatData[[#This Row],[Věk]]=Věk,1,0) -> 1 | G32: 31 | H32: Celkem | I32: 2 | J32: Střední bez maturity | K32: Muž | L32: do 34 let | M32: 32732.74219 | N32: 42574.90122 | O32: 21394.5674 | P32: 22064.10842 | Q32: 22728.9856 | R32: 23599.1083 | S32: 25019.1666 | T32: 26291.53501 | U32: 27539.77664 | V32: 28653.25932 | W32: 29869.78251 | X32: 30895.04064 | Y32: 31836.61551 | Z32: 32940.67381 | AA32: 34109.28681 | AB32: 35092.20937 | AC32: 36153.72607 | AD32: 37054.39232 | AE32: 37977.63417 | AF32: 38679.57721 | AG32: 39514.23903 | AH32: 41535.55905 | AI32: 43505.5003 | AJ32: 45685.46754 | AK32: 48107.96174 | AL32: 51189.69705 | AM32: 55312.61782 | AN32: 61052.77395 | AO32: 68888.87345 | AP32: 76039.96626
A33: =IF(AND(StatData[[#This Row],[Shoda: Seskupený CZ-NACE]],StatData[[#This Row],[Shoda: Region]],StatData[[#This Row],[Shoda: Vzdělání]],StatData[[#This Row],[Shoda: Pohlaví]],StatData[[#This Row],[Shoda: Věk]]),1,0) -> 0 | B33: =IF(StatData[[#This Row],[Seskupený CZ-NACE]]=VLOOKUP(Obor,TabObor[],2,0),1,0) -> 1 | C33: =IF(StatData[[#This Row],[Region]]=VLOOKUP(Region,TabRegion[],2,0),1,0) -> 0 | D33: =IF(StatData[[#This Row],[Vzdělání]]=Vzdělání,1,0) -> 0 | E33: =IF(StatData[[#This Row],[Pohlaví]]=Pohlaví,1,0) -> 0 | F33: =IF(StatData[[#This Row],[Věk]]=Věk,1,0) -> 0 | G33: 32 | H33: Celkem | I33: 2 | J33: Střední bez maturity | K33: Muž | L33: 35 až 54 let | M33: 91426.96875 | N33: 44503.63219 | O33: 21143.2978 | P33: 22050.01486 | Q33: 22752.5226 | R33: 23706.4166 | S33: 25680.4872 | T33: 26927.8846 | U33: 28337.38856 | V33: 29939.66781 | W33: 31391.56292 | X33: 32795.53946 | Y33: 33868.44758 | Z33: 34913.12446 | AA33: 35886.61476 | AB33: 36940.73524 | AC33: 38026.95736 | AD33: 39009.46613 | AE33: 39933.40246 | AF33: 40861.32679 | AG33: 41810.33806 | AH33: 43640.94144 | AI33: 45630.80215 | AJ33: 47740.34458 | AK33: 50293.2634 | AL33: 53498.51515 | AM33: 57595.85046 | AN33: 63444.36472 | AO33: 70921.21598 | AP33: 79304.44286
A34: =IF(AND(StatData[[#This Row],[Shoda: Seskupený CZ-NACE]],StatData[[#This Row],[Shoda: Region]],StatData[[#This Row],[Shoda: Vzdělání]],StatData[[#This Row],[Shoda: Pohlaví]],StatData[[#This Row],[Shoda: Věk]]),1,0) -> 0 | B34: =IF(StatData[[#This Row],[Seskupený CZ-NACE]]=VLOOKUP(Obor,TabObor[],2,0),1,0) -> 1 | C34: =IF(StatData[[#This Row],[Region]]=VLOOKUP(Region,TabRegion[],2,0),1,0) -> 0 | D34: =IF(StatData[[#This Row],[Vzdělání]]=Vzdělání,1,0) -> 0 | E34: =IF(StatData[[#This Row],[Pohlaví]]=Pohlaví,1,0) -> 0 | F34: =IF(StatData[[#This Row],[Věk]]=Věk,1,0) -> 0 | G34: 33 | H34: Celkem | I34: 2 | J34: Střední bez maturity | K34: Muž | L34: 55 a více let | M34: 38372.26172 | N34: 42359.6121 | O34: 22069.6309 | P34: 22776.0036 | Q34: 24114.81828 | R34: 25121.2031 | S34: 26585.93322 | T34: 27889.95673 | U34: 28979.417 | V34: 30168.83792 | W34: 31116.07363 | X34: 32268.01069 | Y34: 33164.67795 | Z34: 34091.11235 | AA34: 35038.07632 | AB34: 35745.9728 | AC34: 36519.69879 | AD34: 37325.43908 | AE34: 38093.84996 | AF34: 38888.71914 | AG34: 39765.97618 | AH34: 41514.60062 | AI34: 43088.32323 | AJ34: 44878.83469 | AK34: 47065.98766 | AL34: 49673.63086 | AM34: 53068.40872 | AN34: 57502.23357 | AO34: 62994.11201 | AP34: 74214.21968
A35: =IF(AND(StatData[[#This Row],[Shoda: Seskupený CZ-NACE]],StatData[[#This Row],[Shoda: Region]],StatData[[#This Row],[Shoda: Vzdělání]],StatData[[#This Row],[Shoda: Pohlaví]],StatData[[#This Row],[Shoda: Věk]]),1,0) -> 0 | B35: =IF(StatData[[#This Row],[Seskupený CZ-NACE]]=VLOOKUP(Obor,TabObor[],2,0),1,0) -> 1 | C35: =IF(StatData[[#This Row],[Region]]=VLOOKUP(Region,TabRegion[],2,0),1,0) -> 0 | D35: =IF(StatData[[#This Row],[Vzdělání]]=Vzdělání,1,0) -> 0 | E35: =IF(StatData[[#This Row],[Pohlaví]]=Pohlaví,1,0) -> 1 | F35: =IF(StatData[[#This Row],[Věk]]=Věk,1,0) -> 1 | G35: 34 | H35: Celkem | I35: 2 | J35: Střední bez maturity | K35: Žena | L35: do 34 let | M35: 10223.76172 | N35: 33513.22112 | O35: 20158.7726 | P35: 21041.0454 | Q35: 21756.86686 | R35: 22462.809 | S35: 23300.9359 | T35: 23790.70012 | U35: 24464.0579 | V35: 25249.87875 | W35: 25950.02299 | X35: 26327.78288 | Y35: 26703.58075 | Z35: 27013.12873 | AA35: 27788.4255 | AB35: 28547.8616 | AC35: 28983.07076 | AD35: 29406.96569 | AE35: 29943.88694 | AF35: 30546.5362 | AG35: 31181.17446 | AH35: 32523.52445 | AI35: 33882.05354 | AJ35: 35107.76676 | AK35: 36603.44603 | AL35: 38224.61069 | AM35: 40512.35843 | AN35: 43012.07459 | AO35: 46554.33781 | AP35: 54923.58437
A36: =IF(AND(StatData[[#This Row],[Shoda: Seskupený CZ-NACE]],StatData[[#This Row],[Shoda: Region]],StatData[[#This Row],[Shoda: Vzdělání]],StatData[[#This Row],[Shoda: Pohlaví]],StatData[[#This Row],[Shoda: Věk]]),1,0) -> 0 | B36: =IF(StatData[[#This Row],[Seskupený CZ-NACE]]=VLOOKUP(Obor,TabObor[],2,0),1,0) -> 1 | C36: =IF(StatData[[#This Row],[Region]]=VLOOKUP(Region,TabRegion[],2,0),1,0) -> 0 | D36: =IF(StatData[[#This Row],[Vzdělání]]=Vzdělání,1,0) -> 0 | E36: =IF(StatData[[#This Row],[Pohlaví]]=Pohlaví,1,0) -> 1 | F36: =IF(StatData[[#This Row],[Věk]]=Věk,1,0) -> 0 | G36: 35 | H36: Celkem | I36: 2 | J36: Střední bez maturity | K36: Žena | L36: 35 až 54 let | M36: 53152.07031 | N36: 33702.28206 | O36: 20020.11714 | P36: 20342.91286 | Q36: 21022.10452 | R36: 21802.8433 | S36: 22430.25 | T36: 23047.8333 | U36: 23623.54093 | V36: 24410.8473 | W36: 24988.5293 | X36: 25709.4166 | Y36: 26354.0441 | Z36: 27088.85556 | AA36: 27827.68989 | AB36: 28437.22226 | AC36: 29105.47689 | AD36: 29694.02606 | AE36: 30363.94588 | AF36: 30953.54828 | AG36: 31617.13349 | AH36: 32881.04385 | AI36: 34324.55101 | AJ36: 35821.11708 | AK36: 37352.98808 | AL36: 39107.87096 | AM36: 41202.74641 | AN36: 43703.07695 | AO36: 47072.94745 | AP36: 55921.2173
A37: =IF(AND(StatData[[#This Row],[Shoda: Seskupený CZ-NACE]],StatData[[#This Row],[Shoda: Region]],StatData[[#This Row],[Shoda: Vzdělání]],StatData[[#This Row],[Shoda: Pohlaví]],StatData[[#This Row],[Shoda: Věk]]),1,0) -> 0 | B37: =IF(StatData[[#This Row],[Seskupený CZ-NACE]]=VLOOKUP(Obor,TabObor[],2,0),1,0) -> 1 | C37: =IF(StatData[[#This Row],[Region]]=VLOOKUP(Region,TabRegion[],2,0),1,0) -> 0 | D37: =IF(StatData[[#This Row],[Vzdělání]]=Vzdělání,1,0) -> 0 | E37: =IF(StatData[[#This Row],[Pohlaví]]=Pohlaví,1,0) -> 1 | F37: =IF(StatData[[#This Row],[Věk]]=Věk,1,0) -> 0 | G37: 36 | H37: Celkem | I37: 2 | J37: Střední bez maturity | K37: Žena | L37: 55 a více let | M37: 21850.96094 | N37: 32652.10525 | O37: 20067 | P37: 21070.8006 | Q37: 21751.2848 | R37: 22106.34113 | S37: 22765.25 | T37: 23148.56655 | U37: 23845.9433 | V37: 24484.0159 | W37: 25118.4136 | X37: 25692.1578 | Y37: 26302.31984 | Z37: 26701.05332 | AA37: 27306.65337 | AB37: 27791.13083 | AC37: 28297.29816 | AD37: 28884.33259 | AE37: 29503.861 | AF37: 30130.06739 | AG37: 30644.83841 | AH37: 31800.38224 | AI37: 33262.28218 | AJ37: 34531.45447 | AK37: 35965.47375 | AL37: 37615.11402 | AM37: 39755.52172 | AN37: 42092.72359 | AO37: 45138.73858 | AP37: 50985.57797
A38: =IF(AND(StatData[[#This Row],[Shoda: Seskupený CZ-NACE]],StatData[[#This Row],[Shoda: Region]],StatData[[#This Row],[Shoda: Vzdělání]],StatData[[#This Row],[Shoda: Pohlaví]],StatData[[#This Row],[Shoda: Věk]]),1,0) -> 0 | B38: =IF(StatData[[#This Row],[Seskupený CZ-NACE]]=VLOOKUP(Obor,TabObor[],2,0),1,0) -> 1 | C38: =IF(StatData[[#This Row],[Region]]=VLOOKUP(Region,TabRegion[],2,0),1,0) -> 0 | D38: =IF(StatData[[#This Row],[Vzdělání]]=Vzdělání,1,0) -> 1 | E38: =IF(StatData[[#This Row],[Pohlaví]]=Pohlaví,1,0) -> 0 | F38: =IF(StatData[[#This Row],[Věk]]=Věk,1,0) -> 1 | G38: 37 | H38: Celkem | I38: 2 | J38: Střední s maturitou a vyšší odborné | K38: Muž | L38: do 34 let | M38: 38915.32031 | N38: 48640.69746 | O38: 22059.36845 | P38: 23958.9862 | Q38: 27087.33666 | R38: 29326.31561 | S38: 31201.75188 | T38: 32387.99723 | U38: 34010.78365 | V38: 34963.22986 | W38: 36006.93937 | X38: 36888.23876 | Y38: 37967.67175 | Z38: 39079.05477 | AA38: 40196.61101 | AB38: 41079.68513 | AC38: 41830.73201 | AD38: 42719.8193 | AE38: 43639.79484 | AF38: 44582.73647 | AG38: 45433.66956 | AH38: 47331.84314 | AI38: 49507.7611 | AJ38: 52191.45366 | AK38: 55068.89341 | AL38: 58103.81917 | AM38: 61829.97407 | AN38: 67053.80862 | AO38: 74071.96956 | AP38: 83117.60117
A39: =IF(AND(StatData[[#This Row],[Shoda: Seskupený CZ-NACE]],StatData[[#This Row],[Shoda: Region]],StatData[[#This Row],[Shoda: Vzdělání]],StatData[[#This Row],[Shoda: Pohlaví]],StatData[[#This Row],[Shoda: Věk]]),1,0) -> 0 | B39: =IF(StatData[[#This Row],[Seskupený CZ-NACE]]=VLOOKUP(Obor,TabObor[],2,0),1,0) -> 1 | C39: =IF(StatData[[#This Row],[Region]]=VLOOKUP(Region,TabRegion[],2,0),1,0) -> 0 | D39: =IF(StatData[[#This Row],[Vzdělání]]=Vzdělání,1,0) -> 1 | E39: =IF(StatData[[#This Row],[Pohlaví]]=Pohlaví,1,0) -> 0 | F39: =IF(StatData[[#This Row],[Věk]]=Věk,1,0) -> 0 | G39: 38 | H39: Celkem | I39: 2 | J39: Střední s maturitou a vyšší odborné | K39: Muž | L39: 35 až 54 let | M39: 74863.14844 | N39: 57778.90568 | O39: 22231.94219 | P39: 24760.7476 | Q39: 27271.40879 | R39: 30016.73091 | S39: 32530.72979 | T39: 34530.80445 | U39: 36119.96861 | V39: 37792.21579 | W39: 39293.63321 | X39: 40798.81603 | Y39: 42162.49934 | Z39: 43510.39434 | AA39: 44731.94964 | AB39: 45953.11335 | AC39: 47106.87254 | AD39: 48386.72441 | AE39: 49636.32555 | AF39: 50914.36946 | AG39: 52192.25854 | AH39: 54878.58462 | AI39: 57626.02072 | AJ39: 60846.00631 | AK39: 64772.95213 | AL39: 69347.24937 | AM39: 74583.04314 | AN39: 81742.14286 | AO39: 91912.849 | AP39: 105818.5494
A40: =IF(AND(StatData[[#This Row],[Shoda: Seskupený CZ-NACE]],StatData[[#This Row],[Shoda: Region]],StatData[[#This Row],[Shoda: Vzdělání]],StatData[[#This Row],[Shoda: Pohlaví]],StatData[[#This Row],[Shoda: Věk]]),1,0) -> 0 | B40: =IF(StatData[[#This Row],[Seskupený CZ-NACE]]=VLOOKUP(Obor,TabObor[],2,0),1,0) -> 1 | C40: =IF(StatData[[#This Row],[Region]]=VLOOKUP(Region,TabRegion[],2,0),1,0) -> 0 | D40: =IF(StatData[[#This Row],[Vzdělání]]=Vzdělání,1,0) -> 1 | E40: =IF(StatData[[#This Row],[Pohlaví]]=Pohlaví,1,0) -> 0 | F40: =IF(StatData[[#This Row],[Věk]]=Věk,1,0) -> 0 | G40: 39 | H40: Celkem | I40: 2 | J40: Střední s maturitou a vyšší odborné | K40: Muž | L40: 55 a více let | M40: 24797.02148 | N40: 51375.31488 | O40: 21344.6741 | P40: 23693.15703 | Q40: 25043.9166 | R40: 27126.56809 | S40: 28365.77907 | T40: 29414.16402 | U40: 30928.32186 | V40: 32793.07573 | W40: 34070.10987 | X40: 35228.95532 | Y40: 36379.5639 | Z40: 37438.20141 | AA40: 38550.58689 | AB40: 39866.93506 | AC40: 41202.58782 | AD40: 42375.52957 | AE40: 43542.8913 | AF40: 44401.2499 | AG40: 45544.1298 | AH40: 48130.89338 | AI40: 50720.16674 | AJ40: 53603.38727 | AK40: 56961.67075 | AL40: 60553.86862 | AM40: 64994.99727 | AN40: 70955.88833 | AO40: 82248.70879 | AP40: 96785.08519
A41: =IF(AND(StatData[[#This Row],[Shoda: Seskupený CZ-NACE]],StatData[[#This Row],[Shoda: Region]],StatData[[#This Row],[Shoda: Vzdělání]],StatData[[#This Row],[Shoda: Pohlaví]],StatData[[#This Row],[Shoda: Věk]]),1,0) -> 0 | B41: =IF(StatData[[#This Row],[Seskupený CZ-NACE]]=VLOOKUP(Obor,TabObor[],2,0),1,0) -> 1 | C41: =IF(StatData[[#This Row],[Region]]=VLOOKUP(Region,TabRegion[],2,0),1,0) -> 0 | D41: =IF(StatData[[#This Row],[Vzdělání]]=Vzdělání,1,0) -> 1 | E41: =IF(StatData[[#This Row],[Pohlaví]]=Pohlaví,1,0) -> 1 | F41: =IF(StatData[[#This Row],[Věk]]=Věk,1,0) -> 1 | G41: 40 | H41: Celkem | I41: 2 | J41: Střední s maturitou a vyšší odborné | K41: Žena | L41: do 34 let | M41: 25509.50977 | N41: 38494.03961 | O41: 21970.62128 | P41: 23087.84649 | Q41: 24585.02009 | R41: 25916.4795 | S41: 26829.7643 | T41: 27903.6144 | U41: 28686.61438 | V41: 29512.8072 | W41: 30069.38411 | X41: 30630.93865 | Y41: 31198.98372 | Z41: 31855.27722 | AA41: 32616.17148 | AB41: 33122.92922 | AC41: 33739.75903 | AD41: 34419.13506 | AE41: 35115.38728 | AF41: 35663.41692 | AG41: 36279.32801 | AH41: 37715.59323 | AI41: 38995.13006 | AJ41: 40395.67866 | AK41: 41995.09268 | AL41: 44046.64662 | AM41: 46304.89271 | AN41: 49637.85917 | AO41: 54572.24879 | AP41: 62577.87976
A42: =IF(AND(StatData[[#This Row],[Shoda: Seskupený CZ-NACE]],StatData[[#This Row],[Shoda: Region]],StatData[[#This Row],[Shoda: Vzdělání]],StatData[[#This Row],[Shoda: Pohlaví]],StatData[[#This Row],[Shoda: Věk]]),1,0) -> 0 | B42: =IF(StatData[[#This Row],[Seskupený CZ-NACE]]=VLOOKUP(Obor,TabObor[],2,0),1,0) -> 1 | C42: =IF(StatData[[#This Row],[Region]]=VLOOKUP(Region,TabRegion[],2,0),1,0) -> 0 | D42: =IF(StatData[[#This Row],[Vzdělání]]=Vzdělání,1,0) -> 1 | E42: =IF(StatData[[#This Row],[Pohlaví]]=Pohlaví,1,0) -> 1 | F42: =IF(StatData[[#This Row],[Věk]]=Věk,1,0) -> 0 | G42: 41 | H42: Celkem | I42: 2 | J42: Střední s maturitou a vyšší odborné | K42: Žena | L42: 35 až 54 let | M42: 89373.53906 | N42: 42794.03198 | O42: 21986.7658 | P42: 23738.09037 | Q42: 25482.0306 | R42: 26805.9634 | S42: 28053.24788 | T42: 29167.44591 | U42: 30399.28503 | V42: 31213.51053 | W42: 32186.40681 | X42: 32803.66702 | Y42: 33524.55892 | Z42: 34397.63775 | AA42: 35062.67757 | AB42: 35811.5551 | AC42: 36574.2344 | AD42: 37280.05935 | AE42: 37958.11864 | AF42: 38696.83127 | AG42: 39391.76738 | AH42: 40916.61406 | AI42: 42726.63871 | AJ42: 44423.04852 | AK42: 46534.31645 | AL42: 49204.34054 | AM42: 52737.07045 | AN42: 57128.98707 | AO42: 63887.57843 | AP42: 73929.43645
A43: =IF(AND(StatData[[#This Row],[Shoda: Seskupený CZ-NACE]],StatData[[#This Row],[Shoda: Region]],StatData[[#This Row],[Shoda: Vzdělání]],StatData[[#This Row],[Shoda: Pohlaví]],StatData[[#This Row],[Shoda: Věk]]),1,0) -> 0 | B43: =IF(StatData[[#This Row],[Seskupený CZ-NACE]]=VLOOKUP(Obor,TabObor[],2,0),1,0) -> 1 | C43: =IF(StatData[[#This Row],[Region]]=VLOOKUP(Region,TabRegion[],2,0),1,0) -> 0 | D43: =IF(StatData[[#This Row],[Vzdělání]]=Vzdělání,1,0) -> 1 | E43: =IF(StatData[[#This Row],[Pohlaví]]=Pohlaví,1,0) -> 1 | F43: =IF(StatData[[#This Row],[Věk]]=Věk,1,0) -> 0 | G43: 42 | H43: Celkem | I43: 2 | J43: Střední s maturitou a vyšší odborné | K43: Žena | L43: 55 a více let | M43: 34477.14062 | N43: 44510.60118 | O43: 22792.45489 | P43: 24399.1386 | Q43: 26216.67459 | R43: 27492.2623 | S43: 29337.6829 | T43: 30429.18296 | U43: 31757.92473 | V43: 32911.51558 | W43: 33949.71073 | X43: 34887.4125 | Y43: 35701.91635 | Z43: 36649.79169 | AA43: 37503.27477 | AB43: 38231.18763 | AC43: 39019.60399 | AD43: 39865.96374 | AE43: 40552.89401 | AF43: 41282.52837 | AG43: 41963.07987 | AH43: 43279.60405 | AI43: 44583.2265 | AJ43: 46224.35215 | AK43: 48241.39113 | AL43: 50988.95626 | AM43: 54211.27289 | AN43: 58588.60605 | AO43: 65345.13295 | AP43: 75138.73575
A44: =IF(AND(StatData[[#This Row],[Shoda: Seskupený CZ-NACE]],StatData[[#This Row],[Shoda: Region]],StatData[[#This Row],[Shoda: Vzdělání]],StatData[[#This Row],[Shoda: Pohlaví]],StatData[[#This Row],[Shoda: Věk]]),1,0) -> 0 | B44: =IF(StatData[[#This Row],[Seskupený CZ-NACE]]=VLOOKUP(Obor,TabObor[],2,0),1,0) -> 1 | C44: =IF(StatData[[#This Row],[Region]]=VLOOKUP(Region,TabRegion[],2,0),1,0) -> 0 | D44: =IF(StatData[[#This Row],[Vzdělání]]=Vzdělání,1,0) -> 0 | E44: =IF(StatData[[#This Row],[Pohlaví]]=Pohlaví,1,0) -> 0 | F44: =IF(StatData[[#This Row],[Věk]]=Věk,1,0) -> 1 | G44: 43 | H44: Celkem | I44: 2 | J44: Vysokoškolské | K44: Muž | L44: do 34 let | M44: 13849.9502 | N44: 62834.48661 | O44: 28040.03959 | P44: 31508.4474 | Q44: 33968.0004 | R44: 36510.17639 | S44: 38315.04811 | T44: 39986.82572 | U44: 41193.02787 | V44: 41969.49688 | W44: 43071.7967 | X44: 44159.2392 | Y44: 45410.1913 | Z44: 46423.9561 | AA44: 47603.88433 | AB44: 48506.08413 | AC44: 49692.25908 | AD44: 50805.82386 | AE44: 51887.37605 | AF44: 53447.5632 | AG44: 55022.18494 | AH44: 58192.9505 | AI44: 61952.9942 | AJ44: 66242.29393 | AK44: 70650.68678 | AL44: 76964.21673 | AM44: 84032.19754 | AN44: 90185.78141 | AO44: 99293.76452 | AP44: 114757.0616
A45: =IF(AND(StatData[[#This Row],[Shoda: Seskupený CZ-NACE]],StatData[[#This Row],[Shoda: Region]],StatData[[#This Row],[Shoda: Vzdělání]],StatData[[#This Row],[Shoda: Pohlaví]],StatData[[#This Row],[Shoda: Věk]]),1,0) -> 0 | B45: =IF(StatData[[#This Row],[Seskupený CZ-NACE]]=VLOOKUP(Obor,TabObor[],2,0),1,0) -> 1 | C45: =IF(StatData[[#This Row],[Region]]=VLOOKUP(Region,TabRegion[],2,0),1,0) -> 0 | D45: =IF(StatData[[#This Row],[Vzdělání]]=Vzdělání,1,0) -> 0 | E45: =IF(StatData[[#This Row],[Pohlaví]]=Pohlaví,1,0) -> 0 | F45: =IF(StatData[[#This Row],[Věk]]=Věk,1,0) -> 0 | G45: 44 | H45: Celkem | I45: 2 | J45: Vysokoškolské | K45: Muž | L45: 35 až 54 let | M45: 36470.32031 | N45: 84614.2633 | O45: 27343.648 | P45: 32650.78502 | Q45: 37082.897 | R45: 40219.16052 | S45: 42694.99898 | T45: 44947.3075 | U45: 46571.26912 | V45: 48241.63496 | W45: 50073.0974 | X45: 51706.06966 | Y45: 53372.36801 | Z45: 55107.30949 | AA45: 56849.67877 | AB45: 58584.62603 | AC45: 60468.57981 | AD45: 62408.68945 | AE45: 64405.98318 | AF45: 66474.22189 | AG45: 68350.05521 | AH45: 73046.72427 | AI45: 78620.19188 | AJ45: 84550.33545 | AK45: 92430.33361 | AL45: 99484.6208 | AM45: 109238.9026 | AN45: 123480.9578 | AO45: 144831.8173 | AP45: 186741.8009
A46: =IF(AND(StatData[[#This Row],[Shoda: Seskupený CZ-NACE]],StatData[[#This Row],[Shoda: Region]],StatData[[#This Row],[Shoda: Vzdělání]],StatData[[#This Row],[Shoda: Pohlaví]],StatData[[#This Row],[Shoda: Věk]]),1,0) -> 0 | B46: =IF(StatData[[#This Row],[Seskupený CZ-NACE]]=VLOOKUP(Obor,TabObor[],2,0),1,0) -> 1 | C46: =IF(StatData[[#This Row],[Region]]=VLOOKUP(Region,TabRegion[],2,0),1,0) -> 0 | D46: =IF(StatData[[#This Row],[Vzdělání]]=Vzdělání,1,0) -> 0 | E46: =IF(StatData[[#This Row],[Pohlaví]]=Pohlaví,1,0) -> 0 | F46: =IF(StatData[[#This Row],[Věk]]=Věk,1,0) -> 0 | G46: 45 | H46: Celkem | I46: 2 | J46: Vysokoškolské | K46: Muž | L46: 55 a více let | M46: 15504.60547 | N46: 77575.56656 | O46: 25234.91332 | P46: 28427.42978 | Q46: 29863.6603 | R46: 31282.52005 | S46: 33840.22858 | T46: 36888.01279 | U46: 39532.14754 | V46: 41526.26938 | W46: 43729.22012 | X46: 45253.80717 | Y46: 46693.96013 | Z46: 48687.7073 | AA46: 50280.33102 | AB46: 51603.2191 | AC46: 53566.84583 | AD46: 55306.4862 | AE46: 56686.12678 | AF46: 57910.36662 | AG46: 59964.41511 | AH46: 64356.93125 | AI46: 69417.40501 | AJ46: 75670.13403 | AK46: 81692.39991 | AL46: 91261.26072 | AM46: 102410.9952 | AN46: 117333.3312 | AO46: 134499.7254 | AP46: 183850.1028
A47: =IF(AND(StatData[[#This Row],[Shoda: Seskupený CZ-NACE]],StatData[[#This Row],[Shoda: Region]],StatData[[#This Row],[Shoda: Vzdělání]],StatData[[#This Row],[Shoda: Pohlaví]],StatData[[#This Row],[Shoda: Věk]]),1,0) -> 0 | B47: =IF(StatData[[#This Row],[Seskupený CZ-NACE]]=VLOOKUP(Obor,TabObor[],2,0),1,0) -> 1 | C47: =IF(StatData[[#This Row],[Region]]=VLOOKUP(Region,TabRegion[],2,0),1,0) -> 0 | D47: =IF(StatData[[#This Row],[Vzdělání]]=Vzdělání,1,0) -> 0 | E47: =IF(StatData[[#This Row],[Pohlaví]]=Pohlaví,1,0) -> 1 | F47: =IF(StatData[[#This Row],[Věk]]=Věk,1,0) -> 1 | G47: 46 | H47: Celkem | I47: 2 | J47: Vysokoškolské | K47: Žena | L47: do 34 let | M47: 15530.09766 | N47: 49916.55297 | O47: 26709.43567 | P47: 28725.42606 | Q47: 30685.26961 | R47: 32015.80364 | S47: 32666.5241 | T47: 34011.83282 | U47: 35187.81171 | V47: 36042.84921 | W47: 37027.75339 | X47: 37735.02452 | Y47: 38515.2773 | Z47: 39075.67723 | AA47: 39697.55805 | AB47: 40638.85462 | AC47: 41544.211 | AD47: 42353.7443 | AE47: 43028.81601 | AF47: 43903.60342 | AG47: 44781.95836 | AH47: 46203.96591 | AI47: 48396.4414 | AJ47: 50785.00018 | AK47: 53657.90964 | AL47: 56810.37205 | AM47: 60503.28565 | AN47: 66074.40971 | AO47: 74307.71963 | AP47: 90994.8554
A48: =IF(AND(StatData[[#This Row],[Shoda: Seskupený CZ-NACE]],StatData[[#This Row],[Shoda: Region]],StatData[[#This Row],[Shoda: Vzdělání]],StatData[[#This Row],[Shoda: Pohlaví]],StatData[[#This Row],[Shoda: Věk]]),1,0) -> 0 | B48: =IF(StatData[[#This Row],[Seskupený CZ-NACE]]=VLOOKUP(Obor,TabObor[],2,0),1,0) -> 1 | C48: =IF(StatData[[#This Row],[Region]]=VLOOKUP(Region,TabRegion[],2,0),1,0) -> 0 | D48: =IF(StatData[[#This Row],[Vzdělání]]=Vzdělání,1,0) -> 0 | E48: =IF(StatData[[#This Row],[Pohlaví]]=Pohlaví,1,0) -> 1 | F48: =IF(StatData[[#This Row],[Věk]]=Věk,1,0) -> 0 | G48: 47 | H48: Celkem | I48: 2 | J48: Vysokoškolské | K48: Žena | L48: 35 až 54 let | M48: 44879.74219 | N48: 58654.09349 | O48: 28059.6975 | P48: 31094.14675 | Q48: 33651.71303 | R48: 35529.47359 | S48: 37311.45326 | T48: 38938.75238 | U48: 40279.00799 | V48: 41548.75312 | W48: 42696.45912 | X48: 43726.13249 | Y48: 44769.69997 | Z48: 45778.08146 | AA48: 46664.31507 | AB48: 47645.24214 | AC48: 48479.84023 | AD48: 49307.73762 | AE48: 50069.37969 | AF48: 50943.74089 | AG48: 51736.37209 | AH48: 53635.31412 | AI48: 55797.08626 | AJ48: 58159.95242 | AK48: 61071.8747 | AL48: 64766.0506 | AM48: 70335.85051 | AN48: 77339.51741 | AO48: 89563.04527 | AP48: 108818.3098
A49: =IF(AND(StatData[[#This Row],[Shoda: Seskupený CZ-NACE]],StatData[[#This Row],[Shoda: Region]],StatData[[#This Row],[Shoda: Vzdělání]],StatData[[#This Row],[Shoda: Pohlaví]],StatData[[#This Row],[Shoda: Věk]]),1,0) -> 0 | B49: =IF(StatData[[#This Row],[Seskupený CZ-NACE]]=VLOOKUP(Obor,TabObor[],2,0),1,0) -> 1 | C49: =IF(StatData[[#This Row],[Region]]=VLOOKUP(Region,TabRegion[],2,0),1,0) -> 0 | D49: =IF(StatData[[#This Row],[Vzdělání]]=Vzdělání,1,0) -> 0 | E49: =IF(StatData[[#This Row],[Pohlaví]]=Pohlaví,1,0) -> 1 | F49: =IF(StatData[[#This Row],[Věk]]=Věk,1,0) -> 0 | G49: 48 | H49: Celkem | I49: 2 | J49: Vysokoškolské | K49: Žena | L49: 55 a více let | M49: 13494.6123 | N49: 62749.18336 | O49: 31498.11466 | P49: 35225.02063 | Q49: 38240.21977 | R49: 41016.68156 | S49: 42816.15869 | T49: 44218.75447 | U49: 45566.3118 | V49: 46983.6173 | W49: 48266.00605 | X49: 49482.33108 | Y49: 50323.51119 | Z49: 51306.40066 | AA49: 52213.69859 | AB49: 53008.54961 | AC49: 53725.95776 | AD49: 54436.79396 | AE49: 55165.70314 | AF49: 55802.14682 | AG49: 56436.20639 | AH49: 57889.99878 | AI49: 59445.90539 | AJ49: 61378.06907 | AK49: 64189.63243 | AL49: 68112.48359 | AM49: 74025.51969 | AN49: 83038.57421 | AO49: 93869.2647 | AP49: 110462.6853
A50: =IF(AND(StatData[[#This Row],[Shoda: Seskupený CZ-NACE]],StatData[[#This Row],[Shoda: Region]],StatData[[#This Row],[Shoda: Vzdělání]],StatData[[#This Row],[Shoda: Pohlaví]],StatData[[#This Row],[Shoda: Věk]]),1,0) -> 0 | B50: =IF(StatData[[#This Row],[Seskupený CZ-NACE]]=VLOOKUP(Obor,TabObor[],2,0),1,0) -> 1 | C50: =IF(StatData[[#This Row],[Region]]=VLOOKUP(Region,TabRegion[],2,0),1,0) -> 0 | D50: =IF(StatData[[#This Row],[Vzdělání]]=Vzdělání,1,0) -> 0 | E50: =IF(StatData[[#This Row],[Pohlaví]]=Pohlaví,1,0) -> 0 | F50: =IF(StatData[[#This Row],[Věk]]=Věk,1,0) -> 1 | G50: 49 | H50: Celkem | I50: 3 | J50: Základní a nedokončené | K50: Muž | L50: do 34 let | M50: 33507.34766 | N50: 36304.48661 | O50: 20257.68208 | P50: 21558.60898 | Q50: 22154.7946 | R50: 23129.2189 | S50: 23993.22955 | T50: 24951.5833 | U50: 25680.21136 | V50: 26368.26779 | W50: 27186.2534 | X50: 28276.0668 | Y50: 29263.19439 | Z50: 29970.73178 | AA50: 30712.31239 | AB50: 31503.61512 | AC50: 32174.76817 | AD50: 32893.79042 | AE50: 33534.6807 | AF50: 34163.18223 | AG50: 34828.53718 | AH50: 36178.29994 | AI50: 37810.8983 | AJ50: 39361.14772 | AK50: 40947.77539 | AL50: 42720.47127 | AM50: 44817.64285 | AN50: 47280.91715 | AO50: 51238.76626 | AP50: 57247.47999
A51: =IF(AND(StatData[[#This Row],[Shoda: Seskupený CZ-NACE]],StatData[[#This Row],[Shoda: Region]],StatData[[#This Row],[Shoda: Vzdělání]],StatData[[#This Row],[Shoda: Pohlaví]],StatData[[#This Row],[Shoda: Věk]]),1,0) -> 0 | B51: =IF(StatData[[#This Row],[Seskupený CZ-NACE]]=VLOOKUP(Obor,TabObor[],2,0),1,0) -> 1 | C51: =IF(StatData[[#This Row],[Region]]=VLOOKUP(Region,TabRegion[],2,0),1,0) -> 0 | D51: =IF(StatData[[#This Row],[Vzdělání]]=Vzdělání,1,0) -> 0 | E51: =IF(StatData[[#This Row],[Pohlaví]]=Pohlaví,1,0) -> 0 | F51: =IF(StatData[[#This Row],[Věk]]=Věk,1,0) -> 0 | G51: 50 | H51: Celkem | I51: 3 | J51: Základní a nedokončené | K51: Muž | L51: 35 až 54 let | M51: 41413.48438 | N51: 38292.62802 | O51: 19749.44997 | P51: 20759.8305 | Q51: 21646.57534 | R51: 22307.15159 | S51: 23384.1354 | T51: 24050.13932 | U51: 25382.13243 | V51: 26176.06464 | W51: 27306.41961 | X51: 28731.49464 | Y51: 29740.55678 | Z51: 30641.47021 | AA51: 31554.29115 | AB51: 32553.32949 | AC51: 33354.41266 | AD51: 34147.26075 | AE51: 35011.21161 | AF51: 35852.19526 | AG51: 36464.63107 | AH51: 37986.61439 | AI51: 39584.97819 | AJ51: 41251.25278 | AK51: 43012.11842 | AL51: 45070.53254 | AM51: 47292.85097 | AN51: 50041.21379 | AO51: 53975.9812 | AP51: 61937.24569
A52: =IF(AND(StatData[[#This Row],[Shoda: Seskupený CZ-NACE]],StatData[[#This Row],[Shoda: Region]],StatData[[#This Row],[Shoda: Vzdělání]],StatData[[#This Row],[Shoda: Pohlaví]],StatData[[#This Row],[Shoda: Věk]]),1,0) -> 0 | B52: =IF(StatData[[#This Row],[Seskupený CZ-NACE]]=VLOOKUP(Obor,TabObor[],2,0),1,0) -> 1 | C52: =IF(StatData[[#This Row],[Region]]=VLOOKUP(Region,TabRegion[],2,0),1,0) -> 0 | D52: =IF(StatData[[#This Row],[Vzdělání]]=Vzdělání,1,0) -> 0 | E52: =IF(StatData[[#This Row],[Pohlaví]]=Pohlaví,1,0) -> 0 | F52: =IF(StatData[[#This Row],[Věk]]=Věk,1,0) -> 0 | G52: 51 | H52: Celkem | I52: 3 | J52: Základní a nedokončené | K52: Muž | L52: 55 a více let | M52: 12482.23145 | N52: 35179.81664 | O52: 19710.3012 | P52: 20559.22712 | Q52: 21317.0833 | R52: 21910.1666 | S52: 22661.1991 | T52: 23197.6216 | U52: 24071.94698 | V52: 24953.36441 | W52: 25862.29967 | X52: 26647.74527 | Y52: 27432.98155 | Z52: 28104.69883 | AA52: 28800.24649 | AB52: 29585.59717 | AC52: 30310.79206 | AD52: 31157.38449 | AE52: 31929.39429 | AF52: 32631.4638 | AG52: 33245.24154 | AH52: 34658.35064 | AI52: 36132.60434 | AJ52: 37412.97902 | AK52: 39334.36559 | AL52: 41271.21656 | AM52: 43507.66698 | AN52: 45995.62961 | AO52: 49810.9891 | AP52: 56843.16519
A53: =IF(AND(StatData[[#This Row],[Shoda: Seskupený CZ-NACE]],StatData[[#This Row],[Shoda: Region]],StatData[[#This Row],[Shoda: Vzdělání]],StatData[[#This Row],[Shoda: Pohlaví]],StatData[[#This Row],[Shoda: Věk]]),1,0) -> 0 | B53: =IF(StatData[[#This Row],[Seskupený CZ-NACE]]=VLOOKUP(Obor,TabObor[],2,0),1,0) -> 1 | C53: =IF(StatData[[#This Row],[Region]]=VLOOKUP(Region,TabRegion[],2,0),1,0) -> 0 | D53: =IF(StatData[[#This Row],[Vzdělání]]=Vzdělání,1,0) -> 0 | E53: =IF(StatData[[#This Row],[Pohlaví]]=Pohlaví,1,0) -> 1 | F53: =IF(StatData[[#This Row],[Věk]]=Věk,1,0) -> 1 | G53: 52 | H53: Celkem | I53: 3 | J53: Základní a nedokončené | K53: Žena | L53: do 34 let | M53: 19128.8418 | N53: 31762.78409 | O53: 20066.6631 | P53: 21196.5065 | Q53: 21716.0618 | R53: 22048.1573 | S53: 22956.2077 | T53: 23345.1601 | U53: 24150.39685 | V53: 24737.8874 | W53: 25513.83457 | X53: 26047.80951 | Y53: 26666.48277 | Z53: 27282.24806 | AA53: 27874.61549 | AB53: 28344.51719 | AC53: 28967.94943 | AD53: 29496.57203 | AE53: 30018.33216 | AF53: 30541.96714 | AG53: 31042.36917 | AH53: 32039.85154 | AI53: 33013.39308 | AJ53: 34182.06703 | AK53: 35306.69279 | AL53: 36601.31139 | AM53: 38024.33544 | AN53: 39794.74166 | AO53: 42142.94708 | AP53: 46254.17074
A54: =IF(AND(StatData[[#This Row],[Shoda: Seskupený CZ-NACE]],StatData[[#This Row],[Shoda: Region]],StatData[[#This Row],[Shoda: Vzdělání]],StatData[[#This Row],[Shoda: Pohlaví]],StatData[[#This Row],[Shoda: Věk]]),1,0) -> 0 | B54: =IF(StatData[[#This Row],[Seskupený CZ-NACE]]=VLOOKUP(Obor,TabObor[],2,0),1,0) -> 1 | C54: =IF(StatData[[#This Row],[Region]]=VLOOKUP(Region,TabRegion[],2,0),1,0) -> 0 | D54: =IF(StatData[[#This Row],[Vzdělání]]=Vzdělání,1,0) -> 0 | E54: =IF(StatData[[#This Row],[Pohlaví]]=Pohlaví,1,0) -> 1 | F54: =IF(StatData[[#This Row],[Věk]]=Věk,1,0) -> 0 | G54: 53 | H54: Celkem | I54: 3 | J54: Základní a nedokončené | K54: Žena | L54: 35 až 54 let | M54: 38187.28906 | N54: 31471.42384 | O54: 19368.18762 | P54: 20003.0689 | Q54: 20913.1766 | R54: 21279.8333 | S54: 21761 | T54: 22404.4782 | U54: 22958.27894 | V54: 23661.81077 | W54: 24294.5833 | X54: 24891.3533 | Y54: 25568.04424 | Z54: 26160.02251 | AA54: 26670.8382 | AB54: 27265.5439 | AC54: 27916.2064 | AD54: 28554.24966 | AE54: 29172.87485 | AF54: 29742.60425 | AG54: 30330.8953 | AH54: 31479.82661 | AI54: 32606.98976 | AJ54: 33899.76974 | AK54: 35231.44758 | AL54: 36556.14805 | AM54: 38111.00543 | AN54: 39956.15867 | AO54: 42647.47473 | AP54: 47728.77955
A55: =IF(AND(StatData[[#This Row],[Shoda: Seskupený CZ-NACE]],StatData[[#This Row],[Shoda: Region]],StatData[[#This Row],[Shoda: Vzdělání]],StatData[[#This Row],[Shoda: Pohlaví]],StatData[[#This Row],[Shoda: Věk]]),1,0) -> 0 | B55: =IF(StatData[[#This Row],[Seskupený CZ-NACE]]=VLOOKUP(Obor,TabObor[],2,0),1,0) -> 1 | C55: =IF(StatData[[#This Row],[Region]]=VLOOKUP(Region,TabRegion[],2,0),1,0) -> 0 | D55: =IF(StatData[[#This Row],[Vzdělání]]=Vzdělání,1,0) -> 0 | E55: =IF(StatData[[#This Row],[Pohlaví]]=Pohlaví,1,0) -> 1 | F55: =IF(StatData[[#This Row],[Věk]]=Věk,1,0) -> 0 | G55: 54 | H55: Celkem | I55: 3 | J55: Základní a nedokončené | K55: Žena | L55: 55 a více let | M55: 16782.88281 | N55: 29031.92216 | O55: 19234.531 | P55: 19718.2098 | Q55: 20096.2507 | R55: 20634.1779 | S55: 21091.1279 | T55: 21474.9242 | U55: 21793.43677 | V55: 22182.79039 | W55: 22540.5602 | X55: 22916.998 | Y55: 23293.3057 | Z55: 23733.1074 | AA55: 24185.3225 | AB55: 24607.0855 | AC55: 24985.8333 | AD55: 25484.40237 | AE55: 26035.42233 | AF55: 26612.08347 | AG55: 27147.48378 | AH55: 28285.34947 | AI55: 29480.05199 | AJ55: 30848.01565 | AK55: 32250.36735 | AL55: 33807.23275 | AM55: 35439.34779 | AN55: 37359.64447 | AO55: 40001.43512 | AP55: 44318.75209
A56: =IF(AND(StatData[[#This Row],[Shoda: Seskupený CZ-NACE]],StatData[[#This Row],[Shoda: Region]],StatData[[#This Row],[Shoda: Vzdělání]],StatData[[#This Row],[Shoda: Pohlaví]],StatData[[#This Row],[Shoda: Věk]]),1,0) -> 0 | B56: =IF(StatData[[#This Row],[Seskupený CZ-NACE]]=VLOOKUP(Obor,TabObor[],2,0),1,0) -> 1 | C56: =IF(StatData[[#This Row],[Region]]=VLOOKUP(Region,TabRegion[],2,0),1,0) -> 0 | D56: =IF(StatData[[#This Row],[Vzdělání]]=Vzdělání,1,0) -> 0 | E56: =IF(StatData[[#This Row],[Pohlaví]]=Pohlaví,1,0) -> 0 | F56: =IF(StatData[[#This Row],[Věk]]=Věk,1,0) -> 1 | G56: 55 | H56: Celkem | I56: 3 | J56: Střední bez maturity | K56: Muž | L56: do 34 let | M56: 85674.02344 | N56: 38161.57163 | O56: 20300.31241 | P56: 21455.78937 | Q56: 22249.10252 | R56: 23115.0433 | S56: 24403.54538 | T56: 25478.54173 | U56: 26338.24539 | V56: 27646.08902 | W56: 28930.8333 | X56: 29926.91422 | Y56: 30777.44394 | Z56: 31714.33908 | AA56: 32608.24332 | AB56: 33342.11301 | AC56: 34049.14707 | AD56: 34763.74682 | AE56: 35608.71588 | AF56: 36372.25215 | AG56: 37187.68872 | AH56: 38781.58022 | AI56: 40305.65111 | AJ56: 41935.5637 | AK56: 43581.26395 | AL56: 45343.01411 | AM56: 47482.34039 | AN56: 50157.42516 | AO56: 54076.70446 | AP56: 60307.81912
A57: =IF(AND(StatData[[#This Row],[Shoda: Seskupený CZ-NACE]],StatData[[#This Row],[Shoda: Region]],StatData[[#This Row],[Shoda: Vzdělání]],StatData[[#This Row],[Shoda: Pohlaví]],StatData[[#This Row],[Shoda: Věk]]),1,0) -> 0 | B57: =IF(StatData[[#This Row],[Seskupený CZ-NACE]]=VLOOKUP(Obor,TabObor[],2,0),1,0) -> 1 | C57: =IF(StatData[[#This Row],[Region]]=VLOOKUP(Region,TabRegion[],2,0),1,0) -> 0 | D57: =IF(StatData[[#This Row],[Vzdělání]]=Vzdělání,1,0) -> 0 | E57: =IF(StatData[[#This Row],[Pohlaví]]=Pohlaví,1,0) -> 0 | F57: =IF(StatData[[#This Row],[Věk]]=Věk,1,0) -> 0 | G57: 56 | H57: Celkem | I57: 3 | J57: Střední bez maturity | K57: Muž | L57: 35 až 54 let | M57: 235331.7344 | N57: 41059.91656 | O57: 20496.25 | P57: 21793.43677 | Q57: 22772.9166 | R57: 24023.49126 | S57: 25542.32477 | T57: 26752.68366 | U57: 28141.45458 | V57: 29235.35129 | W57: 30504.00833 | X57: 31647.54886 | Y57: 32707.17337 | Z57: 33782.52957 | AA57: 34707.64992 | AB57: 35564.50563 | AC57: 36375.49763 | AD57: 37229.33573 | AE57: 38032.90496 | AF57: 38835.28128 | AG57: 39680.77124 | AH57: 41330.82246 | AI57: 42987.10471 | AJ57: 44695.76188 | AK57: 46498.0981 | AL57: 48585.70145 | AM57: 51110.61168 | AN57: 54302.10015 | AO57: 58774.37472 | AP57: 66522.46136
A58: =IF(AND(StatData[[#This Row],[Shoda: Seskupený CZ-NACE]],StatData[[#This Row],[Shoda: Region]],StatData[[#This Row],[Shoda: Vzdělání]],StatData[[#This Row],[Shoda: Pohlaví]],StatData[[#This Row],[Shoda: Věk]]),1,0) -> 0 | B58: =IF(StatData[[#This Row],[Seskupený CZ-NACE]]=VLOOKUP(Obor,TabObor[],2,0),1,0) -> 1 | C58: =IF(StatData[[#This Row],[Region]]=VLOOKUP(Region,TabRegion[],2,0),1,0) -> 0 | D58: =IF(StatData[[#This Row],[Vzdělání]]=Vzdělání,1,0) -> 0 | E58: =IF(StatData[[#This Row],[Pohlaví]]=Pohlaví,1,0) -> 0 | F58: =IF(StatData[[#This Row],[Věk]]=Věk,1,0) -> 0 | G58: 57 | H58: Celkem | I58: 3 | J58: Střední bez maturity | K58: Muž | L58: 55 a více let | M58: 108710.6641 | N58: 39359.88232 | O58: 20888.75791 | P58: 22042.5145 | Q58: 23328 | R58: 24751.8548 | S58: 25943.64342 | T58: 27165.43012 | U58: 28120.55738 | V58: 29158.20214 | W58: 30116.3758 | X58: 31013.58187 | Y58: 31955.4824 | Z58: 32809.61484 | AA58: 33489.14097 | AB58: 34297.9222 | AC58: 35080.00215 | AD58: 35933.93132 | AE58: 36661.31458 | AF58: 37352.00976 | AG58: 38178.55224 | AH58: 39569.29863 | AI58: 41113.49751 | AJ58: 42647.19342 | AK58: 44332.62036 | AL58: 46206.87382 | AM58: 48335.58349 | AN58: 51037.9687 | AO58: 55019.35384 | AP58: 61939.80833
A59: =IF(AND(StatData[[#This Row],[Shoda: Seskupený CZ-NACE]],StatData[[#This Row],[Shoda: Region]],StatData[[#This Row],[Shoda: Vzdělání]],StatData[[#This Row],[Shoda: Pohlaví]],StatData[[#This Row],[Shoda: Věk]]),1,0) -> 0 | B59: =IF(StatData[[#This Row],[Seskupený CZ-NACE]]=VLOOKUP(Obor,TabObor[],2,0),1,0) -> 1 | C59: =IF(StatData[[#This Row],[Region]]=VLOOKUP(Region,TabRegion[],2,0),1,0) -> 0 | D59: =IF(StatData[[#This Row],[Vzdělání]]=Vzdělání,1,0) -> 0 | E59: =IF(StatData[[#This Row],[Pohlaví]]=Pohlaví,1,0) -> 1 | F59: =IF(StatData[[#This Row],[Věk]]=Věk,1,0) -> 1 | G59: 58 | H59: Celkem | I59: 3 | J59: Střední bez maturity | K59: Žena | L59: do 34 let | M59: 28226.33789 | N59: 30456.63388 | O59: 20257.31122 | P59: 21003.75 | Q59: 21504.41688 | R59: 21800.18498 | S59: 22005.8227 | T59: 22408.25 | U59: 22974.00504 | V59: 23433.85636 | W59: 23864.48208 | X59: 24445.4409 | Y59: 24997.28668 | Z59: 25708 | AA59: 26215.22758 | AB59: 26741.37623 | AC59: 27299.53781 | AD59: 27803.66539 | AE59: 28277.48961 | AF59: 28788 | AG59: 29331.5331 | AH59: 30384.39603 | AI59: 31393.60401 | AJ59: 32482.63144 | AK59: 33469.99623 | AL59: 34842.00433 | AM59: 36519.92526 | AN59: 38406.50883 | AO59: 41174.10313 | AP59: 45204.04597
A60: =IF(AND(StatData[[#This Row],[Shoda: Seskupený CZ-NACE]],StatData[[#This Row],[Shoda: Region]],StatData[[#This Row],[Shoda: Vzdělání]],StatData[[#This Row],[Shoda: Pohlaví]],StatData[[#This Row],[Shoda: Věk]]),1,0) -> 0 | B60: =IF(StatData[[#This Row],[Seskupený CZ-NACE]]=VLOOKUP(Obor,TabObor[],2,0),1,0) -> 1 | C60: =IF(StatData[[#This Row],[Region]]=VLOOKUP(Region,TabRegion[],2,0),1,0) -> 0 | D60: =IF(StatData[[#This Row],[Vzdělání]]=Vzdělání,1,0) -> 0 | E60: =IF(StatData[[#This Row],[Pohlaví]]=Pohlaví,1,0) -> 1 | F60: =IF(StatData[[#This Row],[Věk]]=Věk,1,0) -> 0 | G60: 59 | H60: Celkem | I60: 3 | J60: Střední bez maturity | K60: Žena | L60: 35 až 54 let | M60: 147082.8594 | N60: 31375.54157 | O60: 20018.4166 | P60: 20820.9764 | Q60: 21479.7262 | R60: 21973.92747 | S60: 22536.00039 | T60: 23126.92938 | U60: 23602.75 | V60: 24201.1666 | W60: 24781.38783 | X60: 25255.1666 | Y60: 25763.65601 | Z60: 26292.17609 | AA60: 26828.93282 | AB60: 27357.68808 | AC60: 27887.71004 | AD60: 28339.72759 | AE60: 28822.77679 | AF60: 29306.0833 | AG60: 29818.5 | AH60: 30805.39595 | AI60: 31950.73406 | AJ60: 33234.95968 | AK60: 34570.66226 | AL60: 36040.28613 | AM60: 37845.91286 | AN60: 39941.02767 | AO60: 42664.95091 | AP60: 47292.34759
A61: =IF(AND(StatData[[#This Row],[Shoda: Seskupený CZ-NACE]],StatData[[#This Row],[Shoda: Region]],StatData[[#This Row],[Shoda: Vzdělání]],StatData[[#This Row],[Shoda: Pohlaví]],StatData[[#This Row],[Shoda: Věk]]),1,0) -> 0 | B61: =IF(StatData[[#This Row],[Seskupený CZ-NACE]]=VLOOKUP(Obor,TabObor[],2,0),1,0) -> 1 | C61: =IF(StatData[[#This Row],[Region]]=VLOOKUP(Region,TabRegion[],2,0),1,0) -> 0 | D61: =IF(StatData[[#This Row],[Vzdělání]]=Vzdělání,1,0) -> 0 | E61: =IF(StatData[[#This Row],[Pohlaví]]=Pohlaví,1,0) -> 1 | F61: =IF(StatData[[#This Row],[Věk]]=Věk,1,0) -> 0 | G61: 60 | H61: Celkem | I61: 3 | J61: Střední bez maturity | K61: Žena | L61: 55 a více let | M61: 67694.02344 | N61: 30665.79903 | O61: 19729.1666 | P61: 20419.0833 | Q61: 21016.84193 | R61: 21513.25 | S61: 21903.40257 | T61: 22437.0833 | U61: 22947.3333 | V61: 23382.2316 | W61: 23922.1816 | X61: 24524.4333 | Y61: 25077.44258 | Z61: 25545.19416 | AA61: 26034.0833 | AB61: 26511.12173 | AC61: 26985.0833 | AD61: 27542.06804 | AE61: 28096.19199 | AF61: 28605.45871 | AG61: 29148.38731 | AH61: 30154.60018 | AI61: 31205.88173 | AJ61: 32434.11733 | AK61: 33823.92213 | AL61: 35375.31351 | AM61: 37164.19063 | AN61: 39308.73423 | AO61: 41861.11409 | AP61: 46155.21144
A62: =IF(AND(StatData[[#This Row],[Shoda: Seskupený CZ-NACE]],StatData[[#This Row],[Shoda: Region]],StatData[[#This Row],[Shoda: Vzdělání]],StatData[[#This Row],[Shoda: Pohlaví]],StatData[[#This Row],[Shoda: Věk]]),1,0) -> 0 | B62: =IF(StatData[[#This Row],[Seskupený CZ-NACE]]=VLOOKUP(Obor,TabObor[],2,0),1,0) -> 1 | C62: =IF(StatData[[#This Row],[Region]]=VLOOKUP(Region,TabRegion[],2,0),1,0) -> 0 | D62: =IF(StatData[[#This Row],[Vzdělání]]=Vzdělání,1,0) -> 1 | E62: =IF(StatData[[#This Row],[Pohlaví]]=Pohlaví,1,0) -> 0 | F62: =IF(StatData[[#This Row],[Věk]]=Věk,1,0) -> 1 | G62: 61 | H62: Celkem | I62: 3 | J62: Střední s maturitou a vyšší odborné | K62: Muž | L62: do 34 let | M62: 106426.2891 | N62: 44959.28828 | O62: 22697.81112 | P62: 25154.51442 | Q62: 27101.35021 | R62: 29040.16294 | S62: 30418.77991 | T62: 31454.58346 | U62: 32560.44634 | V62: 33469.55637 | W62: 34430.22281 | X62: 35410 | Y62: 36264.14842 | Z62: 37081.0884 | AA62: 37905.91263 | AB62: 38705.79471 | AC62: 39472.39002 | AD62: 40191.6164 | AE62: 41012.527 | AF62: 41767.32089 | AG62: 42580.78417 | AH62: 44060.37936 | AI62: 45685.31591 | AJ62: 47427.76214 | AK62: 49459.10402 | AL62: 51790.90512 | AM62: 54782.37894 | AN62: 58761.56502 | AO62: 64434.3438 | AP62: 73793.34173
A63: =IF(AND(StatData[[#This Row],[Shoda: Seskupený CZ-NACE]],StatData[[#This Row],[Shoda: Region]],StatData[[#This Row],[Shoda: Vzdělání]],StatData[[#This Row],[Shoda: Pohlaví]],StatData[[#This Row],[Shoda: Věk]]),1,0) -> 0 | B63: =IF(StatData[[#This Row],[Seskupený CZ-NACE]]=VLOOKUP(Obor,TabObor[],2,0),1,0) -> 1 | C63: =IF(StatData[[#This Row],[Region]]=VLOOKUP(Region,TabRegion[],2,0),1,0) -> 0 | D63: =IF(StatData[[#This Row],[Vzdělání]]=Vzdělání,1,0) -> 1 | E63: =IF(StatData[[#This Row],[Pohlaví]]=Pohlaví,1,0) -> 0 | F63: =IF(StatData[[#This Row],[Věk]]=Věk,1,0) -> 0 | G63: 62 | H63: Celkem | I63: 3 | J63: Střední s maturitou a vyšší odborné | K63: Muž | L63: 35 až 54 let | M63: 204344 | N63: 52170.89251 | O63: 21956.7863 | P63: 24528.38642 | Q63: 26930.6258 | R63: 29324.4463 | S63: 31304.91516 | T63: 33247.3061 | U63: 34832.50108 | V63: 36059.0203 | W63: 37259.37071 | X63: 38534.35214 | Y63: 39683.73661 | Z63: 40773.13664 | AA63: 41817.12428 | AB63: 42848.98446 | AC63: 43913.59722 | AD63: 44942.52943 | AE63: 45962.89891 | AF63: 47071.98497 | AG63: 48070.68811 | AH63: 50314.06009 | AI63: 52488.25361 | AJ63: 54799.70752 | AK63: 57462.66625 | AL63: 60619.17274 | AM63: 64538.75926 | AN63: 70045.8604 | AO63: 78414.88458 | AP63: 94297.41094
A64: =IF(AND(StatData[[#This Row],[Shoda: Seskupený CZ-NACE]],StatData[[#This Row],[Shoda: Region]],StatData[[#This Row],[Shoda: Vzdělání]],StatData[[#This Row],[Shoda: Pohlaví]],StatData[[#This Row],[Shoda: Věk]]),1,0) -> 0 | B64: =IF(StatData[[#This Row],[Seskupený CZ-NACE]]=VLOOKUP(Obor,TabObor[],2,0),1,0) -> 1 | C64: =IF(StatData[[#This Row],[Region]]=VLOOKUP(Region,TabRegion[],2,0),1,0) -> 0 | D64: =IF(StatData[[#This Row],[Vzdělání]]=Vzdělání,1,0) -> 1 | E64: =IF(StatData[[#This Row],[Pohlaví]]=Pohlaví,1,0) -> 0 | F64: =IF(StatData[[#This Row],[Věk]]=Věk,1,0) -> 0 | G64: 63 | H64: Celkem | I64: 3 | J64: Střední s maturitou a vyšší odborné | K64: Muž | L64: 55 a více let | M64: 70853.25781 | N64: 48392.84174 | O64: 22122.2665 | P64: 24185.25 | Q64: 26021.8013 | R64: 26948.61817 | S64: 28754.5 | T64: 30301.49095 | U64: 31555.38719 | V64: 32737.0892 | W64: 33916.97819 | X64: 35018.49714 | Y64: 36140.45973 | Z64: 37256.29098 | AA64: 38366.13659 | AB64: 39458.5558 | AC64: 40372.09079 | AD64: 41386.39005 | AE64: 42368.93396 | AF64: 43391.69648 | AG64: 44312.98994 | AH64: 46442.24647 | AI64: 48610.85522 | AJ64: 50794.3575 | AK64: 53442.95858 | AL64: 56267.92369 | AM64: 60036.31075 | AN64: 64875.88314 | AO64: 72045.27193 | AP64: 85150.17007
A65: =IF(AND(StatData[[#This Row],[Shoda: Seskupený CZ-NACE]],StatData[[#This Row],[Shoda: Region]],StatData[[#This Row],[Shoda: Vzdělání]],StatData[[#This Row],[Shoda: Pohlaví]],StatData[[#This Row],[Shoda: Věk]]),1,0) -> 0 | B65: =IF(StatData[[#This Row],[Seskupený CZ-NACE]]=VLOOKUP(Obor,TabObor[],2,0),1,0) -> 1 | C65: =IF(StatData[[#This Row],[Region]]=VLOOKUP(Region,TabRegion[],2,0),1,0) -> 0 | D65: =IF(StatData[[#This Row],[Vzdělání]]=Vzdělání,1,0) -> 1 | E65: =IF(StatData[[#This Row],[Pohlaví]]=Pohlaví,1,0) -> 1 | F65: =IF(StatData[[#This Row],[Věk]]=Věk,1,0) -> 1 | G65: 64 | H65: Celkem | I65: 3 | J65: Střední s maturitou a vyšší odborné | K65: Žena | L65: do 34 let | M65: 71081.53125 | N65: 36447.19226 | O65: 21799.20752 | P65: 23118.7862 | Q65: 24065.29775 | R65: 25145.25 | S65: 26118.26255 | T65: 26896.2546 | U65: 27693.2501 | V65: 28308.28336 | W65: 28877.72421 | X65: 29484.85028 | Y65: 30107.8333 | Z65: 30660.45334 | AA65: 31227.56832 | AB65: 31788.38634 | AC65: 32346.57974 | AD65: 33001.06323 | AE65: 33614.7672 | AF65: 34176.25148 | AG65: 34801.34419 | AH65: 35968.97138 | AI65: 37199.10894 | AJ65: 38537.27013 | AK65: 39910.53719 | AL65: 41746.3769 | AM65: 43976.91589 | AN65: 46632.78921 | AO65: 50353.61728 | AP65: 56683.49811
A66: =IF(AND(StatData[[#This Row],[Shoda: Seskupený CZ-NACE]],StatData[[#This Row],[Shoda: Region]],StatData[[#This Row],[Shoda: Vzdělání]],StatData[[#This Row],[Shoda: Pohlaví]],StatData[[#This Row],[Shoda: Věk]]),1,0) -> 0 | B66: =IF(StatData[[#This Row],[Seskupený CZ-NACE]]=VLOOKUP(Obor,TabObor[],2,0),1,0) -> 1 | C66: =IF(StatData[[#This Row],[Region]]=VLOOKUP(Region,TabRegion[],2,0),1,0) -> 0 | D66: =IF(StatData[[#This Row],[Vzdělání]]=Vzdělání,1,0) -> 1 | E66: =IF(StatData[[#This Row],[Pohlaví]]=Pohlaví,1,0) -> 1 | F66: =IF(StatData[[#This Row],[Věk]]=Věk,1,0) -> 0 | G66: 65 | H66: Celkem | I66: 3 | J66: Střední s maturitou a vyšší odborné | K66: Žena | L66: 35 až 54 let | M66: 242602.2188 | N66: 40390.43606 | O66: 22121.96477 | P66: 23553.5763 | Q66: 24900.15463 | R66: 26038.95519 | S66: 27087.2916 | T66: 28001.33688 | U66: 28921.93887 | V66: 29840.54899 | W66: 30583.24802 | X66: 31313.55407 | Y66: 32096.74948 | Z66: 32860.19926 | AA66: 33559.73326 | AB66: 34208.90932 | AC66: 34903.48092 | AD66: 35594.75 | AE66: 36287.22039 | AF66: 37045.46565 | AG66: 37780.03892 | AH66: 39271.70797 | AI66: 40799.11287 | AJ66: 42490.78854 | AK66: 44381.33822 | AL66: 46676.05534 | AM66: 49529.99048 | AN66: 53233.80205 | AO66: 58551.25309 | AP66: 67206.67828
A67: =IF(AND(StatData[[#This Row],[Shoda: Seskupený CZ-NACE]],StatData[[#This Row],[Shoda: Region]],StatData[[#This Row],[Shoda: Vzdělání]],StatData[[#This Row],[Shoda: Pohlaví]],StatData[[#This Row],[Shoda: Věk]]),1,0) -> 0 | B67: =IF(StatData[[#This Row],[Seskupený CZ-NACE]]=VLOOKUP(Obor,TabObor[],2,0),1,0) -> 1 | C67: =IF(StatData[[#This Row],[Region]]=VLOOKUP(Region,TabRegion[],2,0),1,0) -> 0 | D67: =IF(StatData[[#This Row],[Vzdělání]]=Vzdělání,1,0) -> 1 | E67: =IF(StatData[[#This Row],[Pohlaví]]=Pohlaví,1,0) -> 1 | F67: =IF(StatData[[#This Row],[Věk]]=Věk,1,0) -> 0 | G67: 66 | H67: Celkem | I67: 3 | J67: Střední s maturitou a vyšší odborné | K67: Žena | L67: 55 a více let | M67: 98640.42969 | N67: 42477.50416 | O67: 22189.4107 | P67: 23761.00801 | Q67: 25103.26695 | R67: 26441.0833 | S67: 27558.59523 | T67: 28732.20654 | U67: 29743.22435 | V67: 30724.42292 | W67: 31589.35943 | X67: 32635.6199 | Y67: 33624.71373 | Z67: 34671.11314 | AA67: 35598.35546 | AB67: 36416.81287 | AC67: 37160.53359 | AD67: 38051.91427 | AE67: 38857.7449 | AF67: 39589.46184 | AG67: 40325.42718 | AH67: 41801.53979 | AI67: 43313.40156 | AJ67: 44893.39435 | AK67: 46821.07982 | AL67: 49219.28646 | AM67: 52219.60004 | AN67: 55926.82867 | AO67: 61422.90048 | AP67: 70680.66529
A68: =IF(AND(StatData[[#This Row],[Shoda: Seskupený CZ-NACE]],StatData[[#This Row],[Shoda: Region]],StatData[[#This Row],[Shoda: Vzdělání]],StatData[[#This Row],[Shoda: Pohlaví]],StatData[[#This Row],[Shoda: Věk]]),1,0) -> 0 | B68: =IF(StatData[[#This Row],[Seskupený CZ-NACE]]=VLOOKUP(Obor,TabObor[],2,0),1,0) -> 1 | C68: =IF(StatData[[#This Row],[Region]]=VLOOKUP(Region,TabRegion[],2,0),1,0) -> 0 | D68: =IF(StatData[[#This Row],[Vzdělání]]=Vzdělání,1,0) -> 0 | E68: =IF(StatData[[#This Row],[Pohlaví]]=Pohlaví,1,0) -> 0 | F68: =IF(StatData[[#This Row],[Věk]]=Věk,1,0) -> 1 | G68: 67 | H68: Celkem | I68: 3 | J68: Vysokoškolské | K68: Muž | L68: do 34 let | M68: 47623.76562 | N68: 58509.35695 | O68: 27112.0165 | P68: 30219.1796 | Q68: 32877.5 | R68: 35023.58104 | S68: 36479.5632 | T68: 37951.47206 | U68: 39289.91978 | V68: 40659.45555 | W68: 41886.71597 | X68: 42911.32912 | Y68: 43817.29861 | Z68: 44996.46313 | AA68: 45917.11322 | AB68: 46815.28866 | AC68: 47717.03233 | AD68: 48706.48919 | AE68: 49689.16366 | AF68: 50674.13804 | AG68: 51724.39528 | AH68: 54212.13571 | AI68: 57035.34639 | AJ68: 60343.89542 | AK68: 63980.2618 | AL68: 68502.41831 | AM68: 74064.27179 | AN68: 81279.36912 | AO68: 91248.90767 | AP68: 109749.4042
A69: =IF(AND(StatData[[#This Row],[Shoda: Seskupený CZ-NACE]],StatData[[#This Row],[Shoda: Region]],StatData[[#This Row],[Shoda: Vzdělání]],StatData[[#This Row],[Shoda: Pohlaví]],StatData[[#This Row],[Shoda: Věk]]),1,0) -> 0 | B69: =IF(StatData[[#This Row],[Seskupený CZ-NACE]]=VLOOKUP(Obor,TabObor[],2,0),1,0) -> 1 | C69: =IF(StatData[[#This Row],[Region]]=VLOOKUP(Region,TabRegion[],2,0),1,0) -> 0 | D69: =IF(StatData[[#This Row],[Vzdělání]]=Vzdělání,1,0) -> 0 | E69: =IF(StatData[[#This Row],[Pohlaví]]=Pohlaví,1,0) -> 0 | F69: =IF(StatData[[#This Row],[Věk]]=Věk,1,0) -> 0 | G69: 68 | H69: Celkem | I69: 3 | J69: Vysokoškolské | K69: Muž | L69: 35 až 54 let | M69: 123603.1719 | N69: 75999.93153 | O69: 26715.25787 | P69: 30702.58683 | Q69: 34952.1491 | R69: 38398.38019 | S69: 40432.10119 | T69: 42315.64031 | U69: 44191.19104 | V69: 45821.13523 | W69: 47319.70977 | X69: 48928.1196 | Y69: 50412.32623 | Z69: 51933.70357 | AA69: 53531.78452 | AB69: 55033.20253 | AC69: 56645.75047 | AD69: 58227.96127 | AE69: 59927.56767 | AF69: 61572.27871 | AG69: 63490.93709 | AH69: 67321.8278 | AI69: 71524.11461 | AJ69: 76340.40257 | AK69: 82111.22861 | AL69: 89161.97184 | AM69: 97922.93437 | AN69: 109819.9643 | AO69: 129009.3282 | AP69: 163807.2143
A70: =IF(AND(StatData[[#This Row],[Shoda: Seskupený CZ-NACE]],StatData[[#This Row],[Shoda: Region]],StatData[[#This Row],[Shoda: Vzdělání]],StatData[[#This Row],[Shoda: Pohlaví]],StatData[[#This Row],[Shoda: Věk]]),1,0) -> 0 | B70: =IF(StatData[[#This Row],[Seskupený CZ-NACE]]=VLOOKUP(Obor,TabObor[],2,0),1,0) -> 1 | C70: =IF(StatData[[#This Row],[Region]]=VLOOKUP(Region,TabRegion[],2,0),1,0) -> 0 | D70: =IF(StatData[[#This Row],[Vzdělání]]=Vzdělání,1,0) -> 0 | E70: =IF(StatData[[#This Row],[Pohlaví]]=Pohlaví,1,0) -> 0 | F70: =IF(StatData[[#This Row],[Věk]]=Věk,1,0) -> 0 | G70: 69 | H70: Celkem | I70: 3 | J70: Vysokoškolské | K70: Muž | L70: 55 a více let | M70: 50294.20312 | N70: 69269.16587 | O70: 22352.5 | P70: 25792.42528 | Q70: 28090.63773 | R70: 30377.63479 | S70: 32774.91524 | T70: 35561.76192 | U70: 38164.12405 | V70: 40474.05966 | W70: 41791.45732 | X70: 42989.36752 | Y70: 44689.60452 | Z70: 46455.20885 | AA70: 48042.35901 | AB70: 49519.15363 | AC70: 50591.41061 | AD70: 51992.91531 | AE70: 53223.87909 | AF70: 54704.07449 | AG70: 56371.93108 | AH70: 59369.4798 | AI70: 63256.39661 | AJ70: 68158.22213 | AK70: 73537.88741 | AL70: 80937.91472 | AM70: 89625.0511 | AN70: 100536.8499 | AO70: 117879.7636 | AP70: 159749.1923
A71: =IF(AND(StatData[[#This Row],[Shoda: Seskupený CZ-NACE]],StatData[[#This Row],[Shoda: Region]],StatData[[#This Row],[Shoda: Vzdělání]],StatData[[#This Row],[Shoda: Pohlaví]],StatData[[#This Row],[Shoda: Věk]]),1,0) -> 0 | B71: =IF(StatData[[#This Row],[Seskupený CZ-NACE]]=VLOOKUP(Obor,TabObor[],2,0),1,0) -> 1 | C71: =IF(StatData[[#This Row],[Region]]=VLOOKUP(Region,TabRegion[],2,0),1,0) -> 0 | D71: =IF(StatData[[#This Row],[Vzdělání]]=Vzdělání,1,0) -> 0 | E71: =IF(StatData[[#This Row],[Pohlaví]]=Pohlaví,1,0) -> 1 | F71: =IF(StatData[[#This Row],[Věk]]=Věk,1,0) -> 1 | G71: 70 | H71: Celkem | I71: 3 | J71: Vysokoškolské | K71: Žena | L71: do 34 let | M71: 52428.55078 | N71: 47366.18908 | O71: 26576.2812 | P71: 28532.96806 | Q71: 29981.72054 | R71: 31354.55275 | S71: 32414.2251 | T71: 33582.7815 | U71: 34471.9135 | V71: 35370.63254 | W71: 36230.1616 | X71: 37006.47462 | Y71: 37775.34609 | Z71: 38409.74364 | AA71: 39143.95718 | AB71: 39889.74491 | AC71: 40565.16907 | AD71: 41288.65302 | AE71: 41870.46185 | AF71: 42531.09084 | AG71: 43162.48601 | AH71: 44563.05752 | AI71: 45974.80536 | AJ71: 47580.72441 | AK71: 49574.19844 | AL71: 52166.76875 | AM71: 55534.36486 | AN71: 60163.30187 | AO71: 67853.80297 | AP71: 84192.63865
A72: =IF(AND(StatData[[#This Row],[Shoda: Seskupený CZ-NACE]],StatData[[#This Row],[Shoda: Region]],StatData[[#This Row],[Shoda: Vzdělání]],StatData[[#This Row],[Shoda: Pohlaví]],StatData[[#This Row],[Shoda: Věk]]),1,0) -> 0 | B72: =IF(StatData[[#This Row],[Seskupený CZ-NACE]]=VLOOKUP(Obor,TabObor[],2,0),1,0) -> 1 | C72: =IF(StatData[[#This Row],[Region]]=VLOOKUP(Region,TabRegion[],2,0),1,0) -> 0 | D72: =IF(StatData[[#This Row],[Vzdělání]]=Vzdělání,1,0) -> 0 | E72: =IF(StatData[[#This Row],[Pohlaví]]=Pohlaví,1,0) -> 1 | F72: =IF(StatData[[#This Row],[Věk]]=Věk,1,0) -> 0 | G72: 71 | H72: Celkem | I72: 3 | J72: Vysokoškolské | K72: Žena | L72: 35 až 54 let | M72: 143816.8281 | N72: 54743.07214 | O72: 28866.16943 | P72: 31420.86749 | Q72: 33361.38858 | R72: 35031.1697 | S72: 36556.20831 | T72: 37861.54891 | U72: 39015.30423 | V72: 40154.6335 | W72: 41125.41244 | X72: 41993.19842 | Y72: 42897.41756 | Z72: 43692.74183 | AA72: 44627.36411 | AB72: 45485.87484 | AC72: 46359.19338 | AD72: 47103.25836 | AE72: 47860.45077 | AF72: 48680.21633 | AG72: 49488.10263 | AH72: 51136.15675 | AI72: 52952.74184 | AJ72: 54961.54879 | AK72: 57302.27527 | AL72: 60289.12301 | AM72: 64391.23298 | AN72: 70169.29998 | AO72: 79279.66683 | AP72: 97426.09395
A73: =IF(AND(StatData[[#This Row],[Shoda: Seskupený CZ-NACE]],StatData[[#This Row],[Shoda: Region]],StatData[[#This Row],[Shoda: Vzdělání]],StatData[[#This Row],[Shoda: Pohlaví]],StatData[[#This Row],[Shoda: Věk]]),1,0) -> 0 | B73: =IF(StatData[[#This Row],[Seskupený CZ-NACE]]=VLOOKUP(Obor,TabObor[],2,0),1,0) -> 1 | C73: =IF(StatData[[#This Row],[Region]]=VLOOKUP(Region,TabRegion[],2,0),1,0) -> 0 | D73: =IF(StatData[[#This Row],[Vzdělání]]=Vzdělání,1,0) -> 0 | E73: =IF(StatData[[#This Row],[Pohlaví]]=Pohlaví,1,0) -> 1 | F73: =IF(StatData[[#This Row],[Věk]]=Věk,1,0) -> 0 | G73: 72 | H73: Celkem | I73: 3 | J73: Vysokoškolské | K73: Žena | L73: 55 a více let | M73: 44166.48047 | N73: 59786.48216 | O73: 26272.46063 | P73: 30841.00147 | Q73: 34512.09421 | R73: 37676.02311 | S73: 40190.28725 | T73: 42126.07853 | U73: 43512.03072 | V73: 44934.51243 | W73: 46232.95896 | X73: 47510.98922 | Y73: 48583.03868 | Z73: 49728.19796 | AA73: 50657.37284 | AB73: 51546.19274 | AC73: 52312.79917 | AD73: 52941.62945 | AE73: 53674.51189 | AF73: 54389.48775 | AG73: 54980.63047 | AH73: 56248.42798 | AI73: 57701.91601 | AJ73: 59404.69212 | AK73: 61928.18831 | AL73: 65263.88869 | AM73: 70419.90876 | AN73: 77678.71592 | AO73: 87863.06315 | AP73: 106161.1781
A74: =IF(AND(StatData[[#This Row],[Shoda: Seskupený CZ-NACE]],StatData[[#This Row],[Shoda: Region]],StatData[[#This Row],[Shoda: Vzdělání]],StatData[[#This Row],[Shoda: Pohlaví]],StatData[[#This Row],[Shoda: Věk]]),1,0) -> 0 | B74: =IF(StatData[[#This Row],[Seskupený CZ-NACE]]=VLOOKUP(Obor,TabObor[],2,0),1,0) -> 0 | C74: =IF(StatData[[#This Row],[Region]]=VLOOKUP(Region,TabRegion[],2,0),1,0) -> 1 | D74: =IF(StatData[[#This Row],[Vzdělání]]=Vzdělání,1,0) -> 0 | E74: =IF(StatData[[#This Row],[Pohlaví]]=Pohlaví,1,0) -> 0 | F74: =IF(StatData[[#This Row],[Věk]]=Věk,1,0) -> 1 | G74: 73 | H74: Zemědělství a průmysl | I74: 1 | J74: Střední bez maturity | K74: Muž | L74: do 34 let | M74: 2303.560791 | N74: 37723.98229 | O74: 18923.62815 | P74: 18923.62815 | Q74: 19039.75 | R74: 19982.1134 | S74: 20355.4479 | T74: 21234.62242 | U74: 21446.9943 | V74: 21485.3333 | W74: 21855.75203 | X74: 22251.60545 | Y74: 22870.75 | Z74: 23498.51125 | AA74: 23950.5227 | AB74: 26430.667 | AC74: 28744.78316 | AD74: 30227.308 | AE74: 31734.15139 | AF74: 34320.69568 | AG74: 35726.1107 | AH74: 37304.59153 | AI74: 39106.10527 | AJ74: 42668.15545 | AK74: 46622.69988 | AL74: 49980.88861 | AM74: 52783.48632 | AN74: 56544.28212 | AO74: 61728.40052 | AP74: 69386.17778
A75: =IF(AND(StatData[[#This Row],[Shoda: Seskupený CZ-NACE]],StatData[[#This Row],[Shoda: Region]],StatData[[#This Row],[Shoda: Vzdělání]],StatData[[#This Row],[Shoda: Pohlaví]],StatData[[#This Row],[Shoda: Věk]]),1,0) -> 0 | B75: =IF(StatData[[#This Row],[Seskupený CZ-NACE]]=VLOOKUP(Obor,TabObor[],2,0),1,0) -> 0 | C75: =IF(StatData[[#This Row],[Region]]=VLOOKUP(Region,TabRegion[],2,0),1,0) -> 1 | D75: =IF(StatData[[#This Row],[Vzdělání]]=Vzdělání,1,0) -> 0 | E75: =IF(StatData[[#This Row],[Pohlaví]]=Pohlaví,1,0) -> 0 | F75: =IF(StatData[[#This Row],[Věk]]=Věk,1,0) -> 0 | G75: 74 | H75: Zemědělství a průmysl | I75: 1 | J75: Střední bez maturity | K75: Muž | L75: 35 až 54 let | M75: 7859.01123 | N75: 42142.78331 | O75: 19859 | P75: 20317.7118 | Q75: 21043.7423 | R75: 21491.36826 | S75: 21783.83158 | T75: 22055.1617 | U75: 22709.73586 | V75: 22886.0833 | W75: 23966.77361 | X75: 24078.341 | Y75: 26212.6751 | Z75: 27681.17027 | AA75: 30647.35652 | AB75: 34264.36374 | AC75: 36469.98711 | AD75: 37613.77839 | AE75: 38480.74434 | AF75: 39472.47365 | AG75: 40199.26601 | AH75: 44121.07375 | AI75: 46828.90066 | AJ75: 48852.91553 | AK75: 50465.41953 | AL75: 52945.69937 | AM75: 56217.96734 | AN75: 60107.10424 | AO75: 65814.62639 | AP75: 75689.29591
A76: =IF(AND(StatData[[#This Row],[Shoda: Seskupený CZ-NACE]],StatData[[#This Row],[Shoda: Region]],StatData[[#This Row],[Shoda: Vzdělání]],StatData[[#This Row],[Shoda: Pohlaví]],StatData[[#This Row],[Shoda: Věk]]),1,0) -> 0 | B76: =IF(StatData[[#This Row],[Seskupený CZ-NACE]]=VLOOKUP(Obor,TabObor[],2,0),1,0) -> 0 | C76: =IF(StatData[[#This Row],[Region]]=VLOOKUP(Region,TabRegion[],2,0),1,0) -> 1 | D76: =IF(StatData[[#This Row],[Vzdělání]]=Vzdělání,1,0) -> 0 | E76: =IF(StatData[[#This Row],[Pohlaví]]=Pohlaví,1,0) -> 0 | F76: =IF(StatData[[#This Row],[Věk]]=Věk,1,0) -> 0 | G76: 75 | H76: Zemědělství a průmysl | I76: 1 | J76: Střední bez maturity | K76: Muž | L76: 55 a více let | M76: 4120.054199 | N76: 43146.0556 | O76: 19568.70856 | P76: 21152.11887 | Q76: 21793.09665 | R76: 22685.0569 | S76: 26980.30332 | T76: 27468.03321 | U76: 29697.91674 | V76: 30967.6395 | W76: 31732.38924 | X76: 32738.70108 | Y76: 33673.41427 | Z76: 34400.83628 | AA76: 36208.30706 | AB76: 36601.4538 | AC76: 36820.31144 | AD76: 38178.90441 | AE76: 39310.58853 | AF76: 40102.83901 | AG76: 41300.44289 | AH76: 42796.97955 | AI76: 45706.21486 | AJ76: 47887.86686 | AK76: 50093.78589 | AL76: 52955.62714 | AM76: 55297.40287 | AN76: 59388.93068 | AO76: 64846.57023 | AP76: 72196.58375
A77: =IF(AND(StatData[[#This Row],[Shoda: Seskupený CZ-NACE]],StatData[[#This Row],[Shoda: Region]],StatData[[#This Row],[Shoda: Vzdělání]],StatData[[#This Row],[Shoda: Pohlaví]],StatData[[#This Row],[Shoda: Věk]]),1,0) -> 0 | B77: =IF(StatData[[#This Row],[Seskupený CZ-NACE]]=VLOOKUP(Obor,TabObor[],2,0),1,0) -> 0 | C77: =IF(StatData[[#This Row],[Region]]=VLOOKUP(Region,TabRegion[],2,0),1,0) -> 1 | D77: =IF(StatData[[#This Row],[Vzdělání]]=Vzdělání,1,0) -> 0 | E77: =IF(StatData[[#This Row],[Pohlaví]]=Pohlaví,1,0) -> 1 | F77: =IF(StatData[[#This Row],[Věk]]=Věk,1,0) -> 1 | G77: 76 | H77: Zemědělství a průmysl | I77: 1 | J77: Střední bez maturity | K77: Žena | L77: do 34 let | M77: * | N77: * | O77: * | P77: * | Q77: * | R77: * | S77: * | T77: * | U77: * | V77: * | W77: * | X77: * | Y77: * | Z77: * | AA77: * | AB77: * | AC77: * | AD77: * | AE77: * | AF77: * | AG77: * | AH77: * | AI77: * | AJ77: * | AK77: * | AL77: * | AM77: * | AN77: * | AO77: * | AP77: *
A78: =IF(AND(StatData[[#This Row],[Shoda: Seskupený CZ-NACE]],StatData[[#This Row],[Shoda: Region]],StatData[[#This Row],[Shoda: Vzdělání]],StatData[[#This Row],[Shoda: Pohlaví]],StatData[[#This Row],[Shoda: Věk]]),1,0) -> 0 | B78: =IF(StatData[[#This Row],[Seskupený CZ-NACE]]=VLOOKUP(Obor,TabObor[],2,0),1,0) -> 0 | C78: =IF(StatData[[#This Row],[Region]]=VLOOKUP(Region,TabRegion[],2,0),1,0) -> 1 | D78: =IF(StatData[[#This Row],[Vzdělání]]=Vzdělání,1,0) -> 0 | E78: =IF(StatData[[#This Row],[Pohlaví]]=Pohlaví,1,0) -> 1 | F78: =IF(StatData[[#This Row],[Věk]]=Věk,1,0) -> 0 | G78: 77 | H78: Zemědělství a průmysl | I78: 1 | J78: Střední bez maturity | K78: Žena | L78: 35 až 54 let | M78: 845.7740479 | N78: 33424.58957 | O78: 19042.8333 | P78: * | Q78: 19070.0213 | R78: * | S78: 19621.50412 | T78: * | U78: 19621.50412 | V78: * | W78: 21453.69297 | X78: * | Y78: 21859.42569 | Z78: * | AA78: 21859.42569 | AB78: * | AC78: 23757.48505 | AD78: * | AE78: 29694.54258 | AF78: * | AG78: 31360.0105 | AH78: 36084.93838 | AI78: 36178.00565 | AJ78: 40045.78379 | AK78: 42830.68711 | AL78: 45785.06083 | AM78: 45785.06083 | AN78: 47367.6483 | AO78: 51674.08136 | AP78: 53822.02337
A79: =IF(AND(StatData[[#This Row],[Shoda: Seskupený CZ-NACE]],StatData[[#This Row],[Shoda: Region]],StatData[[#This Row],[Shoda: Vzdělání]],StatData[[#This Row],[Shoda: Pohlaví]],StatData[[#This Row],[Shoda: Věk]]),1,0) -> 0 | B79: =IF(StatData[[#This Row],[Seskupený CZ-NACE]]=VLOOKUP(Obor,TabObor[],2,0),1,0) -> 0 | C79: =IF(StatData[[#This Row],[Region]]=VLOOKUP(Region,TabRegion[],2,0),1,0) -> 1 | D79: =IF(StatData[[#This Row],[Vzdělání]]=Vzdělání,1,0) -> 0 | E79: =IF(StatData[[#This Row],[Pohlaví]]=Pohlaví,1,0) -> 1 | F79: =IF(StatData[[#This Row],[Věk]]=Věk,1,0) -> 0 | G79: 78 | H79: Zemědělství a průmysl | I79: 1 | J79: Střední bez maturity | K79: Žena | L79: 55 a více let | M79: * | N79: * | O79: * | P79: * | Q79: * | R79: * | S79: * | T79: * | U79: * | V79: * | W79: * | X79: * | Y79: * | Z79: * | AA79: * | AB79: * | AC79: * | AD79: * | AE79: * | AF79: * | AG79: * | AH79: * | AI79: * | AJ79: * | AK79: * | AL79: * | AM79: * | AN79: * | AO79: * | AP79: *
A80: =IF(AND(StatData[[#This Row],[Shoda: Seskupený CZ-NACE]],StatData[[#This Row],[Shoda: Region]],StatData[[#This Row],[Shoda: Vzdělání]],StatData[[#This Row],[Shoda: Pohlaví]],StatData[[#This Row],[Shoda: Věk]]),1,0) -> 0 | B80: =IF(StatData[[#This Row],[Seskupený CZ-NACE]]=VLOOKUP(Obor,TabObor[],2,0),1,0) -> 0 | C80: =IF(StatData[[#This Row],[Region]]=VLOOKUP(Region,TabRegion[],2,0),1,0) -> 1 | D80: =IF(StatData[[#This Row],[Vzdělání]]=Vzdělání,1,0) -> 1 | E80: =IF(StatData[[#This Row],[Pohlaví]]=Pohlaví,1,0) -> 0 | F80: =IF(StatData[[#This Row],[Věk]]=Věk,1,0) -> 1 | G80: 79 | H80: Zemědělství a průmysl | I80: 1 | J80: Střední s maturitou a vyšší odborné | K80: Muž | L80: do 34 let | M80: 3920.05127 | N80: 44971.65817 | O80: 18946.37367 | P80: 18946.37367 | Q80: 20213.73764 | R80: 20384.36285 | S80: 22040.81351 | T80: 22071.10396 | U80: 22500.807 | V80: 23426.15329 | W80: 28080.70794 | X80: 30310.20407 | Y80: 32860.47867 | Z80: 33937.13087 | AA80: 35606.36398 | AB80: 36468.7547 | AC80: 36983.19385 | AD80: 38122.84358 | AE80: 38859.7122 | AF80: 40201.80402 | AG80: 41890.02706 | AH80: 44777.60037 | AI80: 47198.46484 | AJ80: 51316.93143 | AK80: 53948.81403 | AL80: 58369.33955 | AM80: 61845.42355 | AN80: 65555.72033 | AO80: 71850.40182 | AP80: 76880.20292
A81: =IF(AND(StatData[[#This Row],[Shoda: Seskupený CZ-NACE]],StatData[[#This Row],[Shoda: Region]],StatData[[#This Row],[Shoda: Vzdělání]],StatData[[#This Row],[Shoda: Pohlaví]],StatData[[#This Row],[Shoda: Věk]]),1,0) -> 0 | B81: =IF(StatData[[#This Row],[Seskupený CZ-NACE]]=VLOOKUP(Obor,TabObor[],2,0),1,0) -> 0 | C81: =IF(StatData[[#This Row],[Region]]=VLOOKUP(Region,TabRegion[],2,0),1,0) -> 1 | D81: =IF(StatData[[#This Row],[Vzdělání]]=Vzdělání,1,0) -> 1 | E81: =IF(StatData[[#This Row],[Pohlaví]]=Pohlaví,1,0) -> 0 | F81: =IF(StatData[[#This Row],[Věk]]=Věk,1,0) -> 0 | G81: 80 | H81: Zemědělství a průmysl | I81: 1 | J81: Střední s maturitou a vyšší odborné | K81: Muž | L81: 35 až 54 let | M81: 7938.177734 | N81: 56118.01183 | O81: 20405.22432 | P81: 21807.60004 | Q81: 22026.90192 | R81: 24030.80416 | S81: 25199.78971 | T81: 26207.96271 | U81: 26389.1666 | V81: 28913.11027 | W81: 31995.02984 | X81: 34866.13341 | Y81: 36521.57016 | Z81: 37363.43443 | AA81: 38930.51857 | AB81: 39933.98572 | AC81: 42113.12209 | AD81: 44488.86154 | AE81: 45960.65943 | AF81: 48151.64685 | AG81: 50203.4228 | AH81: 54511.96346 | AI81: 57795.52852 | AJ81: 61950.34984 | AK81: 66880.44325 | AL81: 71681.15294 | AM81: 77722.40556 | AN81: 85583.14678 | AO81: 94361.37811 | AP81: 112163.3958
A82: =IF(AND(StatData[[#This Row],[Shoda: Seskupený CZ-NACE]],StatData[[#This Row],[Shoda: Region]],StatData[[#This Row],[Shoda: Vzdělání]],StatData[[#This Row],[Shoda: Pohlaví]],StatData[[#This Row],[Shoda: Věk]]),1,0) -> 0 | B82: =IF(StatData[[#This Row],[Seskupený CZ-NACE]]=VLOOKUP(Obor,TabObor[],2,0),1,0) -> 0 | C82: =IF(StatData[[#This Row],[Region]]=VLOOKUP(Region,TabRegion[],2,0),1,0) -> 1 | D82: =IF(StatData[[#This Row],[Vzdělání]]=Vzdělání,1,0) -> 1 | E82: =IF(StatData[[#This Row],[Pohlaví]]=Pohlaví,1,0) -> 0 | F82: =IF(StatData[[#This Row],[Věk]]=Věk,1,0) -> 0 | G82: 81 | H82: Zemědělství a průmysl | I82: 1 | J82: Střední s maturitou a vyšší odborné | K82: Muž | L82: 55 a více let | M82: 2767.998779 | N82: 56082.55737 | O82: 19615.6895 | P82: 22029.5 | Q82: 23434 | R82: 24774.63708 | S82: 27940.23971 | T82: 31698.39687 | U82: 34017.26696 | V82: 35119.00219 | W82: 36345.2771 | X82: 39265.59465 | Y82: 40060.92758 | Z82: 41608.14332 | AA82: 42408.87695 | AB82: 43356.19209 | AC82: 45131.26396 | AD82: 45961.00755 | AE82: 45961.00755 | AF82: 47648.86578 | AG82: 48852.91553 | AH82: 51173.85053 | AI82: 55211.88206 | AJ82: 58119.63583 | AK82: 61712.45092 | AL82: 66679.10185 | AM82: 72304.85573 | AN82: 79580.11814 | AO82: 89494.22593 | AP82: 109257.0609
A83: =IF(AND(StatData[[#This Row],[Shoda: Seskupený CZ-NACE]],StatData[[#This Row],[Shoda: Region]],StatData[[#This Row],[Shoda: Vzdělání]],StatData[[#This Row],[Shoda: Pohlaví]],StatData[[#This Row],[Shoda: Věk]]),1,0) -> 0 | B83: =IF(StatData[[#This Row],[Seskupený CZ-NACE]]=VLOOKUP(Obor,TabObor[],2,0),1,0) -> 0 | C83: =IF(StatData[[#This Row],[Region]]=VLOOKUP(Region,TabRegion[],2,0),1,0) -> 1 | D83: =IF(StatData[[#This Row],[Vzdělání]]=Vzdělání,1,0) -> 1 | E83: =IF(StatData[[#This Row],[Pohlaví]]=Pohlaví,1,0) -> 1 | F83: =IF(StatData[[#This Row],[Věk]]=Věk,1,0) -> 1 | G83: 82 | H83: Zemědělství a průmysl | I83: 1 | J83: Střední s maturitou a vyšší odborné | K83: Žena | L83: do 34 let | M83: 1042.989868 | N83: 39452.67968 | O83: * | P83: * | Q83: * | R83: * | S83: * | T83: * | U83: * | V83: * | W83: 24629.6764 | X83: * | Y83: * | Z83: * | AA83: * | AB83: * | AC83: * | AD83: * | AE83: * | AF83: * | AG83: 37533.17063 | AH83: * | AI83: * | AJ83: * | AK83: * | AL83: * | AM83: * | AN83: * | AO83: * | AP83: *
A84: =IF(AND(StatData[[#This Row],[Shoda: Seskupený CZ-NACE]],StatData[[#This Row],[Shoda: Region]],StatData[[#This Row],[Shoda: Vzdělání]],StatData[[#This Row],[Shoda: Pohlaví]],StatData[[#This Row],[Shoda: Věk]]),1,0) -> 0 | B84: =IF(StatData[[#This Row],[Seskupený CZ-NACE]]=VLOOKUP(Obor,TabObor[],2,0),1,0) -> 0 | C84: =IF(StatData[[#This Row],[Region]]=VLOOKUP(Region,TabRegion[],2,0),1,0) -> 1 | D84: =IF(StatData[[#This Row],[Vzdělání]]=Vzdělání,1,0) -> 1 | E84: =IF(StatData[[#This Row],[Pohlaví]]=Pohlaví,1,0) -> 1 | F84: =IF(StatData[[#This Row],[Věk]]=Věk,1,0) -> 0 | G84: 83 | H84: Zemědělství a průmysl | I84: 1 | J84: Střední s maturitou a vyšší odborné | K84: Žena | L84: 35 až 54 let | M84: 3616.366699 | N84: 47128.92183 | O84: 19314.92238 | P84: 19956.94506 | Q84: 20419.42688 | R84: 21964.27704 | S84: 24594.8333 | T84: 28886.61828 | U84: 30772.67944 | V84: 32264.86043 | W84: 33103.68484 | X84: 33892.78014 | Y84: 35365.55461 | Z84: 36249.86759 | AA84: 37041.56442 | AB84: 37101.94256 | AC84: 39453.1367 | AD84: 40074.9822 | AE84: 40914.97792 | AF84: 42321.12154 | AG84: 43690.27242 | AH84: 46008.88517 | AI84: 48645.58511 | AJ84: 51539.91277 | AK84: 53948.76711 | AL84: 55851.3915 | AM84: 58930.39467 | AN84: 62838.50973 | AO84: 69369.4645 | AP84: 85558.43007
A85: =IF(AND(StatData[[#This Row],[Shoda: Seskupený CZ-NACE]],StatData[[#This Row],[Shoda: Region]],StatData[[#This Row],[Shoda: Vzdělání]],StatData[[#This Row],[Shoda: Pohlaví]],StatData[[#This Row],[Shoda: Věk]]),1,0) -> 0 | B85: =IF(StatData[[#This Row],[Seskupený CZ-NACE]]=VLOOKUP(Obor,TabObor[],2,0),1,0) -> 0 | C85: =IF(StatData[[#This Row],[Region]]=VLOOKUP(Region,TabRegion[],2,0),1,0) -> 1 | D85: =IF(StatData[[#This Row],[Vzdělání]]=Vzdělání,1,0) -> 1 | E85: =IF(StatData[[#This Row],[Pohlaví]]=Pohlaví,1,0) -> 1 | F85: =IF(StatData[[#This Row],[Věk]]=Věk,1,0) -> 0 | G85: 84 | H85: Zemědělství a průmysl | I85: 1 | J85: Střední s maturitou a vyšší odborné | K85: Žena | L85: 55 a více let | M85: 1313.635864 | N85: 55574.71443 | O85: 21819.27404 | P85: 26567.0833 | Q85: 30101.28098 | R85: 33176.57593 | S85: 34957.51195 | T85: 36844.73488 | U85: 36900.19268 | V85: 37643.81277 | W85: 39434.07038 | X85: 39728.57107 | Y85: 40181.45651 | Z85: 40181.45651 | AA85: 40362.05332 | AB85: 41213.96865 | AC85: 42211.99658 | AD85: 43457.51546 | AE85: 43747.9508 | AF85: 44139.34638 | AG85: 45681.79272 | AH85: 48869.34746 | AI85: 51510.44638 | AJ85: 54094.14447 | AK85: 57312.34858 | AL85: 61303.23504 | AM85: 64815.71767 | AN85: 70216.97571 | AO85: 75350.695 | AP85: 98346.09883
A86: =IF(AND(StatData[[#This Row],[Shoda: Seskupený CZ-NACE]],StatData[[#This Row],[Shoda: Region]],StatData[[#This Row],[Shoda: Vzdělání]],StatData[[#This Row],[Shoda: Pohlaví]],StatData[[#This Row],[Shoda: Věk]]),1,0) -> 0 | B86: =IF(StatData[[#This Row],[Seskupený CZ-NACE]]=VLOOKUP(Obor,TabObor[],2,0),1,0) -> 0 | C86: =IF(StatData[[#This Row],[Region]]=VLOOKUP(Region,TabRegion[],2,0),1,0) -> 1 | D86: =IF(StatData[[#This Row],[Vzdělání]]=Vzdělání,1,0) -> 0 | E86: =IF(StatData[[#This Row],[Pohlaví]]=Pohlaví,1,0) -> 0 | F86: =IF(StatData[[#This Row],[Věk]]=Věk,1,0) -> 1 | G86: 85 | H86: Zemědělství a průmysl | I86: 1 | J86: Vysokoškolské | K86: Muž | L86: do 34 let | M86: 1830.807495 | N86: 70494.2555 | O86: 20043.67556 | P86: 20043.67556 | Q86: 25993.4889 | R86: 30018.39 | S86: 30816.55493 | T86: 30816.55493 | U86: 33411.40447 | V86: 39975.497 | W86: 44595.36568 | X86: 46822.91217 | Y86: 48940.64965 | Z86: 50942.63113 | AA86: 53200.03258 | AB86: 55527.13757 | AC86: 56723.42421 | AD86: 57337.23962 | AE86: 57611.29015 | AF86: 59607.35057 | AG86: 61035.35533 | AH86: 64688.9498 | AI86: 68344.90647 | AJ86: 72239.47829 | AK86: 76440.846 | AL86: 81888.4295 | AM86: 88957.18284 | AN86: 99705.47158 | AO86: 115058.5772 | AP86: 137608.8136
A87: =IF(AND(StatData[[#This Row],[Shoda: Seskupený CZ-NACE]],StatData[[#This Row],[Shoda: Region]],StatData[[#This Row],[Shoda: Vzdělání]],StatData[[#This Row],[Shoda: Pohlaví]],StatData[[#This Row],[Shoda: Věk]]),1,0) -> 0 | B87: =IF(StatData[[#This Row],[Seskupený CZ-NACE]]=VLOOKUP(Obor,TabObor[],2,0),1,0) -> 0 | C87: =IF(StatData[[#This Row],[Region]]=VLOOKUP(Region,TabRegion[],2,0),1,0) -> 1 | D87: =IF(StatData[[#This Row],[Vzdělání]]=Vzdělání,1,0) -> 0 | E87: =IF(StatData[[#This Row],[Pohlaví]]=Pohlaví,1,0) -> 0 | F87: =IF(StatData[[#This Row],[Věk]]=Věk,1,0) -> 0 | G87: 86 | H87: Zemědělství a průmysl | I87: 1 | J87: Vysokoškolské | K87: Muž | L87: 35 až 54 let | M87: 4581.906738 | N87: 113421.4182 | O87: 35414.41628 | P87: 35495.47566 | Q87: 35544.31521 | R87: 39202.26499 | S87: 45829.49527 | T87: 49563.17751 | U87: 54522.16949 | V87: 59003.81414 | W87: 63096.50271 | X87: 66518.11479 | Y87: 68954.28272 | Z87: 71828.12781 | AA87: 74584.76246 | AB87: 77299.08376 | AC87: 80471.50705 | AD87: 83050.20116 | AE87: 85090.77296 | AF87: 87815.16711 | AG87: 90522.12462 | AH87: 97178.27202 | AI87: 103614.1546 | AJ87: 109734.5198 | AK87: 118091.5376 | AL87: 128261.0137 | AM87: 143454.1301 | AN87: 165015.4356 | AO87: 202501.2481 | AP87: 283683.6733
A88: =IF(AND(StatData[[#This Row],[Shoda: Seskupený CZ-NACE]],StatData[[#This Row],[Shoda: Region]],StatData[[#This Row],[Shoda: Vzdělání]],StatData[[#This Row],[Shoda: Pohlaví]],StatData[[#This Row],[Shoda: Věk]]),1,0) -> 0 | B88: =IF(StatData[[#This Row],[Seskupený CZ-NACE]]=VLOOKUP(Obor,TabObor[],2,0),1,0) -> 0 | C88: =IF(StatData[[#This Row],[Region]]=VLOOKUP(Region,TabRegion[],2,0),1,0) -> 1 | D88: =IF(StatData[[#This Row],[Vzdělání]]=Vzdělání,1,0) -> 0 | E88: =IF(StatData[[#This Row],[Pohlaví]]=Pohlaví,1,0) -> 0 | F88: =IF(StatData[[#This Row],[Věk]]=Věk,1,0) -> 0 | G88: 87 | H88: Zemědělství a průmysl | I88: 1 | J88: Vysokoškolské | K88: Muž | L88: 55 a více let | M88: 1599.481323 | N88: 98284.53597 | O88: 25890.46705 | P88: 26291.40124 | Q88: 28711.60404 | R88: 30385.93132 | S88: 32946.83657 | T88: 41325.39068 | U88: 45215.88811 | V88: 46129.57839 | W88: 46129.57839 | X88: 47249.99275 | Y88: 51479.52333 | Z88: 53257.43184 | AA88: 53676.01612 | AB88: 56004.33201 | AC88: 58974.56432 | AD88: 60674.21386 | AE88: 62355.10899 | AF88: 66686.32625 | AG88: 70731.92804 | AH88: 76912.21276 | AI88: 85603.97326 | AJ88: 91947.19429 | AK88: 99729.72762 | AL88: 108692.7557 | AM88: 117059.5402 | AN88: 136252.9374 | AO88: 179665.8088 | AP88: 223335.8863
A89: =IF(AND(StatData[[#This Row],[Shoda: Seskupený CZ-NACE]],StatData[[#This Row],[Shoda: Region]],StatData[[#This Row],[Shoda: Vzdělání]],StatData[[#This Row],[Shoda: Pohlaví]],StatData[[#This Row],[Shoda: Věk]]),1,0) -> 0 | B89: =IF(StatData[[#This Row],[Seskupený CZ-NACE]]=VLOOKUP(Obor,TabObor[],2,0),1,0) -> 0 | C89: =IF(StatData[[#This Row],[Region]]=VLOOKUP(Region,TabRegion[],2,0),1,0) -> 1 | D89: =IF(StatData[[#This Row],[Vzdělání]]=Vzdělání,1,0) -> 0 | E89: =IF(StatData[[#This Row],[Pohlaví]]=Pohlaví,1,0) -> 1 | F89: =IF(StatData[[#This Row],[Věk]]=Věk,1,0) -> 1 | G89: 88 | H89: Zemědělství a průmysl | I89: 1 | J89: Vysokoškolské | K89: Žena | L89: do 34 let | M89: 971.0770874 | N89: 60897.76716 | O89: 19900 | P89: 21746.24193 | Q89: 29447.62225 | R89: 33096.94562 | S89: 36571.10273 | T89: 37960.52892 | U89: 40366.9321 | V89: 42682.30502 | W89: 43950.87597 | X89: 45356.64237 | Y89: 46544.71976 | Z89: 47932.25591 | AA89: 48924.60437 | AB89: 50125.08459 | AC89: 51851.316 | AD89: 52879.35456 | AE89: 54279.3766 | AF89: 54986.09837 | AG89: 56371.18725 | AH89: 59898.19052 | AI89: 63451.82426 | AJ89: 66281.16969 | AK89: 68589.90151 | AL89: 72194.56202 | AM89: 75621.5906 | AN89: 80318.84894 | AO89: 87370.13006 | AP89: 105723.4889
A90: =IF(AND(StatData[[#This Row],[Shoda: Seskupený CZ-NACE]],StatData[[#This Row],[Shoda: Region]],StatData[[#This Row],[Shoda: Vzdělání]],StatData[[#This Row],[Shoda: Pohlaví]],StatData[[#This Row],[Shoda: Věk]]),1,0) -> 0 | B90: =IF(StatData[[#This Row],[Seskupený CZ-NACE]]=VLOOKUP(Obor,TabObor[],2,0),1,0) -> 0 | C90: =IF(StatData[[#This Row],[Region]]=VLOOKUP(Region,TabRegion[],2,0),1,0) -> 1 | D90: =IF(StatData[[#This Row],[Vzdělání]]=Vzdělání,1,0) -> 0 | E90: =IF(StatData[[#This Row],[Pohlaví]]=Pohlaví,1,0) -> 1 | F90: =IF(StatData[[#This Row],[Věk]]=Věk,1,0) -> 0 | G90: 89 | H90: Zemědělství a průmysl | I90: 1 | J90: Vysokoškolské | K90: Žena | L90: 35 až 54 let | M90: 2606.908691 | N90: 80281.84198 | O90: 30432.99885 | P90: 32061.93008 | Q90: 34021.96811 | R90: 35750.60899 | S90: 38375.01282 | T90: 40768.90267 | U90: 43722.03443 | V90: 45799.97604 | W90: 48951.42373 | X90: 51482.18102 | Y90: 53168.58525 | Z90: 54665.21543 | AA90: 56110.14712 | AB90: 58727.66024 | AC90: 61145.48157 | AD90: 63333.63517 | AE90: 65490.31727 | AF90: 66114.05757 | AG90: 67115.90495 | AH90: 70528.40158 | AI90: 77373.06118 | AJ90: 82488.20108 | AK90: 88543.88346 | AL90: 94043.87575 | AM90: 101264.7531 | AN90: 110634.1378 | AO90: 131486.9191 | AP90: 175077.9541
A91: =IF(AND(StatData[[#This Row],[Shoda: Seskupený CZ-NACE]],StatData[[#This Row],[Shoda: Region]],StatData[[#This Row],[Shoda: Vzdělání]],StatData[[#This Row],[Shoda: Pohlaví]],StatData[[#This Row],[Shoda: Věk]]),1,0) -> 0 | B91: =IF(StatData[[#This Row],[Seskupený CZ-NACE]]=VLOOKUP(Obor,TabObor[],2,0),1,0) -> 0 | C91: =IF(StatData[[#This Row],[Region]]=VLOOKUP(Region,TabRegion[],2,0),1,0) -> 1 | D91: =IF(StatData[[#This Row],[Vzdělání]]=Vzdělání,1,0) -> 0 | E91: =IF(StatData[[#This Row],[Pohlaví]]=Pohlaví,1,0) -> 1 | F91: =IF(StatData[[#This Row],[Věk]]=Věk,1,0) -> 0 | G91: 90 | H91: Zemědělství a průmysl | I91: 1 | J91: Vysokoškolské | K91: Žena | L91: 55 a více let | M91: 405.6498413 | N91: 79161.87884 | O91: 33909.8732 | P91: * | Q91: 39924.14527 | R91: * | S91: 42642.48188 | T91: * | U91: 43747.8947 | V91: * | W91: 48359.65249 | X91: * | Y91: 51707.00366 | Z91: * | AA91: 55758.11087 | AB91: * | AC91: 60413.93628 | AD91: * | AE91: 63735.06905 | AF91: * | AG91: 66388.84586 | AH91: 69718.19729 | AI91: 73228.69419 | AJ91: 79807.75845 | AK91: 89728.75953 | AL91: 95799.80861 | AM91: 107016.933 | AN91: 121985.585 | AO91: 137450.2888 | AP91: 161902.0633
A92: =IF(AND(StatData[[#This Row],[Shoda: Seskupený CZ-NACE]],StatData[[#This Row],[Shoda: Region]],StatData[[#This Row],[Shoda: Vzdělání]],StatData[[#This Row],[Shoda: Pohlaví]],StatData[[#This Row],[Shoda: Věk]]),1,0) -> 0 | B92: =IF(StatData[[#This Row],[Seskupený CZ-NACE]]=VLOOKUP(Obor,TabObor[],2,0),1,0) -> 0 | C92: =IF(StatData[[#This Row],[Region]]=VLOOKUP(Region,TabRegion[],2,0),1,0) -> 0 | D92: =IF(StatData[[#This Row],[Vzdělání]]=Vzdělání,1,0) -> 0 | E92: =IF(StatData[[#This Row],[Pohlaví]]=Pohlaví,1,0) -> 0 | F92: =IF(StatData[[#This Row],[Věk]]=Věk,1,0) -> 1 | G92: 91 | H92: Zemědělství a průmysl | I92: 2 | J92: Střední bez maturity | K92: Muž | L92: do 34 let | M92: 5505.913574 | N92: 37606.58104 | O92: 18956.76191 | P92: 20238.31489 | Q92: 21895.16645 | R92: 22409.87824 | S92: 22667.63291 | T92: 24372.85191 | U92: 25207.26417 | V92: 25919.14882 | W92: 27594.46604 | X92: 28607.76439 | Y92: 29701.39621 | Z92: 30127.24194 | AA92: 31146.67859 | AB92: 31770.37839 | AC92: 32444.75505 | AD92: 33994.35652 | AE92: 34918.80375 | AF92: 35583.17108 | AG92: 36437.26731 | AH92: 37545.79988 | AI92: 39288.64 | AJ92: 40364.16772 | AK92: 42382.94757 | AL92: 43698.03836 | AM92: 46389.67727 | AN92: 50968.66574 | AO92: 58031.34834 | AP92: 63023.92261
A93: =IF(AND(StatData[[#This Row],[Shoda: Seskupený CZ-NACE]],StatData[[#This Row],[Shoda: Region]],StatData[[#This Row],[Shoda: Vzdělání]],StatData[[#This Row],[Shoda: Pohlaví]],StatData[[#This Row],[Shoda: Věk]]),1,0) -> 0 | B93: =IF(StatData[[#This Row],[Seskupený CZ-NACE]]=VLOOKUP(Obor,TabObor[],2,0),1,0) -> 0 | C93: =IF(StatData[[#This Row],[Region]]=VLOOKUP(Region,TabRegion[],2,0),1,0) -> 0 | D93: =IF(StatData[[#This Row],[Vzdělání]]=Vzdělání,1,0) -> 0 | E93: =IF(StatData[[#This Row],[Pohlaví]]=Pohlaví,1,0) -> 0 | F93: =IF(StatData[[#This Row],[Věk]]=Věk,1,0) -> 0 | G93: 92 | H93: Zemědělství a průmysl | I93: 2 | J93: Střední bez maturity | K93: Muž | L93: 35 až 54 let | M93: 17034.70312 | N93: 40135.01703 | O93: 19316.12104 | P93: 20533.9729 | Q93: 21431.4571 | R93: 22557.31741 | S93: 23051.8333 | T93: 26019.15297 | U93: 26730.74575 | V93: 28230.97993 | W93: 29733.3867 | X93: 30677.712 | Y93: 32527.04008 | Z93: 33343.4192 | AA93: 34105.30661 | AB93: 34953.03904 | AC93: 35838.57781 | AD93: 36124.83256 | AE93: 37558.74199 | AF93: 38292.06728 | AG93: 39439.91272 | AH93: 41174.17662 | AI93: 42400.88832 | AJ93: 43773.3217 | AK93: 45336.52603 | AL93: 47479.31509 | AM93: 50579.22895 | AN93: 53616.41516 | AO93: 58353.89685 | AP93: 66194.32222
A94: =IF(AND(StatData[[#This Row],[Shoda: Seskupený CZ-NACE]],StatData[[#This Row],[Shoda: Region]],StatData[[#This Row],[Shoda: Vzdělání]],StatData[[#This Row],[Shoda: Pohlaví]],StatData[[#This Row],[Shoda: Věk]]),1,0) -> 0 | B94: =IF(StatData[[#This Row],[Seskupený CZ-NACE]]=VLOOKUP(Obor,TabObor[],2,0),1,0) -> 0 | C94: =IF(StatData[[#This Row],[Region]]=VLOOKUP(Region,TabRegion[],2,0),1,0) -> 0 | D94: =IF(StatData[[#This Row],[Vzdělání]]=Vzdělání,1,0) -> 0 | E94: =IF(StatData[[#This Row],[Pohlaví]]=Pohlaví,1,0) -> 0 | F94: =IF(StatData[[#This Row],[Věk]]=Věk,1,0) -> 0 | G94: 93 | H94: Zemědělství a průmysl | I94: 2 | J94: Střední bez maturity | K94: Muž | L94: 55 a více let | M94: 8775.291992 | N94: 42064.9659 | O94: 22996.18702 | P94: 23769.12265 | Q94: 24293.99644 | R94: 24610.42484 | S94: 26510.63554 | T94: 28112.92549 | U94: 29735.08928 | V94: 31774.20984 | W94: 32944.59892 | X94: 33764.31966 | Y94: 34819.62402 | Z94: 35508.92955 | AA94: 36204.28863 | AB94: 37306.8305 | AC94: 37994.9874 | AD94: 38584.80089 | AE94: 39175.14921 | AF94: 39924.14469 | AG94: 40359.25185 | AH94: 41846.55179 | AI94: 43019.10969 | AJ94: 44176.78286 | AK94: 45856.98214 | AL94: 48917.51148 | AM94: 52399.09944 | AN94: 55738.72371 | AO94: 59796.68053 | AP94: 68656.84561
A95: =IF(AND(StatData[[#This Row],[Shoda: Seskupený CZ-NACE]],StatData[[#This Row],[Shoda: Region]],StatData[[#This Row],[Shoda: Vzdělání]],StatData[[#This Row],[Shoda: Pohlaví]],StatData[[#This Row],[Shoda: Věk]]),1,0) -> 0 | B95: =IF(StatData[[#This Row],[Seskupený CZ-NACE]]=VLOOKUP(Obor,TabObor[],2,0),1,0) -> 0 | C95: =IF(StatData[[#This Row],[Region]]=VLOOKUP(Region,TabRegion[],2,0),1,0) -> 0 | D95: =IF(StatData[[#This Row],[Vzdělání]]=Vzdělání,1,0) -> 0 | E95: =IF(StatData[[#This Row],[Pohlaví]]=Pohlaví,1,0) -> 1 | F95: =IF(StatData[[#This Row],[Věk]]=Věk,1,0) -> 1 | G95: 94 | H95: Zemědělství a průmysl | I95: 2 | J95: Střední bez maturity | K95: Žena | L95: do 34 let | M95: 548.1126099 | N95: 32396.38981 | O95: * | P95: * | Q95: * | R95: * | S95: * | T95: * | U95: * | V95: * | W95: 26467.39401 | X95: * | Y95: * | Z95: * | AA95: * | AB95: * | AC95: * | AD95: * | AE95: * | AF95: * | AG95: 29742.17092 | AH95: * | AI95: * | AJ95: * | AK95: * | AL95: 35409.708 | AM95: * | AN95: * | AO95: * | AP95: *
A96: =IF(AND(StatData[[#This Row],[Shoda: Seskupený CZ-NACE]],StatData[[#This Row],[Shoda: Region]],StatData[[#This Row],[Shoda: Vzdělání]],StatData[[#This Row],[Shoda: Pohlaví]],StatData[[#This Row],[Shoda: Věk]]),1,0) -> 0 | B96: =IF(StatData[[#This Row],[Seskupený CZ-NACE]]=VLOOKUP(Obor,TabObor[],2,0),1,0) -> 0 | C96: =IF(StatData[[#This Row],[Region]]=VLOOKUP(Region,TabRegion[],2,0),1,0) -> 0 | D96: =IF(StatData[[#This Row],[Vzdělání]]=Vzdělání,1,0) -> 0 | E96: =IF(StatData[[#This Row],[Pohlaví]]=Pohlaví,1,0) -> 1 | F96: =IF(StatData[[#This Row],[Věk]]=Věk,1,0) -> 0 | G96: 95 | H96: Zemědělství a průmysl | I96: 2 | J96: Střední bez maturity | K96: Žena | L96: 35 až 54 let | M96: 2596.212402 | N96: 34366.00491 | O96: 21440 | P96: 22964.3333 | Q96: 22964.3333 | R96: 23383.9052 | S96: 24020.93115 | T96: 24582.36675 | U96: 24651.4935 | V96: 26264.0779 | W96: 28177.81129 | X96: 28406.88724 | Y96: 29220.1404 | Z96: 29231.80817 | AA96: 29231.80817 | AB96: 29680.63674 | AC96: 29961.56744 | AD96: 31451.74466 | AE96: 33104.2279 | AF96: 33158.08449 | AG96: 33179.16588 | AH96: 34946.56884 | AI96: 35348.74361 | AJ96: 37465.14704 | AK96: 38701.30472 | AL96: 40180.30123 | AM96: 41454.29506 | AN96: 43434.60589 | AO96: 44731.6278 | AP96: 52374.4526
A97: =IF(AND(StatData[[#This Row],[Shoda: Seskupený CZ-NACE]],StatData[[#This Row],[Shoda: Region]],StatData[[#This Row],[Shoda: Vzdělání]],StatData[[#This Row],[Shoda: Pohlaví]],StatData[[#This Row],[Shoda: Věk]]),1,0) -> 0 | B97: =IF(StatData[[#This Row],[Seskupený CZ-NACE]]=VLOOKUP(Obor,TabObor[],2,0),1,0) -> 0 | C97: =IF(StatData[[#This Row],[Region]]=VLOOKUP(Region,TabRegion[],2,0),1,0) -> 0 | D97: =IF(StatData[[#This Row],[Vzdělání]]=Vzdělání,1,0) -> 0 | E97: =IF(StatData[[#This Row],[Pohlaví]]=Pohlaví,1,0) -> 1 | F97: =IF(StatData[[#This Row],[Věk]]=Věk,1,0) -> 0 | G97: 96 | H97: Zemědělství a průmysl | I97: 2 | J97: Střední bez maturity | K97: Žena | L97: 55 a více let | M97: 873.6029663 | N97: 36509.26265 | O97: 24969.0333 | P97: 25270.8888 | Q97: 25866.88712 | R97: 26861.11059 | S97: 27791.13083 | T97: 28619.38122 | U97: 28908.32459 | V97: 29114.41835 | W97: 30940.28151 | X97: 30940.28151 | Y97: 31087.78326 | Z97: 32035.25954 | AA97: 33255.73601 | AB97: 33304.94841 | AC97: 33952.05812 | AD97: 33952.05812 | AE97: 34530.61188 | AF97: 34566.29856 | AG97: 34566.29856 | AH97: 35049.51418 | AI97: 36549.62348 | AJ97: 36901.02452 | AK97: 38247.73422 | AL97: 40232.03987 | AM97: 42881.33034 | AN97: 43552.65863 | AO97: 51217.27416 | AP97: 57978.12108
A98: =IF(AND(StatData[[#This Row],[Shoda: Seskupený CZ-NACE]],StatData[[#This Row],[Shoda: Region]],StatData[[#This Row],[Shoda: Vzdělání]],StatData[[#This Row],[Shoda: Pohlaví]],StatData[[#This Row],[Shoda: Věk]]),1,0) -> 0 | B98: =IF(StatData[[#This Row],[Seskupený CZ-NACE]]=VLOOKUP(Obor,TabObor[],2,0),1,0) -> 0 | C98: =IF(StatData[[#This Row],[Region]]=VLOOKUP(Region,TabRegion[],2,0),1,0) -> 0 | D98: =IF(StatData[[#This Row],[Vzdělání]]=Vzdělání,1,0) -> 1 | E98: =IF(StatData[[#This Row],[Pohlaví]]=Pohlaví,1,0) -> 0 | F98: =IF(StatData[[#This Row],[Věk]]=Věk,1,0) -> 1 | G98: 97 | H98: Zemědělství a průmysl | I98: 2 | J98: Střední s maturitou a vyšší odborné | K98: Muž | L98: do 34 let | M98: 4381.093262 | N98: 44559.64521 | O98: 21477.6468 | P98: 23370.87139 | Q98: 26544.99935 | R98: 28000.58641 | S98: 30064.53826 | T98: 30152.30675 | U98: 31201.75188 | V98: 33766.25438 | W98: 34754.98492 | X98: 34924.20939 | Y98: 35493.93161 | Z98: 35575.44249 | AA98: 36052.76138 | AB98: 37000.2897 | AC98: 38394.60578 | AD98: 40281.15378 | AE98: 40399.53648 | AF98: 41544.29514 | AG98: 42111.31265 | AH98: 44950.95809 | AI98: 46383.50694 | AJ98: 48589.83765 | AK98: 51330.88766 | AL98: 54350.43937 | AM98: 56216.99895 | AN98: 60183.65941 | AO98: 63410.57841 | AP98: 72153.81792
A99: =IF(AND(StatData[[#This Row],[Shoda: Seskupený CZ-NACE]],StatData[[#This Row],[Shoda: Region]],StatData[[#This Row],[Shoda: Vzdělání]],StatData[[#This Row],[Shoda: Pohlaví]],StatData[[#This Row],[Shoda: Věk]]),1,0) -> 0 | B99: =IF(StatData[[#This Row],[Seskupený CZ-NACE]]=VLOOKUP(Obor,TabObor[],2,0),1,0) -> 0 | C99: =IF(StatData[[#This Row],[Region]]=VLOOKUP(Region,TabRegion[],2,0),1,0) -> 0 | D99: =IF(StatData[[#This Row],[Vzdělání]]=Vzdělání,1,0) -> 1 | E99: =IF(StatData[[#This Row],[Pohlaví]]=Pohlaví,1,0) -> 0 | F99: =IF(StatData[[#This Row],[Věk]]=Věk,1,0) -> 0 | G99: 98 | H99: Zemědělství a průmysl | I99: 2 | J99: Střední s maturitou a vyšší odborné | K99: Muž | L99: 35 až 54 let | M99: 9778.873047 | N99: 51698.44907 | O99: 21071.57677 | P99: 21450.99159 | Q99: 23603.46361 | R99: 23910.20131 | S99: 25022.25 | T99: 26287.68872 | U99: 27601.17426 | V99: 30565.65077 | W99: 34082.8678 | X99: 35111.95347 | Y99: 36404.90045 | Z99: 37945.91777 | AA99: 39521.47827 | AB99: 41729.80076 | AC99: 42765.99342 | AD99: 44038.09916 | AE99: 45622.77038 | AF99: 47691.31648 | AG99: 49223.53228 | AH99: 52318.19757 | AI99: 54759.8548 | AJ99: 56812.54773 | AK99: 60209.86132 | AL99: 64258.94758 | AM99: 68622.17006 | AN99: 74986.80433 | AO99: 83475.88477 | AP99: 98145.05851
A100: =IF(AND(StatData[[#This Row],[Shoda: Seskupený CZ-NACE]],StatData[[#This Row],[Shoda: Region]],StatData[[#This Row],[Shoda: Vzdělání]],StatData[[#This Row],[Shoda: Pohlaví]],StatData[[#This Row],[Shoda: Věk]]),1,0) -> 0 | B100: =IF(StatData[[#This Row],[Seskupený CZ-NACE]]=VLOOKUP(Obor,TabObor[],2,0),1,0) -> 0 | C100: =IF(StatData[[#This Row],[Region]]=VLOOKUP(Region,TabRegion[],2,0),1,0) -> 0 | D100: =IF(StatData[[#This Row],[Vzdělání]]=Vzdělání,1,0) -> 1 | E100: =IF(StatData[[#This Row],[Pohlaví]]=Pohlaví,1,0) -> 0 | F100: =IF(StatData[[#This Row],[Věk]]=Věk,1,0) -> 0 | G100: 99 | H100: Zemědělství a průmysl | I100: 2 | J100: Střední s maturitou a vyšší odborné | K100: Muž | L100: 55 a více let | M100: 4109.556641 | N100: 51664.96844 | O100: 19605.92796 | P100: 22006.88299 | Q100: 22961.44263 | R100: 24877.47149 | S100: 26032.9671 | T100: 27307.5934 | U100: 28240.08062 | V100: 29899.26426 | W100: 32772.71626 | X100: 34322.81461 | Y100: 35153.27636 | Z100: 36963.43618 | AA100: 38229.79176 | AB100: 40094.99383 | AC100: 41859.53195 | AD100: 43525.44998 | AE100: 44960.3932 | AF100: 47171.37759 | AG100: 48490.9366 | AH100: 51305.02255 | AI100: 54646.41876 | AJ100: 57217.85824 | AK100: 60202.65399 | AL100: 63597.21074 | AM100: 68567.80019 | AN100: 77214.60055 | AO100: 85785.17394 | AP100: 97734.02182
A101: =IF(AND(StatData[[#This Row],[Shoda: Seskupený CZ-NACE]],StatData[[#This Row],[Shoda: Region]],StatData[[#This Row],[Shoda: Vzdělání]],StatData[[#This Row],[Shoda: Pohlaví]],StatData[[#This Row],[Shoda: Věk]]),1,0) -> 0 | B101: =IF(StatData[[#This Row],[Seskupený CZ-NACE]]=VLOOKUP(Obor,TabObor[],2,0),1,0) -> 0 | C101: =IF(StatData[[#This Row],[Region]]=VLOOKUP(Region,TabRegion[],2,0),1,0) -> 0 | D101: =IF(StatData[[#This Row],[Vzdělání]]=Vzdělání,1,0) -> 1 | E101: =IF(StatData[[#This Row],[Pohlaví]]=Pohlaví,1,0) -> 1 | F101: =IF(StatData[[#This Row],[Věk]]=Věk,1,0) -> 1 | G101: 100 | H101: Zemědělství a průmysl | I101: 2 | J101: Střední s maturitou a vyšší odborné | K101: Žena | L101: do 34 let | M101: 1303.971802 | N101: 40977.01061 | O101: 20856.25073 | P101: 21970.62128 | Q101: 23947.2608 | R101: 28101.70934 | S101: 29503.31633 | T101: 30334.41947 | U101: 30808.88397 | V101: 31187.31629 | W101: 31943.63011 | X101: 32605.8713 | Y101: 33861.19684 | Z101: 34198.77767 | AA101: 34734.3234 | AB101: 35952.10864 | AC101: 36549.08379 | AD101: 37535.9217 | AE101: 38091.13492 | AF101: 38928.89056 | AG101: 39556.34629 | AH101: 40395.67866 | AI101: 41855.21152 | AJ101: 42903.96668 | AK101: 45101.39156 | AL101: 47931.85824 | AM101: 50418.02461 | AN101: 53480.7892 | AO101: 58496.86599 | AP101: 65283.70133
A102: =IF(AND(StatData[[#This Row],[Shoda: Seskupený CZ-NACE]],StatData[[#This Row],[Shoda: Region]],StatData[[#This Row],[Shoda: Vzdělání]],StatData[[#This Row],[Shoda: Pohlaví]],StatData[[#This Row],[Shoda: Věk]]),1,0) -> 0 | B102: =IF(StatData[[#This Row],[Seskupený CZ-NACE]]=VLOOKUP(Obor,TabObor[],2,0),1,0) -> 0 | C102: =IF(StatData[[#This Row],[Region]]=VLOOKUP(Region,TabRegion[],2,0),1,0) -> 0 | D102: =IF(StatData[[#This Row],[Vzdělání]]=Vzdělání,1,0) -> 1 | E102: =IF(StatData[[#This Row],[Pohlaví]]=Pohlaví,1,0) -> 1 | F102: =IF(StatData[[#This Row],[Věk]]=Věk,1,0) -> 0 | G102: 101 | H102: Zemědělství a průmysl | I102: 2 | J102: Střední s maturitou a vyšší odborné | K102: Žena | L102: 35 až 54 let | M102: 5548.978027 | N102: 42276.3114 | O102: 19433.05217 | P102: 20209.7346 | Q102: 21316.84447 | R102: 22770.5598 | S102: 24376.26012 | T102: 25912.73706 | U102: 27598.39871 | V102: 29278.9025 | W102: 30932.1595 | X102: 32051.60614 | Y102: 33049.85012 | Z102: 33754.45098 | AA102: 34797.34745 | AB102: 35860.54452 | AC102: 36817.2079 | AD102: 37756.70513 | AE102: 38331.23306 | AF102: 38843.55864 | AG102: 39642.2716 | AH102: 40577.10311 | AI102: 42172.25294 | AJ102: 43625.36763 | AK102: 46341.92436 | AL102: 49054.37561 | AM102: 51986.74481 | AN102: 57037.79568 | AO102: 63836.93442 | AP102: 72953.06228
A103: =IF(AND(StatData[[#This Row],[Shoda: Seskupený CZ-NACE]],StatData[[#This Row],[Shoda: Region]],StatData[[#This Row],[Shoda: Vzdělání]],StatData[[#This Row],[Shoda: Pohlaví]],StatData[[#This Row],[Shoda: Věk]]),1,0) -> 0 | B103: =IF(StatData[[#This Row],[Seskupený CZ-NACE]]=VLOOKUP(Obor,TabObor[],2,0),1,0) -> 0 | C103: =IF(StatData[[#This Row],[Region]]=VLOOKUP(Region,TabRegion[],2,0),1,0) -> 0 | D103: =IF(StatData[[#This Row],[Vzdělání]]=Vzdělání,1,0) -> 1 | E103: =IF(StatData[[#This Row],[Pohlaví]]=Pohlaví,1,0) -> 1 | F103: =IF(StatData[[#This Row],[Věk]]=Věk,1,0) -> 0 | G103: 102 | H103: Zemědělství a průmysl | I103: 2 | J103: Střední s maturitou a vyšší odborné | K103: Žena | L103: 55 a více let | M103: 2453.205566 | N103: 43711.72403 | O103: 23215.48465 | P103: 24980.97502 | Q103: 25353.75 | R103: 26273.76326 | S103: 26617.06649 | T103: 29235.03971 | U103: 30068.59352 | V103: 31775.32653 | W103: 32819.17896 | X103: 33869.28185 | Y103: 33972.74783 | Z103: 35105.81671 | AA103: 36902.62619 | AB103: 38236.99858 | AC103: 38747.49636 | AD103: 39067.00307 | AE103: 40733.87059 | AF103: 41589.32791 | AG103: 42241.63439 | AH103: 44076.11153 | AI103: 44312.07277 | AJ103: 46271.31593 | AK103: 46813.39108 | AL103: 49528.38776 | AM103: 52266.50838 | AN103: 56538.42476 | AO103: 62979.9415 | AP103: 73373.45832
A104: =IF(AND(StatData[[#This Row],[Shoda: Seskupený CZ-NACE]],StatData[[#This Row],[Shoda: Region]],StatData[[#This Row],[Shoda: Vzdělání]],StatData[[#This Row],[Shoda: Pohlaví]],StatData[[#This Row],[Shoda: Věk]]),1,0) -> 0 | B104: =IF(StatData[[#This Row],[Seskupený CZ-NACE]]=VLOOKUP(Obor,TabObor[],2,0),1,0) -> 0 | C104: =IF(StatData[[#This Row],[Region]]=VLOOKUP(Region,TabRegion[],2,0),1,0) -> 0 | D104: =IF(StatData[[#This Row],[Vzdělání]]=Vzdělání,1,0) -> 0 | E104: =IF(StatData[[#This Row],[Pohlaví]]=Pohlaví,1,0) -> 0 | F104: =IF(StatData[[#This Row],[Věk]]=Věk,1,0) -> 1 | G104: 103 | H104: Zemědělství a průmysl | I104: 2 | J104: Vysokoškolské | K104: Muž | L104: do 34 let | M104: 1196.37561 | N104: 50848.57688 | O104: 18918.26431 | P104: 19508.9166 | Q104: 19560.3333 | R104: 20797.84696 | S104: 28043.5332 | T104: 33514.06808 | U104: 33514.06808 | V104: 34201.04172 | W104: 36962.8017 | X104: 38315.04811 | Y104: 38315.04811 | Z104: 38553.4914 | AA104: 40309.70965 | AB104: 40638.06034 | AC104: 41268.1677 | AD104: 41268.1677 | AE104: 41568.88845 | AF104: 43783.40072 | AG104: 46639.18307 | AH104: 49816.66333 | AI104: 52769.00328 | AJ104: 55425.68378 | AK104: 57393.42644 | AL104: 63278.31328 | AM104: 67712.85781 | AN104: 74248.35289 | AO104: 83556.0595 | AP104: 96521.56914
A105: =IF(AND(StatData[[#This Row],[Shoda: Seskupený CZ-NACE]],StatData[[#This Row],[Shoda: Region]],StatData[[#This Row],[Shoda: Vzdělání]],StatData[[#This Row],[Shoda: Pohlaví]],StatData[[#This Row],[Shoda: Věk]]),1,0) -> 0 | B105: =IF(StatData[[#This Row],[Seskupený CZ-NACE]]=VLOOKUP(Obor,TabObor[],2,0),1,0) -> 0 | C105: =IF(StatData[[#This Row],[Region]]=VLOOKUP(Region,TabRegion[],2,0),1,0) -> 0 | D105: =IF(StatData[[#This Row],[Vzdělání]]=Vzdělání,1,0) -> 0 | E105: =IF(StatData[[#This Row],[Pohlaví]]=Pohlaví,1,0) -> 0 | F105: =IF(StatData[[#This Row],[Věk]]=Věk,1,0) -> 0 | G105: 104 | H105: Zemědělství a průmysl | I105: 2 | J105: Vysokoškolské | K105: Muž | L105: 35 až 54 let | M105: 3020.789307 | N105: 77128.32671 | O105: 23455.78734 | P105: 27343.648 | Q105: 31226.96 | R105: 37673.03419 | S105: 42309.46173 | T105: 44952.89766 | U105: 46813.71657 | V105: 48888.64958 | W105: 50357.9135 | X105: 51691.3715 | Y105: 53427.60588 | Z105: 55378.79547 | AA105: 56151.41987 | AB105: 57101.90683 | AC105: 57981.53032 | AD105: 59852.07604 | AE105: 62154.17369 | AF105: 63684.23121 | AG105: 64664.83616 | AH105: 68165.0205 | AI105: 74916.20702 | AJ105: 81440.17681 | AK105: 87562.249 | AL105: 95009.0452 | AM105: 99032.19981 | AN105: 109533.3676 | AO105: 126200.2613 | AP105: 155238.4597
A106: =IF(AND(StatData[[#This Row],[Shoda: Seskupený CZ-NACE]],StatData[[#This Row],[Shoda: Region]],StatData[[#This Row],[Shoda: Vzdělání]],StatData[[#This Row],[Shoda: Pohlaví]],StatData[[#This Row],[Shoda: Věk]]),1,0) -> 0 | B106: =IF(StatData[[#This Row],[Seskupený CZ-NACE]]=VLOOKUP(Obor,TabObor[],2,0),1,0) -> 0 | C106: =IF(StatData[[#This Row],[Region]]=VLOOKUP(Region,TabRegion[],2,0),1,0) -> 0 | D106: =IF(StatData[[#This Row],[Vzdělání]]=Vzdělání,1,0) -> 0 | E106: =IF(StatData[[#This Row],[Pohlaví]]=Pohlaví,1,0) -> 0 | F106: =IF(StatData[[#This Row],[Věk]]=Věk,1,0) -> 0 | G106: 105 | H106: Zemědělství a průmysl | I106: 2 | J106: Vysokoškolské | K106: Muž | L106: 55 a více let | M106: 1851.782227 | N106: 70722.59608 | O106: 25031.55014 | P106: 27185.17048 | Q106: 29484.57857 | R106: 29484.57857 | S106: 29484.57857 | T106: 33118.01977 | U106: 34606.00307 | V106: 37227.30244 | W106: 37227.30244 | X106: 37568.00975 | Y106: 39883.70524 | Z106: 45980.74177 | AA106: 48469.70254 | AB106: 49362.46624 | AC106: 50526.54865 | AD106: 53729.48333 | AE106: 54823.53364 | AF106: 55318.33446 | AG106: 56650.60419 | AH106: 60186.72021 | AI106: 66304.00733 | AJ106: 72834.87346 | AK106: 81620.19336 | AL106: 89491.34862 | AM106: 100523.4835 | AN106: 111021.31 | AO106: 122857.3729 | AP106: 144261.3772
A107: =IF(AND(StatData[[#This Row],[Shoda: Seskupený CZ-NACE]],StatData[[#This Row],[Shoda: Region]],StatData[[#This Row],[Shoda: Vzdělání]],StatData[[#This Row],[Shoda: Pohlaví]],StatData[[#This Row],[Shoda: Věk]]),1,0) -> 0 | B107: =IF(StatData[[#This Row],[Seskupený CZ-NACE]]=VLOOKUP(Obor,TabObor[],2,0),1,0) -> 0 | C107: =IF(StatData[[#This Row],[Region]]=VLOOKUP(Region,TabRegion[],2,0),1,0) -> 0 | D107: =IF(StatData[[#This Row],[Vzdělání]]=Vzdělání,1,0) -> 0 | E107: =IF(StatData[[#This Row],[Pohlaví]]=Pohlaví,1,0) -> 1 | F107: =IF(StatData[[#This Row],[Věk]]=Věk,1,0) -> 1 | G107: 106 | H107: Zemědělství a průmysl | I107: 2 | J107: Vysokoškolské | K107: Žena | L107: do 34 let | M107: 585.8140869 | N107: 45483.98419 | O107: 22295.31462 | P107: * | Q107: 22770.1466 | R107: * | S107: 26414.7177 | T107: * | U107: 32040.99526 | V107: * | W107: 32666.5241 | X107: * | Y107: 32666.5241 | Z107: * | AA107: 36560.39469 | AB107: * | AC107: 39488.77027 | AD107: * | AE107: 42671.19472 | AF107: * | AG107: 45843.08017 | AH107: 47695.08629 | AI107: 49229.77766 | AJ107: 49913.36264 | AK107: 51909.62635 | AL107: 53324.95019 | AM107: 57534.9532 | AN107: 57534.9532 | AO107: 64119.91151 | AP107: 73732.09943
A108: =IF(AND(StatData[[#This Row],[Shoda: Seskupený CZ-NACE]],StatData[[#This Row],[Shoda: Region]],StatData[[#This Row],[Shoda: Vzdělání]],StatData[[#This Row],[Shoda: Pohlaví]],StatData[[#This Row],[Shoda: Věk]]),1,0) -> 0 | B108: =IF(StatData[[#This Row],[Seskupený CZ-NACE]]=VLOOKUP(Obor,TabObor[],2,0),1,0) -> 0 | C108: =IF(StatData[[#This Row],[Region]]=VLOOKUP(Region,TabRegion[],2,0),1,0) -> 0 | D108: =IF(StatData[[#This Row],[Vzdělání]]=Vzdělání,1,0) -> 0 | E108: =IF(StatData[[#This Row],[Pohlaví]]=Pohlaví,1,0) -> 1 | F108: =IF(StatData[[#This Row],[Věk]]=Věk,1,0) -> 0 | G108: 107 | H108: Zemědělství a průmysl | I108: 2 | J108: Vysokoškolské | K108: Žena | L108: 35 až 54 let | M108: 2164.040527 | N108: 51099.804 | O108: 19778.9166 | P108: 23654.35349 | Q108: 25049.6666 | R108: 26193.22267 | S108: 26919.51117 | T108: 28027.05862 | U108: 30624.3284 | V108: 33056.17502 | W108: 34917.34163 | X108: 34917.34163 | Y108: 35529.47359 | Z108: 35529.47359 | AA108: 39029.07602 | AB108: 40533.46915 | AC108: 41631.81865 | AD108: 42919.89098 | AE108: 42919.89098 | AF108: 44570.87753 | AG108: 45276.61305 | AH108: 47970.70628 | AI108: 50222.15651 | AJ108: 53599.55519 | AK108: 56646.13428 | AL108: 59217.78736 | AM108: 66728.18783 | AN108: 73205.9403 | AO108: 83956.85899 | AP108: 97714.63845
A109: =IF(AND(StatData[[#This Row],[Shoda: Seskupený CZ-NACE]],StatData[[#This Row],[Shoda: Region]],StatData[[#This Row],[Shoda: Vzdělání]],StatData[[#This Row],[Shoda: Pohlaví]],StatData[[#This Row],[Shoda: Věk]]),1,0) -> 0 | B109: =IF(StatData[[#This Row],[Seskupený CZ-NACE]]=VLOOKUP(Obor,TabObor[],2,0),1,0) -> 0 | C109: =IF(StatData[[#This Row],[Region]]=VLOOKUP(Region,TabRegion[],2,0),1,0) -> 0 | D109: =IF(StatData[[#This Row],[Vzdělání]]=Vzdělání,1,0) -> 0 | E109: =IF(StatData[[#This Row],[Pohlaví]]=Pohlaví,1,0) -> 1 | F109: =IF(StatData[[#This Row],[Věk]]=Věk,1,0) -> 0 | G109: 108 | H109: Zemědělství a průmysl | I109: 2 | J109: Vysokoškolské | K109: Žena | L109: 55 a více let | M109: 411.5486755 | N109: 60175.7531 | O109: 34706.49535 | P109: * | Q109: 39592.57781 | R109: * | S109: 39592.57781 | T109: * | U109: 39592.57781 | V109: * | W109: 41098.65817 | X109: * | Y109: 44920.95718 | Z109: * | AA109: 47207.78539 | AB109: * | AC109: 49055.49369 | AD109: * | AE109: 51819.76269 | AF109: * | AG109: 53760.17362 | AH109: 57460.22038 | AI109: 59764.97349 | AJ109: 61125.99421 | AK109: 64660.37121 | AL109: 69334.4818 | AM109: 78148.44496 | AN109: 83842.31316 | AO109: 88457.59259 | AP109: 103017.7199
A110: =IF(AND(StatData[[#This Row],[Shoda: Seskupený CZ-NACE]],StatData[[#This Row],[Shoda: Region]],StatData[[#This Row],[Shoda: Vzdělání]],StatData[[#This Row],[Shoda: Pohlaví]],StatData[[#This Row],[Shoda: Věk]]),1,0) -> 0 | B110: =IF(StatData[[#This Row],[Seskupený CZ-NACE]]=VLOOKUP(Obor,TabObor[],2,0),1,0) -> 0 | C110: =IF(StatData[[#This Row],[Region]]=VLOOKUP(Region,TabRegion[],2,0),1,0) -> 0 | D110: =IF(StatData[[#This Row],[Vzdělání]]=Vzdělání,1,0) -> 0 | E110: =IF(StatData[[#This Row],[Pohlaví]]=Pohlaví,1,0) -> 0 | F110: =IF(StatData[[#This Row],[Věk]]=Věk,1,0) -> 1 | G110: 109 | H110: Zemědělství a průmysl | I110: 3 | J110: Střední bez maturity | K110: Muž | L110: do 34 let | M110: 16553.88867 | N110: 37033.46182 | O110: 20299.76884 | P110: 21712.74728 | Q110: 22310.98103 | R110: 22768.5458 | S110: 23801.04574 | T110: 25033.52576 | U110: 25607.97137 | V110: 26143.55002 | W110: 27033.82069 | X110: 28277.52666 | Y110: 29392.76464 | Z110: 29930.47927 | AA110: 30777.44394 | AB110: 31638.63638 | AC110: 32597.11556 | AD110: 33292.53759 | AE110: 33963.07252 | AF110: 34902.36248 | AG110: 35692.12871 | AH110: 37729.50985 | AI110: 39028.32419 | AJ110: 40725.72814 | AK110: 42253.74787 | AL110: 43994.56455 | AM110: 46091.45407 | AN110: 48627.83571 | AO110: 52936.02938 | AP110: 58531.7154
A111: =IF(AND(StatData[[#This Row],[Shoda: Seskupený CZ-NACE]],StatData[[#This Row],[Shoda: Region]],StatData[[#This Row],[Shoda: Vzdělání]],StatData[[#This Row],[Shoda: Pohlaví]],StatData[[#This Row],[Shoda: Věk]]),1,0) -> 0 | B111: =IF(StatData[[#This Row],[Seskupený CZ-NACE]]=VLOOKUP(Obor,TabObor[],2,0),1,0) -> 0 | C111: =IF(StatData[[#This Row],[Region]]=VLOOKUP(Region,TabRegion[],2,0),1,0) -> 0 | D111: =IF(StatData[[#This Row],[Vzdělání]]=Vzdělání,1,0) -> 0 | E111: =IF(StatData[[#This Row],[Pohlaví]]=Pohlaví,1,0) -> 0 | F111: =IF(StatData[[#This Row],[Věk]]=Věk,1,0) -> 0 | G111: 110 | H111: Zemědělství a průmysl | I111: 3 | J111: Střední bez maturity | K111: Muž | L111: 35 až 54 let | M111: 49943.21484 | N111: 39537.66841 | O111: 20338.36498 | P111: 21396.06741 | Q111: 22588.13734 | R111: 23400.62888 | S111: 24587.1085 | T111: 25670.87317 | U111: 26582.17474 | V111: 27711.20169 | W111: 28549.91067 | X111: 29401.79053 | Y111: 30537.62358 | Z111: 31542.869 | AA111: 32596.28745 | AB111: 33823.93452 | AC111: 34742.23705 | AD111: 35760.19883 | AE111: 36402.43172 | AF111: 37216.38252 | AG111: 38056.81499 | AH111: 39908.6827 | AI111: 41576.58444 | AJ111: 43250.17426 | AK111: 45092.33277 | AL111: 47255.38299 | AM111: 49636.67254 | AN111: 52877.42699 | AO111: 58014.60957 | AP111: 65809.73272
A112: =IF(AND(StatData[[#This Row],[Shoda: Seskupený CZ-NACE]],StatData[[#This Row],[Shoda: Region]],StatData[[#This Row],[Shoda: Vzdělání]],StatData[[#This Row],[Shoda: Pohlaví]],StatData[[#This Row],[Shoda: Věk]]),1,0) -> 0 | B112: =IF(StatData[[#This Row],[Seskupený CZ-NACE]]=VLOOKUP(Obor,TabObor[],2,0),1,0) -> 0 | C112: =IF(StatData[[#This Row],[Region]]=VLOOKUP(Region,TabRegion[],2,0),1,0) -> 0 | D112: =IF(StatData[[#This Row],[Vzdělání]]=Vzdělání,1,0) -> 0 | E112: =IF(StatData[[#This Row],[Pohlaví]]=Pohlaví,1,0) -> 0 | F112: =IF(StatData[[#This Row],[Věk]]=Věk,1,0) -> 0 | G112: 111 | H112: Zemědělství a průmysl | I112: 3 | J112: Střední bez maturity | K112: Muž | L112: 55 a více let | M112: 26276.82227 | N112: 39334.04281 | O112: 20736.23905 | P112: 21830.13113 | Q112: 22811.7142 | R112: 25182.9166 | S112: 26143.75 | T112: 27192.72726 | U112: 28091.82024 | V112: 29158.05923 | W112: 30064.43482 | X112: 31097.69404 | Y112: 32042.54695 | Z112: 32796.78288 | AA112: 33499.30578 | AB112: 34147.91389 | AC112: 35132.47728 | AD112: 35933.93132 | AE112: 36590.07153 | AF112: 37417.04148 | AG112: 38259.18086 | AH112: 39777.14599 | AI112: 41315.14755 | AJ112: 42674.07319 | AK112: 44351.71078 | AL112: 46268.68599 | AM112: 48436.85834 | AN112: 51302.69134 | AO112: 55248.60828 | AP112: 62023.61043
A113: =IF(AND(StatData[[#This Row],[Shoda: Seskupený CZ-NACE]],StatData[[#This Row],[Shoda: Region]],StatData[[#This Row],[Shoda: Vzdělání]],StatData[[#This Row],[Shoda: Pohlaví]],StatData[[#This Row],[Shoda: Věk]]),1,0) -> 0 | B113: =IF(StatData[[#This Row],[Seskupený CZ-NACE]]=VLOOKUP(Obor,TabObor[],2,0),1,0) -> 0 | C113: =IF(StatData[[#This Row],[Region]]=VLOOKUP(Region,TabRegion[],2,0),1,0) -> 0 | D113: =IF(StatData[[#This Row],[Vzdělání]]=Vzdělání,1,0) -> 0 | E113: =IF(StatData[[#This Row],[Pohlaví]]=Pohlaví,1,0) -> 1 | F113: =IF(StatData[[#This Row],[Věk]]=Věk,1,0) -> 1 | G113: 112 | H113: Zemědělství a průmysl | I113: 3 | J113: Střední bez maturity | K113: Žena | L113: do 34 let | M113: 946.1855469 | N113: 29783.83581 | O113: 19002.04917 | P113: * | Q113: 19002.04917 | R113: * | S113: 19871.9337 | T113: * | U113: 22065.4182 | V113: * | W113: 22347.46534 | X113: * | Y113: 23177.8311 | Z113: * | AA113: 23751.34791 | AB113: * | AC113: 24028.65465 | AD113: * | AE113: 25658.10827 | AF113: * | AG113: 27178.53031 | AH113: 28948.16576 | AI113: 31198.96248 | AJ113: 32276.03972 | AK113: 33346.49004 | AL113: 36310.32599 | AM113: 39357.84908 | AN113: 41769.8068 | AO113: 42691.60084 | AP113: 43847.63679
A114: =IF(AND(StatData[[#This Row],[Shoda: Seskupený CZ-NACE]],StatData[[#This Row],[Shoda: Region]],StatData[[#This Row],[Shoda: Vzdělání]],StatData[[#This Row],[Shoda: Pohlaví]],StatData[[#This Row],[Shoda: Věk]]),1,0) -> 0 | B114: =IF(StatData[[#This Row],[Seskupený CZ-NACE]]=VLOOKUP(Obor,TabObor[],2,0),1,0) -> 0 | C114: =IF(StatData[[#This Row],[Region]]=VLOOKUP(Region,TabRegion[],2,0),1,0) -> 0 | D114: =IF(StatData[[#This Row],[Vzdělání]]=Vzdělání,1,0) -> 0 | E114: =IF(StatData[[#This Row],[Pohlaví]]=Pohlaví,1,0) -> 1 | F114: =IF(StatData[[#This Row],[Věk]]=Věk,1,0) -> 0 | G114: 113 | H114: Zemědělství a průmysl | I114: 3 | J114: Střední bez maturity | K114: Žena | L114: 35 až 54 let | M114: 5583.768555 | N114: 31084.18921 | O114: 18990.58732 | P114: 19580.0833 | Q114: 19732.98901 | R114: 20300.17653 | S114: 20853.14857 | T114: 21303.56675 | U114: 21884.8333 | V114: 22761.2969 | W114: 24006.3228 | X114: 24967.7323 | Y114: 25330.8839 | Z114: 25879.7766 | AA114: 26258.20867 | AB114: 27048.74802 | AC114: 27391.67473 | AD114: 28011.76399 | AE114: 28559.34686 | AF114: 29121.85938 | AG114: 29997.69926 | AH114: 31244.82936 | AI114: 32259.08261 | AJ114: 33902.09903 | AK114: 35250.57147 | AL114: 37267.62602 | AM114: 39254.10313 | AN114: 41100.30181 | AO114: 42595.85004 | AP114: 45617.84482
A115: =IF(AND(StatData[[#This Row],[Shoda: Seskupený CZ-NACE]],StatData[[#This Row],[Shoda: Region]],StatData[[#This Row],[Shoda: Vzdělání]],StatData[[#This Row],[Shoda: Pohlaví]],StatData[[#This Row],[Shoda: Věk]]),1,0) -> 0 | B115: =IF(StatData[[#This Row],[Seskupený CZ-NACE]]=VLOOKUP(Obor,TabObor[],2,0),1,0) -> 0 | C115: =IF(StatData[[#This Row],[Region]]=VLOOKUP(Region,TabRegion[],2,0),1,0) -> 0 | D115: =IF(StatData[[#This Row],[Vzdělání]]=Vzdělání,1,0) -> 0 | E115: =IF(StatData[[#This Row],[Pohlaví]]=Pohlaví,1,0) -> 1 | F115: =IF(StatData[[#This Row],[Věk]]=Věk,1,0) -> 0 | G115: 114 | H115: Zemědělství a průmysl | I115: 3 | J115: Střední bez maturity | K115: Žena | L115: 55 a více let | M115: 3870.445068 | N115: 31136.26859 | O115: 19648.5 | P115: 19844.13221 | Q115: 20497.56273 | R115: 21417.4156 | S115: 22517.0247 | T115: 22932.60899 | U115: 23164.95935 | V115: 23282.05804 | W115: 23843.7651 | X115: 25011.4166 | Y115: 26296.25293 | Z115: 26493.86956 | AA115: 26917.02087 | AB115: 27448.35168 | AC115: 27602.46054 | AD115: 28140.88394 | AE115: 28536.92416 | AF115: 29356.76611 | AG115: 29901.10498 | AH115: 30893.26571 | AI115: 32264.05313 | AJ115: 33781.98053 | AK115: 34814.92808 | AL115: 36111.75168 | AM115: 38551.19325 | AN115: 40115.62431 | AO115: 41625.9803 | AP115: 46201.79801
A116: =IF(AND(StatData[[#This Row],[Shoda: Seskupený CZ-NACE]],StatData[[#This Row],[Shoda: Region]],StatData[[#This Row],[Shoda: Vzdělání]],StatData[[#This Row],[Shoda: Pohlaví]],StatData[[#This Row],[Shoda: Věk]]),1,0) -> 0 | B116: =IF(StatData[[#This Row],[Seskupený CZ-NACE]]=VLOOKUP(Obor,TabObor[],2,0),1,0) -> 0 | C116: =IF(StatData[[#This Row],[Region]]=VLOOKUP(Region,TabRegion[],2,0),1,0) -> 0 | D116: =IF(StatData[[#This Row],[Vzdělání]]=Vzdělání,1,0) -> 1 | E116: =IF(StatData[[#This Row],[Pohlaví]]=Pohlaví,1,0) -> 0 | F116: =IF(StatData[[#This Row],[Věk]]=Věk,1,0) -> 1 | G116: 115 | H116: Zemědělství a průmysl | I116: 3 | J116: Střední s maturitou a vyšší odborné | K116: Muž | L116: do 34 let | M116: 12372.3252 | N116: 45543.1343 | O116: 21747.53441 | P116: 23685.48384 | Q116: 25371.38883 | R116: 26221.85512 | S116: 27608.99412 | T116: 28953.24663 | U116: 30674.49043 | V116: 31221.63839 | W116: 32791.19833 | X116: 33311.8206 | Y116: 33998.59184 | Z116: 35448.70376 | AA116: 36669.73647 | AB116: 37695.45533 | AC116: 38671.9237 | AD116: 39294.62572 | AE116: 40209.19272 | AF116: 41208.74052 | AG116: 42203.60384 | AH116: 44144.49768 | AI116: 46963.30169 | AJ116: 48916.37932 | AK116: 50613.06469 | AL116: 54763.62577 | AM116: 58066.70796 | AN116: 62857.07869 | AO116: 69028.68657 | AP116: 79210.88363
A117: =IF(AND(StatData[[#This Row],[Shoda: Seskupený CZ-NACE]],StatData[[#This Row],[Shoda: Region]],StatData[[#This Row],[Shoda: Vzdělání]],StatData[[#This Row],[Shoda: Pohlaví]],StatData[[#This Row],[Shoda: Věk]]),1,0) -> 0 | B117: =IF(StatData[[#This Row],[Seskupený CZ-NACE]]=VLOOKUP(Obor,TabObor[],2,0),1,0) -> 0 | C117: =IF(StatData[[#This Row],[Region]]=VLOOKUP(Region,TabRegion[],2,0),1,0) -> 0 | D117: =IF(StatData[[#This Row],[Vzdělání]]=Vzdělání,1,0) -> 1 | E117: =IF(StatData[[#This Row],[Pohlaví]]=Pohlaví,1,0) -> 0 | F117: =IF(StatData[[#This Row],[Věk]]=Věk,1,0) -> 0 | G117: 116 | H117: Zemědělství a průmysl | I117: 3 | J117: Střední s maturitou a vyšší odborné | K117: Muž | L117: 35 až 54 let | M117: 27358.01172 | N117: 51910.50896 | O117: 20379.1984 | P117: 21990.79802 | Q117: 23392.5499 | R117: 25176.79089 | S117: 26875.1672 | T117: 29477.67433 | U117: 31182.5346 | V117: 33090.80562 | W117: 34536.23672 | X117: 35522.31746 | Y117: 36503.61738 | Z117: 38226.66083 | AA117: 39683.73661 | AB117: 40969.33863 | AC117: 42449.48176 | AD117: 43712.09605 | AE117: 45190.85745 | AF117: 46466.90348 | AG117: 47860.42383 | AH117: 50612.4756 | AI117: 53435.09899 | AJ117: 56293.68438 | AK117: 59667.5228 | AL117: 63715.60165 | AM117: 68840.03203 | AN117: 75044.71551 | AO117: 82892.54956 | AP117: 95628.4428
A118: =IF(AND(StatData[[#This Row],[Shoda: Seskupený CZ-NACE]],StatData[[#This Row],[Shoda: Region]],StatData[[#This Row],[Shoda: Vzdělání]],StatData[[#This Row],[Shoda: Pohlaví]],StatData[[#This Row],[Shoda: Věk]]),1,0) -> 0 | B118: =IF(StatData[[#This Row],[Seskupený CZ-NACE]]=VLOOKUP(Obor,TabObor[],2,0),1,0) -> 0 | C118: =IF(StatData[[#This Row],[Region]]=VLOOKUP(Region,TabRegion[],2,0),1,0) -> 0 | D118: =IF(StatData[[#This Row],[Vzdělání]]=Vzdělání,1,0) -> 1 | E118: =IF(StatData[[#This Row],[Pohlaví]]=Pohlaví,1,0) -> 0 | F118: =IF(StatData[[#This Row],[Věk]]=Věk,1,0) -> 0 | G118: 117 | H118: Zemědělství a průmysl | I118: 3 | J118: Střední s maturitou a vyšší odborné | K118: Muž | L118: 55 a více let | M118: 12601.11914 | N118: 50709.87392 | O118: 23200.76143 | P118: 24628.08228 | Q118: 26165.96211 | R118: 26518.4613 | S118: 28396.45734 | T118: 29391.21985 | U118: 30847.77011 | V118: 32179.82193 | W118: 34326.65998 | X118: 35150.4524 | Y118: 36148.53805 | Z118: 37500.95696 | AA118: 38847.38431 | AB118: 39928.28427 | AC118: 41403.49708 | AD118: 42539.03862 | AE118: 43472.37105 | AF118: 44198.96869 | AG118: 45852.78166 | AH118: 49007.79812 | AI118: 51031.52253 | AJ118: 54162.59967 | AK118: 57168.19908 | AL118: 61810.18494 | AM118: 67922.90629 | AN118: 74245.8713 | AO118: 79962.44421 | AP118: 93457.05787
A119: =IF(AND(StatData[[#This Row],[Shoda: Seskupený CZ-NACE]],StatData[[#This Row],[Shoda: Region]],StatData[[#This Row],[Shoda: Vzdělání]],StatData[[#This Row],[Shoda: Pohlaví]],StatData[[#This Row],[Shoda: Věk]]),1,0) -> 0 | B119: =IF(StatData[[#This Row],[Seskupený CZ-NACE]]=VLOOKUP(Obor,TabObor[],2,0),1,0) -> 0 | C119: =IF(StatData[[#This Row],[Region]]=VLOOKUP(Region,TabRegion[],2,0),1,0) -> 0 | D119: =IF(StatData[[#This Row],[Vzdělání]]=Vzdělání,1,0) -> 1 | E119: =IF(StatData[[#This Row],[Pohlaví]]=Pohlaví,1,0) -> 1 | F119: =IF(StatData[[#This Row],[Věk]]=Věk,1,0) -> 1 | G119: 118 | H119: Zemědělství a průmysl | I119: 3 | J119: Střední s maturitou a vyšší odborné | K119: Žena | L119: do 34 let | M119: 2868.086182 | N119: 34871.4679 | O119: 20441.98317 | P119: 21893.44824 | Q119: 21893.44824 | R119: 21903.58845 | S119: 23780.09353 | T119: 23888.43101 | U119: 23916.48297 | V119: 25333.51994 | W119: 26232.2651 | X119: 27267.16254 | Y119: 28213.14339 | Z119: 28672.1449 | AA119: 29035.13571 | AB119: 29553.13078 | AC119: 30260.41221 | AD119: 30681.87259 | AE119: 30754.06367 | AF119: 31423.59849 | AG119: 32657.46224 | AH119: 34403.50568 | AI119: 35954.36229 | AJ119: 37858.34187 | AK119: 39666.72028 | AL119: 41541.5468 | AM119: 43227.90937 | AN119: 46176.11173 | AO119: 49712.4163 | AP119: 56642.30425
A120: =IF(AND(StatData[[#This Row],[Shoda: Seskupený CZ-NACE]],StatData[[#This Row],[Shoda: Region]],StatData[[#This Row],[Shoda: Vzdělání]],StatData[[#This Row],[Shoda: Pohlaví]],StatData[[#This Row],[Shoda: Věk]]),1,0) -> 0 | B120: =IF(StatData[[#This Row],[Seskupený CZ-NACE]]=VLOOKUP(Obor,TabObor[],2,0),1,0) -> 0 | C120: =IF(StatData[[#This Row],[Region]]=VLOOKUP(Region,TabRegion[],2,0),1,0) -> 0 | D120: =IF(StatData[[#This Row],[Vzdělání]]=Vzdělání,1,0) -> 1 | E120: =IF(StatData[[#This Row],[Pohlaví]]=Pohlaví,1,0) -> 1 | F120: =IF(StatData[[#This Row],[Věk]]=Věk,1,0) -> 0 | G120: 119 | H120: Zemědělství a průmysl | I120: 3 | J120: Střední s maturitou a vyšší odborné | K120: Žena | L120: 35 až 54 let | M120: 14576.25293 | N120: 39052.16981 | O120: 21151.16698 | P120: 21812.83819 | Q120: 22061.06952 | R120: 22831.27697 | S120: 23826.43053 | T120: 25000.4267 | U120: 25836.18715 | V120: 26243.09001 | W120: 26763.46861 | X120: 28150.3963 | Y120: 28737.22899 | Z120: 30135.52476 | AA120: 31163.24302 | AB120: 32279.60883 | AC120: 33338.93772 | AD120: 33863.4495 | AE120: 34611.7319 | AF120: 35445.41287 | AG120: 35944.7609 | AH120: 37793.14244 | AI120: 39687.12218 | AJ120: 41521.95755 | AK120: 43364.5238 | AL120: 45977.27656 | AM120: 49303.39042 | AN120: 52527.60248 | AO120: 58944.32842 | AP120: 69617.81321
A121: =IF(AND(StatData[[#This Row],[Shoda: Seskupený CZ-NACE]],StatData[[#This Row],[Shoda: Region]],StatData[[#This Row],[Shoda: Vzdělání]],StatData[[#This Row],[Shoda: Pohlaví]],StatData[[#This Row],[Shoda: Věk]]),1,0) -> 0 | B121: =IF(StatData[[#This Row],[Seskupený CZ-NACE]]=VLOOKUP(Obor,TabObor[],2,0),1,0) -> 0 | C121: =IF(StatData[[#This Row],[Region]]=VLOOKUP(Region,TabRegion[],2,0),1,0) -> 0 | D121: =IF(StatData[[#This Row],[Vzdělání]]=Vzdělání,1,0) -> 1 | E121: =IF(StatData[[#This Row],[Pohlaví]]=Pohlaví,1,0) -> 1 | F121: =IF(StatData[[#This Row],[Věk]]=Věk,1,0) -> 0 | G121: 120 | H121: Zemědělství a průmysl | I121: 3 | J121: Střední s maturitou a vyšší odborné | K121: Žena | L121: 55 a více let | M121: 7133.277832 | N121: 40270.81475 | O121: 20407.05906 | P121: 21838.7985 | Q121: 22873.4166 | R121: 22939.90178 | S121: 23550.2036 | T121: 26475.39143 | U121: 27198.0182 | V121: 27900.7225 | W121: 28740.83133 | X121: 29763.6371 | Y121: 30637.23176 | Z121: 32099.91447 | AA121: 32656.34292 | AB121: 33504.16234 | AC121: 34561.52088 | AD121: 35294.27175 | AE121: 36004.49606 | AF121: 36567.12916 | AG121: 37584.78219 | AH121: 40985.85595 | AI121: 42165.58233 | AJ121: 43772.88172 | AK121: 45523.93596 | AL121: 47943.04443 | AM121: 50247.72283 | AN121: 54034.60239 | AO121: 60340.91984 | AP121: 67928.68052
A122: =IF(AND(StatData[[#This Row],[Shoda: Seskupený CZ-NACE]],StatData[[#This Row],[Shoda: Region]],StatData[[#This Row],[Shoda: Vzdělání]],StatData[[#This Row],[Shoda: Pohlaví]],StatData[[#This Row],[Shoda: Věk]]),1,0) -> 0 | B122: =IF(StatData[[#This Row],[Seskupený CZ-NACE]]=VLOOKUP(Obor,TabObor[],2,0),1,0) -> 0 | C122: =IF(StatData[[#This Row],[Region]]=VLOOKUP(Region,TabRegion[],2,0),1,0) -> 0 | D122: =IF(StatData[[#This Row],[Vzdělání]]=Vzdělání,1,0) -> 0 | E122: =IF(StatData[[#This Row],[Pohlaví]]=Pohlaví,1,0) -> 0 | F122: =IF(StatData[[#This Row],[Věk]]=Věk,1,0) -> 1 | G122: 121 | H122: Zemědělství a průmysl | I122: 3 | J122: Vysokoškolské | K122: Muž | L122: do 34 let | M122: 4032.116455 | N122: 55768.87245 | O122: 19784.6478 | P122: 21814.42264 | Q122: 22042.5145 | R122: 24999.97774 | S122: 25300.91783 | T122: 27435.15395 | U122: 29414.87982 | V122: 31728.34588 | W122: 36893.89496 | X122: 39712.40892 | Y122: 42020.45568 | Z122: 42911.32912 | AA122: 44614.52709 | AB122: 45825.63099 | AC122: 47219.42864 | AD122: 48779.08918 | AE122: 50066.82561 | AF122: 52228.64769 | AG122: 53728.8079 | AH122: 55145.73368 | AI122: 57569.00487 | AJ122: 61582.04923 | AK122: 66064.76609 | AL122: 70269.20525 | AM122: 76618.11598 | AN122: 82419.8425 | AO122: 88528.37306 | AP122: 104157.877
A123: =IF(AND(StatData[[#This Row],[Shoda: Seskupený CZ-NACE]],StatData[[#This Row],[Shoda: Region]],StatData[[#This Row],[Shoda: Vzdělání]],StatData[[#This Row],[Shoda: Pohlaví]],StatData[[#This Row],[Shoda: Věk]]),1,0) -> 0 | B123: =IF(StatData[[#This Row],[Seskupený CZ-NACE]]=VLOOKUP(Obor,TabObor[],2,0),1,0) -> 0 | C123: =IF(StatData[[#This Row],[Region]]=VLOOKUP(Region,TabRegion[],2,0),1,0) -> 0 | D123: =IF(StatData[[#This Row],[Vzdělání]]=Vzdělání,1,0) -> 0 | E123: =IF(StatData[[#This Row],[Pohlaví]]=Pohlaví,1,0) -> 0 | F123: =IF(StatData[[#This Row],[Věk]]=Věk,1,0) -> 0 | G123: 122 | H123: Zemědělství a průmysl | I123: 3 | J123: Vysokoškolské | K123: Muž | L123: 35 až 54 let | M123: 11530.22559 | N123: 74315.15344 | O123: 21115.75858 | P123: 23620.3391 | Q123: 28891.82674 | R123: 30636.47031 | S123: 34141.21818 | T123: 37694.99055 | U123: 40498.46204 | V123: 42344.19834 | W123: 44536.41817 | X123: 47130.7098 | Y123: 49643.53828 | Z123: 51289.16017 | AA123: 52602.70245 | AB123: 54641.49448 | AC123: 56299.78423 | AD123: 58962.97833 | AE123: 60688.66096 | AF123: 62367.12671 | AG123: 64481.49728 | AH123: 68394.18822 | AI123: 73789.3656 | AJ123: 79170.99447 | AK123: 84313.83396 | AL123: 91257.467 | AM123: 98890.54308 | AN123: 107633.33 | AO123: 125233.2885 | AP123: 152620.2574
A124: =IF(AND(StatData[[#This Row],[Shoda: Seskupený CZ-NACE]],StatData[[#This Row],[Shoda: Region]],StatData[[#This Row],[Shoda: Vzdělání]],StatData[[#This Row],[Shoda: Pohlaví]],StatData[[#This Row],[Shoda: Věk]]),1,0) -> 0 | B124: =IF(StatData[[#This Row],[Seskupený CZ-NACE]]=VLOOKUP(Obor,TabObor[],2,0),1,0) -> 0 | C124: =IF(StatData[[#This Row],[Region]]=VLOOKUP(Region,TabRegion[],2,0),1,0) -> 0 | D124: =IF(StatData[[#This Row],[Vzdělání]]=Vzdělání,1,0) -> 0 | E124: =IF(StatData[[#This Row],[Pohlaví]]=Pohlaví,1,0) -> 0 | F124: =IF(StatData[[#This Row],[Věk]]=Věk,1,0) -> 0 | G124: 123 | H124: Zemědělství a průmysl | I124: 3 | J124: Vysokoškolské | K124: Muž | L124: 55 a více let | M124: 5628.586914 | N124: 70934.70781 | O124: 19918.10739 | P124: 21380.1343 | Q124: 24439.701 | R124: 26699.1518 | S124: 27030.89227 | T124: 29190.97627 | U124: 30698.72993 | V124: 32774.91524 | W124: 38896.56909 | X124: 41299.82675 | Y124: 44230.40715 | Z124: 47755.36753 | AA124: 49887.13945 | AB124: 51413.28187 | AC124: 52389.89164 | AD124: 53094.2654 | AE124: 55662.19129 | AF124: 57868.84709 | AG124: 59262.99634 | AH124: 63541.46385 | AI124: 68360.79243 | AJ124: 73689.06444 | AK124: 82484.21792 | AL124: 89424.98854 | AM124: 96560.24256 | AN124: 109744.8223 | AO124: 126132.0496 | AP124: 162713.1533
A125: =IF(AND(StatData[[#This Row],[Shoda: Seskupený CZ-NACE]],StatData[[#This Row],[Shoda: Region]],StatData[[#This Row],[Shoda: Vzdělání]],StatData[[#This Row],[Shoda: Pohlaví]],StatData[[#This Row],[Shoda: Věk]]),1,0) -> 0 | B125: =IF(StatData[[#This Row],[Seskupený CZ-NACE]]=VLOOKUP(Obor,TabObor[],2,0),1,0) -> 0 | C125: =IF(StatData[[#This Row],[Region]]=VLOOKUP(Region,TabRegion[],2,0),1,0) -> 0 | D125: =IF(StatData[[#This Row],[Vzdělání]]=Vzdělání,1,0) -> 0 | E125: =IF(StatData[[#This Row],[Pohlaví]]=Pohlaví,1,0) -> 1 | F125: =IF(StatData[[#This Row],[Věk]]=Věk,1,0) -> 1 | G125: 124 | H125: Zemědělství a průmysl | I125: 3 | J125: Vysokoškolské | K125: Žena | L125: do 34 let | M125: 2486.804932 | N125: 43392.71566 | O125: 20608.89898 | P125: 21095.92203 | Q125: 21861.5833 | R125: 25918.93087 | S125: 28622.10439 | T125: 30854.28192 | U125: 31709.22757 | V125: 32023.9713 | W125: 33763.1778 | X125: 35037.51077 | Y125: 35686.32204 | Z125: 36401.74441 | AA125: 38036.85392 | AB125: 38222.47077 | AC125: 38470.78719 | AD125: 39815.06053 | AE125: 40220.47836 | AF125: 40951.11655 | AG125: 43074.65767 | AH125: 44275.79252 | AI125: 44846.62968 | AJ125: 46995.64356 | AK125: 48723.49791 | AL125: 50000.3906 | AM125: 52585.46018 | AN125: 55886.68463 | AO125: 60841.97901 | AP125: 71981.74771
A126: =IF(AND(StatData[[#This Row],[Shoda: Seskupený CZ-NACE]],StatData[[#This Row],[Shoda: Region]],StatData[[#This Row],[Shoda: Vzdělání]],StatData[[#This Row],[Shoda: Pohlaví]],StatData[[#This Row],[Shoda: Věk]]),1,0) -> 0 | B126: =IF(StatData[[#This Row],[Seskupený CZ-NACE]]=VLOOKUP(Obor,TabObor[],2,0),1,0) -> 0 | C126: =IF(StatData[[#This Row],[Region]]=VLOOKUP(Region,TabRegion[],2,0),1,0) -> 0 | D126: =IF(StatData[[#This Row],[Vzdělání]]=Vzdělání,1,0) -> 0 | E126: =IF(StatData[[#This Row],[Pohlaví]]=Pohlaví,1,0) -> 1 | F126: =IF(StatData[[#This Row],[Věk]]=Věk,1,0) -> 0 | G126: 125 | H126: Zemědělství a průmysl | I126: 3 | J126: Vysokoškolské | K126: Žena | L126: 35 až 54 let | M126: 5962.317383 | N126: 53254.17916 | O126: 22034.2136 | P126: 26250.13496 | Q126: 27884.20764 | R126: 30061.01484 | S126: 31681.61567 | T126: 32762.06182 | U126: 34732.68622 | V126: 35734.4503 | W126: 37704.60061 | X126: 38565.42657 | Y126: 39861.41029 | Z126: 40708.5661 | AA126: 41358.70302 | AB126: 42451.5072 | AC126: 43420.67509 | AD126: 44856.45284 | AE126: 45600.99748 | AF126: 46678.15985 | AG126: 47308.45978 | AH126: 49318.02727 | AI126: 52361.889 | AJ126: 55193.95602 | AK126: 58040.16099 | AL126: 61099.66889 | AM126: 66391.83692 | AN126: 72822.03276 | AO126: 81724.51398 | AP126: 98095.58054
A127: =IF(AND(StatData[[#This Row],[Shoda: Seskupený CZ-NACE]],StatData[[#This Row],[Shoda: Region]],StatData[[#This Row],[Shoda: Vzdělání]],StatData[[#This Row],[Shoda: Pohlaví]],StatData[[#This Row],[Shoda: Věk]]),1,0) -> 0 | B127: =IF(StatData[[#This Row],[Seskupený CZ-NACE]]=VLOOKUP(Obor,TabObor[],2,0),1,0) -> 0 | C127: =IF(StatData[[#This Row],[Region]]=VLOOKUP(Region,TabRegion[],2,0),1,0) -> 0 | D127: =IF(StatData[[#This Row],[Vzdělání]]=Vzdělání,1,0) -> 0 | E127: =IF(StatData[[#This Row],[Pohlaví]]=Pohlaví,1,0) -> 1 | F127: =IF(StatData[[#This Row],[Věk]]=Věk,1,0) -> 0 | G127: 126 | H127: Zemědělství a průmysl | I127: 3 | J127: Vysokoškolské | K127: Žena | L127: 55 a více let | M127: 1646.873779 | N127: 56876.45054 | O127: 20429.82395 | P127: 20429.82395 | Q127: 20429.82395 | R127: 20429.82395 | S127: 25593.15829 | T127: 27800.79627 | U127: 31853.84999 | V127: 33722.79837 | W127: 33722.79837 | X127: 34345.07337 | Y127: 35381.8896 | Z127: 37468.43631 | AA127: 41493.56845 | AB127: 43798.8797 | AC127: 46493.22952 | AD127: 47719.89285 | AE127: 49683.24624 | AF127: 51469.5957 | AG127: 51848.77427 | AH127: 55852.80171 | AI127: 58634.41096 | AJ127: 61336.77898 | AK127: 65158.5143 | AL127: 70419.90876 | AM127: 73419.69556 | AN127: 79473.03725 | AO127: 89039.42338 | AP127: 105049.94
A128: =IF(AND(StatData[[#This Row],[Shoda: Seskupený CZ-NACE]],StatData[[#This Row],[Shoda: Region]],StatData[[#This Row],[Shoda: Vzdělání]],StatData[[#This Row],[Shoda: Pohlaví]],StatData[[#This Row],[Shoda: Věk]]),1,0) -> 0 | B128: =IF(StatData[[#This Row],[Seskupený CZ-NACE]]=VLOOKUP(Obor,TabObor[],2,0),1,0) -> 0 | C128: =IF(StatData[[#This Row],[Region]]=VLOOKUP(Region,TabRegion[],2,0),1,0) -> 1 | D128: =IF(StatData[[#This Row],[Vzdělání]]=Vzdělání,1,0) -> 0 | E128: =IF(StatData[[#This Row],[Pohlaví]]=Pohlaví,1,0) -> 0 | F128: =IF(StatData[[#This Row],[Věk]]=Věk,1,0) -> 1 | G128: 127 | H128: Zpracovatelský průmysl | I128: 1 | J128: Střední bez maturity | K128: Muž | L128: do 34 let | M128: 1525.441406 | N128: 43290.47177 | O128: 18900 | P128: 21625.75234 | Q128: 21661.80633 | R128: 23544.4193 | S128: 27359.69341 | T128: 32717.98827 | U128: 33644.69769 | V128: 34443.54337 | W128: 35281.47405 | X128: 36530.59336 | Y128: 37446.87347 | Z128: 37706.04216 | AA128: 38157.58957 | AB128: 38978.87326 | AC128: 39464.42314 | AD128: 40206.14113 | AE128: 40592.47895 | AF128: 41092.39482 | AG128: 42274.58799 | AH128: 43715.28783 | AI128: 46281.40811 | AJ128: 48675.02411 | AK128: 50118.63887 | AL128: 51871.16892 | AM128: 53921.10677 | AN128: 57399.44805 | AO128: 60545.24686 | AP128: 65104.91006
A129: =IF(AND(StatData[[#This Row],[Shoda: Seskupený CZ-NACE]],StatData[[#This Row],[Shoda: Region]],StatData[[#This Row],[Shoda: Vzdělání]],StatData[[#This Row],[Shoda: Pohlaví]],StatData[[#This Row],[Shoda: Věk]]),1,0) -> 0 | B129: =IF(StatData[[#This Row],[Seskupený CZ-NACE]]=VLOOKUP(Obor,TabObor[],2,0),1,0) -> 0 | C129: =IF(StatData[[#This Row],[Region]]=VLOOKUP(Region,TabRegion[],2,0),1,0) -> 1 | D129: =IF(StatData[[#This Row],[Vzdělání]]=Vzdělání,1,0) -> 0 | E129: =IF(StatData[[#This Row],[Pohlaví]]=Pohlaví,1,0) -> 0 | F129: =IF(StatData[[#This Row],[Věk]]=Věk,1,0) -> 0 | G129: 128 | H129: Zpracovatelský průmysl | I129: 1 | J129: Střední bez maturity | K129: Muž | L129: 35 až 54 let | M129: 4940.943359 | N129: 44885.38046 | O129: 19314.98641 | P129: 19314.98641 | Q129: 21008.3333 | R129: 21782.6071 | S129: 25705.60399 | T129: 27675.03358 | U129: 28680.68047 | V129: 29782.42746 | W129: 31354.2248 | X129: 32615.81298 | Y129: 33801.25416 | Z129: 35390.72883 | AA129: 36365.69651 | AB129: 37943.32551 | AC129: 39050.66737 | AD129: 40658.20495 | AE129: 41529.25615 | AF129: 42679.74383 | AG129: 43834.06545 | AH129: 46558.82715 | AI129: 48519.53191 | AJ129: 50611.44951 | AK129: 53689.19482 | AL129: 55712.31353 | AM129: 58436.48542 | AN129: 61403.95922 | AO129: 65444.67212 | AP129: 74809.30404
A130: =IF(AND(StatData[[#This Row],[Shoda: Seskupený CZ-NACE]],StatData[[#This Row],[Shoda: Region]],StatData[[#This Row],[Shoda: Vzdělání]],StatData[[#This Row],[Shoda: Pohlaví]],StatData[[#This Row],[Shoda: Věk]]),1,0) -> 0 | B130: =IF(StatData[[#This Row],[Seskupený CZ-NACE]]=VLOOKUP(Obor,TabObor[],2,0),1,0) -> 0 | C130: =IF(StatData[[#This Row],[Region]]=VLOOKUP(Region,TabRegion[],2,0),1,0) -> 1 | D130: =IF(StatData[[#This Row],[Vzdělání]]=Vzdělání,1,0) -> 0 | E130: =IF(StatData[[#This Row],[Pohlaví]]=Pohlaví,1,0) -> 0 | F130: =IF(StatData[[#This Row],[Věk]]=Věk,1,0) -> 0 | G130: 129 | H130: Zpracovatelský průmysl | I130: 1 | J130: Střední bez maturity | K130: Muž | L130: 55 a více let | M130: 2189.342041 | N130: 46164.72086 | O130: 28946.60788 | P130: 29718.25357 | Q130: 30601.94404 | R130: 31069.03606 | S130: 31362.68796 | T130: 32392.83087 | U130: 33944.25599 | V130: 34432.03754 | W130: 34916.19559 | X130: 36552.07809 | Y130: 37704.34382 | Z130: 38475.94599 | AA130: 39616.92715 | AB130: 40227.44736 | AC130: 41102.95611 | AD130: 41699.7163 | AE130: 43304.61989 | AF130: 44180.8391 | AG130: 44744.80885 | AH130: 45876.225 | AI130: 47885.22194 | AJ130: 49774.87024 | AK130: 52085.90589 | AL130: 53815.89647 | AM130: 55557.16961 | AN130: 59734.42142 | AO130: 63851.73182 | AP130: 69045.73921
A131: =IF(AND(StatData[[#This Row],[Shoda: Seskupený CZ-NACE]],StatData[[#This Row],[Shoda: Region]],StatData[[#This Row],[Shoda: Vzdělání]],StatData[[#This Row],[Shoda: Pohlaví]],StatData[[#This Row],[Shoda: Věk]]),1,0) -> 0 | B131: =IF(StatData[[#This Row],[Seskupený CZ-NACE]]=VLOOKUP(Obor,TabObor[],2,0),1,0) -> 0 | C131: =IF(StatData[[#This Row],[Region]]=VLOOKUP(Region,TabRegion[],2,0),1,0) -> 1 | D131: =IF(StatData[[#This Row],[Vzdělání]]=Vzdělání,1,0) -> 0 | E131: =IF(StatData[[#This Row],[Pohlaví]]=Pohlaví,1,0) -> 1 | F131: =IF(StatData[[#This Row],[Věk]]=Věk,1,0) -> 1 | G131: 130 | H131: Zpracovatelský průmysl | I131: 1 | J131: Střední bez maturity | K131: Žena | L131: do 34 let | M131: 500.5825806 | N131: 37995.4635 | O131: 25920.54946 | P131: 26547.0867 | Q131: 27867.63311 | R131: 28359.79942 | S131: 28359.79942 | T131: 28359.79942 | U131: 28359.79942 | V131: 28479.30244 | W131: 29497.51254 | X131: 31091.06127 | Y131: 33047.84161 | Z131: 34097.02722 | AA131: 34191.7446 | AB131: 34272.37943 | AC131: 34736.5622 | AD131: 35347.89494 | AE131: 35892.34468 | AF131: 37019.70096 | AG131: 37483.58683 | AH131: 38615.88787 | AI131: 39291.63648 | AJ131: 41643.7863 | AK131: 42575.45736 | AL131: 43172.90366 | AM131: 45418.59993 | AN131: 47272.54818 | AO131: 48184.50279 | AP131: 52761.88984
A132: =IF(AND(StatData[[#This Row],[Shoda: Seskupený CZ-NACE]],StatData[[#This Row],[Shoda: Region]],StatData[[#This Row],[Shoda: Vzdělání]],StatData[[#This Row],[Shoda: Pohlaví]],StatData[[#This Row],[Shoda: Věk]]),1,0) -> 0 | B132: =IF(StatData[[#This Row],[Seskupený CZ-NACE]]=VLOOKUP(Obor,TabObor[],2,0),1,0) -> 0 | C132: =IF(StatData[[#This Row],[Region]]=VLOOKUP(Region,TabRegion[],2,0),1,0) -> 1 | D132: =IF(StatData[[#This Row],[Vzdělání]]=Vzdělání,1,0) -> 0 | E132: =IF(StatData[[#This Row],[Pohlaví]]=Pohlaví,1,0) -> 1 | F132: =IF(StatData[[#This Row],[Věk]]=Věk,1,0) -> 0 | G132: 131 | H132: Zpracovatelský průmysl | I132: 1 | J132: Střední bez maturity | K132: Žena | L132: 35 až 54 let | M132: 2631.555908 | N132: 39414.98232 | O132: 21950.13243 | P132: 23496.73673 | Q132: 23496.73673 | R132: 24308.842 | S132: 25659.7643 | T132: 26872.75363 | U132: 28127.8233 | V132: 29408.2901 | W132: 29828.39744 | X132: 30593.40354 | Y132: 31462.12632 | Z132: 32284.18718 | AA132: 33398.66136 | AB132: 34567.39012 | AC132: 35699.72454 | AD132: 35699.72454 | AE132: 36184.09973 | AF132: 36956.6207 | AG132: 37961.67831 | AH132: 39126.97518 | AI132: 40514.52574 | AJ132: 41460.69521 | AK132: 43261.82088 | AL132: 45191.4772 | AM132: 47185.68636 | AN132: 49776.68373 | AO132: 54144.82062 | AP132: 63111.61049
A133: =IF(AND(StatData[[#This Row],[Shoda: Seskupený CZ-NACE]],StatData[[#This Row],[Shoda: Region]],StatData[[#This Row],[Shoda: Vzdělání]],StatData[[#This Row],[Shoda: Pohlaví]],StatData[[#This Row],[Shoda: Věk]]),1,0) -> 0 | B133: =IF(StatData[[#This Row],[Seskupený CZ-NACE]]=VLOOKUP(Obor,TabObor[],2,0),1,0) -> 0 | C133: =IF(StatData[[#This Row],[Region]]=VLOOKUP(Region,TabRegion[],2,0),1,0) -> 1 | D133: =IF(StatData[[#This Row],[Vzdělání]]=Vzdělání,1,0) -> 0 | E133: =IF(StatData[[#This Row],[Pohlaví]]=Pohlaví,1,0) -> 1 | F133: =IF(StatData[[#This Row],[Věk]]=Věk,1,0) -> 0 | G133: 132 | H133: Zpracovatelský průmysl | I133: 1 | J133: Střední bez maturity | K133: Žena | L133: 55 a více let | M133: 963.5244141 | N133: 38524.52058 | O133: 22575.8659 | P133: 23220.75 | Q133: 24882.0833 | R133: 26691.14917 | S133: 27120.97131 | T133: 27543.51432 | U133: 28237.11679 | V133: 29163.14778 | W133: 30294.40204 | X133: 31585.2577 | Y133: 31859.1621 | Z133: 32702.67485 | AA133: 33727.8737 | AB133: 34338.74093 | AC133: 35302.91748 | AD133: 36254.19535 | AE133: 36557.36262 | AF133: 37198.86967 | AG133: 38022.22956 | AH133: 39535.13491 | AI133: 40948.29235 | AJ133: 42142.66718 | AK133: 43013.58513 | AL133: 44248.54642 | AM133: 45729.74865 | AN133: 48387.94186 | AO133: 50536.69715 | AP133: 58277.79784
A134: =IF(AND(StatData[[#This Row],[Shoda: Seskupený CZ-NACE]],StatData[[#This Row],[Shoda: Region]],StatData[[#This Row],[Shoda: Vzdělání]],StatData[[#This Row],[Shoda: Pohlaví]],StatData[[#This Row],[Shoda: Věk]]),1,0) -> 0 | B134: =IF(StatData[[#This Row],[Seskupený CZ-NACE]]=VLOOKUP(Obor,TabObor[],2,0),1,0) -> 0 | C134: =IF(StatData[[#This Row],[Region]]=VLOOKUP(Region,TabRegion[],2,0),1,0) -> 1 | D134: =IF(StatData[[#This Row],[Vzdělání]]=Vzdělání,1,0) -> 1 | E134: =IF(StatData[[#This Row],[Pohlaví]]=Pohlaví,1,0) -> 0 | F134: =IF(StatData[[#This Row],[Věk]]=Věk,1,0) -> 1 | G134: 133 | H134: Zpracovatelský průmysl | I134: 1 | J134: Střední s maturitou a vyšší odborné | K134: Muž | L134: do 34 let | M134: 3125.600098 | N134: 53360.87621 | O134: 25952.4374 | P134: 31792.11954 | Q134: 32701.54368 | R134: 34601.84865 | S134: 36132.80744 | T134: 37213.11838 | U134: 39025.64275 | V134: 39948.62224 | W134: 40731.96008 | X134: 41968.57554 | Y134: 42937.34266 | Z134: 43970.66467 | AA134: 44624.09996 | AB134: 45427.85178 | AC134: 46328.83731 | AD134: 47702.13977 | AE134: 48144.33736 | AF134: 48884.49753 | AG134: 49866.46548 | AH134: 52003.39752 | AI134: 54643.02247 | AJ134: 56808.23258 | AK134: 59430.09598 | AL134: 62378.30992 | AM134: 65360.07733 | AN134: 70702.42684 | AO134: 77010.87969 | AP134: 87190.92088
A135: =IF(AND(StatData[[#This Row],[Shoda: Seskupený CZ-NACE]],StatData[[#This Row],[Shoda: Region]],StatData[[#This Row],[Shoda: Vzdělání]],StatData[[#This Row],[Shoda: Pohlaví]],StatData[[#This Row],[Shoda: Věk]]),1,0) -> 0 | B135: =IF(StatData[[#This Row],[Seskupený CZ-NACE]]=VLOOKUP(Obor,TabObor[],2,0),1,0) -> 0 | C135: =IF(StatData[[#This Row],[Region]]=VLOOKUP(Region,TabRegion[],2,0),1,0) -> 1 | D135: =IF(StatData[[#This Row],[Vzdělání]]=Vzdělání,1,0) -> 1 | E135: =IF(StatData[[#This Row],[Pohlaví]]=Pohlaví,1,0) -> 0 | F135: =IF(StatData[[#This Row],[Věk]]=Věk,1,0) -> 0 | G135: 134 | H135: Zpracovatelský průmysl | I135: 1 | J135: Střední s maturitou a vyšší odborné | K135: Muž | L135: 35 až 54 let | M135: 6931.64209 | N135: 65410.35148 | O135: 19143.23725 | P135: 20658.62977 | Q135: 25977.11627 | R135: 32687.00127 | S135: 36732.44557 | T135: 39320.27001 | U135: 40637.64736 | V135: 41620.32672 | W135: 43169.0134 | X135: 45017.44683 | Y135: 45861.03649 | Z135: 47177.40597 | AA135: 48605.26066 | AB135: 50620.34983 | AC135: 51900.24261 | AD135: 52960.80162 | AE135: 53909.08759 | AF135: 54975.72925 | AG135: 56510.743 | AH135: 60142.97539 | AI135: 63669.62412 | AJ135: 68323.48632 | AK135: 73217.48172 | AL135: 78899.98999 | AM135: 84858.3684 | AN135: 95058.59249 | AO135: 106968.6682 | AP135: 130351.2299
A136: =IF(AND(StatData[[#This Row],[Shoda: Seskupený CZ-NACE]],StatData[[#This Row],[Shoda: Region]],StatData[[#This Row],[Shoda: Vzdělání]],StatData[[#This Row],[Shoda: Pohlaví]],StatData[[#This Row],[Shoda: Věk]]),1,0) -> 0 | B136: =IF(StatData[[#This Row],[Seskupený CZ-NACE]]=VLOOKUP(Obor,TabObor[],2,0),1,0) -> 0 | C136: =IF(StatData[[#This Row],[Region]]=VLOOKUP(Region,TabRegion[],2,0),1,0) -> 1 | D136: =IF(StatData[[#This Row],[Vzdělání]]=Vzdělání,1,0) -> 1 | E136: =IF(StatData[[#This Row],[Pohlaví]]=Pohlaví,1,0) -> 0 | F136: =IF(StatData[[#This Row],[Věk]]=Věk,1,0) -> 0 | G136: 135 | H136: Zpracovatelský průmysl | I136: 1 | J136: Střední s maturitou a vyšší odborné | K136: Muž | L136: 55 a více let | M136: 1890.102051 | N136: 59432.27498 | O136: 31602.84133 | P136: 32925.60303 | Q136: 33165.86989 | R136: 35162.13685 | S136: 37312.71023 | T136: 38360.45168 | U136: 39684.7409 | V136: 41600.56056 | W136: 42900.4143 | X136: 43514.4261 | Y136: 43805.30165 | Z136: 45176.5191 | AA136: 45670.56717 | AB136: 47155.15705 | AC136: 47736.95873 | AD136: 48312.50106 | AE136: 49657.81822 | AF136: 49923.02347 | AG136: 50650.76847 | AH136: 52431.75316 | AI136: 54301.16778 | AJ136: 56344.43347 | AK136: 59649.17843 | AL136: 64840.59925 | AM136: 69859.35363 | AN136: 80487.66764 | AO136: 88125.31087 | AP136: 111472.3358
A137: =IF(AND(StatData[[#This Row],[Shoda: Seskupený CZ-NACE]],StatData[[#This Row],[Shoda: Region]],StatData[[#This Row],[Shoda: Vzdělání]],StatData[[#This Row],[Shoda: Pohlaví]],StatData[[#This Row],[Shoda: Věk]]),1,0) -> 0 | B137: =IF(StatData[[#This Row],[Seskupený CZ-NACE]]=VLOOKUP(Obor,TabObor[],2,0),1,0) -> 0 | C137: =IF(StatData[[#This Row],[Region]]=VLOOKUP(Region,TabRegion[],2,0),1,0) -> 1 | D137: =IF(StatData[[#This Row],[Vzdělání]]=Vzdělání,1,0) -> 1 | E137: =IF(StatData[[#This Row],[Pohlaví]]=Pohlaví,1,0) -> 1 | F137: =IF(StatData[[#This Row],[Věk]]=Věk,1,0) -> 1 | G137: 136 | H137: Zpracovatelský průmysl | I137: 1 | J137: Střední s maturitou a vyšší odborné | K137: Žena | L137: do 34 let | M137: 1645.494873 | N137: 47288.65147 | O137: 22678.93967 | P137: 29006.82193 | Q137: 30077.36869 | R137: 30848.08057 | S137: 32066.88115 | T137: 33107.42138 | U137: 33529.62686 | V137: 34099.73935 | W137: 35886.32623 | X137: 37619.33774 | Y137: 37762.91858 | Z137: 39143.04849 | AA137: 40570.54015 | AB137: 41414.33134 | AC137: 41938.09005 | AD137: 43014.75034 | AE137: 43575.516 | AF137: 43621.14094 | AG137: 44127.29862 | AH137: 46202.68415 | AI137: 48676.29362 | AJ137: 49918.4646 | AK137: 51806.05978 | AL137: 53067.13739 | AM137: 56229.56574 | AN137: 60879.04955 | AO137: 66630.50391 | AP137: 74625.92938
A138: =IF(AND(StatData[[#This Row],[Shoda: Seskupený CZ-NACE]],StatData[[#This Row],[Shoda: Region]],StatData[[#This Row],[Shoda: Vzdělání]],StatData[[#This Row],[Shoda: Pohlaví]],StatData[[#This Row],[Shoda: Věk]]),1,0) -> 0 | B138: =IF(StatData[[#This Row],[Seskupený CZ-NACE]]=VLOOKUP(Obor,TabObor[],2,0),1,0) -> 0 | C138: =IF(StatData[[#This Row],[Region]]=VLOOKUP(Region,TabRegion[],2,0),1,0) -> 1 | D138: =IF(StatData[[#This Row],[Vzdělání]]=Vzdělání,1,0) -> 1 | E138: =IF(StatData[[#This Row],[Pohlaví]]=Pohlaví,1,0) -> 1 | F138: =IF(StatData[[#This Row],[Věk]]=Věk,1,0) -> 0 | G138: 137 | H138: Zpracovatelský průmysl | I138: 1 | J138: Střední s maturitou a vyšší odborné | K138: Žena | L138: 35 až 54 let | M138: 4680.964844 | N138: 49951.28836 | O138: 22383.42978 | P138: 25808.4342 | Q138: 27811.12584 | R138: 29528.26868 | S138: 31710.45237 | T138: 32621.0526 | U138: 33573.4817 | V138: 34672.91922 | W138: 35424.52657 | X138: 35877.00758 | Y138: 37376.07196 | Z138: 38325.62059 | AA138: 38939.82532 | AB138: 39713.77157 | AC138: 40268.21061 | AD138: 41429.72031 | AE138: 42214.70084 | AF138: 43291.07283 | AG138: 44315.15672 | AH138: 46080.86103 | AI138: 49079.63786 | AJ138: 52320.57078 | AK138: 55170.92661 | AL138: 58367.09625 | AM138: 63495.70651 | AN138: 69953.45642 | AO138: 75963.61763 | AP138: 87543.93755
A139: =IF(AND(StatData[[#This Row],[Shoda: Seskupený CZ-NACE]],StatData[[#This Row],[Shoda: Region]],StatData[[#This Row],[Shoda: Vzdělání]],StatData[[#This Row],[Shoda: Pohlaví]],StatData[[#This Row],[Shoda: Věk]]),1,0) -> 0 | B139: =IF(StatData[[#This Row],[Seskupený CZ-NACE]]=VLOOKUP(Obor,TabObor[],2,0),1,0) -> 0 | C139: =IF(StatData[[#This Row],[Region]]=VLOOKUP(Region,TabRegion[],2,0),1,0) -> 1 | D139: =IF(StatData[[#This Row],[Vzdělání]]=Vzdělání,1,0) -> 1 | E139: =IF(StatData[[#This Row],[Pohlaví]]=Pohlaví,1,0) -> 1 | F139: =IF(StatData[[#This Row],[Věk]]=Věk,1,0) -> 0 | G139: 138 | H139: Zpracovatelský průmysl | I139: 1 | J139: Střední s maturitou a vyšší odborné | K139: Žena | L139: 55 a více let | M139: 1189.869385 | N139: 45780.02921 | O139: 19969.3333 | P139: * | Q139: 25298.735 | R139: * | S139: 28061.24372 | T139: * | U139: 32167.98559 | V139: * | W139: 34905.98682 | X139: * | Y139: 37218.98461 | Z139: * | AA139: 38232.37716 | AB139: * | AC139: 38658.35096 | AD139: * | AE139: 40011.13679 | AF139: * | AG139: 42838.12255 | AH139: 45413.60584 | AI139: 47316.41764 | AJ139: 49041.28659 | AK139: 50997.96051 | AL139: 54461.55518 | AM139: 57880.44205 | AN139: 62423.46012 | AO139: 67950.36759 | AP139: 71927.03293
A140: =IF(AND(StatData[[#This Row],[Shoda: Seskupený CZ-NACE]],StatData[[#This Row],[Shoda: Region]],StatData[[#This Row],[Shoda: Vzdělání]],StatData[[#This Row],[Shoda: Pohlaví]],StatData[[#This Row],[Shoda: Věk]]),1,0) -> 0 | B140: =IF(StatData[[#This Row],[Seskupený CZ-NACE]]=VLOOKUP(Obor,TabObor[],2,0),1,0) -> 0 | C140: =IF(StatData[[#This Row],[Region]]=VLOOKUP(Region,TabRegion[],2,0),1,0) -> 1 | D140: =IF(StatData[[#This Row],[Vzdělání]]=Vzdělání,1,0) -> 0 | E140: =IF(StatData[[#This Row],[Pohlaví]]=Pohlaví,1,0) -> 0 | F140: =IF(StatData[[#This Row],[Věk]]=Věk,1,0) -> 1 | G140: 139 | H140: Zpracovatelský průmysl | I140: 1 | J140: Vysokoškolské | K140: Muž | L140: do 34 let | M140: 2214.064209 | N140: 79102.92096 | O140: 45993.61753 | P140: 47890.67093 | Q140: 50085.46109 | R140: 51621.53696 | S140: 53056.01172 | T140: 53056.01172 | U140: 54378.87002 | V140: 55156.49424 | W140: 56809.29501 | X140: 57805.95202 | Y140: 59840.29831 | Z140: 61344.72764 | AA140: 63412.02069 | AB140: 65229.74059 | AC140: 66493.0584 | AD140: 67922.37913 | AE140: 70050.9061 | AF140: 71914.90848 | AG140: 73403.85297 | AH140: 76822.10673 | AI140: 80049.51741 | AJ140: 83958.16276 | AK140: 87956.71909 | AL140: 91899.568 | AM140: 97689.3932 | AN140: 105053.0012 | AO140: 113305.7615 | AP140: 136914.5255
A141: =IF(AND(StatData[[#This Row],[Shoda: Seskupený CZ-NACE]],StatData[[#This Row],[Shoda: Region]],StatData[[#This Row],[Shoda: Vzdělání]],StatData[[#This Row],[Shoda: Pohlaví]],StatData[[#This Row],[Shoda: Věk]]),1,0) -> 0 | B141: =IF(StatData[[#This Row],[Seskupený CZ-NACE]]=VLOOKUP(Obor,TabObor[],2,0),1,0) -> 0 | C141: =IF(StatData[[#This Row],[Region]]=VLOOKUP(Region,TabRegion[],2,0),1,0) -> 1 | D141: =IF(StatData[[#This Row],[Vzdělání]]=Vzdělání,1,0) -> 0 | E141: =IF(StatData[[#This Row],[Pohlaví]]=Pohlaví,1,0) -> 0 | F141: =IF(StatData[[#This Row],[Věk]]=Věk,1,0) -> 0 | G141: 140 | H141: Zpracovatelský průmysl | I141: 1 | J141: Vysokoškolské | K141: Muž | L141: 35 až 54 let | M141: 5109.099609 | N141: 112706.6133 | O141: 22716.00963 | P141: 36214.66346 | Q141: 47850.65622 | R141: 52493.94658 | S141: 57865.06735 | T141: 61475.19997 | U141: 65550.04697 | V141: 67911.68684 | W141: 70870.60653 | X141: 73137.33912 | Y141: 75945.8288 | Z141: 79300.51066 | AA141: 81297.01895 | AB141: 84452.17021 | AC141: 86135.76227 | AD141: 88374.59533 | AE141: 91556.27738 | AF141: 93740.88888 | AG141: 96899.06991 | AH141: 102929.9543 | AI141: 108246.6105 | AJ141: 115234.8626 | AK141: 121308.0735 | AL141: 131247.9002 | AM141: 144088.0035 | AN141: 158107.258 | AO141: 185670.5035 | AP141: 243647.892
A142: =IF(AND(StatData[[#This Row],[Shoda: Seskupený CZ-NACE]],StatData[[#This Row],[Shoda: Region]],StatData[[#This Row],[Shoda: Vzdělání]],StatData[[#This Row],[Shoda: Pohlaví]],StatData[[#This Row],[Shoda: Věk]]),1,0) -> 0 | B142: =IF(StatData[[#This Row],[Seskupený CZ-NACE]]=VLOOKUP(Obor,TabObor[],2,0),1,0) -> 0 | C142: =IF(StatData[[#This Row],[Region]]=VLOOKUP(Region,TabRegion[],2,0),1,0) -> 1 | D142: =IF(StatData[[#This Row],[Vzdělání]]=Vzdělání,1,0) -> 0 | E142: =IF(StatData[[#This Row],[Pohlaví]]=Pohlaví,1,0) -> 0 | F142: =IF(StatData[[#This Row],[Věk]]=Věk,1,0) -> 0 | G142: 141 | H142: Zpracovatelský průmysl | I142: 1 | J142: Vysokoškolské | K142: Muž | L142: 55 a více let | M142: 1393.254395 | N142: 97140.38059 | O142: 19314.98645 | P142: 22269.25958 | Q142: 25949.93376 | R142: 26666.85762 | S142: 30418.72298 | T142: 34760.38355 | U142: 38345.06315 | V142: 42468.08671 | W142: 45517.48751 | X142: 47456.39434 | Y142: 51201.48444 | Z142: 51653.35613 | AA142: 52688.19805 | AB142: 54116.61726 | AC142: 59018.78137 | AD142: 61361.82152 | AE142: 64015.64701 | AF142: 67532.23487 | AG142: 71894.51031 | AH142: 79278.53938 | AI142: 85824.26383 | AJ142: 89618.50183 | AK142: 96090.63364 | AL142: 101946.5946 | AM142: 112946.0651 | AN142: 135231.0057 | AO142: 172530.0656 | AP142: 284341.2641
A143: =IF(AND(StatData[[#This Row],[Shoda: Seskupený CZ-NACE]],StatData[[#This Row],[Shoda: Region]],StatData[[#This Row],[Shoda: Vzdělání]],StatData[[#This Row],[Shoda: Pohlaví]],StatData[[#This Row],[Shoda: Věk]]),1,0) -> 0 | B143: =IF(StatData[[#This Row],[Seskupený CZ-NACE]]=VLOOKUP(Obor,TabObor[],2,0),1,0) -> 0 | C143: =IF(StatData[[#This Row],[Region]]=VLOOKUP(Region,TabRegion[],2,0),1,0) -> 1 | D143: =IF(StatData[[#This Row],[Vzdělání]]=Vzdělání,1,0) -> 0 | E143: =IF(StatData[[#This Row],[Pohlaví]]=Pohlaví,1,0) -> 1 | F143: =IF(StatData[[#This Row],[Věk]]=Věk,1,0) -> 1 | G143: 142 | H143: Zpracovatelský průmysl | I143: 1 | J143: Vysokoškolské | K143: Žena | L143: do 34 let | M143: 1757.353882 | N143: 61474.93432 | O143: 22121.84627 | P143: 29857.18154 | Q143: 32860.77326 | R143: 38565.48335 | S143: 40801.46869 | T143: 42568.00476 | U143: 43104.63014 | V143: 43222.42213 | W143: 44280.15502 | X143: 45966.62089 | Y143: 47179.4357 | Z143: 48494.18017 | AA143: 50047.2774 | AB143: 51064.42717 | AC143: 51879.5006 | AD143: 52999.53101 | AE143: 54252.18248 | AF143: 55500.64319 | AG143: 56759.53099 | AH143: 59076.96942 | AI143: 61837.12102 | AJ143: 65463.95783 | AK143: 68675.99439 | AL143: 72908.93896 | AM143: 78217.01088 | AN143: 83963.80542 | AO143: 92178.54345 | AP143: 107407.7294
A144: =IF(AND(StatData[[#This Row],[Shoda: Seskupený CZ-NACE]],StatData[[#This Row],[Shoda: Region]],StatData[[#This Row],[Shoda: Vzdělání]],StatData[[#This Row],[Shoda: Pohlaví]],StatData[[#This Row],[Shoda: Věk]]),1,0) -> 0 | B144: =IF(StatData[[#This Row],[Seskupený CZ-NACE]]=VLOOKUP(Obor,TabObor[],2,0),1,0) -> 0 | C144: =IF(StatData[[#This Row],[Region]]=VLOOKUP(Region,TabRegion[],2,0),1,0) -> 1 | D144: =IF(StatData[[#This Row],[Vzdělání]]=Vzdělání,1,0) -> 0 | E144: =IF(StatData[[#This Row],[Pohlaví]]=Pohlaví,1,0) -> 1 | F144: =IF(StatData[[#This Row],[Věk]]=Věk,1,0) -> 0 | G144: 143 | H144: Zpracovatelský průmysl | I144: 1 | J144: Vysokoškolské | K144: Žena | L144: 35 až 54 let | M144: 3271.320068 | N144: 82960.29224 | O144: 36945.30322 | P144: 39044.83391 | Q144: 40774.45703 | R144: 42867.28815 | S144: 45679.89434 | T144: 47893.22964 | U144: 49310.49988 | V144: 50665.38434 | W144: 51642.23442 | X144: 52986.10842 | Y144: 54004.08703 | Z144: 56241.98874 | AA144: 57991.86798 | AB144: 59553.29171 | AC144: 59894.25517 | AD144: 61702.02021 | AE144: 63922.48159 | AF144: 66245.63006 | AG144: 68443.7993 | AH144: 73317.39171 | AI144: 77090.26594 | AJ144: 81675.88781 | AK144: 85923.44003 | AL144: 94078.00556 | AM144: 103362.7652 | AN144: 115919.9581 | AO144: 136723.5824 | AP144: 178051.6246
A145: =IF(AND(StatData[[#This Row],[Shoda: Seskupený CZ-NACE]],StatData[[#This Row],[Shoda: Region]],StatData[[#This Row],[Shoda: Vzdělání]],StatData[[#This Row],[Shoda: Pohlaví]],StatData[[#This Row],[Shoda: Věk]]),1,0) -> 0 | B145: =IF(StatData[[#This Row],[Seskupený CZ-NACE]]=VLOOKUP(Obor,TabObor[],2,0),1,0) -> 0 | C145: =IF(StatData[[#This Row],[Region]]=VLOOKUP(Region,TabRegion[],2,0),1,0) -> 1 | D145: =IF(StatData[[#This Row],[Vzdělání]]=Vzdělání,1,0) -> 0 | E145: =IF(StatData[[#This Row],[Pohlaví]]=Pohlaví,1,0) -> 1 | F145: =IF(StatData[[#This Row],[Věk]]=Věk,1,0) -> 0 | G145: 144 | H145: Zpracovatelský průmysl | I145: 1 | J145: Vysokoškolské | K145: Žena | L145: 55 a více let | M145: 371.6931763 | N145: 85175.943 | O145: 19082.1333 | P145: * | Q145: 27992.38473 | R145: * | S145: 38455.42132 | T145: * | U145: 45301.09096 | V145: * | W145: 47818.10668 | X145: * | Y145: 52871.39308 | Z145: * | AA145: 56657.67974 | AB145: * | AC145: 56657.67974 | AD145: * | AE145: 60569.02668 | AF145: * | AG145: 66979.57298 | AH145: 71471.06445 | AI145: 74188.83664 | AJ145: 81365.69562 | AK145: 89749.05602 | AL145: 92312.53093 | AM145: 108490.2795 | AN145: 126440.1507 | AO145: 149409.9032 | AP145: 186225.1808
A146: =IF(AND(StatData[[#This Row],[Shoda: Seskupený CZ-NACE]],StatData[[#This Row],[Shoda: Region]],StatData[[#This Row],[Shoda: Vzdělání]],StatData[[#This Row],[Shoda: Pohlaví]],StatData[[#This Row],[Shoda: Věk]]),1,0) -> 0 | B146: =IF(StatData[[#This Row],[Seskupený CZ-NACE]]=VLOOKUP(Obor,TabObor[],2,0),1,0) -> 0 | C146: =IF(StatData[[#This Row],[Region]]=VLOOKUP(Region,TabRegion[],2,0),1,0) -> 0 | D146: =IF(StatData[[#This Row],[Vzdělání]]=Vzdělání,1,0) -> 0 | E146: =IF(StatData[[#This Row],[Pohlaví]]=Pohlaví,1,0) -> 0 | F146: =IF(StatData[[#This Row],[Věk]]=Věk,1,0) -> 1 | G146: 145 | H146: Zpracovatelský průmysl | I146: 2 | J146: Střední bez maturity | K146: Muž | L146: do 34 let | M146: 15510.14062 | N146: 49735.80204 | O146: 23563.6248 | P146: 26526.67742 | Q146: 28538.27248 | R146: 30373.50389 | S146: 31713.38147 | T146: 33137.22055 | U146: 34511.52588 | V146: 35435.15042 | W146: 36773.03648 | X146: 37829.92103 | Y146: 38672.76388 | Z146: 39558.64549 | AA146: 40493.83046 | AB146: 41473.26426 | AC146: 42319.63282 | AD146: 43358.50142 | AE146: 44205.93556 | AF146: 45241.024 | AG146: 46444.31061 | AH146: 48451.49184 | AI146: 50910.70563 | AJ146: 53887.91538 | AK146: 57886.98629 | AL146: 63313.59111 | AM146: 68145.25414 | AN146: 72088.51327 | AO146: 75911.00234 | AP146: 80456.73071
A147: =IF(AND(StatData[[#This Row],[Shoda: Seskupený CZ-NACE]],StatData[[#This Row],[Shoda: Region]],StatData[[#This Row],[Shoda: Vzdělání]],StatData[[#This Row],[Shoda: Pohlaví]],StatData[[#This Row],[Shoda: Věk]]),1,0) -> 0 | B147: =IF(StatData[[#This Row],[Seskupený CZ-NACE]]=VLOOKUP(Obor,TabObor[],2,0),1,0) -> 0 | C147: =IF(StatData[[#This Row],[Region]]=VLOOKUP(Region,TabRegion[],2,0),1,0) -> 0 | D147: =IF(StatData[[#This Row],[Vzdělání]]=Vzdělání,1,0) -> 0 | E147: =IF(StatData[[#This Row],[Pohlaví]]=Pohlaví,1,0) -> 0 | F147: =IF(StatData[[#This Row],[Věk]]=Věk,1,0) -> 0 | G147: 146 | H147: Zpracovatelský průmysl | I147: 2 | J147: Střední bez maturity | K147: Muž | L147: 35 až 54 let | M147: 40619.14453 | N147: 52037.59574 | O147: 24482.3866 | P147: 28229.06467 | Q147: 30641.18274 | R147: 32628.13054 | S147: 34053.52526 | T147: 35259.87598 | U147: 36505.34675 | V147: 37656.88918 | W147: 38645.62957 | X147: 39665.50044 | Y147: 40597.15233 | Z147: 41524.81651 | AA147: 42548.554 | AB147: 43514.50045 | AC147: 44472.61085 | AD147: 45563.50677 | AE147: 46438.28795 | AF147: 47378.22155 | AG147: 48433.33224 | AH147: 50620.81829 | AI147: 53104.43332 | AJ147: 55995.07168 | AK147: 59811.93152 | AL147: 64887.16946 | AM147: 69522.68341 | AN147: 74351.25064 | AO147: 78683.92305 | AP147: 84934.69623
A148: =IF(AND(StatData[[#This Row],[Shoda: Seskupený CZ-NACE]],StatData[[#This Row],[Shoda: Region]],StatData[[#This Row],[Shoda: Vzdělání]],StatData[[#This Row],[Shoda: Pohlaví]],StatData[[#This Row],[Shoda: Věk]]),1,0) -> 0 | B148: =IF(StatData[[#This Row],[Seskupený CZ-NACE]]=VLOOKUP(Obor,TabObor[],2,0),1,0) -> 0 | C148: =IF(StatData[[#This Row],[Region]]=VLOOKUP(Region,TabRegion[],2,0),1,0) -> 0 | D148: =IF(StatData[[#This Row],[Vzdělání]]=Vzdělání,1,0) -> 0 | E148: =IF(StatData[[#This Row],[Pohlaví]]=Pohlaví,1,0) -> 0 | F148: =IF(StatData[[#This Row],[Věk]]=Věk,1,0) -> 0 | G148: 147 | H148: Zpracovatelský průmysl | I148: 2 | J148: Střední bez maturity | K148: Muž | L148: 55 a více let | M148: 14203.87891 | N148: 48123.68087 | O148: 26585.93322 | P148: 28128.7932 | Q148: 29910.89769 | R148: 30923.91295 | S148: 32225.04666 | T148: 32919.18439 | U148: 33928.7247 | V148: 34930.46687 | W148: 35758.07256 | X148: 36439.11423 | Y148: 37195.89628 | Z148: 38005.21971 | AA148: 38950.65328 | AB148: 39765.97618 | AC148: 40609.13946 | AD148: 41440.94133 | AE148: 42196.99775 | AF148: 43072.24645 | AG148: 43898.60105 | AH148: 45865.34393 | AI148: 47854.91624 | AJ148: 50071.27096 | AK148: 52698.3891 | AL148: 56332.07659 | AM148: 60957.63691 | AN148: 67474.25357 | AO148: 74658.60161 | AP148: 83980.23083
A149: =IF(AND(StatData[[#This Row],[Shoda: Seskupený CZ-NACE]],StatData[[#This Row],[Shoda: Region]],StatData[[#This Row],[Shoda: Vzdělání]],StatData[[#This Row],[Shoda: Pohlaví]],StatData[[#This Row],[Shoda: Věk]]),1,0) -> 0 | B149: =IF(StatData[[#This Row],[Seskupený CZ-NACE]]=VLOOKUP(Obor,TabObor[],2,0),1,0) -> 0 | C149: =IF(StatData[[#This Row],[Region]]=VLOOKUP(Region,TabRegion[],2,0),1,0) -> 0 | D149: =IF(StatData[[#This Row],[Vzdělání]]=Vzdělání,1,0) -> 0 | E149: =IF(StatData[[#This Row],[Pohlaví]]=Pohlaví,1,0) -> 1 | F149: =IF(StatData[[#This Row],[Věk]]=Věk,1,0) -> 1 | G149: 148 | H149: Zpracovatelský průmysl | I149: 2 | J149: Střední bez maturity | K149: Žena | L149: do 34 let | M149: 3559.558594 | N149: 38470.83807 | O149: 20923.6276 | P149: 21812.5661 | Q149: 23992.9626 | R149: 25084.1253 | S149: 26015.5833 | T149: 26721.73663 | U149: 27447.42418 | V149: 28238.83556 | W149: 28953.39175 | X149: 29369.23026 | Y149: 29957.14536 | Z149: 30705.57984 | AA149: 31548.26598 | AB149: 32150.01587 | AC149: 32721.7449 | AD149: 33371.36254 | AE149: 34047.3905 | AF149: 34680.30229 | AG149: 35131.67918 | AH149: 36735.0763 | AI149: 38235.11697 | AJ149: 40171.4004 | AK149: 41775.17118 | AL149: 43519.63195 | AM149: 46206.87214 | AN149: 50694.69563 | AO149: 62881.40322 | AP149: 70530.04373
A150: =IF(AND(StatData[[#This Row],[Shoda: Seskupený CZ-NACE]],StatData[[#This Row],[Shoda: Region]],StatData[[#This Row],[Shoda: Vzdělání]],StatData[[#This Row],[Shoda: Pohlaví]],StatData[[#This Row],[Shoda: Věk]]),1,0) -> 0 | B150: =IF(StatData[[#This Row],[Seskupený CZ-NACE]]=VLOOKUP(Obor,TabObor[],2,0),1,0) -> 0 | C150: =IF(StatData[[#This Row],[Region]]=VLOOKUP(Region,TabRegion[],2,0),1,0) -> 0 | D150: =IF(StatData[[#This Row],[Vzdělání]]=Vzdělání,1,0) -> 0 | E150: =IF(StatData[[#This Row],[Pohlaví]]=Pohlaví,1,0) -> 1 | F150: =IF(StatData[[#This Row],[Věk]]=Věk,1,0) -> 0 | G150: 149 | H150: Zpracovatelský průmysl | I150: 2 | J150: Střední bez maturity | K150: Žena | L150: 35 až 54 let | M150: 19585.54102 | N150: 38511.16258 | O150: 21518.1326 | P150: 22829.22715 | Q150: 24388.2138 | R150: 25469.1966 | S150: 26210 | T150: 27050.07638 | U150: 27808.04105 | V150: 28331.08108 | W150: 29064.88124 | X150: 29865.02575 | Y150: 30384.01747 | Z150: 31097.93954 | AA150: 31841.45164 | AB150: 32498.5069 | AC150: 33102.41763 | AD150: 33872.2283 | AE150: 34491.64015 | AF150: 35137.37977 | AG150: 35781.74248 | AH150: 36947.18245 | AI150: 38310.45485 | AJ150: 39819.38537 | AK150: 41533.25315 | AL150: 43492.48459 | AM150: 45984.90821 | AN150: 50052.06507 | AO150: 58537.36593 | AP150: 69864.47813
A151: =IF(AND(StatData[[#This Row],[Shoda: Seskupený CZ-NACE]],StatData[[#This Row],[Shoda: Region]],StatData[[#This Row],[Shoda: Vzdělání]],StatData[[#This Row],[Shoda: Pohlaví]],StatData[[#This Row],[Shoda: Věk]]),1,0) -> 0 | B151: =IF(StatData[[#This Row],[Seskupený CZ-NACE]]=VLOOKUP(Obor,TabObor[],2,0),1,0) -> 0 | C151: =IF(StatData[[#This Row],[Region]]=VLOOKUP(Region,TabRegion[],2,0),1,0) -> 0 | D151: =IF(StatData[[#This Row],[Vzdělání]]=Vzdělání,1,0) -> 0 | E151: =IF(StatData[[#This Row],[Pohlaví]]=Pohlaví,1,0) -> 1 | F151: =IF(StatData[[#This Row],[Věk]]=Věk,1,0) -> 0 | G151: 150 | H151: Zpracovatelský průmysl | I151: 2 | J151: Střední bez maturity | K151: Žena | L151: 55 a více let | M151: 7572.880859 | N151: 35182.25435 | O151: 21044.21621 | P151: 21699.3011 | Q151: 22152.6666 | R151: 22999.6473 | S151: 24316.7993 | T151: 25249.8889 | U151: 25946.9107 | V151: 26420.97786 | W151: 26753.996 | X151: 27306.65337 | Y151: 27642.55174 | Z151: 28340.03272 | AA151: 28907.54558 | AB151: 29663.12697 | AC151: 30167.03501 | AD151: 30899.5053 | AE151: 31469.65415 | AF151: 32188.63654 | AG151: 32883.15199 | AH151: 34192.59075 | AI151: 35519.41977 | AJ151: 36592.10838 | AK151: 38027.27727 | AL151: 39843.76653 | AM151: 41878.44947 | AN151: 44795.09877 | AO151: 49298.67656 | AP151: 64112.49906
A152: =IF(AND(StatData[[#This Row],[Shoda: Seskupený CZ-NACE]],StatData[[#This Row],[Shoda: Region]],StatData[[#This Row],[Shoda: Vzdělání]],StatData[[#This Row],[Shoda: Pohlaví]],StatData[[#This Row],[Shoda: Věk]]),1,0) -> 0 | B152: =IF(StatData[[#This Row],[Seskupený CZ-NACE]]=VLOOKUP(Obor,TabObor[],2,0),1,0) -> 0 | C152: =IF(StatData[[#This Row],[Region]]=VLOOKUP(Region,TabRegion[],2,0),1,0) -> 0 | D152: =IF(StatData[[#This Row],[Vzdělání]]=Vzdělání,1,0) -> 1 | E152: =IF(StatData[[#This Row],[Pohlaví]]=Pohlaví,1,0) -> 0 | F152: =IF(StatData[[#This Row],[Věk]]=Věk,1,0) -> 1 | G152: 151 | H152: Zpracovatelský průmysl | I152: 2 | J152: Střední s maturitou a vyšší odborné | K152: Muž | L152: do 34 let | M152: 15196.13086 | N152: 55788.24912 | O152: 29588.73381 | P152: 32635.34057 | Q152: 34129.32531 | R152: 35547.63794 | S152: 36816.23187 | T152: 37951.14244 | U152: 39102.21534 | V152: 40373.03788 | W152: 41362.35176 | X152: 42320.53014 | Y152: 43430.16176 | Z152: 44423.30148 | AA152: 45400.64292 | AB152: 46559.03686 | AC152: 47755.60458 | AD152: 48996.92982 | AE152: 49930.09661 | AF152: 51310.9993 | AG152: 52478.02458 | AH152: 54826.66431 | AI152: 57359.52971 | AJ152: 60093.18352 | AK152: 63585.53683 | AL152: 67840.68342 | AM152: 72259.86803 | AN152: 76796.97733 | AO152: 82105.22159 | AP152: 89619.11449
A153: =IF(AND(StatData[[#This Row],[Shoda: Seskupený CZ-NACE]],StatData[[#This Row],[Shoda: Region]],StatData[[#This Row],[Shoda: Vzdělání]],StatData[[#This Row],[Shoda: Pohlaví]],StatData[[#This Row],[Shoda: Věk]]),1,0) -> 0 | B153: =IF(StatData[[#This Row],[Seskupený CZ-NACE]]=VLOOKUP(Obor,TabObor[],2,0),1,0) -> 0 | C153: =IF(StatData[[#This Row],[Region]]=VLOOKUP(Region,TabRegion[],2,0),1,0) -> 0 | D153: =IF(StatData[[#This Row],[Vzdělání]]=Vzdělání,1,0) -> 1 | E153: =IF(StatData[[#This Row],[Pohlaví]]=Pohlaví,1,0) -> 0 | F153: =IF(StatData[[#This Row],[Věk]]=Věk,1,0) -> 0 | G153: 152 | H153: Zpracovatelský průmysl | I153: 2 | J153: Střední s maturitou a vyšší odborné | K153: Muž | L153: 35 až 54 let | M153: 30196.46484 | N153: 65681.03601 | O153: 29959.19744 | P153: 33263.47764 | Q153: 35353.105 | R153: 36977.81763 | S153: 38868.83898 | T153: 40379.04725 | U153: 42166.27583 | V153: 43697.33016 | W153: 45197.5133 | X153: 46475.86435 | Y153: 47695.9213 | Z153: 48910.22266 | AA153: 50295.08744 | AB153: 51550.27799 | AC153: 53150.71685 | AD153: 54936.0844 | AE153: 56486.30512 | AF153: 57796.1617 | AG153: 59377.62225 | AH153: 63304.06765 | AI153: 67183.61859 | AJ153: 71203.5064 | AK153: 75258.3091 | AL153: 80204.48384 | AM153: 86050.31957 | AN153: 92274.93968 | AO153: 98625.69501 | AP153: 114918.0216
A154: =IF(AND(StatData[[#This Row],[Shoda: Seskupený CZ-NACE]],StatData[[#This Row],[Shoda: Region]],StatData[[#This Row],[Shoda: Vzdělání]],StatData[[#This Row],[Shoda: Pohlaví]],StatData[[#This Row],[Shoda: Věk]]),1,0) -> 0 | B154: =IF(StatData[[#This Row],[Seskupený CZ-NACE]]=VLOOKUP(Obor,TabObor[],2,0),1,0) -> 0 | C154: =IF(StatData[[#This Row],[Region]]=VLOOKUP(Region,TabRegion[],2,0),1,0) -> 0 | D154: =IF(StatData[[#This Row],[Vzdělání]]=Vzdělání,1,0) -> 1 | E154: =IF(StatData[[#This Row],[Pohlaví]]=Pohlaví,1,0) -> 0 | F154: =IF(StatData[[#This Row],[Věk]]=Věk,1,0) -> 0 | G154: 153 | H154: Zpracovatelský průmysl | I154: 2 | J154: Střední s maturitou a vyšší odborné | K154: Muž | L154: 55 a více let | M154: 7894.790527 | N154: 57581.52686 | O154: 27516.44417 | P154: 29112.08196 | Q154: 30593.82048 | R154: 32297.15512 | S154: 33871.2025 | T154: 34747.00739 | U154: 35548.33697 | V154: 36716.35557 | W154: 37751.68522 | X154: 38946.60038 | Y154: 39971.8138 | Z154: 41413.76808 | AA154: 42890.69916 | AB154: 43798.16692 | AC154: 44506.24387 | AD154: 45686.89559 | AE154: 46821.07883 | AF154: 48148.53195 | AG154: 49494.90506 | AH154: 51948.74512 | AI154: 55282.90503 | AJ154: 58785.94037 | AK154: 63101.16243 | AL154: 68552.95555 | AM154: 75301.05211 | AN154: 84958.4959 | AO154: 95355.21646 | AP154: 105846.6215
A155: =IF(AND(StatData[[#This Row],[Shoda: Seskupený CZ-NACE]],StatData[[#This Row],[Shoda: Region]],StatData[[#This Row],[Shoda: Vzdělání]],StatData[[#This Row],[Shoda: Pohlaví]],StatData[[#This Row],[Shoda: Věk]]),1,0) -> 0 | B155: =IF(StatData[[#This Row],[Seskupený CZ-NACE]]=VLOOKUP(Obor,TabObor[],2,0),1,0) -> 0 | C155: =IF(StatData[[#This Row],[Region]]=VLOOKUP(Region,TabRegion[],2,0),1,0) -> 0 | D155: =IF(StatData[[#This Row],[Vzdělání]]=Vzdělání,1,0) -> 1 | E155: =IF(StatData[[#This Row],[Pohlaví]]=Pohlaví,1,0) -> 1 | F155: =IF(StatData[[#This Row],[Věk]]=Věk,1,0) -> 1 | G155: 154 | H155: Zpracovatelský průmysl | I155: 2 | J155: Střední s maturitou a vyšší odborné | K155: Žena | L155: do 34 let | M155: 5613.932617 | N155: 41683.42608 | O155: 21853.84719 | P155: 22518.46104 | Q155: 24759.28127 | R155: 26310.76876 | S155: 27324.94927 | T155: 28262.20221 | U155: 29642.37559 | V155: 31012.88111 | W155: 32049.48082 | X155: 32687.59021 | Y155: 33370.92626 | Z155: 34075.76605 | AA155: 34877.60393 | AB155: 35357.50515 | AC155: 36136.18735 | AD155: 36666.30615 | AE155: 37479.17312 | AF155: 38226.94052 | AG155: 38956.98341 | AH155: 40292.62517 | AI155: 42118.81171 | AJ155: 43564.3317 | AK155: 45582.55786 | AL155: 48113.02433 | AM155: 51298.33276 | AN155: 55711.02688 | AO155: 63926.4183 | AP155: 71992.51798
A156: =IF(AND(StatData[[#This Row],[Shoda: Seskupený CZ-NACE]],StatData[[#This Row],[Shoda: Region]],StatData[[#This Row],[Shoda: Vzdělání]],StatData[[#This Row],[Shoda: Pohlaví]],StatData[[#This Row],[Shoda: Věk]]),1,0) -> 0 | B156: =IF(StatData[[#This Row],[Seskupený CZ-NACE]]=VLOOKUP(Obor,TabObor[],2,0),1,0) -> 0 | C156: =IF(StatData[[#This Row],[Region]]=VLOOKUP(Region,TabRegion[],2,0),1,0) -> 0 | D156: =IF(StatData[[#This Row],[Vzdělání]]=Vzdělání,1,0) -> 1 | E156: =IF(StatData[[#This Row],[Pohlaví]]=Pohlaví,1,0) -> 1 | F156: =IF(StatData[[#This Row],[Věk]]=Věk,1,0) -> 0 | G156: 155 | H156: Zpracovatelský průmysl | I156: 2 | J156: Střední s maturitou a vyšší odborné | K156: Žena | L156: 35 až 54 let | M156: 19685.17188 | N156: 47027.1844 | O156: 22625.9166 | P156: 25482.0306 | Q156: 26832.78066 | R156: 28454.50252 | S156: 29699.88428 | T156: 30956.97983 | U156: 31848.43326 | V156: 32742.66318 | W156: 33519.17619 | X156: 34223.90955 | Y156: 34890.48366 | Z156: 35783.19109 | AA156: 36651.00453 | AB156: 37514.25325 | AC156: 38305.21208 | AD156: 39067.1344 | AE156: 39767.87054 | AF156: 40686.06581 | AG156: 41759.0132 | AH156: 43620.65279 | AI156: 45710.84397 | AJ156: 48213.6377 | AK156: 51395.15975 | AL156: 55014.09605 | AM156: 59707.38256 | AN156: 67328.05958 | AO156: 74892.6566 | AP156: 88273.6659
A157: =IF(AND(StatData[[#This Row],[Shoda: Seskupený CZ-NACE]],StatData[[#This Row],[Shoda: Region]],StatData[[#This Row],[Shoda: Vzdělání]],StatData[[#This Row],[Shoda: Pohlaví]],StatData[[#This Row],[Shoda: Věk]]),1,0) -> 0 | B157: =IF(StatData[[#This Row],[Seskupený CZ-NACE]]=VLOOKUP(Obor,TabObor[],2,0),1,0) -> 0 | C157: =IF(StatData[[#This Row],[Region]]=VLOOKUP(Region,TabRegion[],2,0),1,0) -> 0 | D157: =IF(StatData[[#This Row],[Vzdělání]]=Vzdělání,1,0) -> 1 | E157: =IF(StatData[[#This Row],[Pohlaví]]=Pohlaví,1,0) -> 1 | F157: =IF(StatData[[#This Row],[Věk]]=Věk,1,0) -> 0 | G157: 156 | H157: Zpracovatelský průmysl | I157: 2 | J157: Střední s maturitou a vyšší odborné | K157: Žena | L157: 55 a více let | M157: 5170.673828 | N157: 44737.31568 | O157: 21374.5979 | P157: 23137.6666 | Q157: 25205.1459 | R157: 26391.95709 | S157: 27030.86875 | T157: 27904.74292 | U157: 29551.71434 | V157: 30023.5991 | W157: 31204.38521 | X157: 32064.09839 | Y157: 32702.85585 | Z157: 33269.40959 | AA157: 33692.24544 | AB157: 34342.12077 | AC157: 35307.54227 | AD157: 36171.87917 | AE157: 37153.91506 | AF157: 38041.84492 | AG157: 38935.11371 | AH157: 40498.52217 | AI157: 42457.8831 | AJ157: 44500.61596 | AK157: 47223.42261 | AL157: 50761.26824 | AM157: 55152.25844 | AN157: 62258.93094 | AO157: 71159.74516 | AP157: 89348.70791
A158: =IF(AND(StatData[[#This Row],[Shoda: Seskupený CZ-NACE]],StatData[[#This Row],[Shoda: Region]],StatData[[#This Row],[Shoda: Vzdělání]],StatData[[#This Row],[Shoda: Pohlaví]],StatData[[#This Row],[Shoda: Věk]]),1,0) -> 0 | B158: =IF(StatData[[#This Row],[Seskupený CZ-NACE]]=VLOOKUP(Obor,TabObor[],2,0),1,0) -> 0 | C158: =IF(StatData[[#This Row],[Region]]=VLOOKUP(Region,TabRegion[],2,0),1,0) -> 0 | D158: =IF(StatData[[#This Row],[Vzdělání]]=Vzdělání,1,0) -> 0 | E158: =IF(StatData[[#This Row],[Pohlaví]]=Pohlaví,1,0) -> 0 | F158: =IF(StatData[[#This Row],[Věk]]=Věk,1,0) -> 1 | G158: 157 | H158: Zpracovatelský průmysl | I158: 2 | J158: Vysokoškolské | K158: Muž | L158: do 34 let | M158: 4289.81543 | N158: 73990.04288 | O158: 36983.52508 | P158: 40957.5909 | Q158: 42388.0514 | R158: 44243.81749 | S158: 46294.35953 | T158: 47379.75922 | U158: 48038.4162 | V158: 48870.17434 | W158: 50834.00094 | X158: 52302.34919 | Y158: 53969.99717 | Z158: 56178.62501 | AA158: 58085.2654 | AB158: 59993.65469 | AC158: 61819.74444 | AD158: 63579.39507 | AE158: 65866.84387 | AF158: 67514.06238 | AG158: 69423.35355 | AH158: 73234.01875 | AI158: 77978.06759 | AJ158: 82795.64833 | AK158: 87366.44501 | AL158: 91885.9318 | AM158: 95940.41004 | AN158: 100222.4506 | AO158: 107101.037 | AP158: 125149.3221
A159: =IF(AND(StatData[[#This Row],[Shoda: Seskupený CZ-NACE]],StatData[[#This Row],[Shoda: Region]],StatData[[#This Row],[Shoda: Vzdělání]],StatData[[#This Row],[Shoda: Pohlaví]],StatData[[#This Row],[Shoda: Věk]]),1,0) -> 0 | B159: =IF(StatData[[#This Row],[Seskupený CZ-NACE]]=VLOOKUP(Obor,TabObor[],2,0),1,0) -> 0 | C159: =IF(StatData[[#This Row],[Region]]=VLOOKUP(Region,TabRegion[],2,0),1,0) -> 0 | D159: =IF(StatData[[#This Row],[Vzdělání]]=Vzdělání,1,0) -> 0 | E159: =IF(StatData[[#This Row],[Pohlaví]]=Pohlaví,1,0) -> 0 | F159: =IF(StatData[[#This Row],[Věk]]=Věk,1,0) -> 0 | G159: 158 | H159: Zpracovatelský průmysl | I159: 2 | J159: Vysokoškolské | K159: Muž | L159: 35 až 54 let | M159: 12094.28418 | N159: 105039.1608 | O159: 36646.56862 | P159: 41242.14638 | Q159: 45072.86881 | R159: 47146.05623 | S159: 50019.72814 | T159: 52326.0694 | U159: 54722.55958 | V159: 57793.50872 | W159: 60820.87872 | X159: 63341.25098 | Y159: 65998.74909 | Z159: 68204.6764 | AA159: 71107.87666 | AB159: 73603.30997 | AC159: 76825.18496 | AD159: 79974.08021 | AE159: 82619.89884 | AF159: 85857.83828 | AG159: 89125.75425 | AH159: 95028.31575 | AI159: 99081.46918 | AJ159: 104877.2277 | AK159: 112300.9984 | AL159: 120903.1688 | AM159: 132219.9582 | AN159: 149081.3452 | AO159: 176003.8821 | AP159: 232794.6251
A160: =IF(AND(StatData[[#This Row],[Shoda: Seskupený CZ-NACE]],StatData[[#This Row],[Shoda: Region]],StatData[[#This Row],[Shoda: Vzdělání]],StatData[[#This Row],[Shoda: Pohlaví]],StatData[[#This Row],[Shoda: Věk]]),1,0) -> 0 | B160: =IF(StatData[[#This Row],[Seskupený CZ-NACE]]=VLOOKUP(Obor,TabObor[],2,0),1,0) -> 0 | C160: =IF(StatData[[#This Row],[Region]]=VLOOKUP(Region,TabRegion[],2,0),1,0) -> 0 | D160: =IF(StatData[[#This Row],[Vzdělání]]=Vzdělání,1,0) -> 0 | E160: =IF(StatData[[#This Row],[Pohlaví]]=Pohlaví,1,0) -> 0 | F160: =IF(StatData[[#This Row],[Věk]]=Věk,1,0) -> 0 | G160: 159 | H160: Zpracovatelský průmysl | I160: 2 | J160: Vysokoškolské | K160: Muž | L160: 55 a více let | M160: 3622.519043 | N160: 95402.29239 | O160: 26309.34202 | P160: 29857.26559 | Q160: 31903.96438 | R160: 34136.03776 | S160: 35763.17992 | T160: 39709.85158 | U160: 41526.26938 | V160: 41930.72996 | W160: 45522.78645 | X160: 46459.9224 | Y160: 49042.69949 | Z160: 51122.99107 | AA160: 53643.54938 | AB160: 56574.54825 | AC160: 58895.66841 | AD160: 62269.98834 | AE160: 65522.22349 | AF160: 68174.70132 | AG160: 70636.86595 | AH160: 76866.70137 | AI160: 84455.23705 | AJ160: 93001.68161 | AK160: 99326.49329 | AL160: 110536.0634 | AM160: 123258.4046 | AN160: 142884.8669 | AO160: 176275.3041 | AP160: 231062.0383
A161: =IF(AND(StatData[[#This Row],[Shoda: Seskupený CZ-NACE]],StatData[[#This Row],[Shoda: Region]],StatData[[#This Row],[Shoda: Vzdělání]],StatData[[#This Row],[Shoda: Pohlaví]],StatData[[#This Row],[Shoda: Věk]]),1,0) -> 0 | B161: =IF(StatData[[#This Row],[Seskupený CZ-NACE]]=VLOOKUP(Obor,TabObor[],2,0),1,0) -> 0 | C161: =IF(StatData[[#This Row],[Region]]=VLOOKUP(Region,TabRegion[],2,0),1,0) -> 0 | D161: =IF(StatData[[#This Row],[Vzdělání]]=Vzdělání,1,0) -> 0 | E161: =IF(StatData[[#This Row],[Pohlaví]]=Pohlaví,1,0) -> 1 | F161: =IF(StatData[[#This Row],[Věk]]=Věk,1,0) -> 1 | G161: 160 | H161: Zpracovatelský průmysl | I161: 2 | J161: Vysokoškolské | K161: Žena | L161: do 34 let | M161: 2751.906494 | N161: 57868.65624 | O161: 24962.6093 | P161: 28791.11813 | Q161: 31642.91846 | R161: 33213.88171 | S161: 34909.6523 | T161: 35660.41007 | U161: 37202.57451 | V161: 38084.3315 | W161: 39544.78081 | X161: 40584.61624 | Y161: 41696.70827 | Z161: 42583.80147 | AA161: 43477.79992 | AB161: 44230.175 | AC161: 45425.58595 | AD161: 46131.62613 | AE161: 47370.77547 | AF161: 48850.72315 | AG161: 50521.32636 | AH161: 53889.3303 | AI161: 57262.92637 | AJ161: 60969.29848 | AK161: 65781.25917 | AL161: 73107.98558 | AM161: 80758.68936 | AN161: 87410.75883 | AO161: 93017.53173 | AP161: 105761.4261
A162: =IF(AND(StatData[[#This Row],[Shoda: Seskupený CZ-NACE]],StatData[[#This Row],[Shoda: Region]],StatData[[#This Row],[Shoda: Vzdělání]],StatData[[#This Row],[Shoda: Pohlaví]],StatData[[#This Row],[Shoda: Věk]]),1,0) -> 0 | B162: =IF(StatData[[#This Row],[Seskupený CZ-NACE]]=VLOOKUP(Obor,TabObor[],2,0),1,0) -> 0 | C162: =IF(StatData[[#This Row],[Region]]=VLOOKUP(Region,TabRegion[],2,0),1,0) -> 0 | D162: =IF(StatData[[#This Row],[Vzdělání]]=Vzdělání,1,0) -> 0 | E162: =IF(StatData[[#This Row],[Pohlaví]]=Pohlaví,1,0) -> 1 | F162: =IF(StatData[[#This Row],[Věk]]=Věk,1,0) -> 0 | G162: 161 | H162: Zpracovatelský průmysl | I162: 2 | J162: Vysokoškolské | K162: Žena | L162: 35 až 54 let | M162: 6361.863281 | N162: 75609.48485 | O162: 31450.75631 | P162: 34616.3153 | Q162: 36283.25547 | R162: 38423.31594 | S162: 40047.18198 | T162: 41857.18697 | U162: 42989.55784 | V162: 44592.34627 | W162: 46017.39071 | X162: 47645.24214 | Y162: 48511.1991 | Z162: 49656.06021 | AA162: 51012.6932 | AB162: 52451.74175 | AC162: 54217.24991 | AD162: 55803.56441 | AE162: 57851.5956 | AF162: 59864.27724 | AG162: 62553.26425 | AH162: 66907.84358 | AI162: 72615.66599 | AJ162: 80038.0208 | AK162: 88006.83079 | AL162: 93909.53988 | AM162: 98019.42718 | AN162: 106281.5509 | AO162: 121851.8876 | AP162: 161274.2223
A163: =IF(AND(StatData[[#This Row],[Shoda: Seskupený CZ-NACE]],StatData[[#This Row],[Shoda: Region]],StatData[[#This Row],[Shoda: Vzdělání]],StatData[[#This Row],[Shoda: Pohlaví]],StatData[[#This Row],[Shoda: Věk]]),1,0) -> 0 | B163: =IF(StatData[[#This Row],[Seskupený CZ-NACE]]=VLOOKUP(Obor,TabObor[],2,0),1,0) -> 0 | C163: =IF(StatData[[#This Row],[Region]]=VLOOKUP(Region,TabRegion[],2,0),1,0) -> 0 | D163: =IF(StatData[[#This Row],[Vzdělání]]=Vzdělání,1,0) -> 0 | E163: =IF(StatData[[#This Row],[Pohlaví]]=Pohlaví,1,0) -> 1 | F163: =IF(StatData[[#This Row],[Věk]]=Věk,1,0) -> 0 | G163: 162 | H163: Zpracovatelský průmysl | I163: 2 | J163: Vysokoškolské | K163: Žena | L163: 55 a více let | M163: 793.6651001 | N163: 79082.51766 | O163: 28857.66234 | P163: 30168.35051 | Q163: 33147.98442 | R163: 33894.19517 | S163: 35211.56244 | T163: 35756.32773 | U163: 38090.36828 | V163: 39437.23987 | W163: 39478.34912 | X163: 41135.0397 | Y163: 42632.79233 | Z163: 44018.61811 | AA163: 45689.07144 | AB163: 48168.34854 | AC163: 50156.84308 | AD163: 53367.49842 | AE163: 54761.50848 | AF163: 57512.77811 | AG163: 60424.47895 | AH163: 64687.39412 | AI163: 74884.08863 | AJ163: 84283.60768 | AK163: 90509.60791 | AL163: 96776.63312 | AM163: 101391.5387 | AN163: 111316.4366 | AO163: 130093.4158 | AP163: 195386.2298
A164: =IF(AND(StatData[[#This Row],[Shoda: Seskupený CZ-NACE]],StatData[[#This Row],[Shoda: Region]],StatData[[#This Row],[Shoda: Vzdělání]],StatData[[#This Row],[Shoda: Pohlaví]],StatData[[#This Row],[Shoda: Věk]]),1,0) -> 0 | B164: =IF(StatData[[#This Row],[Seskupený CZ-NACE]]=VLOOKUP(Obor,TabObor[],2,0),1,0) -> 0 | C164: =IF(StatData[[#This Row],[Region]]=VLOOKUP(Region,TabRegion[],2,0),1,0) -> 0 | D164: =IF(StatData[[#This Row],[Vzdělání]]=Vzdělání,1,0) -> 0 | E164: =IF(StatData[[#This Row],[Pohlaví]]=Pohlaví,1,0) -> 0 | F164: =IF(StatData[[#This Row],[Věk]]=Věk,1,0) -> 1 | G164: 163 | H164: Zpracovatelský průmysl | I164: 3 | J164: Střední bez maturity | K164: Muž | L164: do 34 let | M164: 39662.64062 | N164: 41808.99424 | O164: 22960.54246 | P164: 25097.38682 | Q164: 26897.62462 | R164: 28495.12685 | S164: 30031.74319 | T164: 30903.67243 | U164: 31966.53231 | V164: 32818.73012 | W164: 33584.43098 | X164: 34448.75465 | Y164: 35150.93282 | Z164: 35919.90469 | AA164: 36598.97795 | AB164: 37345.00219 | AC164: 38107.533 | AD164: 38818.93191 | AE164: 39513.44014 | AF164: 40215.63084 | AG164: 40815.53122 | AH164: 42187.93101 | AI164: 43472.45234 | AJ164: 44926.27111 | AK164: 46495.01587 | AL164: 48298.5633 | AM164: 50321.92363 | AN164: 53279.20076 | AO164: 57156.44605 | AP164: 63640.09212
A165: =IF(AND(StatData[[#This Row],[Shoda: Seskupený CZ-NACE]],StatData[[#This Row],[Shoda: Region]],StatData[[#This Row],[Shoda: Vzdělání]],StatData[[#This Row],[Shoda: Pohlaví]],StatData[[#This Row],[Shoda: Věk]]),1,0) -> 0 | B165: =IF(StatData[[#This Row],[Seskupený CZ-NACE]]=VLOOKUP(Obor,TabObor[],2,0),1,0) -> 0 | C165: =IF(StatData[[#This Row],[Region]]=VLOOKUP(Region,TabRegion[],2,0),1,0) -> 0 | D165: =IF(StatData[[#This Row],[Vzdělání]]=Vzdělání,1,0) -> 0 | E165: =IF(StatData[[#This Row],[Pohlaví]]=Pohlaví,1,0) -> 0 | F165: =IF(StatData[[#This Row],[Věk]]=Věk,1,0) -> 0 | G165: 164 | H165: Zpracovatelský průmysl | I165: 3 | J165: Střední bez maturity | K165: Muž | L165: 35 až 54 let | M165: 104582.5234 | N165: 44863.31854 | O165: 23697.6666 | P165: 26303.80046 | Q165: 28319.99437 | R165: 29870.77629 | S165: 31312.94884 | T165: 32534.80182 | U165: 33671.64355 | V165: 34640.76284 | W165: 35494.75436 | X165: 36309.35212 | Y165: 37184.79124 | Z165: 37981.84685 | AA165: 38693.82396 | AB165: 39429.16784 | AC165: 40117.28593 | AD165: 40864.96414 | AE165: 41550.93101 | AF165: 42297.8939 | AG165: 43035.2379 | AH165: 44512.19493 | AI165: 45993.19381 | AJ165: 47700.90819 | AK165: 49550.47565 | AL165: 51778.52063 | AM165: 54335.13739 | AN165: 57430.19335 | AO165: 61978.05572 | AP165: 69691.1538
A166: =IF(AND(StatData[[#This Row],[Shoda: Seskupený CZ-NACE]],StatData[[#This Row],[Shoda: Region]],StatData[[#This Row],[Shoda: Vzdělání]],StatData[[#This Row],[Shoda: Pohlaví]],StatData[[#This Row],[Shoda: Věk]]),1,0) -> 0 | B166: =IF(StatData[[#This Row],[Seskupený CZ-NACE]]=VLOOKUP(Obor,TabObor[],2,0),1,0) -> 0 | C166: =IF(StatData[[#This Row],[Region]]=VLOOKUP(Region,TabRegion[],2,0),1,0) -> 0 | D166: =IF(StatData[[#This Row],[Vzdělání]]=Vzdělání,1,0) -> 0 | E166: =IF(StatData[[#This Row],[Pohlaví]]=Pohlaví,1,0) -> 0 | F166: =IF(StatData[[#This Row],[Věk]]=Věk,1,0) -> 0 | G166: 165 | H166: Zpracovatelský průmysl | I166: 3 | J166: Střední bez maturity | K166: Muž | L166: 55 a více let | M166: 43162.54688 | N166: 41528.82668 | O166: 22950.97755 | P166: 24997.43173 | Q166: 26588.97759 | R166: 27895.83217 | S166: 28822.32817 | T166: 29981.53678 | U166: 30819.63464 | V166: 31885.32605 | W166: 32840.7261 | X166: 33593.08516 | Y166: 34490.2806 | Z166: 35231.22666 | AA166: 35971.53883 | AB166: 36665.35939 | AC166: 37214.71529 | AD166: 37976.6955 | AE166: 38543.41245 | AF166: 39140.4417 | AG166: 39850.39837 | AH166: 41175.21395 | AI166: 42630.82247 | AJ166: 44240.16766 | AK166: 45806.91638 | AL166: 47758.24347 | AM166: 50084.80666 | AN166: 52800.37741 | AO166: 56696.9253 | AP166: 64133.07327
A167: =IF(AND(StatData[[#This Row],[Shoda: Seskupený CZ-NACE]],StatData[[#This Row],[Shoda: Region]],StatData[[#This Row],[Shoda: Vzdělání]],StatData[[#This Row],[Shoda: Pohlaví]],StatData[[#This Row],[Shoda: Věk]]),1,0) -> 0 | B167: =IF(StatData[[#This Row],[Seskupený CZ-NACE]]=VLOOKUP(Obor,TabObor[],2,0),1,0) -> 0 | C167: =IF(StatData[[#This Row],[Region]]=VLOOKUP(Region,TabRegion[],2,0),1,0) -> 0 | D167: =IF(StatData[[#This Row],[Vzdělání]]=Vzdělání,1,0) -> 0 | E167: =IF(StatData[[#This Row],[Pohlaví]]=Pohlaví,1,0) -> 1 | F167: =IF(StatData[[#This Row],[Věk]]=Věk,1,0) -> 1 | G167: 166 | H167: Zpracovatelský průmysl | I167: 3 | J167: Střední bez maturity | K167: Žena | L167: do 34 let | M167: 9730.776367 | N167: 33097.40847 | O167: 21013.3443 | P167: 22073.21329 | Q167: 22496.53561 | R167: 23654.2031 | S167: 24204.6148 | T167: 24667.99383 | U167: 25322.1189 | V167: 25905.62832 | W167: 26488.11316 | X167: 27140.18249 | Y167: 27811.4408 | Z167: 28318.2465 | AA167: 28785.18413 | AB167: 29322.11774 | AC167: 29816.0057 | AD167: 30402.90182 | AE167: 30833.32165 | AF167: 31304.918 | AG167: 31873.50018 | AH167: 32797.2007 | AI167: 34010.41208 | AJ167: 35304.68326 | AK167: 36578.51411 | AL167: 37857.16104 | AM167: 39557.20122 | AN167: 41602.69196 | AO167: 44570.34704 | AP167: 49090.84979
A168: =IF(AND(StatData[[#This Row],[Shoda: Seskupený CZ-NACE]],StatData[[#This Row],[Shoda: Region]],StatData[[#This Row],[Shoda: Vzdělání]],StatData[[#This Row],[Shoda: Pohlaví]],StatData[[#This Row],[Shoda: Věk]]),1,0) -> 0 | B168: =IF(StatData[[#This Row],[Seskupený CZ-NACE]]=VLOOKUP(Obor,TabObor[],2,0),1,0) -> 0 | C168: =IF(StatData[[#This Row],[Region]]=VLOOKUP(Region,TabRegion[],2,0),1,0) -> 0 | D168: =IF(StatData[[#This Row],[Vzdělání]]=Vzdělání,1,0) -> 0 | E168: =IF(StatData[[#This Row],[Pohlaví]]=Pohlaví,1,0) -> 1 | F168: =IF(StatData[[#This Row],[Věk]]=Věk,1,0) -> 0 | G168: 167 | H168: Zpracovatelský průmysl | I168: 3 | J168: Střední bez maturity | K168: Žena | L168: 35 až 54 let | M168: 58640.69922 | N168: 33625.762 | O168: 21348.6831 | P168: 21950.1223 | Q168: 22769.85929 | R168: 23352.9811 | S168: 24036.8652 | T168: 24717.15041 | U168: 25294.58034 | V168: 25980.84311 | W168: 26669.73195 | X168: 27283.67153 | Y168: 27920.29377 | Z168: 28379.78531 | AA168: 28909.00887 | AB168: 29399.45452 | AC168: 29897.60176 | AD168: 30353.32027 | AE168: 30890.27855 | AF168: 31397.56876 | AG168: 31932.64632 | AH168: 33070.2156 | AI168: 34221.31799 | AJ168: 35401.65353 | AK168: 36720.31211 | AL168: 38391.55182 | AM168: 40314.92395 | AN168: 42653.48816 | AO168: 45920.73976 | AP168: 51019.36519
A169: =IF(AND(StatData[[#This Row],[Shoda: Seskupený CZ-NACE]],StatData[[#This Row],[Shoda: Region]],StatData[[#This Row],[Shoda: Vzdělání]],StatData[[#This Row],[Shoda: Pohlaví]],StatData[[#This Row],[Shoda: Věk]]),1,0) -> 0 | B169: =IF(StatData[[#This Row],[Seskupený CZ-NACE]]=VLOOKUP(Obor,TabObor[],2,0),1,0) -> 0 | C169: =IF(StatData[[#This Row],[Region]]=VLOOKUP(Region,TabRegion[],2,0),1,0) -> 0 | D169: =IF(StatData[[#This Row],[Vzdělání]]=Vzdělání,1,0) -> 0 | E169: =IF(StatData[[#This Row],[Pohlaví]]=Pohlaví,1,0) -> 1 | F169: =IF(StatData[[#This Row],[Věk]]=Věk,1,0) -> 0 | G169: 168 | H169: Zpracovatelský průmysl | I169: 3 | J169: Střední bez maturity | K169: Žena | L169: 55 a více let | M169: 23636.375 | N169: 32614.43481 | O169: 20532.71952 | P169: 21351.7126 | Q169: 21940.7565 | R169: 22437.0833 | S169: 23326.3221 | T169: 23904.0965 | U169: 24588.4166 | V169: 25106.72251 | W169: 25602.04554 | X169: 26119.17319 | Y169: 26668.07157 | Z169: 27429.1023 | AA169: 27962.01785 | AB169: 28533.59176 | AC169: 29038.79418 | AD169: 29539.56585 | AE169: 30002.33265 | AF169: 30457.3145 | AG169: 30907.37307 | AH169: 32033.22596 | AI169: 33181.54682 | AJ169: 34325.82125 | AK169: 35614.54393 | AL169: 37159.68737 | AM169: 39020.74117 | AN169: 40995.99353 | AO169: 43964.96623 | AP169: 49154.69417
A170: =IF(AND(StatData[[#This Row],[Shoda: Seskupený CZ-NACE]],StatData[[#This Row],[Shoda: Region]],StatData[[#This Row],[Shoda: Vzdělání]],StatData[[#This Row],[Shoda: Pohlaví]],StatData[[#This Row],[Shoda: Věk]]),1,0) -> 0 | B170: =IF(StatData[[#This Row],[Seskupený CZ-NACE]]=VLOOKUP(Obor,TabObor[],2,0),1,0) -> 0 | C170: =IF(StatData[[#This Row],[Region]]=VLOOKUP(Region,TabRegion[],2,0),1,0) -> 0 | D170: =IF(StatData[[#This Row],[Vzdělání]]=Vzdělání,1,0) -> 1 | E170: =IF(StatData[[#This Row],[Pohlaví]]=Pohlaví,1,0) -> 0 | F170: =IF(StatData[[#This Row],[Věk]]=Věk,1,0) -> 1 | G170: 169 | H170: Zpracovatelský průmysl | I170: 3 | J170: Střední s maturitou a vyšší odborné | K170: Muž | L170: do 34 let | M170: 40605.95312 | N170: 47777.54564 | O170: 27982.63222 | P170: 30113.64493 | Q170: 31413.40824 | R170: 32954.34018 | S170: 34065.72063 | T170: 35156.20993 | U170: 36060.82338 | V170: 36956.81907 | W170: 37739.20379 | X170: 38443.39436 | Y170: 39164.96872 | Z170: 39859.21654 | AA170: 40629.73647 | AB170: 41377.06299 | AC170: 41982.41195 | AD170: 42793.11754 | AE170: 43537.91732 | AF170: 44238.80933 | AG170: 44956.16523 | AH170: 46597.59008 | AI170: 48092.84515 | AJ170: 50116.50631 | AK170: 52088.79014 | AL170: 54419.90731 | AM170: 57280.46944 | AN170: 61032.34588 | AO170: 66380.06469 | AP170: 76100.83144
A171: =IF(AND(StatData[[#This Row],[Shoda: Seskupený CZ-NACE]],StatData[[#This Row],[Shoda: Region]],StatData[[#This Row],[Shoda: Vzdělání]],StatData[[#This Row],[Shoda: Pohlaví]],StatData[[#This Row],[Shoda: Věk]]),1,0) -> 0 | B171: =IF(StatData[[#This Row],[Seskupený CZ-NACE]]=VLOOKUP(Obor,TabObor[],2,0),1,0) -> 0 | C171: =IF(StatData[[#This Row],[Region]]=VLOOKUP(Region,TabRegion[],2,0),1,0) -> 0 | D171: =IF(StatData[[#This Row],[Vzdělání]]=Vzdělání,1,0) -> 1 | E171: =IF(StatData[[#This Row],[Pohlaví]]=Pohlaví,1,0) -> 0 | F171: =IF(StatData[[#This Row],[Věk]]=Věk,1,0) -> 0 | G171: 170 | H171: Zpracovatelský průmysl | I171: 3 | J171: Střední s maturitou a vyšší odborné | K171: Muž | L171: 35 až 54 let | M171: 75972.86719 | N171: 55895.52998 | O171: 28760.38189 | P171: 31816.84799 | Q171: 33954.70414 | R171: 35667.02339 | S171: 37051.66184 | T171: 38283.87294 | U171: 39340.03276 | V171: 40395.2901 | W171: 41257.78881 | X171: 42155.95718 | Y171: 43056.95706 | Z171: 43919.32952 | AA171: 44827.25521 | AB171: 45837.04216 | AC171: 46779.3019 | AD171: 47758.51854 | AE171: 48657.34657 | AF171: 49647.14417 | AG171: 50661.71676 | AH171: 52618.5498 | AI171: 54835.51838 | AJ171: 57353.97127 | AK171: 60222.67335 | AL171: 63576.8374 | AM171: 67995.86708 | AN171: 73705.38964 | AO171: 81995.50014 | AP171: 97705.80713
A172: =IF(AND(StatData[[#This Row],[Shoda: Seskupený CZ-NACE]],StatData[[#This Row],[Shoda: Region]],StatData[[#This Row],[Shoda: Vzdělání]],StatData[[#This Row],[Shoda: Pohlaví]],StatData[[#This Row],[Shoda: Věk]]),1,0) -> 0 | B172: =IF(StatData[[#This Row],[Seskupený CZ-NACE]]=VLOOKUP(Obor,TabObor[],2,0),1,0) -> 0 | C172: =IF(StatData[[#This Row],[Region]]=VLOOKUP(Region,TabRegion[],2,0),1,0) -> 0 | D172: =IF(StatData[[#This Row],[Vzdělání]]=Vzdělání,1,0) -> 1 | E172: =IF(StatData[[#This Row],[Pohlaví]]=Pohlaví,1,0) -> 0 | F172: =IF(StatData[[#This Row],[Věk]]=Věk,1,0) -> 0 | G172: 171 | H172: Zpracovatelský průmysl | I172: 3 | J172: Střední s maturitou a vyšší odborné | K172: Muž | L172: 55 a více let | M172: 23116.89453 | N172: 50439.42512 | O172: 25144.53603 | P172: 27197.82896 | Q172: 28983.49763 | R172: 30559.33002 | S172: 31893.60796 | T172: 33084.52952 | U172: 34325.34421 | V172: 35424.76112 | W172: 36628.91142 | X172: 37553.07311 | Y172: 38464.06511 | Z172: 39453.42158 | AA172: 40301.72297 | AB172: 40882.62202 | AC172: 41699.61277 | AD172: 42531.10877 | AE172: 43461.69347 | AF172: 44444.05718 | AG172: 45378.41991 | AH172: 47459.82814 | AI172: 49509.44447 | AJ172: 51549.2965 | AK172: 54195.83853 | AL172: 56987.01131 | AM172: 60833.93686 | AN172: 65796.18111 | AO172: 73593.56528 | AP172: 89360.42978
A173: =IF(AND(StatData[[#This Row],[Shoda: Seskupený CZ-NACE]],StatData[[#This Row],[Shoda: Region]],StatData[[#This Row],[Shoda: Vzdělání]],StatData[[#This Row],[Shoda: Pohlaví]],StatData[[#This Row],[Shoda: Věk]]),1,0) -> 0 | B173: =IF(StatData[[#This Row],[Seskupený CZ-NACE]]=VLOOKUP(Obor,TabObor[],2,0),1,0) -> 0 | C173: =IF(StatData[[#This Row],[Region]]=VLOOKUP(Region,TabRegion[],2,0),1,0) -> 0 | D173: =IF(StatData[[#This Row],[Vzdělání]]=Vzdělání,1,0) -> 1 | E173: =IF(StatData[[#This Row],[Pohlaví]]=Pohlaví,1,0) -> 1 | F173: =IF(StatData[[#This Row],[Věk]]=Věk,1,0) -> 1 | G173: 172 | H173: Zpracovatelský průmysl | I173: 3 | J173: Střední s maturitou a vyšší odborné | K173: Žena | L173: do 34 let | M173: 14133.70605 | N173: 37291.75738 | O173: 22373.23593 | P173: 23797.5248 | Q173: 25033.25 | R173: 26204.36876 | S173: 27102.29933 | T173: 27846.64157 | U173: 28629.71464 | V173: 29257.60988 | W173: 29996.92994 | X173: 30529.49179 | Y173: 31111.49419 | Z173: 31626.54896 | AA173: 32222.17055 | AB173: 32774.42903 | AC173: 33264.25416 | AD173: 33819.72856 | AE173: 34408.64361 | AF173: 35025.60465 | AG173: 35619.13897 | AH173: 36803.42641 | AI173: 37854.6261 | AJ173: 39226.55168 | AK173: 40450.40108 | AL173: 42197.58161 | AM173: 44191.90466 | AN173: 47004.24529 | AO173: 50720.60878 | AP173: 57318.18021
A174: =IF(AND(StatData[[#This Row],[Shoda: Seskupený CZ-NACE]],StatData[[#This Row],[Shoda: Region]],StatData[[#This Row],[Shoda: Vzdělání]],StatData[[#This Row],[Shoda: Pohlaví]],StatData[[#This Row],[Shoda: Věk]]),1,0) -> 0 | B174: =IF(StatData[[#This Row],[Seskupený CZ-NACE]]=VLOOKUP(Obor,TabObor[],2,0),1,0) -> 0 | C174: =IF(StatData[[#This Row],[Region]]=VLOOKUP(Region,TabRegion[],2,0),1,0) -> 0 | D174: =IF(StatData[[#This Row],[Vzdělání]]=Vzdělání,1,0) -> 1 | E174: =IF(StatData[[#This Row],[Pohlaví]]=Pohlaví,1,0) -> 1 | F174: =IF(StatData[[#This Row],[Věk]]=Věk,1,0) -> 0 | G174: 173 | H174: Zpracovatelský průmysl | I174: 3 | J174: Střední s maturitou a vyšší odborné | K174: Žena | L174: 35 až 54 let | M174: 53080.78125 | N174: 40124.57871 | O174: 22117.08309 | P174: 24064.6474 | Q174: 25165.66942 | R174: 26333.20698 | S174: 27423.70077 | T174: 28317.59834 | U174: 29163.21376 | V174: 30004.02766 | W174: 30779.33677 | X174: 31532.81134 | Y174: 32163.03007 | Z174: 32890.43307 | AA174: 33498.20515 | AB174: 34047.34215 | AC174: 34670.27125 | AD174: 35305.88958 | AE174: 35951.16061 | AF174: 36626.65455 | AG174: 37349.63662 | AH174: 38805.46503 | AI174: 40292.55778 | AJ174: 41811.9912 | AK174: 43608.85905 | AL174: 45727.44255 | AM174: 48323.14059 | AN174: 51631.09693 | AO174: 56306.10463 | AP174: 66123.51045
A175: =IF(AND(StatData[[#This Row],[Shoda: Seskupený CZ-NACE]],StatData[[#This Row],[Shoda: Region]],StatData[[#This Row],[Shoda: Vzdělání]],StatData[[#This Row],[Shoda: Pohlaví]],StatData[[#This Row],[Shoda: Věk]]),1,0) -> 0 | B175: =IF(StatData[[#This Row],[Seskupený CZ-NACE]]=VLOOKUP(Obor,TabObor[],2,0),1,0) -> 0 | C175: =IF(StatData[[#This Row],[Region]]=VLOOKUP(Region,TabRegion[],2,0),1,0) -> 0 | D175: =IF(StatData[[#This Row],[Vzdělání]]=Vzdělání,1,0) -> 1 | E175: =IF(StatData[[#This Row],[Pohlaví]]=Pohlaví,1,0) -> 1 | F175: =IF(StatData[[#This Row],[Věk]]=Věk,1,0) -> 0 | G175: 174 | H175: Zpracovatelský průmysl | I175: 3 | J175: Střední s maturitou a vyšší odborné | K175: Žena | L175: 55 a více let | M175: 16420.69531 | N175: 40134.03641 | O175: 22106.24738 | P175: 23622.4849 | Q175: 24557.1995 | R175: 25854.79985 | S175: 26560.09078 | T175: 27520.05724 | U175: 28466.58105 | V175: 29038.11432 | W175: 29632.38269 | X175: 30206.76524 | Y175: 30857.18905 | Z175: 31463.21619 | AA175: 32162.37972 | AB175: 32815.91051 | AC175: 33685.68672 | AD175: 34483.24517 | AE175: 35263.50154 | AF175: 35923.88934 | AG175: 36629.67012 | AH175: 37991.96264 | AI175: 39524.03302 | AJ175: 41248.69342 | AK175: 43163.8007 | AL175: 45527.4431 | AM175: 48429.90323 | AN175: 52345.70195 | AO175: 57532.62169 | AP175: 66763.93822
A176: =IF(AND(StatData[[#This Row],[Shoda: Seskupený CZ-NACE]],StatData[[#This Row],[Shoda: Region]],StatData[[#This Row],[Shoda: Vzdělání]],StatData[[#This Row],[Shoda: Pohlaví]],StatData[[#This Row],[Shoda: Věk]]),1,0) -> 0 | B176: =IF(StatData[[#This Row],[Seskupený CZ-NACE]]=VLOOKUP(Obor,TabObor[],2,0),1,0) -> 0 | C176: =IF(StatData[[#This Row],[Region]]=VLOOKUP(Region,TabRegion[],2,0),1,0) -> 0 | D176: =IF(StatData[[#This Row],[Vzdělání]]=Vzdělání,1,0) -> 0 | E176: =IF(StatData[[#This Row],[Pohlaví]]=Pohlaví,1,0) -> 0 | F176: =IF(StatData[[#This Row],[Věk]]=Věk,1,0) -> 1 | G176: 175 | H176: Zpracovatelský průmysl | I176: 3 | J176: Vysokoškolské | K176: Muž | L176: do 34 let | M176: 12049.87988 | N176: 59961.17856 | O176: 33793.29098 | P176: 36307.63364 | Q176: 37700.17593 | R176: 39408.84108 | S176: 40559.03393 | T176: 41946.06942 | U176: 43380.48573 | V176: 44573.98913 | W176: 45795.83468 | X176: 46413.75579 | Y176: 47379.45559 | Z176: 48360.724 | AA176: 49575.92223 | AB176: 50724.86048 | AC176: 51570.5717 | AD176: 52633.49289 | AE176: 53564.67139 | AF176: 54714.7333 | AG176: 55789.6876 | AH176: 58047.51086 | AI176: 60475.55953 | AJ176: 62795.58322 | AK176: 65487.44106 | AL176: 69058.36559 | AM176: 73157.53124 | AN176: 78621.01224 | AO176: 86187.96814 | AP176: 98713.84797
A177: =IF(AND(StatData[[#This Row],[Shoda: Seskupený CZ-NACE]],StatData[[#This Row],[Shoda: Region]],StatData[[#This Row],[Shoda: Vzdělání]],StatData[[#This Row],[Shoda: Pohlaví]],StatData[[#This Row],[Shoda: Věk]]),1,0) -> 0 | B177: =IF(StatData[[#This Row],[Seskupený CZ-NACE]]=VLOOKUP(Obor,TabObor[],2,0),1,0) -> 0 | C177: =IF(StatData[[#This Row],[Region]]=VLOOKUP(Region,TabRegion[],2,0),1,0) -> 0 | D177: =IF(StatData[[#This Row],[Vzdělání]]=Vzdělání,1,0) -> 0 | E177: =IF(StatData[[#This Row],[Pohlaví]]=Pohlaví,1,0) -> 0 | F177: =IF(StatData[[#This Row],[Věk]]=Věk,1,0) -> 0 | G177: 176 | H177: Zpracovatelský průmysl | I177: 3 | J177: Vysokoškolské | K177: Muž | L177: 35 až 54 let | M177: 31188.17969 | N177: 85385.22591 | O177: 32625.25636 | P177: 37493.68917 | Q177: 40602.70946 | R177: 43650.11041 | S177: 45974.98704 | T177: 47820.99127 | U177: 49531.30489 | V177: 51534.43981 | W177: 53857.63874 | X177: 55684.2282 | Y177: 57455.14614 | Z177: 59203.76624 | AA177: 61018.71988 | AB177: 62805.98641 | AC177: 64474.73775 | AD177: 66385.76567 | AE177: 68320.2429 | AF177: 70217.8174 | AG177: 72258.96396 | AH177: 75906.26551 | AI177: 80126.16608 | AJ177: 85314.70162 | AK177: 91178.73148 | AL177: 98257.67912 | AM177: 108104.923 | AN177: 121430.5202 | AO177: 141459.8477 | AP177: 183478.3905
A178: =IF(AND(StatData[[#This Row],[Shoda: Seskupený CZ-NACE]],StatData[[#This Row],[Shoda: Region]],StatData[[#This Row],[Shoda: Vzdělání]],StatData[[#This Row],[Shoda: Pohlaví]],StatData[[#This Row],[Shoda: Věk]]),1,0) -> 0 | B178: =IF(StatData[[#This Row],[Seskupený CZ-NACE]]=VLOOKUP(Obor,TabObor[],2,0),1,0) -> 0 | C178: =IF(StatData[[#This Row],[Region]]=VLOOKUP(Region,TabRegion[],2,0),1,0) -> 0 | D178: =IF(StatData[[#This Row],[Vzdělání]]=Vzdělání,1,0) -> 0 | E178: =IF(StatData[[#This Row],[Pohlaví]]=Pohlaví,1,0) -> 0 | F178: =IF(StatData[[#This Row],[Věk]]=Věk,1,0) -> 0 | G178: 177 | H178: Zpracovatelský průmysl | I178: 3 | J178: Vysokoškolské | K178: Muž | L178: 55 a více let | M178: 10475.35352 | N178: 77379.53443 | O178: 28090.63773 | P178: 30153.56486 | Q178: 32652.95933 | R178: 35316.47807 | S178: 37379.52033 | T178: 39298.33984 | U178: 40964.24547 | V178: 42020.84033 | W178: 43541.21056 | X178: 45302.94972 | Y178: 47960.35819 | Z178: 48782.26147 | AA178: 50061.4318 | AB178: 51765.97158 | AC178: 53753.69272 | AD178: 55258.59476 | AE178: 57485.05569 | AF178: 58984.50908 | AG178: 61181.87462 | AH178: 65295.41707 | AI178: 69513.38143 | AJ178: 74618.11407 | AK178: 81013.63481 | AL178: 89152.84829 | AM178: 97448.8493 | AN178: 108761.4735 | AO178: 133503.2542 | AP178: 174612.162
A179: =IF(AND(StatData[[#This Row],[Shoda: Seskupený CZ-NACE]],StatData[[#This Row],[Shoda: Region]],StatData[[#This Row],[Shoda: Vzdělání]],StatData[[#This Row],[Shoda: Pohlaví]],StatData[[#This Row],[Shoda: Věk]]),1,0) -> 0 | B179: =IF(StatData[[#This Row],[Seskupený CZ-NACE]]=VLOOKUP(Obor,TabObor[],2,0),1,0) -> 0 | C179: =IF(StatData[[#This Row],[Region]]=VLOOKUP(Region,TabRegion[],2,0),1,0) -> 0 | D179: =IF(StatData[[#This Row],[Vzdělání]]=Vzdělání,1,0) -> 0 | E179: =IF(StatData[[#This Row],[Pohlaví]]=Pohlaví,1,0) -> 1 | F179: =IF(StatData[[#This Row],[Věk]]=Věk,1,0) -> 1 | G179: 178 | H179: Zpracovatelský průmysl | I179: 3 | J179: Vysokoškolské | K179: Žena | L179: do 34 let | M179: 7238.191406 | N179: 47011.47065 | O179: 26615.14697 | P179: 28999.24988 | Q179: 30352.76668 | R179: 32028.45281 | S179: 33606.66182 | T179: 34351.13985 | U179: 35126.2343 | V179: 36084.14844 | W179: 36868.82954 | X179: 37605.60579 | Y179: 38547.93723 | Z179: 39450.36912 | AA179: 40233.35556 | AB179: 41022.111 | AC179: 41671.88304 | AD179: 42331.28718 | AE179: 43007.67102 | AF179: 43647.85776 | AG179: 44490.00526 | AH179: 46179.59858 | AI179: 47582.22029 | AJ179: 49290.55474 | AK179: 51623.73652 | AL179: 53913.83767 | AM179: 56609.42742 | AN179: 60157.0528 | AO179: 66137.69865 | AP179: 75725.76052
A180: =IF(AND(StatData[[#This Row],[Shoda: Seskupený CZ-NACE]],StatData[[#This Row],[Shoda: Region]],StatData[[#This Row],[Shoda: Vzdělání]],StatData[[#This Row],[Shoda: Pohlaví]],StatData[[#This Row],[Shoda: Věk]]),1,0) -> 0 | B180: =IF(StatData[[#This Row],[Seskupený CZ-NACE]]=VLOOKUP(Obor,TabObor[],2,0),1,0) -> 0 | C180: =IF(StatData[[#This Row],[Region]]=VLOOKUP(Region,TabRegion[],2,0),1,0) -> 0 | D180: =IF(StatData[[#This Row],[Vzdělání]]=Vzdělání,1,0) -> 0 | E180: =IF(StatData[[#This Row],[Pohlaví]]=Pohlaví,1,0) -> 1 | F180: =IF(StatData[[#This Row],[Věk]]=Věk,1,0) -> 0 | G180: 179 | H180: Zpracovatelský průmysl | I180: 3 | J180: Vysokoškolské | K180: Žena | L180: 35 až 54 let | M180: 18703.70312 | N180: 58676.33002 | O180: 28416.7011 | P180: 30611.36213 | Q180: 32177.08353 | R180: 33801.79761 | S180: 35178.67329 | T180: 36634.57802 | U180: 37773.09016 | V180: 38964.75892 | W180: 40112.82477 | X180: 41275.30448 | Y180: 42184.5338 | Z180: 43111.61258 | AA180: 44084.02877 | AB180: 45131.52936 | AC180: 46295.18873 | AD180: 47035.00072 | AE180: 47681.25391 | AF180: 48896.47891 | AG180: 49888.28175 | AH180: 52580.68476 | AI180: 55103.00967 | AJ180: 58225.93847 | AK180: 62252.51879 | AL180: 66577.45239 | AM180: 72316.57202 | AN180: 79499.60883 | AO180: 90703.2683 | AP180: 116720.4103
A181: =IF(AND(StatData[[#This Row],[Shoda: Seskupený CZ-NACE]],StatData[[#This Row],[Shoda: Region]],StatData[[#This Row],[Shoda: Vzdělání]],StatData[[#This Row],[Shoda: Pohlaví]],StatData[[#This Row],[Shoda: Věk]]),1,0) -> 0 | B181: =IF(StatData[[#This Row],[Seskupený CZ-NACE]]=VLOOKUP(Obor,TabObor[],2,0),1,0) -> 0 | C181: =IF(StatData[[#This Row],[Region]]=VLOOKUP(Region,TabRegion[],2,0),1,0) -> 0 | D181: =IF(StatData[[#This Row],[Vzdělání]]=Vzdělání,1,0) -> 0 | E181: =IF(StatData[[#This Row],[Pohlaví]]=Pohlaví,1,0) -> 1 | F181: =IF(StatData[[#This Row],[Věk]]=Věk,1,0) -> 0 | G181: 180 | H181: Zpracovatelský průmysl | I181: 3 | J181: Vysokoškolské | K181: Žena | L181: 55 a více let | M181: 2618.749512 | N181: 61693.80796 | O181: 22636.5 | P181: 27614.27492 | Q181: 30087.31383 | R181: 32773.94847 | S181: 34640.22248 | T181: 36167.17329 | U181: 36212.97548 | V181: 36803.58291 | W181: 38285.46887 | X181: 39753.79271 | Y181: 41392.16242 | Z181: 42774.45922 | AA181: 44234.68398 | AB181: 45433.94676 | AC181: 45920.83822 | AD181: 47206.15521 | AE181: 48452.56357 | AF181: 49953.01438 | AG181: 50807.8597 | AH181: 54372.8802 | AI181: 57879.43505 | AJ181: 61301.89229 | AK181: 66844.08348 | AL181: 72461.67471 | AM181: 79096.62031 | AN181: 86769.60077 | AO181: 100241.2354 | AP181: 131994.5004
A182: =IF(AND(StatData[[#This Row],[Shoda: Seskupený CZ-NACE]],StatData[[#This Row],[Shoda: Region]],StatData[[#This Row],[Shoda: Vzdělání]],StatData[[#This Row],[Shoda: Pohlaví]],StatData[[#This Row],[Shoda: Věk]]),1,0) -> 0 | B182: =IF(StatData[[#This Row],[Seskupený CZ-NACE]]=VLOOKUP(Obor,TabObor[],2,0),1,0) -> 0 | C182: =IF(StatData[[#This Row],[Region]]=VLOOKUP(Region,TabRegion[],2,0),1,0) -> 1 | D182: =IF(StatData[[#This Row],[Vzdělání]]=Vzdělání,1,0) -> 0 | E182: =IF(StatData[[#This Row],[Pohlaví]]=Pohlaví,1,0) -> 0 | F182: =IF(StatData[[#This Row],[Věk]]=Věk,1,0) -> 1 | G182: 181 | H182: Obchod a doprava | I182: 1 | J182: Střední bez maturity | K182: Muž | L182: do 34 let | M182: 4783.776855 | N182: 39715.7816 | O182: 19958.3261 | P182: 20208.93761 | Q182: 20876.2194 | R182: 21740.1666 | S182: 22323.86818 | T182: 23037.90011 | U182: 25074.3372 | V182: 26991.12891 | W182: 28185.10804 | X182: 29456.23381 | Y182: 30320.40568 | Z182: 30566.71915 | AA182: 32330.59444 | AB182: 33507.09289 | AC182: 34584.7867 | AD182: 35191.85736 | AE182: 36087.61056 | AF182: 36765.01633 | AG182: 37875.42884 | AH182: 39958.99895 | AI182: 41979.21241 | AJ182: 44037.82039 | AK182: 46136.48513 | AL182: 48642.87374 | AM182: 51882.01876 | AN182: 55745.26465 | AO182: 59444.7157 | AP182: 66417.72299
A183: =IF(AND(StatData[[#This Row],[Shoda: Seskupený CZ-NACE]],StatData[[#This Row],[Shoda: Region]],StatData[[#This Row],[Shoda: Vzdělání]],StatData[[#This Row],[Shoda: Pohlaví]],StatData[[#This Row],[Shoda: Věk]]),1,0) -> 0 | B183: =IF(StatData[[#This Row],[Seskupený CZ-NACE]]=VLOOKUP(Obor,TabObor[],2,0),1,0) -> 0 | C183: =IF(StatData[[#This Row],[Region]]=VLOOKUP(Region,TabRegion[],2,0),1,0) -> 1 | D183: =IF(StatData[[#This Row],[Vzdělání]]=Vzdělání,1,0) -> 0 | E183: =IF(StatData[[#This Row],[Pohlaví]]=Pohlaví,1,0) -> 0 | F183: =IF(StatData[[#This Row],[Věk]]=Věk,1,0) -> 0 | G183: 182 | H183: Obchod a doprava | I183: 1 | J183: Střední bez maturity | K183: Muž | L183: 35 až 54 let | M183: 15134.27246 | N183: 42132.06378 | O183: 19741.28156 | P183: 20208.8017 | Q183: 20288.83034 | R183: 21417.29495 | S183: 21793.43677 | T183: 22350.1666 | U183: 22926.5044 | V183: 23706.0833 | W183: 24197.5495 | X183: 25328.89709 | Y183: 26822.17033 | Z183: 27813.44878 | AA183: 30228.425 | AB183: 31142.03969 | AC183: 32724.63926 | AD183: 34583.95679 | AE183: 35791.64139 | AF183: 37429.4785 | AG183: 38869.05797 | AH183: 41601.28347 | AI183: 44797.15935 | AJ183: 47802.25329 | AK183: 51647.75405 | AL183: 54945.60921 | AM183: 58659.84859 | AN183: 62556.82667 | AO183: 66934.8197 | AP183: 74466.39013
A184: =IF(AND(StatData[[#This Row],[Shoda: Seskupený CZ-NACE]],StatData[[#This Row],[Shoda: Region]],StatData[[#This Row],[Shoda: Vzdělání]],StatData[[#This Row],[Shoda: Pohlaví]],StatData[[#This Row],[Shoda: Věk]]),1,0) -> 0 | B184: =IF(StatData[[#This Row],[Seskupený CZ-NACE]]=VLOOKUP(Obor,TabObor[],2,0),1,0) -> 0 | C184: =IF(StatData[[#This Row],[Region]]=VLOOKUP(Region,TabRegion[],2,0),1,0) -> 1 | D184: =IF(StatData[[#This Row],[Vzdělání]]=Vzdělání,1,0) -> 0 | E184: =IF(StatData[[#This Row],[Pohlaví]]=Pohlaví,1,0) -> 0 | F184: =IF(StatData[[#This Row],[Věk]]=Věk,1,0) -> 0 | G184: 183 | H184: Obchod a doprava | I184: 1 | J184: Střední bez maturity | K184: Muž | L184: 55 a více let | M184: 5810.925293 | N184: 44153.37326 | O184: 19905.79321 | P184: 20208.462 | Q184: 21569.14283 | R184: 22582.1707 | S184: 23180.0123 | T184: 24370.9928 | U184: 24906.5 | V184: 26376.63102 | W184: 27505.62917 | X184: 28796.85403 | Y184: 30400.59863 | Z184: 32267.4301 | AA184: 33379.96824 | AB184: 35909.24091 | AC184: 37740.7537 | AD184: 39772.32175 | AE184: 41087.62682 | AF184: 42463.76005 | AG184: 43756.70976 | AH184: 45829.72634 | AI184: 48457.28583 | AJ184: 51477.43708 | AK184: 54750.0147 | AL184: 57468.17564 | AM184: 60334.37372 | AN184: 62928.96966 | AO184: 65884.05751 | AP184: 72768.34427
A185: =IF(AND(StatData[[#This Row],[Shoda: Seskupený CZ-NACE]],StatData[[#This Row],[Shoda: Region]],StatData[[#This Row],[Shoda: Vzdělání]],StatData[[#This Row],[Shoda: Pohlaví]],StatData[[#This Row],[Shoda: Věk]]),1,0) -> 0 | B185: =IF(StatData[[#This Row],[Seskupený CZ-NACE]]=VLOOKUP(Obor,TabObor[],2,0),1,0) -> 0 | C185: =IF(StatData[[#This Row],[Region]]=VLOOKUP(Region,TabRegion[],2,0),1,0) -> 1 | D185: =IF(StatData[[#This Row],[Vzdělání]]=Vzdělání,1,0) -> 0 | E185: =IF(StatData[[#This Row],[Pohlaví]]=Pohlaví,1,0) -> 1 | F185: =IF(StatData[[#This Row],[Věk]]=Věk,1,0) -> 1 | G185: 184 | H185: Obchod a doprava | I185: 1 | J185: Střední bez maturity | K185: Žena | L185: do 34 let | M185: 3255.12793 | N185: 33799.28519 | O185: 21564.47039 | P185: 22077.0582 | Q185: 22355.6854 | R185: 22495.5833 | S185: 24474.3029 | T185: 26014.3053 | U185: 27032.11191 | V185: 27207.17916 | W185: 27807.33741 | X185: 28627.64639 | Y185: 29234.59781 | Z185: 29816.39424 | AA185: 30450.12848 | AB185: 31110.38771 | AC185: 31696.4014 | AD185: 31819.04514 | AE185: 32275.51461 | AF185: 32801.38608 | AG185: 33389.91937 | AH185: 34292.04303 | AI185: 35222.10104 | AJ185: 36172.63989 | AK185: 37148.76287 | AL185: 38505.31524 | AM185: 39228.92529 | AN185: 41120.17673 | AO185: 44504.53373 | AP185: 50394.04297
A186: =IF(AND(StatData[[#This Row],[Shoda: Seskupený CZ-NACE]],StatData[[#This Row],[Shoda: Region]],StatData[[#This Row],[Shoda: Vzdělání]],StatData[[#This Row],[Shoda: Pohlaví]],StatData[[#This Row],[Shoda: Věk]]),1,0) -> 0 | B186: =IF(StatData[[#This Row],[Seskupený CZ-NACE]]=VLOOKUP(Obor,TabObor[],2,0),1,0) -> 0 | C186: =IF(StatData[[#This Row],[Region]]=VLOOKUP(Region,TabRegion[],2,0),1,0) -> 1 | D186: =IF(StatData[[#This Row],[Vzdělání]]=Vzdělání,1,0) -> 0 | E186: =IF(StatData[[#This Row],[Pohlaví]]=Pohlaví,1,0) -> 1 | F186: =IF(StatData[[#This Row],[Věk]]=Věk,1,0) -> 0 | G186: 185 | H186: Obchod a doprava | I186: 1 | J186: Střední bez maturity | K186: Žena | L186: 35 až 54 let | M186: 9872.905273 | N186: 37164.84544 | O186: 20500.84758 | P186: 22728.1666 | Q186: 24056.29774 | R186: 25544.03752 | S186: 26725.7573 | T186: 27733.62594 | U186: 28742.9457 | V186: 29546.40597 | W186: 30146.72285 | X186: 30766.50531 | Y186: 31443.08439 | Z186: 32056.24774 | AA186: 32602.2677 | AB186: 33159.13409 | AC186: 33507.22195 | AD186: 34158.91236 | AE186: 34664.38738 | AF186: 35204.6459 | AG186: 35743.0747 | AH186: 36617.78579 | AI186: 37510.08175 | AJ186: 38576.6877 | AK186: 39646.12021 | AL186: 41636.05992 | AM186: 43969.50843 | AN186: 46977.4162 | AO186: 50515.54324 | AP186: 59555.87439
A187: =IF(AND(StatData[[#This Row],[Shoda: Seskupený CZ-NACE]],StatData[[#This Row],[Shoda: Region]],StatData[[#This Row],[Shoda: Vzdělání]],StatData[[#This Row],[Shoda: Pohlaví]],StatData[[#This Row],[Shoda: Věk]]),1,0) -> 0 | B187: =IF(StatData[[#This Row],[Seskupený CZ-NACE]]=VLOOKUP(Obor,TabObor[],2,0),1,0) -> 0 | C187: =IF(StatData[[#This Row],[Region]]=VLOOKUP(Region,TabRegion[],2,0),1,0) -> 1 | D187: =IF(StatData[[#This Row],[Vzdělání]]=Vzdělání,1,0) -> 0 | E187: =IF(StatData[[#This Row],[Pohlaví]]=Pohlaví,1,0) -> 1 | F187: =IF(StatData[[#This Row],[Věk]]=Věk,1,0) -> 0 | G187: 186 | H187: Obchod a doprava | I187: 1 | J187: Střední bez maturity | K187: Žena | L187: 55 a více let | M187: 3772.02417 | N187: 34287.62267 | O187: 18935.57164 | P187: 19829.04848 | Q187: 22056.3712 | R187: 23167.5506 | S187: 23928.75 | T187: 26011.6037 | U187: 26241.3363 | V187: 26848.2897 | W187: 27238.36777 | X187: 27568.37336 | Y187: 27988.27692 | Z187: 28783.8421 | AA187: 29576.64264 | AB187: 30306.29684 | AC187: 31016.68661 | AD187: 31721.4742 | AE187: 32232.40287 | AF187: 32619.40861 | AG187: 33070.70777 | AH187: 34028.89867 | AI187: 35264.42438 | AJ187: 36219.98047 | AK187: 37306.88578 | AL187: 38928.28516 | AM187: 40893.84589 | AN187: 43869.67602 | AO187: 47793.04114 | AP187: 54151.06925
A188: =IF(AND(StatData[[#This Row],[Shoda: Seskupený CZ-NACE]],StatData[[#This Row],[Shoda: Region]],StatData[[#This Row],[Shoda: Vzdělání]],StatData[[#This Row],[Shoda: Pohlaví]],StatData[[#This Row],[Shoda: Věk]]),1,0) -> 0 | B188: =IF(StatData[[#This Row],[Seskupený CZ-NACE]]=VLOOKUP(Obor,TabObor[],2,0),1,0) -> 0 | C188: =IF(StatData[[#This Row],[Region]]=VLOOKUP(Region,TabRegion[],2,0),1,0) -> 1 | D188: =IF(StatData[[#This Row],[Vzdělání]]=Vzdělání,1,0) -> 1 | E188: =IF(StatData[[#This Row],[Pohlaví]]=Pohlaví,1,0) -> 0 | F188: =IF(StatData[[#This Row],[Věk]]=Věk,1,0) -> 1 | G188: 187 | H188: Obchod a doprava | I188: 1 | J188: Střední s maturitou a vyšší odborné | K188: Muž | L188: do 34 let | M188: 12067.36133 | N188: 50422.08219 | O188: 21243.81515 | P188: 22096.48037 | Q188: 23126.25 | R188: 25793.65359 | S188: 27757.97343 | T188: 30124.65139 | U188: 31174.24263 | V188: 33302.73191 | W188: 34749.94965 | X188: 35841.55366 | Y188: 37346.74878 | Z188: 38374.10272 | AA188: 39716.08361 | AB188: 40666.71679 | AC188: 41692.5502 | AD188: 42845.72562 | AE188: 44379.57732 | AF188: 45133.23419 | AG188: 46004.59353 | AH188: 48219.32311 | AI188: 51064.21874 | AJ188: 54269.14794 | AK188: 57692.52937 | AL188: 61275.94598 | AM188: 64907.17534 | AN188: 70013.79212 | AO188: 79165.26407 | AP188: 94128.17338
